Workbook

Sheet 0.1 Introduction
B31: Version : Beta release v1
B32: The beta version of this tool should be used as a platform for testing and improving the tool. The results are generic, are not peer-reviewed, and should be interpreted as a screening-level assessment based on expert knowledge of the impacts of food loss and waste (FLW) on nutrition security and environmental indicators. We invite you to be a Beta Tester and propose improvements and provide feedback in the feedback document (link below in Contact section). The calculator is pre-populated with data for a variety of food crops. Future versions can include different crops or foods. Future versions can also include different impact categories, such as biodiversity loss. We want to improve the calculator based on your needs.
B34: The Food Loss and Waste Accounting and Reporting Standard (http://flwprotocol.org) enables entities to quantify and report on food loss and waste so they can develop targeted reduction strategies and realize the benefits from tackling FLW as an inefficiency in the food system. Appendix D of the standard describes expressing the weight of FLW in other terms or units of measurements, such as nutrition and greenhouse gas emissions. This calculator builds on the FLW Standard: the user enters the quantity of FLW estimated and the tool quickly quantifies FLW in other values (nutritional values or environmental impacts). Through the tool, we aim to help entities understand the value of mitigating FLW and to prioritize the most important FLW streams to focus on in order to bolster the food system's capacity to provide healthy diets for all within planetary boundaries.
B35: Developers
B36: Quantis has developed this tool with financial support from the World Business Council for Sustainable Development (WBCSD) Food Reform for Sustainability and Health (FReSH) program and with support from the World Resources Institute (WRI).
B37: Contact
B38: General questions: | D38: Emeline Fellus | F38: +41 (0)22 839 31 51 | I38: Fellus@wbcsd.org
B39: Technical support: | D39: Alexi Ernstoff | F39: Tel : + 41 (0) 78 732 50 85 | I39: Alexi.Ernstoff@quantis-intl.com
B40: Be a Beta Tester! Feedback document: | F40: https://docs.google.com/spreadsheets/d/1ihgsUzojlBk7LFieMjZcCWOngCnt8A0K45alWQbIrQU/edit?usp=sharing
B42: Calculator content
B43: The calculator contains the following tabs (background information tabs are in grey):
C44: Tab number | D44: Name | F44: Brief description
B45: User interface
C46: 0.1 | D46: Introduction | F46: Context and instructions
C47: 0.2 | D47: FAQs | F47: Questions and answers about use
C48: A1. | D48: Quick assessment & results | F48: This is a simplified user interface for quick calculations
C49: B1. | D49: Detailed assessment | F49: User enters FLW data for a more detailed assessment
C50: B2. | D50: Results table, enviro impact | F50: Automatically calculated results for environmental impacts, no action needed from user
C51: B3. | D51: Result table, nutrition | F51: Automatically calculated results for nutrition being lost, no action needed from user
C52: B4. | D52: Results summary and figures | F52: Automatically generated figures to help interpretation and decision making, no action needed from user
B53: Background data tabs (no user input needed)
C54: C1. | D54: Enviro impact definitions | F54: The impact categories able to be calculated in the beta version and their description->can be updated in future versions
C55: C2. | D55: Nutrition data | F55: The data used to calculate the nutritional impacts
C56: C3. | D56: Agricultural impact data | F56: The data used to calculate the agricultural impacts->can be updated in future versions
C57: C4. | D57: Life cycle impact data | F57: The data used to calculate the additional life cycle impacts->can be updated in future versions
C58: C5. | D58: Destination impact data | F58: The data used to calculate the destination impacts
C59: C6. | D59: Technical methods overview | F59: More details about the scientific methods behind the calculations
C60: C7. | D60: FAO FLW data, Gustavsson et al. | F60: The data generated by the FAO and often used as a benchmark for FLW for various types in various countries.
C61: C8. | D61: List data | F61: Data for the dropdown lists in the user interface
B63: Why to use the calculator
B64: 1. Communicate value
B65: Demonstrate how efforts to prevent food loss and waste provide nutritional and environmental value.
B67: 2. Prioritize actions
B68: Prioritize food loss and waste efforts based on environmental sustainability and nutrition security goals.
B70: 3. Explore options
B71: Explore different destinations and scenarios for food loss and waste to reduce impacts.
B73: Tips on using the calculator for a detailed assessment, steps 1-4
B74: 1. Select Food Type(s)
B75: GO TO FLW SELECTION SECTION
B76: > In step 1 the user selects the food type(s). The Beta version allows the user to simultaneously compare 6 scenarios. The number of scenarios able to be simultaneously compared can be updated in future versions.
B77: > Food types to select are based on the categories (in capital letters) commonly used by the FAO when describing FLW (Gustavsson et al. 2011) and common examples in each category. Results for these selections are the average of the foods in the category that are in the calculator (not generally).
B78: > Food types were selected as common examples in each category. If your food type is not available, select the closest category . (Food types can be update in a future version)
B79: Note about mixtures and formulations
B80: > The calculator is not at this time designed to assess mixed foods or formulations; however, these can be added in future work.
B81: > When assessing mixed foods or formulations, select the principal ingredients.
B83: 2. Select region(s) of agricultural production
B84: GO TO REGION OF AGRICULTURAL PRODUCTION SELECTION SECTION
B85: > In step 2 the user selects the regions of agricultural production (when known).
B86: > Regions to select are based on the categories commonly used by the FAO when describing FLW (Gustavsson et al. 2011).
B87: > Most regional data are missing, and country proxies were selected to represent regions. The calculator will automatically tell you which country proxy is being used.
B89: 3. Enter FLW amounts in tonnes (note: 1 tonne = 1,000 kg)
B90: GO TO FLW DATA ENTRY SECTION
B91: > In step 3 the user enters the amount of FLW separated into different life cycle stages and destinations.
B92: > FLW amounts must be entered in tonnes (1 tonne = 1,000 kg). If measured in a different unit, the user must convert the FLW to tonnes before using the calculator.
B93: > The amount of FLW must be reported such that it reflects the state in which it was generated before water was added or removed. See the FLW Standard, Section 6.7 for guidance.
B94: > If the destination is unknown, enter the value in the "unknown" category.
B96: Data can be entered for the following "Life Cycle Stages"
B97: > | C97: Agricultural production | F97: e.g. while harvesting due to quality control or harvesting inefficiencies
B98: > | C98: Post-harvest handling and storage | F98: e.g. while washing, storing, or transporting between farm and market
B99: > | C99: Processing and packaging | F99: e.g. during processing, or to accommodate packaging size
B100: > | C100: Distribution | F100: e.g. at the retail center or market
B101: > | C101: Consumption | F101: e.g. at restaurants, people's homes, etc.
B103: 4. Select impact category
B104: GO TO ENVIRONMENTAL IMPACT CATEGORY SELECTION SECTION
B105: > Environmental impact categories can be selected in order to view the results.
B106: > Tab C1. provides definitions for the categories included
B109: BEGIN A SIMPLE ASSESSMENT
B110: BEGIN A DETAILED ASSESSMENT

Sheet 0.2 FAQs
B1: Frequently asked questions (FAQs)
B3: Q | C3: What are the main uses of the calculator?
B4: A | C4: The calculator can be used to screen how efforts to prevent food loss and waste provide nutritional and environmental value. It can also be used to explore different scenarios, to see what the improvement could be if a certain amount is avoided, or to look at impacts related to FLW sent to different destinations.
B7: Q | C7: Can a user customize the calulator to reflect different environmental impact data (e.g., its own data, or other more granular data)?
B8: A | C8: Yes, please contact us (Alexi.Ernstoff@Quantis-intl.com) for more detailed instructions on how to enter your own data. Future versions can include an interface where users can enter their own data.
B11: Q | C11: Why can the user only put in 3 scenarios of FLW in the quick assessment and 6 in the detailed assessment?
B12: A | C12: For the Beta version we found this amount of scenarios was easy to implement for users without being overwhelming. If there is funding available for an updated version, more simultaneous scenarios can be possible.
B15: Q | C15: How does the calculator relate to the role of FLW in improving nutrition security and meeting planetary boundaries?
B16: A | C16: The calculator only estimates the nutritional value within the FLW and the associated environmental impacts with respect to the quantity of FLW the user enters. The user can then compare the results to planetary boundary values. This aspect of the calculator can be improved in future versions if funding is available.
B19: Q | C19: Why are the life cycle impacts different for different food categories?
B20: A | C20: The life cycle impacts vary depending on the assumptions used for each food type. For example, dairy and meat is assumed to have refrigerated storage. See tab C4 "Life Cycle Impact Data" for the detailed assumptions.
B22: Q | C22: Why are the water, land, or N and P impacts missing for some destinations? Why are some of the outputs for the destinations a negative value?
B23: A | C23: All five of the environmental impact categories were only considered relevant for the two destinations that might result in the offsetting of agricultural production of some other crop (namely: animal feed, and biomaterials processing). As these destinations offset agricultural production, they can lead to "negative" impacts (when the impact of the food lost or wasted is lower than the impact of what would have been grown and used). For the other destinations (for example: landfill, controlled combustion, composting) only the impacts of greenhouse gas emissions on climate change were assumed to be relevant. These assumptions can be re-visited if there is funding for an update.
B25: Q | C25: How are the environmental impacts calculated if I only include information for one stage in the life cycle/value chain?
B26: A | C26: A user can apply the calculator to assess the FLW at any life cycle stage. The calculator takes into account the cumulative environmental impacts across the life cycle stages, always starting with impacts of agricultural production. For example, when FLW data is entered for the consumption stage (at the "end of the value chain") then the transport, distribution, storage, and cooking impacts are also inluded in the calculation of environmental impacts. The FLW reported by the user in the calculator is not used to scale the agricultural production impacts, for example if a user enters 1 tonne as consumer waste, the agricultural impact is related to producing 1 tonne -- which e.g. does not include the % losses across the value chain which could result in the need to produce 1.2 tonnes to have 1 tonne at market.
B28: Q | C28: What are the next steps for the Beta version?
B29: A | C29: Please fill out your comments and constructive criticisms in the Google Document. The url is: https://docs.google.com/spreadsheets/d/1ihgsUzojlBk7LFieMjZcCWOngCnt8A0K45alWQbIrQU/edit?usp=sharing. We are seeking funding to improve the beta version and make it easier for decision-makers to use.

Sheet A1. Quick assessment & results
A1: Quick assessment and results: environmental impacts and nutritional profile
A2: ABOUT: | B2: For this quick assessment, landfill is assumed to be the destination and up to 3 different scenarios can be compared.
B3: For more destinations and to screen more complex scenarios, go to tab "B1. Detailed assessment"
B4: Overview of steps to be performed in this tab:
C16: KEY:
C17: Select data (Action needed: click for drop down menus)
C18: Enter data (Action needed: type in values)
B23: 1 | C23: Select up to three combinations of food and region of agricultural production (if known). Enter the lost or wasted amount in tonnes (1000 kg). Note that regional proxies are used (e.g. France for Europe) as indicated, however, most regions do not have a proxy available.
D24: Food | E24: Region | F24: Enter the amount | I24: Food | J24: Region | K24: Enter the amount | N24: Food | O24: Region | P24: Enter the amount
C25: 1 | D25: <click to select> | E25: Europe and Russia | G25: tonnes | H25: 2 | I25: <click to select> | J25: <click to select> | L25: tonnes | M25: 3 | N25: <click to select> | O25: <click to select> | Q25: tonnes
D26: Regional proxy: | E26: =IF(LEN(INDEX('C6. Technical methods overview'!$D$11:$J$36,MATCH('A1. Quick assessment & results'!D25,'C6. Technical methods overview'!$C$11:$C$36,0),MATCH(E25,'C6. Technical methods overview'!$D$10:$J$10,0)))>2,INDEX('C6. Technical methods overview'!$D$11:$J$36,MATCH('A1. Quick assessment & results'!D25,'C6. Technical methods overview'!$C$11:$C$36,0),MATCH(E25,'C6. Technical methods overview'!$D$10:$J$10,0)),"Global") ->  | I26: Regional proxy: | J26: =IF(LEN(INDEX('C6. Technical methods overview'!$D$11:$J$36,MATCH(I25,'C6. Technical methods overview'!$C$11:$C$36,0),MATCH(J25,'C6. Technical methods overview'!$D$10:$J$10,0)))>2,INDEX('C6. Technical methods overview'!$D$11:$J$36,MATCH(I25,'C6. Technical methods overview'!$C$11:$C$36,0),MATCH(J25,'C6. Technical methods overview'!$D$10:$J$10,0)),"Global") ->  | N26: Regional proxy: | O26: =IF(LEN(INDEX('C6. Technical methods overview'!$D$11:$J$36,MATCH('A1. Quick assessment & results'!N25,'C6. Technical methods overview'!$C$11:$C$36,0),MATCH(O25,'C6. Technical methods overview'!$D$10:$J$10,0)))>2,INDEX('C6. Technical methods overview'!$D$11:$J$36,MATCH('A1. Quick assessment & results'!N25,'C6. Technical methods overview'!$C$11:$C$36,0),MATCH(O25,'C6. Technical methods overview'!$D$10:$J$10,0)),"Global") -> 
B27: 2 | C27: Results: environmental impacts (landfill used as default option, and only influences carbon footprint)
D28: =IF((F25>0),"1. "&D25&", region: "&E25,"") ->  | I28: =IF((K25>0),"2. "&I25&", region: "&J25,"") ->  | N28: =IF((P25>0),"3. "&N25&", region: "&O25,"") -> 
D29: Agricultural impacts | E29: Landfill impacts | F29: Total | I29: Agricultural impacts | J29: Landfill impacts | K29: Total | N29: Agricultural impacts | O29: Landfill impacts | P29: Total
B30: Climate change (kg CO2 eq) | D30: =IF(ISNUMBER($F$25),$F$25*kg_tonnes*INDEX(Impact_Data,MATCH(($D$25&", "&$E$25),FLW_Region_Impact_Data,0),MATCH(B30,Impact_Categories,0)),"") ->  | E30: =IF($F$25>0,($F$25*kg_tonnes*INDEX(Impact_Destination,MATCH(($D$25&", "&"Landfill"),FLW_Destination_Impact,0),MATCH(B30,Destination_Impact_Categories,0))),"") ->  | F30: =SUM(D30:E30) -> 0 | I30: =IF(ISNUMBER($K$25),$K$25*kg_tonnes*INDEX(Impact_Data,MATCH(($I$25&", "&$J$25),FLW_Region_Impact_Data,0),MATCH(B30,Impact_Categories,0)),"") ->  | J30: =IF($K$25>0,($K$25*kg_tonnes*INDEX(Impact_Destination,MATCH(($I$25&", "&"Landfill"),FLW_Destination_Impact,0),MATCH(B30,Destination_Impact_Categories,0))),"") ->  | K30: =SUM(I30:J30) -> 0 | N30: =IF(ISNUMBER($P$25),$P$25*kg_tonnes*INDEX(Impact_Data,MATCH(($N$25&", "&$O$25),FLW_Region_Impact_Data,0),MATCH(B30,Impact_Categories,0)),"") ->  | O30: =IF($P$25>0,($P$25*kg_tonnes*INDEX(Impact_Destination,MATCH(($N$25&", "&"Landfill"),FLW_Destination_Impact,0),MATCH(B30,Destination_Impact_Categories,0))),"") ->  | P30: =SUM(N30:O30) -> 0
B31: Water scarcity footprint (m3-eq) | D31: =IF(ISNUMBER($F$25),$F$25*kg_tonnes*INDEX(Impact_Data,MATCH(($D$25&", "&$E$25),FLW_Region_Impact_Data,0),MATCH(B31,Impact_Categories,0)),"") ->  | E31: =IF($F$25>0,($F$25*kg_tonnes*INDEX(Impact_Destination,MATCH(($D$25&", "&"Landfill"),FLW_Destination_Impact,0),MATCH(B31,Destination_Impact_Categories,0))),"") ->  | F31: =SUM(D31:E31) -> 0 | I31: =IF(ISNUMBER($K$25),$K$25*kg_tonnes*INDEX(Impact_Data,MATCH(($I$25&", "&$J$25),FLW_Region_Impact_Data,0),MATCH(B31,Impact_Categories,0)),"") ->  | J31: =IF($K$25>0,($K$25*kg_tonnes*INDEX(Impact_Destination,MATCH(($I$25&", "&"Landfill"),FLW_Destination_Impact,0),MATCH(B31,Destination_Impact_Categories,0))),"") ->  | K31: =SUM(I31:J31) -> 0 | N31: =IF(ISNUMBER($P$25),$P$25*kg_tonnes*INDEX(Impact_Data,MATCH(($N$25&", "&$O$25),FLW_Region_Impact_Data,0),MATCH(B31,Impact_Categories,0)),"") ->  | O31: =IF($P$25>0,($P$25*kg_tonnes*INDEX(Impact_Destination,MATCH(($N$25&", "&"Landfill"),FLW_Destination_Impact,0),MATCH(B31,Destination_Impact_Categories,0))),"") ->  | P31: =SUM(N31:O31) -> 0
B32: Land use (Points) | D32: =IF(ISNUMBER($F$25),$F$25*kg_tonnes*INDEX(Impact_Data,MATCH(($D$25&", "&$E$25),FLW_Region_Impact_Data,0),MATCH(B32,Impact_Categories,0)),"") ->  | E32: =IF($F$25>0,($F$25*kg_tonnes*INDEX(Impact_Destination,MATCH(($D$25&", "&"Landfill"),FLW_Destination_Impact,0),MATCH(B32,Destination_Impact_Categories,0))),"") ->  | F32: 0 | I32: =IF(ISNUMBER($K$25),$K$25*kg_tonnes*INDEX(Impact_Data,MATCH(($I$25&", "&$J$25),FLW_Region_Impact_Data,0),MATCH(B32,Impact_Categories,0)),"") ->  | J32: =IF($K$25>0,($K$25*kg_tonnes*INDEX(Impact_Destination,MATCH(($I$25&", "&"Landfill"),FLW_Destination_Impact,0),MATCH(B32,Destination_Impact_Categories,0))),"") ->  | K32: 0 | N32: =IF(ISNUMBER($P$25),$P$25*kg_tonnes*INDEX(Impact_Data,MATCH(($N$25&", "&$O$25),FLW_Region_Impact_Data,0),MATCH(B32,Impact_Categories,0)),"") ->  | O32: =IF($P$25>0,($P$25*kg_tonnes*INDEX(Impact_Destination,MATCH(($N$25&", "&"Landfill"),FLW_Destination_Impact,0),MATCH(B32,Destination_Impact_Categories,0))),"") ->  | P32: 0
B33: Eutrophication (kg P eq) | D33: =IF(ISNUMBER($F$25),$F$25*kg_tonnes*INDEX(Impact_Data,MATCH(($D$25&", "&$E$25),FLW_Region_Impact_Data,0),MATCH(B33,Impact_Categories,0)),"") ->  | E33: =IF($F$25>0,($F$25*kg_tonnes*INDEX(Impact_Destination,MATCH(($D$25&", "&"Landfill"),FLW_Destination_Impact,0),MATCH(B33,Destination_Impact_Categories,0))),"") ->  | F33: 0 | I33: =IF(ISNUMBER($K$25),$K$25*kg_tonnes*INDEX(Impact_Data,MATCH(($I$25&", "&$J$25),FLW_Region_Impact_Data,0),MATCH(B33,Impact_Categories,0)),"") ->  | J33: =IF($K$25>0,($K$25*kg_tonnes*INDEX(Impact_Destination,MATCH(($I$25&", "&"Landfill"),FLW_Destination_Impact,0),MATCH(B33,Destination_Impact_Categories,0))),"") ->  | K33: 0 | N33: =IF(ISNUMBER($P$25),$P$25*kg_tonnes*INDEX(Impact_Data,MATCH(($N$25&", "&$O$25),FLW_Region_Impact_Data,0),MATCH(B33,Impact_Categories,0)),"") ->  | O33: =IF($P$25>0,($P$25*kg_tonnes*INDEX(Impact_Destination,MATCH(($N$25&", "&"Landfill"),FLW_Destination_Impact,0),MATCH(B33,Destination_Impact_Categories,0))),"") ->  | P33: 0
B34: Eutrophication (kg N eq) | D34: =IF(ISNUMBER($F$25),$F$25*kg_tonnes*INDEX(Impact_Data,MATCH(($D$25&", "&$E$25),FLW_Region_Impact_Data,0),MATCH(B34,Impact_Categories,0)),"") ->  | E34: =IF($F$25>0,($F$25*kg_tonnes*INDEX(Impact_Destination,MATCH(($D$25&", "&"Landfill"),FLW_Destination_Impact,0),MATCH(B34,Destination_Impact_Categories,0))),"") ->  | F34: 0 | I34: =IF(ISNUMBER($K$25),$K$25*kg_tonnes*INDEX(Impact_Data,MATCH(($I$25&", "&$J$25),FLW_Region_Impact_Data,0),MATCH(B34,Impact_Categories,0)),"") ->  | J34: =IF($K$25>0,($K$25*kg_tonnes*INDEX(Impact_Destination,MATCH(($I$25&", "&"Landfill"),FLW_Destination_Impact,0),MATCH(B34,Destination_Impact_Categories,0))),"") ->  | K34: =SUM(I34:J34) -> 0 | N34: =IF(ISNUMBER($P$25),$P$25*kg_tonnes*INDEX(Impact_Data,MATCH(($N$25&", "&$O$25),FLW_Region_Impact_Data,0),MATCH(B34,Impact_Categories,0)),"") ->  | O34: =IF($P$25>0,($P$25*kg_tonnes*INDEX(Impact_Destination,MATCH(($N$25&", "&"Landfill"),FLW_Destination_Impact,0),MATCH(B34,Destination_Impact_Categories,0))),"") ->  | P34: =SUM(N34:O34) -> 0
B36: 3 | C36: Default figures A) Environmental impacts and B) Nutritional profiles
B37: A. What is the carbon footprint of the FLW with respect to the original agricultural production and the final destination?
B38: Right click on axis to select "format axis" to change scale in the "axis options", in case it adjusts incorrectly (bounds should be from 0-1).
B55: B. How do the impacts compare across the scenarios?
B56: Feel free to adjust scales and figure positioning to format your scenario in the graph.
M57: =B30 -> Climate change (kg CO2 eq)
M58: =D29 -> Agricultural impacts | N58: Landfill impacts | O58: Total
L59: =D28 ->  | O59: 0
L60: =I28 ->  | M60: =I30 ->  | N60: =J30 ->  | O60: =K30 -> 0
L61: =N28 ->  | M61: =N30 ->  | N61: =O30 ->  | O61: =P30 -> 0
B74: B. What is the nutritional value of the FLW?
B75: =IF((F25>0),"1. "&D25,"") ->  | H75: =IF((K25>0),"2. "&I25,"") ->  | M75: =IF((P25>0),"3. "&N25,"") -> 
E76: person/day - equivalents | K76: person/day - equivalents | P76: person/day - equivalents
B77: Energy | C77: =($F$25)*grams_tonne*INDEX('C2. Nutrition data'!$D$4:$AW$29,MATCH($D$25,'C2. Nutrition data'!$B$4:$B$29,0),MATCH($B77,'C2. Nutrition data'!$D$3:$AW$3,0))/grams100 ->  | D77: (kcal) | E77: =C77/INDEX('C2. Nutrition data'!$D$32:$AW$32,MATCH($B77,'C2. Nutrition data'!$D$3:$AW$3,0)) ->  | H77: Energy | I77: =($K$25)*grams_tonne*INDEX('C2. Nutrition data'!$D$4:$AW$29,MATCH($I$25,'C2. Nutrition data'!$B$4:$B$29,0),MATCH($B77,'C2. Nutrition data'!$D$3:$AW$3,0))/grams100 ->  | J77: (kcal) | K77: =I77/INDEX('C2. Nutrition data'!$D$32:$AW$32,MATCH($B77,'C2. Nutrition data'!$D$3:$AW$3,0)) ->  | M77: Energy | N77: =($P$25)*grams_tonne*INDEX('C2. Nutrition data'!$D$4:$AW$29,MATCH($N$25,'C2. Nutrition data'!$B$4:$B$29,0),MATCH($B77,'C2. Nutrition data'!$D$3:$AW$3,0))/grams100 ->  | O77: (kcal) | P77: =N77/INDEX('C2. Nutrition data'!$D$32:$AW$32,MATCH($B77,'C2. Nutrition data'!$D$3:$AW$3,0)) -> 
B78: Protein | C78: =($F$25)*grams_tonne*INDEX('C2. Nutrition data'!$D$4:$AW$29,MATCH($D$25,'C2. Nutrition data'!$B$4:$B$29,0),MATCH($B78,'C2. Nutrition data'!$D$3:$AW$3,0))/grams100 ->  | D78: (g) | E78: =C78/INDEX('C2. Nutrition data'!$D$32:$AW$32,MATCH($B78,'C2. Nutrition data'!$D$3:$AW$3,0)) ->  | H78: Protein | I78: =($K$25)*grams_tonne*INDEX('C2. Nutrition data'!$D$4:$AW$29,MATCH($I$25,'C2. Nutrition data'!$B$4:$B$29,0),MATCH($B78,'C2. Nutrition data'!$D$3:$AW$3,0))/grams100 ->  | J78: (g) | K78: =I78/INDEX('C2. Nutrition data'!$D$32:$AW$32,MATCH($B78,'C2. Nutrition data'!$D$3:$AW$3,0)) ->  | M78: Protein | N78: =($P$25)*grams_tonne*INDEX('C2. Nutrition data'!$D$4:$AW$29,MATCH($N$25,'C2. Nutrition data'!$B$4:$B$29,0),MATCH($B78,'C2. Nutrition data'!$D$3:$AW$3,0))/grams100 ->  | O78: (g) | P78: =N78/INDEX('C2. Nutrition data'!$D$32:$AW$32,MATCH($B78,'C2. Nutrition data'!$D$3:$AW$3,0)) -> 
B79: Carbohydrates | C79: =($F$25)*grams_tonne*INDEX('C2. Nutrition data'!$D$4:$AW$29,MATCH($D$25,'C2. Nutrition data'!$B$4:$B$29,0),MATCH($B79,'C2. Nutrition data'!$D$3:$AW$3,0))/grams100 ->  | D79: (g) | E79: =C79/INDEX('C2. Nutrition data'!$D$32:$AW$32,MATCH($B79,'C2. Nutrition data'!$D$3:$AW$3,0)) ->  | H79: Carbohydrates | I79: =($K$25)*grams_tonne*INDEX('C2. Nutrition data'!$D$4:$AW$29,MATCH($I$25,'C2. Nutrition data'!$B$4:$B$29,0),MATCH($B79,'C2. Nutrition data'!$D$3:$AW$3,0))/grams100 ->  | J79: (g) | K79: =I79/INDEX('C2. Nutrition data'!$D$32:$AW$32,MATCH($B79,'C2. Nutrition data'!$D$3:$AW$3,0)) ->  | M79: Carbohydrates | N79: =($P$25)*grams_tonne*INDEX('C2. Nutrition data'!$D$4:$AW$29,MATCH($N$25,'C2. Nutrition data'!$B$4:$B$29,0),MATCH($B79,'C2. Nutrition data'!$D$3:$AW$3,0))/grams100 ->  | O79: (g) | P79: =N79/INDEX('C2. Nutrition data'!$D$32:$AW$32,MATCH($B79,'C2. Nutrition data'!$D$3:$AW$3,0)) -> 
B80: Fiber | C80: =($F$25)*grams_tonne*INDEX('C2. Nutrition data'!$D$4:$AW$29,MATCH($D$25,'C2. Nutrition data'!$B$4:$B$29,0),MATCH($B80,'C2. Nutrition data'!$D$3:$AW$3,0))/grams100 ->  | D80: (g) | E80: =C80/INDEX('C2. Nutrition data'!$D$32:$AW$32,MATCH($B80,'C2. Nutrition data'!$D$3:$AW$3,0)) ->  | H80: Fiber | I80: =($K$25)*grams_tonne*INDEX('C2. Nutrition data'!$D$4:$AW$29,MATCH($I$25,'C2. Nutrition data'!$B$4:$B$29,0),MATCH($B80,'C2. Nutrition data'!$D$3:$AW$3,0))/grams100 ->  | J80: (g) | K80: =I80/INDEX('C2. Nutrition data'!$D$32:$AW$32,MATCH($B80,'C2. Nutrition data'!$D$3:$AW$3,0)) ->  | M80: Fiber | N80: =($P$25)*grams_tonne*INDEX('C2. Nutrition data'!$D$4:$AW$29,MATCH($N$25,'C2. Nutrition data'!$B$4:$B$29,0),MATCH($B80,'C2. Nutrition data'!$D$3:$AW$3,0))/grams100 ->  | O80: (g) | P80: =N80/INDEX('C2. Nutrition data'!$D$32:$AW$32,MATCH($B80,'C2. Nutrition data'!$D$3:$AW$3,0)) -> 
B81: Calcium | C81: =($F$25)*grams_tonne*INDEX('C2. Nutrition data'!$D$4:$AW$29,MATCH($D$25,'C2. Nutrition data'!$B$4:$B$29,0),MATCH($B81,'C2. Nutrition data'!$D$3:$AW$3,0))/grams100 ->  | D81: (mg) | E81: =C81/INDEX('C2. Nutrition data'!$D$32:$AW$32,MATCH($B81,'C2. Nutrition data'!$D$3:$AW$3,0)) ->  | H81: Calcium | I81: =($K$25)*grams_tonne*INDEX('C2. Nutrition data'!$D$4:$AW$29,MATCH($I$25,'C2. Nutrition data'!$B$4:$B$29,0),MATCH($B81,'C2. Nutrition data'!$D$3:$AW$3,0))/grams100 ->  | J81: (mg) | K81: =I81/INDEX('C2. Nutrition data'!$D$32:$AW$32,MATCH($B81,'C2. Nutrition data'!$D$3:$AW$3,0)) ->  | M81: Calcium | N81: =($P$25)*grams_tonne*INDEX('C2. Nutrition data'!$D$4:$AW$29,MATCH($N$25,'C2. Nutrition data'!$B$4:$B$29,0),MATCH($B81,'C2. Nutrition data'!$D$3:$AW$3,0))/grams100 ->  | O81: (mg) | P81: =N81/INDEX('C2. Nutrition data'!$D$32:$AW$32,MATCH($B81,'C2. Nutrition data'!$D$3:$AW$3,0)) -> 
B82: Choline | C82: =($F$25)*grams_tonne*INDEX('C2. Nutrition data'!$D$4:$AW$29,MATCH($D$25,'C2. Nutrition data'!$B$4:$B$29,0),MATCH($B82,'C2. Nutrition data'!$D$3:$AW$3,0))/grams100 ->  | D82: (mg) | E82: =C82/INDEX('C2. Nutrition data'!$D$32:$AW$32,MATCH($B82,'C2. Nutrition data'!$D$3:$AW$3,0)) ->  | H82: Choline | I82: =($K$25)*grams_tonne*INDEX('C2. Nutrition data'!$D$4:$AW$29,MATCH($I$25,'C2. Nutrition data'!$B$4:$B$29,0),MATCH($B82,'C2. Nutrition data'!$D$3:$AW$3,0))/grams100 ->  | J82: (mg) | K82: =I82/INDEX('C2. Nutrition data'!$D$32:$AW$32,MATCH($B82,'C2. Nutrition data'!$D$3:$AW$3,0)) ->  | M82: Choline | N82: =($P$25)*grams_tonne*INDEX('C2. Nutrition data'!$D$4:$AW$29,MATCH($N$25,'C2. Nutrition data'!$B$4:$B$29,0),MATCH($B82,'C2. Nutrition data'!$D$3:$AW$3,0))/grams100 ->  | O82: (mg) | P82: =N82/INDEX('C2. Nutrition data'!$D$32:$AW$32,MATCH($B82,'C2. Nutrition data'!$D$3:$AW$3,0)) -> 
B83: Copper | C83: =($F$25)*grams_tonne*INDEX('C2. Nutrition data'!$D$4:$AW$29,MATCH($D$25,'C2. Nutrition data'!$B$4:$B$29,0),MATCH($B83,'C2. Nutrition data'!$D$3:$AW$3,0))/grams100 ->  | D83: (mg) | E83: =C83/INDEX('C2. Nutrition data'!$D$32:$AW$32,MATCH($B83,'C2. Nutrition data'!$D$3:$AW$3,0)) ->  | H83: Copper | I83: =($K$25)*grams_tonne*INDEX('C2. Nutrition data'!$D$4:$AW$29,MATCH($I$25,'C2. Nutrition data'!$B$4:$B$29,0),MATCH($B83,'C2. Nutrition data'!$D$3:$AW$3,0))/grams100 ->  | J83: (mg) | K83: =I83/INDEX('C2. Nutrition data'!$D$32:$AW$32,MATCH($B83,'C2. Nutrition data'!$D$3:$AW$3,0)) ->  | M83: Copper | N83: =($P$25)*grams_tonne*INDEX('C2. Nutrition data'!$D$4:$AW$29,MATCH($N$25,'C2. Nutrition data'!$B$4:$B$29,0),MATCH($B83,'C2. Nutrition data'!$D$3:$AW$3,0))/grams100 ->  | O83: (mg) | P83: =N83/INDEX('C2. Nutrition data'!$D$32:$AW$32,MATCH($B83,'C2. Nutrition data'!$D$3:$AW$3,0)) -> 
B84: Food folate | C84: =($F$25)*grams_tonne*INDEX('C2. Nutrition data'!$D$4:$AW$29,MATCH($D$25,'C2. Nutrition data'!$B$4:$B$29,0),MATCH($B84,'C2. Nutrition data'!$D$3:$AW$3,0))/grams100 ->  | D84: (mg) | E84: =C84/INDEX('C2. Nutrition data'!$D$32:$AW$32,MATCH($B84,'C2. Nutrition data'!$D$3:$AW$3,0)) ->  | H84: Food folate | I84: =($K$25)*grams_tonne*INDEX('C2. Nutrition data'!$D$4:$AW$29,MATCH($I$25,'C2. Nutrition data'!$B$4:$B$29,0),MATCH($B84,'C2. Nutrition data'!$D$3:$AW$3,0))/grams100 ->  | J84: (mg) | K84: =I84/INDEX('C2. Nutrition data'!$D$32:$AW$32,MATCH($B84,'C2. Nutrition data'!$D$3:$AW$3,0)) ->  | M84: Food folate | N84: =($P$25)*grams_tonne*INDEX('C2. Nutrition data'!$D$4:$AW$29,MATCH($N$25,'C2. Nutrition data'!$B$4:$B$29,0),MATCH($B84,'C2. Nutrition data'!$D$3:$AW$3,0))/grams100 ->  | O84: (mg) | P84: =N84/INDEX('C2. Nutrition data'!$D$32:$AW$32,MATCH($B84,'C2. Nutrition data'!$D$3:$AW$3,0)) -> 
B85: Iron | C85: =($F$25)*grams_tonne*INDEX('C2. Nutrition data'!$D$4:$AW$29,MATCH($D$25,'C2. Nutrition data'!$B$4:$B$29,0),MATCH($B85,'C2. Nutrition data'!$D$3:$AW$3,0))/grams100 ->  | D85: (mg) | E85: =C85/INDEX('C2. Nutrition data'!$D$32:$AW$32,MATCH($B85,'C2. Nutrition data'!$D$3:$AW$3,0)) ->  | H85: Iron | I85: =($K$25)*grams_tonne*INDEX('C2. Nutrition data'!$D$4:$AW$29,MATCH($I$25,'C2. Nutrition data'!$B$4:$B$29,0),MATCH($B85,'C2. Nutrition data'!$D$3:$AW$3,0))/grams100 ->  | J85: (mg) | K85: =I85/INDEX('C2. Nutrition data'!$D$32:$AW$32,MATCH($B85,'C2. Nutrition data'!$D$3:$AW$3,0)) ->  | M85: Iron | N85: =($P$25)*grams_tonne*INDEX('C2. Nutrition data'!$D$4:$AW$29,MATCH($N$25,'C2. Nutrition data'!$B$4:$B$29,0),MATCH($B85,'C2. Nutrition data'!$D$3:$AW$3,0))/grams100 ->  | O85: (mg) | P85: =N85/INDEX('C2. Nutrition data'!$D$32:$AW$32,MATCH($B85,'C2. Nutrition data'!$D$3:$AW$3,0)) -> 
B86: Magnesium | C86: =($F$25)*grams_tonne*INDEX('C2. Nutrition data'!$D$4:$AW$29,MATCH($D$25,'C2. Nutrition data'!$B$4:$B$29,0),MATCH($B86,'C2. Nutrition data'!$D$3:$AW$3,0))/grams100 ->  | D86: (mg) | E86: =C86/INDEX('C2. Nutrition data'!$D$32:$AW$32,MATCH($B86,'C2. Nutrition data'!$D$3:$AW$3,0)) ->  | H86: Magnesium | I86: =($K$25)*grams_tonne*INDEX('C2. Nutrition data'!$D$4:$AW$29,MATCH($I$25,'C2. Nutrition data'!$B$4:$B$29,0),MATCH($B86,'C2. Nutrition data'!$D$3:$AW$3,0))/grams100 ->  | J86: (mg) | K86: =I86/INDEX('C2. Nutrition data'!$D$32:$AW$32,MATCH($B86,'C2. Nutrition data'!$D$3:$AW$3,0)) ->  | M86: Magnesium | N86: =($P$25)*grams_tonne*INDEX('C2. Nutrition data'!$D$4:$AW$29,MATCH($N$25,'C2. Nutrition data'!$B$4:$B$29,0),MATCH($B86,'C2. Nutrition data'!$D$3:$AW$3,0))/grams100 ->  | O86: (mg) | P86: =N86/INDEX('C2. Nutrition data'!$D$32:$AW$32,MATCH($B86,'C2. Nutrition data'!$D$3:$AW$3,0)) -> 
B87: Manganese | C87: =($F$25)*grams_tonne*INDEX('C2. Nutrition data'!$D$4:$AW$29,MATCH($D$25,'C2. Nutrition data'!$B$4:$B$29,0),MATCH($B87,'C2. Nutrition data'!$D$3:$AW$3,0))/grams100 ->  | D87: (mg) | E87: =C87/INDEX('C2. Nutrition data'!$D$32:$AW$32,MATCH($B87,'C2. Nutrition data'!$D$3:$AW$3,0)) ->  | H87: Manganese | I87: =($K$25)*grams_tonne*INDEX('C2. Nutrition data'!$D$4:$AW$29,MATCH($I$25,'C2. Nutrition data'!$B$4:$B$29,0),MATCH($B87,'C2. Nutrition data'!$D$3:$AW$3,0))/grams100 ->  | J87: (mg) | K87: =I87/INDEX('C2. Nutrition data'!$D$32:$AW$32,MATCH($B87,'C2. Nutrition data'!$D$3:$AW$3,0)) ->  | M87: Manganese | N87: =($P$25)*grams_tonne*INDEX('C2. Nutrition data'!$D$4:$AW$29,MATCH($N$25,'C2. Nutrition data'!$B$4:$B$29,0),MATCH($B87,'C2. Nutrition data'!$D$3:$AW$3,0))/grams100 ->  | O87: (mg) | P87: =N87/INDEX('C2. Nutrition data'!$D$32:$AW$32,MATCH($B87,'C2. Nutrition data'!$D$3:$AW$3,0)) -> 
B88: Niacin | C88: =($F$25)*grams_tonne*INDEX('C2. Nutrition data'!$D$4:$AW$29,MATCH($D$25,'C2. Nutrition data'!$B$4:$B$29,0),MATCH($B88,'C2. Nutrition data'!$D$3:$AW$3,0))/grams100 ->  | D88: (mg) | E88: =C88/INDEX('C2. Nutrition data'!$D$32:$AW$32,MATCH($B88,'C2. Nutrition data'!$D$3:$AW$3,0)) ->  | H88: Niacin | I88: =($K$25)*grams_tonne*INDEX('C2. Nutrition data'!$D$4:$AW$29,MATCH($I$25,'C2. Nutrition data'!$B$4:$B$29,0),MATCH($B88,'C2. Nutrition data'!$D$3:$AW$3,0))/grams100 ->  | J88: (mg) | K88: =I88/INDEX('C2. Nutrition data'!$D$32:$AW$32,MATCH($B88,'C2. Nutrition data'!$D$3:$AW$3,0)) ->  | M88: Niacin | N88: =($P$25)*grams_tonne*INDEX('C2. Nutrition data'!$D$4:$AW$29,MATCH($N$25,'C2. Nutrition data'!$B$4:$B$29,0),MATCH($B88,'C2. Nutrition data'!$D$3:$AW$3,0))/grams100 ->  | O88: (mg) | P88: =N88/INDEX('C2. Nutrition data'!$D$32:$AW$32,MATCH($B88,'C2. Nutrition data'!$D$3:$AW$3,0)) -> 
B89: Panto acid | C89: =($F$25)*grams_tonne*INDEX('C2. Nutrition data'!$D$4:$AW$29,MATCH($D$25,'C2. Nutrition data'!$B$4:$B$29,0),MATCH($B89,'C2. Nutrition data'!$D$3:$AW$3,0))/grams100 ->  | D89: (mg) | E89: =C89/INDEX('C2. Nutrition data'!$D$32:$AW$32,MATCH($B89,'C2. Nutrition data'!$D$3:$AW$3,0)) ->  | H89: Panto acid | I89: =($K$25)*grams_tonne*INDEX('C2. Nutrition data'!$D$4:$AW$29,MATCH($I$25,'C2. Nutrition data'!$B$4:$B$29,0),MATCH($B89,'C2. Nutrition data'!$D$3:$AW$3,0))/grams100 ->  | J89: (mg) | K89: =I89/INDEX('C2. Nutrition data'!$D$32:$AW$32,MATCH($B89,'C2. Nutrition data'!$D$3:$AW$3,0)) ->  | M89: Panto acid | N89: =($P$25)*grams_tonne*INDEX('C2. Nutrition data'!$D$4:$AW$29,MATCH($N$25,'C2. Nutrition data'!$B$4:$B$29,0),MATCH($B89,'C2. Nutrition data'!$D$3:$AW$3,0))/grams100 ->  | O89: (mg) | P89: =N89/INDEX('C2. Nutrition data'!$D$32:$AW$32,MATCH($B89,'C2. Nutrition data'!$D$3:$AW$3,0)) -> 
B90: Phosphorus | C90: =($F$25)*grams_tonne*INDEX('C2. Nutrition data'!$D$4:$AW$29,MATCH($D$25,'C2. Nutrition data'!$B$4:$B$29,0),MATCH($B90,'C2. Nutrition data'!$D$3:$AW$3,0))/grams100 ->  | D90: (µg) | E90: =C90/INDEX('C2. Nutrition data'!$D$32:$AW$32,MATCH($B90,'C2. Nutrition data'!$D$3:$AW$3,0)) ->  | H90: Phosphorus | I90: =($K$25)*grams_tonne*INDEX('C2. Nutrition data'!$D$4:$AW$29,MATCH($I$25,'C2. Nutrition data'!$B$4:$B$29,0),MATCH($B90,'C2. Nutrition data'!$D$3:$AW$3,0))/grams100 ->  | J90: (µg) | K90: =I90/INDEX('C2. Nutrition data'!$D$32:$AW$32,MATCH($B90,'C2. Nutrition data'!$D$3:$AW$3,0)) ->  | M90: Phosphorus | N90: =($P$25)*grams_tonne*INDEX('C2. Nutrition data'!$D$4:$AW$29,MATCH($N$25,'C2. Nutrition data'!$B$4:$B$29,0),MATCH($B90,'C2. Nutrition data'!$D$3:$AW$3,0))/grams100 ->  | O90: (µg) | P90: =N90/INDEX('C2. Nutrition data'!$D$32:$AW$32,MATCH($B90,'C2. Nutrition data'!$D$3:$AW$3,0)) -> 
B91: Potassium | C91: =($F$25)*grams_tonne*INDEX('C2. Nutrition data'!$D$4:$AW$29,MATCH($D$25,'C2. Nutrition data'!$B$4:$B$29,0),MATCH($B91,'C2. Nutrition data'!$D$3:$AW$3,0))/grams100 ->  | D91: (mg) | E91: =C91/INDEX('C2. Nutrition data'!$D$32:$AW$32,MATCH($B91,'C2. Nutrition data'!$D$3:$AW$3,0)) ->  | H91: Potassium | I91: =($K$25)*grams_tonne*INDEX('C2. Nutrition data'!$D$4:$AW$29,MATCH($I$25,'C2. Nutrition data'!$B$4:$B$29,0),MATCH($B91,'C2. Nutrition data'!$D$3:$AW$3,0))/grams100 ->  | J91: (mg) | K91: =I91/INDEX('C2. Nutrition data'!$D$32:$AW$32,MATCH($B91,'C2. Nutrition data'!$D$3:$AW$3,0)) ->  | M91: Potassium | N91: =($P$25)*grams_tonne*INDEX('C2. Nutrition data'!$D$4:$AW$29,MATCH($N$25,'C2. Nutrition data'!$B$4:$B$29,0),MATCH($B91,'C2. Nutrition data'!$D$3:$AW$3,0))/grams100 ->  | O91: (mg) | P91: =N91/INDEX('C2. Nutrition data'!$D$32:$AW$32,MATCH($B91,'C2. Nutrition data'!$D$3:$AW$3,0)) -> 
B92: Riboflavin | C92: =($F$25)*grams_tonne*INDEX('C2. Nutrition data'!$D$4:$AW$29,MATCH($D$25,'C2. Nutrition data'!$B$4:$B$29,0),MATCH($B92,'C2. Nutrition data'!$D$3:$AW$3,0))/grams100 ->  | D92: (mg) | E92: =C92/INDEX('C2. Nutrition data'!$D$32:$AW$32,MATCH($B92,'C2. Nutrition data'!$D$3:$AW$3,0)) ->  | H92: Riboflavin | I92: =($K$25)*grams_tonne*INDEX('C2. Nutrition data'!$D$4:$AW$29,MATCH($I$25,'C2. Nutrition data'!$B$4:$B$29,0),MATCH($B92,'C2. Nutrition data'!$D$3:$AW$3,0))/grams100 ->  | J92: (mg) | K92: =I92/INDEX('C2. Nutrition data'!$D$32:$AW$32,MATCH($B92,'C2. Nutrition data'!$D$3:$AW$3,0)) ->  | M92: Riboflavin | N92: =($P$25)*grams_tonne*INDEX('C2. Nutrition data'!$D$4:$AW$29,MATCH($N$25,'C2. Nutrition data'!$B$4:$B$29,0),MATCH($B92,'C2. Nutrition data'!$D$3:$AW$3,0))/grams100 ->  | O92: (mg) | P92: =N92/INDEX('C2. Nutrition data'!$D$32:$AW$32,MATCH($B92,'C2. Nutrition data'!$D$3:$AW$3,0)) -> 
B93: Selenium | C93: =($F$25)*grams_tonne*INDEX('C2. Nutrition data'!$D$4:$AW$29,MATCH($D$25,'C2. Nutrition data'!$B$4:$B$29,0),MATCH($B93,'C2. Nutrition data'!$D$3:$AW$3,0))/grams100 ->  | D93: (mg) | E93: =C93/INDEX('C2. Nutrition data'!$D$32:$AW$32,MATCH($B93,'C2. Nutrition data'!$D$3:$AW$3,0)) ->  | H93: Selenium | I93: =($K$25)*grams_tonne*INDEX('C2. Nutrition data'!$D$4:$AW$29,MATCH($I$25,'C2. Nutrition data'!$B$4:$B$29,0),MATCH($B93,'C2. Nutrition data'!$D$3:$AW$3,0))/grams100 ->  | J93: (mg) | K93: =I93/INDEX('C2. Nutrition data'!$D$32:$AW$32,MATCH($B93,'C2. Nutrition data'!$D$3:$AW$3,0)) ->  | M93: Selenium | N93: =($P$25)*grams_tonne*INDEX('C2. Nutrition data'!$D$4:$AW$29,MATCH($N$25,'C2. Nutrition data'!$B$4:$B$29,0),MATCH($B93,'C2. Nutrition data'!$D$3:$AW$3,0))/grams100 ->  | O93: (mg) | P93: =N93/INDEX('C2. Nutrition data'!$D$32:$AW$32,MATCH($B93,'C2. Nutrition data'!$D$3:$AW$3,0)) -> 
B94: Sodium | C94: =($F$25)*grams_tonne*INDEX('C2. Nutrition data'!$D$4:$AW$29,MATCH($D$25,'C2. Nutrition data'!$B$4:$B$29,0),MATCH($B94,'C2. Nutrition data'!$D$3:$AW$3,0))/grams100 ->  | D94: (mg) | E94: =C94/INDEX('C2. Nutrition data'!$D$32:$AW$32,MATCH($B94,'C2. Nutrition data'!$D$3:$AW$3,0)) ->  | H94: Sodium | I94: =($K$25)*grams_tonne*INDEX('C2. Nutrition data'!$D$4:$AW$29,MATCH($I$25,'C2. Nutrition data'!$B$4:$B$29,0),MATCH($B94,'C2. Nutrition data'!$D$3:$AW$3,0))/grams100 ->  | J94: (mg) | K94: =I94/INDEX('C2. Nutrition data'!$D$32:$AW$32,MATCH($B94,'C2. Nutrition data'!$D$3:$AW$3,0)) ->  | M94: Sodium | N94: =($P$25)*grams_tonne*INDEX('C2. Nutrition data'!$D$4:$AW$29,MATCH($N$25,'C2. Nutrition data'!$B$4:$B$29,0),MATCH($B94,'C2. Nutrition data'!$D$3:$AW$3,0))/grams100 ->  | O94: (mg) | P94: =N94/INDEX('C2. Nutrition data'!$D$32:$AW$32,MATCH($B94,'C2. Nutrition data'!$D$3:$AW$3,0)) -> 
B95: Thiamin | C95: =($F$25)*grams_tonne*INDEX('C2. Nutrition data'!$D$4:$AW$29,MATCH($D$25,'C2. Nutrition data'!$B$4:$B$29,0),MATCH($B95,'C2. Nutrition data'!$D$3:$AW$3,0))/grams100 ->  | D95: (µg) | E95: =C95/INDEX('C2. Nutrition data'!$D$32:$AW$32,MATCH($B95,'C2. Nutrition data'!$D$3:$AW$3,0)) ->  | H95: Thiamin | I95: =($K$25)*grams_tonne*INDEX('C2. Nutrition data'!$D$4:$AW$29,MATCH($I$25,'C2. Nutrition data'!$B$4:$B$29,0),MATCH($B95,'C2. Nutrition data'!$D$3:$AW$3,0))/grams100 ->  | J95: (µg) | K95: =I95/INDEX('C2. Nutrition data'!$D$32:$AW$32,MATCH($B95,'C2. Nutrition data'!$D$3:$AW$3,0)) ->  | M95: Thiamin | N95: =($P$25)*grams_tonne*INDEX('C2. Nutrition data'!$D$4:$AW$29,MATCH($N$25,'C2. Nutrition data'!$B$4:$B$29,0),MATCH($B95,'C2. Nutrition data'!$D$3:$AW$3,0))/grams100 ->  | O95: (µg) | P95: =N95/INDEX('C2. Nutrition data'!$D$32:$AW$32,MATCH($B95,'C2. Nutrition data'!$D$3:$AW$3,0)) -> 
B96: Vit A | C96: =($F$25)*grams_tonne*INDEX('C2. Nutrition data'!$D$4:$AW$29,MATCH($D$25,'C2. Nutrition data'!$B$4:$B$29,0),MATCH($B96,'C2. Nutrition data'!$D$3:$AW$3,0))/grams100 ->  | D96: (IU) | E96: =C96/INDEX('C2. Nutrition data'!$D$32:$AW$32,MATCH($B96,'C2. Nutrition data'!$D$3:$AW$3,0)) ->  | H96: Vit A | I96: =($K$25)*grams_tonne*INDEX('C2. Nutrition data'!$D$4:$AW$29,MATCH($I$25,'C2. Nutrition data'!$B$4:$B$29,0),MATCH($B96,'C2. Nutrition data'!$D$3:$AW$3,0))/grams100 ->  | J96: (IU) | K96: =I96/INDEX('C2. Nutrition data'!$D$32:$AW$32,MATCH($B96,'C2. Nutrition data'!$D$3:$AW$3,0)) ->  | M96: Vit A | N96: =($P$25)*grams_tonne*INDEX('C2. Nutrition data'!$D$4:$AW$29,MATCH($N$25,'C2. Nutrition data'!$B$4:$B$29,0),MATCH($B96,'C2. Nutrition data'!$D$3:$AW$3,0))/grams100 ->  | O96: (IU) | P96: =N96/INDEX('C2. Nutrition data'!$D$32:$AW$32,MATCH($B96,'C2. Nutrition data'!$D$3:$AW$3,0)) -> 
B97: Vit B6 | C97: =($F$25)*grams_tonne*INDEX('C2. Nutrition data'!$D$4:$AW$29,MATCH($D$25,'C2. Nutrition data'!$B$4:$B$29,0),MATCH($B97,'C2. Nutrition data'!$D$3:$AW$3,0))/grams100 ->  | D97: (mg) | E97: =C97/INDEX('C2. Nutrition data'!$D$32:$AW$32,MATCH($B97,'C2. Nutrition data'!$D$3:$AW$3,0)) ->  | H97: Vit B6 | I97: =($K$25)*grams_tonne*INDEX('C2. Nutrition data'!$D$4:$AW$29,MATCH($I$25,'C2. Nutrition data'!$B$4:$B$29,0),MATCH($B97,'C2. Nutrition data'!$D$3:$AW$3,0))/grams100 ->  | J97: (mg) | K97: =I97/INDEX('C2. Nutrition data'!$D$32:$AW$32,MATCH($B97,'C2. Nutrition data'!$D$3:$AW$3,0)) ->  | M97: Vit B6 | N97: =($P$25)*grams_tonne*INDEX('C2. Nutrition data'!$D$4:$AW$29,MATCH($N$25,'C2. Nutrition data'!$B$4:$B$29,0),MATCH($B97,'C2. Nutrition data'!$D$3:$AW$3,0))/grams100 ->  | O97: (mg) | P97: =N97/INDEX('C2. Nutrition data'!$D$32:$AW$32,MATCH($B97,'C2. Nutrition data'!$D$3:$AW$3,0)) -> 
B98: Vit B12 | C98: =($F$25)*grams_tonne*INDEX('C2. Nutrition data'!$D$4:$AW$29,MATCH($D$25,'C2. Nutrition data'!$B$4:$B$29,0),MATCH($B98,'C2. Nutrition data'!$D$3:$AW$3,0))/grams100 ->  | D98: (µg) | E98: =C98/INDEX('C2. Nutrition data'!$D$32:$AW$32,MATCH($B98,'C2. Nutrition data'!$D$3:$AW$3,0)) ->  | H98: Vit B12 | I98: =($K$25)*grams_tonne*INDEX('C2. Nutrition data'!$D$4:$AW$29,MATCH($I$25,'C2. Nutrition data'!$B$4:$B$29,0),MATCH($B98,'C2. Nutrition data'!$D$3:$AW$3,0))/grams100 ->  | J98: (µg) | K98: =I98/INDEX('C2. Nutrition data'!$D$32:$AW$32,MATCH($B98,'C2. Nutrition data'!$D$3:$AW$3,0)) ->  | M98: Vit B12 | N98: =($P$25)*grams_tonne*INDEX('C2. Nutrition data'!$D$4:$AW$29,MATCH($N$25,'C2. Nutrition data'!$B$4:$B$29,0),MATCH($B98,'C2. Nutrition data'!$D$3:$AW$3,0))/grams100 ->  | O98: (µg) | P98: =N98/INDEX('C2. Nutrition data'!$D$32:$AW$32,MATCH($B98,'C2. Nutrition data'!$D$3:$AW$3,0)) -> 
B99: Vit C | C99: =($F$25)*grams_tonne*INDEX('C2. Nutrition data'!$D$4:$AW$29,MATCH($D$25,'C2. Nutrition data'!$B$4:$B$29,0),MATCH($B99,'C2. Nutrition data'!$D$3:$AW$3,0))/grams100 ->  | D99: (mg) | E99: =C99/INDEX('C2. Nutrition data'!$D$32:$AW$32,MATCH($B99,'C2. Nutrition data'!$D$3:$AW$3,0)) ->  | H99: Vit C | I99: =($K$25)*grams_tonne*INDEX('C2. Nutrition data'!$D$4:$AW$29,MATCH($I$25,'C2. Nutrition data'!$B$4:$B$29,0),MATCH($B99,'C2. Nutrition data'!$D$3:$AW$3,0))/grams100 ->  | J99: (mg) | K99: =I99/INDEX('C2. Nutrition data'!$D$32:$AW$32,MATCH($B99,'C2. Nutrition data'!$D$3:$AW$3,0)) ->  | M99: Vit C | N99: =($P$25)*grams_tonne*INDEX('C2. Nutrition data'!$D$4:$AW$29,MATCH($N$25,'C2. Nutrition data'!$B$4:$B$29,0),MATCH($B99,'C2. Nutrition data'!$D$3:$AW$3,0))/grams100 ->  | O99: (mg) | P99: =N99/INDEX('C2. Nutrition data'!$D$32:$AW$32,MATCH($B99,'C2. Nutrition data'!$D$3:$AW$3,0)) -> 
B100: Vit D | C100: =($F$25)*grams_tonne*INDEX('C2. Nutrition data'!$D$4:$AW$29,MATCH($D$25,'C2. Nutrition data'!$B$4:$B$29,0),MATCH($B100,'C2. Nutrition data'!$D$3:$AW$3,0))/grams100 ->  | D100: (µg) | E100: =C100/INDEX('C2. Nutrition data'!$D$32:$AW$32,MATCH($B100,'C2. Nutrition data'!$D$3:$AW$3,0)) ->  | H100: Vit D | I100: =($K$25)*grams_tonne*INDEX('C2. Nutrition data'!$D$4:$AW$29,MATCH($I$25,'C2. Nutrition data'!$B$4:$B$29,0),MATCH($B100,'C2. Nutrition data'!$D$3:$AW$3,0))/grams100 ->  | J100: (µg) | K100: =I100/INDEX('C2. Nutrition data'!$D$32:$AW$32,MATCH($B100,'C2. Nutrition data'!$D$3:$AW$3,0)) ->  | M100: Vit D | N100: =($P$25)*grams_tonne*INDEX('C2. Nutrition data'!$D$4:$AW$29,MATCH($N$25,'C2. Nutrition data'!$B$4:$B$29,0),MATCH($B100,'C2. Nutrition data'!$D$3:$AW$3,0))/grams100 ->  | O100: (µg) | P100: =N100/INDEX('C2. Nutrition data'!$D$32:$AW$32,MATCH($B100,'C2. Nutrition data'!$D$3:$AW$3,0)) -> 
B101: Vit E | C101: =($F$25)*grams_tonne*INDEX('C2. Nutrition data'!$D$4:$AW$29,MATCH($D$25,'C2. Nutrition data'!$B$4:$B$29,0),MATCH($B101,'C2. Nutrition data'!$D$3:$AW$3,0))/grams100 ->  | D101: (mg) | E101: =C101/INDEX('C2. Nutrition data'!$D$32:$AW$32,MATCH($B101,'C2. Nutrition data'!$D$3:$AW$3,0)) ->  | H101: Vit E | I101: =($K$25)*grams_tonne*INDEX('C2. Nutrition data'!$D$4:$AW$29,MATCH($I$25,'C2. Nutrition data'!$B$4:$B$29,0),MATCH($B101,'C2. Nutrition data'!$D$3:$AW$3,0))/grams100 ->  | J101: (mg) | K101: =I101/INDEX('C2. Nutrition data'!$D$32:$AW$32,MATCH($B101,'C2. Nutrition data'!$D$3:$AW$3,0)) ->  | M101: Vit E | N101: =($P$25)*grams_tonne*INDEX('C2. Nutrition data'!$D$4:$AW$29,MATCH($N$25,'C2. Nutrition data'!$B$4:$B$29,0),MATCH($B101,'C2. Nutrition data'!$D$3:$AW$3,0))/grams100 ->  | O101: (mg) | P101: =N101/INDEX('C2. Nutrition data'!$D$32:$AW$32,MATCH($B101,'C2. Nutrition data'!$D$3:$AW$3,0)) -> 
B102: Vit K | C102: =($F$25)*grams_tonne*INDEX('C2. Nutrition data'!$D$4:$AW$29,MATCH($D$25,'C2. Nutrition data'!$B$4:$B$29,0),MATCH($B102,'C2. Nutrition data'!$D$3:$AW$3,0))/grams100 ->  | D102: (µg) | E102: =C102/INDEX('C2. Nutrition data'!$D$32:$AW$32,MATCH($B102,'C2. Nutrition data'!$D$3:$AW$3,0)) ->  | H102: Vit K | I102: =($K$25)*grams_tonne*INDEX('C2. Nutrition data'!$D$4:$AW$29,MATCH($I$25,'C2. Nutrition data'!$B$4:$B$29,0),MATCH($B102,'C2. Nutrition data'!$D$3:$AW$3,0))/grams100 ->  | J102: (µg) | K102: =I102/INDEX('C2. Nutrition data'!$D$32:$AW$32,MATCH($B102,'C2. Nutrition data'!$D$3:$AW$3,0)) ->  | M102: Vit K | N102: =($P$25)*grams_tonne*INDEX('C2. Nutrition data'!$D$4:$AW$29,MATCH($N$25,'C2. Nutrition data'!$B$4:$B$29,0),MATCH($B102,'C2. Nutrition data'!$D$3:$AW$3,0))/grams100 ->  | O102: (µg) | P102: =N102/INDEX('C2. Nutrition data'!$D$32:$AW$32,MATCH($B102,'C2. Nutrition data'!$D$3:$AW$3,0)) -> 
B103: Zinc | C103: =($F$25)*grams_tonne*INDEX('C2. Nutrition data'!$D$4:$AW$29,MATCH($D$25,'C2. Nutrition data'!$B$4:$B$29,0),MATCH($B103,'C2. Nutrition data'!$D$3:$AW$3,0))/grams100 ->  | D103: (µg) | E103: =C103/INDEX('C2. Nutrition data'!$D$32:$AW$32,MATCH($B103,'C2. Nutrition data'!$D$3:$AW$3,0)) ->  | H103: Zinc | I103: =($K$25)*grams_tonne*INDEX('C2. Nutrition data'!$D$4:$AW$29,MATCH($I$25,'C2. Nutrition data'!$B$4:$B$29,0),MATCH($B103,'C2. Nutrition data'!$D$3:$AW$3,0))/grams100 ->  | J103: (µg) | K103: =I103/INDEX('C2. Nutrition data'!$D$32:$AW$32,MATCH($B103,'C2. Nutrition data'!$D$3:$AW$3,0)) ->  | M103: Zinc | N103: =($P$25)*grams_tonne*INDEX('C2. Nutrition data'!$D$4:$AW$29,MATCH($N$25,'C2. Nutrition data'!$B$4:$B$29,0),MATCH($B103,'C2. Nutrition data'!$D$3:$AW$3,0))/grams100 ->  | O103: (µg) | P103: =N103/INDEX('C2. Nutrition data'!$D$32:$AW$32,MATCH($B103,'C2. Nutrition data'!$D$3:$AW$3,0)) -> 

Sheet B1. Detailed assessment
B1: DATA ENTRY
B2: Content on this page, click to go to:
B3: 1 | C3: Select food category
B4: 2 | C4: Select region
B5: 3 | C5: Enter FLW data
B6: 4 | C6: Select environmental impact
B8: Overview of steps to be performed in this tab: | F8: After filling out this tab, your results will consider:
E23: Resulting impacts from entered FLW always include the agricultural impacts regardless of which life cycle stage the FLW occurs. Destination impacts are also always considered, although some destinations do not impact all environmental impact categories. Any life cycle impacts after agricultural production (related to energy use) are included with respect to the life cycle stage where the FLW entered, and in total include the prior stage’s impacts.
B30: KEY:
C31: Select data (Action needed: click for drop down menus)
C32: Enter data (Action needed: type in values)
B38: 1. Select food category of interest (max 6).
B39: Note: future versions of the calculator can include more or different crops and food products. Categories in capitol letters are an average of the foods within that category.
B41: 1 | D41: <click to select>
B42: 2 | D42: <click to select>
B43: 3 | D43: <click to select>
B44: 4 | D44: <click to select>
B45: 5 | D45: <click to select>
B46: 6 | D46: <click to select>
B48: 2. Select the region of original agricultural production (based on FLW regions commonly used by FAO) if known. If "uknown" than global defaults will be used.
B49: Note: most regions do not have data available, and thus a global proxy was used.
E50: Proxy used
B51: 1 | C51: =IF(Food_cat1="<click to select>","",Food_cat1) ->  | D51: <click to select> | E51: =IF(ISTEXT(INDEX('C6. Technical methods overview'!$D$11:$J$36,MATCH(Food_cat1,'C6. Technical methods overview'!$C$11:$C$36,0),MATCH(Food_cat1_region,'C6. Technical methods overview'!$D$10:$J$10,0))),INDEX('C6. Technical methods overview'!$D$11:$J$36,MATCH(Food_cat1,'C6. Technical methods overview'!$C$11:$C$36,0),MATCH(Food_cat1_region,'C6. Technical methods overview'!$D$10:$J$10,0)),"Global") -> Global
B52: 2 | C52: =IF(Food_cat2="<click to select>","",Food_cat2) ->  | D52: <click to select> | E52: =IF(ISTEXT(INDEX('C6. Technical methods overview'!$D$11:$J$36,MATCH(Food_cat2,'C6. Technical methods overview'!$C$11:$C$36,0),MATCH(Food_cat2_region,'C6. Technical methods overview'!$D$10:$J$10,0))),INDEX('C6. Technical methods overview'!$D$11:$J$36,MATCH(Food_cat2,'C6. Technical methods overview'!$C$11:$C$36,0),MATCH(Food_cat2_region,'C6. Technical methods overview'!$D$10:$J$10,0)),"Global") -> Global
B53: 3 | C53: =IF(Food_cat3="<click to select>","",Food_cat3) ->  | D53: <click to select> | E53: =IF(ISTEXT(INDEX('C6. Technical methods overview'!$D$11:$J$36,MATCH(Food_cat3,'C6. Technical methods overview'!$C$11:$C$36,0),MATCH(Food_cat3_region,'C6. Technical methods overview'!$D$10:$J$10,0))),INDEX('C6. Technical methods overview'!$D$11:$J$36,MATCH(Food_cat3,'C6. Technical methods overview'!$C$11:$C$36,0),MATCH(Food_cat3_region,'C6. Technical methods overview'!$D$10:$J$10,0)),"Global") -> Global
B54: 4 | C54: =IF(Food_cat4="<click to select>","",Food_cat4) ->  | D54: <click to select> | E54: =IF(ISTEXT(INDEX('C6. Technical methods overview'!$D$11:$J$36,MATCH(Food_cat4,'C6. Technical methods overview'!$C$11:$C$36,0),MATCH(Food_cat4_region,'C6. Technical methods overview'!$D$10:$J$10,0))),INDEX('C6. Technical methods overview'!$D$11:$J$36,MATCH(Food_cat4,'C6. Technical methods overview'!$C$11:$C$36,0),MATCH(Food_cat4_region,'C6. Technical methods overview'!$D$10:$J$10,0)),"Global") -> Global
B55: 5 | C55: =IF(Food_cat5="<click to select>","",Food_cat5) ->  | D55: <click to select> | E55: =IF(ISTEXT(INDEX('C6. Technical methods overview'!$D$11:$J$36,MATCH(Food_cat5,'C6. Technical methods overview'!$C$11:$C$36,0),MATCH(Food_cat5_region,'C6. Technical methods overview'!$D$10:$J$10,0))),INDEX('C6. Technical methods overview'!$D$11:$J$36,MATCH(Food_cat5,'C6. Technical methods overview'!$C$11:$C$36,0),MATCH(Food_cat5_region,'C6. Technical methods overview'!$D$10:$J$10,0)),"Global") -> Global
B56: 6 | C56: =IF(Food_cat6="<click to select>","",Food_cat6) ->  | D56: <click to select> | E56: =IF(ISTEXT(INDEX('C6. Technical methods overview'!$D$11:$J$36,MATCH(Food_cat6,'C6. Technical methods overview'!$C$11:$C$36,0),MATCH(Food_cat6_region,'C6. Technical methods overview'!$D$10:$J$10,0))),INDEX('C6. Technical methods overview'!$D$11:$J$36,MATCH(Food_cat6,'C6. Technical methods overview'!$C$11:$C$36,0),MATCH(Food_cat6_region,'C6. Technical methods overview'!$D$10:$J$10,0)),"Global") -> Global
B58: 3. Enter FLW data for scenarios (food & region) selected above. FLW is entered for each relevant life cycle stage and destination when known. Feel free to skip irrelevant life cycle stages for your assessment, and to chose the most appropriate life cycle stage.
C60: A. | D60: Go to: Agricultural production
C61: B. | D61: Go to: Post-harvest handling and storage
C62: C. | D62: Go to: Processing and packaging
C63: D. | D63: Go to: Distribution
C64: E. | D64: Go to: Consumption
E67: Food: | F67: =IF(Food_cat1="<click to select>","",Food_cat1) ->  | G67: =IF(Food_cat2="<click to select>","",Food_cat2) ->  | H67: =IF(Food_cat3="<click to select>","",Food_cat3) ->  | I67: =IF(Food_cat4="<click to select>","",Food_cat4) ->  | J67: =IF(Food_cat5="<click to select>","",Food_cat5) ->  | K67: =IF(Food_cat6="<click to select>","",Food_cat6) -> 
D68: A. | E68: Region: | F68: =IF(Food_cat1_region="<click to select>","",Food_cat1_region) ->  | G68: =IF(Food_cat2_region="<click to select>","",Food_cat2_region) ->  | H68: =IF(Food_cat3_region="<click to select>","",Food_cat3_region) ->  | I68: =IF(Food_cat4_region="<click to select>","",Food_cat4_region) ->  | J68: =IF(Food_cat5_region="<click to select>","",Food_cat5_region) ->  | K68: =IF(Food_cat6_region="<click to select>","",Food_cat6_region) -> 
D69: Total agricultural production losses: | E69: tonne
D70: Total with known destination | E70: tonne | F70: =IF(ISNUMBER(F69),SUM(F74:F83),"") ->  | G70: =IF(ISNUMBER(G69),SUM(G74:G83),"") -> 
D71: Total with unknown destination | E71: tonne | F71: =IF(ISNUMBER(F84),((F84)+(AgTotCat1-SUM(F74:F84))),IF(ISNUMBER(F69),F69-(SUM(F74:F83)),"")) ->  | G71: =IF(ISNUMBER(G84),((G84)+(AgTotCat2-SUM(G74:G84))),IF(ISNUMBER(G69),G69-(SUM(G74:G83)),"")) ->  | H71: =IF(ISNUMBER(H84),((H84)+(AgTotCat3-SUM(H74:H84))),IF(ISNUMBER(H69),H69-(SUM(H74:H83)),"")) ->  | I71: =IF(ISNUMBER(I84),((I84)+(AgTotCat4-SUM(I74:I84))),IF(ISNUMBER(I69),I69-(SUM(I74:I83)),"")) ->  | J71: =IF(ISNUMBER(J84),((J84)+(AgTotCat5-SUM(J74:J84))),IF(ISNUMBER(J69),J69-(SUM(J74:J83)),"")) ->  | K71: =IF(ISNUMBER(K84),((K84)+(AgTotCat6-SUM(K74:K84))),IF(ISNUMBER(K69),K69-(SUM(K74:K83)),"")) -> 
E72: =IF(SUM(F73:K73)>=1,"Please check that total mass to destinations equals the total entered above!","") -> 
D73: Destinations | F73: =IF(SUM(F74:F84)=AgTotCat1,"",1) ->  | G73: =IF(SUM(G74:G84)=AgTotCat2,"",1) ->  | H73: =IF(SUM(H74:H84)=AgTotCat3,"",1) ->  | I73: =IF(SUM(I74:I84)=AgTotCat4,"",1) ->  | J73: =IF(SUM(J74:J84)=AgTotCat5,"",1) ->  | K73: =IF(SUM(K74:K84)=AgTotCat6,"",1) -> 
D74: Animal feed | E74: tonne
D75: Bio-based materials/biochemical processing | E75: tonne
D76: Codigestion/anaerobic digestion | E76: tonne
D77: Composting/aerobic processes | E77: tonne
D78: Controlled combustion | E78: tonne
D79: Land application | E79: tonne
D80: Not harvested/plowed in | E80: tonne
D81: Landfill | E81: tonne
D82: Refuse/discards/litter | E82: tonne
D83: Sewer/wastewater treatment | E83: tonne
D84: Unknown | E84: tonne
D86: Click to go to: Select environmental impact
E88: Food: | F88: =IF(Food_cat1="<click to select>","",Food_cat1) ->  | G88: =IF(Food_cat2="<click to select>","",Food_cat2) ->  | H88: =IF(Food_cat3="<click to select>","",Food_cat3) ->  | I88: =IF(Food_cat4="<click to select>","",Food_cat4) ->  | J88: =IF(Food_cat5="<click to select>","",Food_cat5) ->  | K88: =IF(Food_cat6="<click to select>","",Food_cat6) -> 
D89: B. | E89: Region: | F89: =IF(Food_cat1_region="<click to select>","",Food_cat1_region) ->  | G89: =IF(Food_cat2_region="<click to select>","",Food_cat2_region) ->  | H89: =IF(Food_cat3_region="<click to select>","",Food_cat3_region) ->  | I89: =IF(Food_cat4_region="<click to select>","",Food_cat4_region) ->  | J89: =IF(Food_cat5_region="<click to select>","",Food_cat5_region) ->  | K89: =IF(Food_cat6_region="<click to select>","",Food_cat6_region) -> 
D90: Total post-harvest handling and storage loss:
D91: Total with known destination | E91: tonne | F91: =IF(ISNUMBER(F90),SUM(F95:F104),"") ->  | G91: =IF(ISNUMBER(G90),SUM(G95:G104),"") -> 
D92: Total with unknown destination | E92: tonne | F92: =IF(ISNUMBER(F105),((F105)+(PostHarvTotCat1-SUM(F95:F105))),IF(ISNUMBER(F90),F90-(SUM(F95:F104)),"")) ->  | G92: =IF(ISNUMBER(G105),((G105)+(PostHarvTotCat2-SUM(G95:G105))),IF(ISNUMBER(G90),G90-(SUM(G95:G104)),"")) ->  | H92: =IF(ISNUMBER(H105),((H105)+(PostHarvTotCat3-SUM(H95:H105))),IF(ISNUMBER(H90),H90-(SUM(H95:H104)),"")) ->  | I92: =IF(ISNUMBER(I105),((I105)+(PostHarvTotCat4-SUM(I95:I105))),IF(ISNUMBER(I90),I90-(SUM(I95:I104)),"")) ->  | J92: =IF(ISNUMBER(J105),((J105)+(PostHarvTotCat5-SUM(J95:J105))),IF(ISNUMBER(J90),J90-(SUM(J95:J104)),"")) ->  | K92: =IF(ISNUMBER(K105),((K105)+(PostHarvTotCat6-SUM(K95:K105))),IF(ISNUMBER(K90),K90-(SUM(K95:K104)),"")) -> 
E93: =IF(SUM(F94:K94)>=1,"Please check that total mass to destinations equals the total entered above!","") -> 
D94: Destination | F94: =IF(SUM(F95:F105)=AgTotCat1,"",1) ->  | G94: =IF(SUM(G95:G105)=AgTotCat2,"",1) ->  | H94: =IF(SUM(H95:H105)=AgTotCat3,"",1) ->  | I94: =IF(SUM(I95:I105)=AgTotCat4,"",1) ->  | J94: =IF(SUM(J95:J105)=AgTotCat5,"",1) ->  | K94: =IF(SUM(K95:K105)=AgTotCat6,"",1) -> 
D95: Animal feed | E95: tonne
D96: Bio-based materials/biochemical processing | E96: tonne
D97: Codigestion/anaerobic digestion | E97: tonne
D98: Composting/aerobic processes | E98: tonne
D99: Controlled combustion | E99: tonne
D100: Land application | E100: tonne
D101: Not harvested/plowed in | E101: tonne
D102: Landfill | E102: tonne
D103: Refuse/discards/litter | E103: tonne
D104: Sewer/wastewater treatment | E104: tonne
D105: Unknown | E105: tonne
D107: Click to go to: Select environmental impact
E109: Food: | F109: =IF(Food_cat1="<click to select>","",Food_cat1) ->  | G109: =IF(Food_cat2="<click to select>","",Food_cat2) ->  | H109: =IF(Food_cat3="<click to select>","",Food_cat3) ->  | I109: =IF(Food_cat4="<click to select>","",Food_cat4) ->  | J109: =IF(Food_cat5="<click to select>","",Food_cat5) ->  | K109: =IF(Food_cat6="<click to select>","",Food_cat6) -> 
D110: C. | E110: Region: | F110: =IF(Food_cat1_region="<click to select>","",Food_cat1_region) ->  | G110: =IF(Food_cat2_region="<click to select>","",Food_cat2_region) ->  | H110: =IF(Food_cat3_region="<click to select>","",Food_cat3_region) ->  | I110: =IF(Food_cat4_region="<click to select>","",Food_cat4_region) ->  | J110: =IF(Food_cat5_region="<click to select>","",Food_cat5_region) ->  | K110: =IF(Food_cat6_region="<click to select>","",Food_cat6_region) -> 
D111: Total processing and packaging losses: | E111: tonne
D112: Total with known destination | E112: tonne | F112: =IF(ISNUMBER(F111),SUM(F116:F125),"") ->  | G112: =IF(ISNUMBER(G111),SUM(G116:G125),"") -> 
D113: Total with unknown destination | E113: tonne | F113: =IF(ISNUMBER(F126),((F126)+(ProcTotCat1-SUM(F116:F126))),IF(ISNUMBER(F111),F111-(SUM(F116:F125)),"")) ->  | G113: =IF(ISNUMBER(G126),((G126)+(ProcTotCat2-SUM(G116:G126))),IF(ISNUMBER(G111),G111-(SUM(G116:G125)),"")) ->  | H113: =IF(ISNUMBER(H126),((H126)+(ProcTotCat3-SUM(H116:H126))),IF(ISNUMBER(H111),H111-(SUM(H116:H125)),"")) ->  | I113: =IF(ISNUMBER(I126),((I126)+(ProcTotCat4-SUM(I116:I126))),IF(ISNUMBER(I111),I111-(SUM(I116:I125)),"")) ->  | J113: =IF(ISNUMBER(J126),((J126)+(ProcTotCat5-SUM(J116:J126))),IF(ISNUMBER(J111),J111-(SUM(J116:J125)),"")) ->  | K113: =IF(ISNUMBER(K126),((K126)+(ProcTotCat6-SUM(K116:K126))),IF(ISNUMBER(K111),K111-(SUM(K116:K125)),"")) -> 
E114: =IF(SUM(F115:K115)>=1,"Please check that total mass to destinations equals the total entered above!","") -> 
D115: Destination | F115: =IF(SUM(F116:F126)=AgTotCat1,"",1) ->  | G115: =IF(SUM(G116:G126)=AgTotCat2,"",1) ->  | H115: =IF(SUM(H116:H126)=AgTotCat3,"",1) ->  | I115: =IF(SUM(I116:I126)=AgTotCat4,"",1) ->  | J115: =IF(SUM(J116:J126)=AgTotCat5,"",1) ->  | K115: =IF(SUM(K116:K126)=AgTotCat6,"",1) -> 
D116: Animal feed | E116: tonne
D117: Bio-based materials/biochemical processing | E117: tonne
D118: Codigestion/anaerobic digestion | E118: tonne
D119: Composting/aerobic processes | E119: tonne
D120: Controlled combustion | E120: tonne
D121: Land application | E121: tonne
D122: Not harvested/plowed in | E122: tonne
D123: Landfill | E123: tonne
D124: Refuse/discards/litter | E124: tonne
D125: Sewer/wastewater treatment | E125: tonne
D126: Unknown | E126: tonne
D128: Click to go to: Select environmental impact
E130: Food: | F130: =IF(Food_cat1="<click to select>","",Food_cat1) ->  | G130: =IF(Food_cat2="<click to select>","",Food_cat2) ->  | H130: =IF(Food_cat3="<click to select>","",Food_cat3) ->  | I130: =IF(Food_cat4="<click to select>","",Food_cat4) ->  | J130: =IF(Food_cat5="<click to select>","",Food_cat5) ->  | K130: =IF(Food_cat6="<click to select>","",Food_cat6) -> 
D131: D. | E131: Region: | F131: =IF(Food_cat1_region="<click to select>","",Food_cat1_region) ->  | G131: =IF(Food_cat2_region="<click to select>","",Food_cat2_region) ->  | H131: =IF(Food_cat3_region="<click to select>","",Food_cat3_region) ->  | I131: =IF(Food_cat4_region="<click to select>","",Food_cat4_region) ->  | J131: =IF(Food_cat5_region="<click to select>","",Food_cat5_region) ->  | K131: =IF(Food_cat6_region="<click to select>","",Food_cat6_region) -> 
D132: Total distribution wastes | E132: tonne
D133: Total with known destination | E133: tonne | F133: =IF(ISNUMBER(F132),SUM(F137:F146),"") ->  | G133: =IF(ISNUMBER(G132),SUM(G137:G146),"") -> 
D134: Total with unknown destination | E134: tonne | F134: =IF(ISNUMBER(F147),((F147)+(DistTotCat1-SUM(F137:F147))),IF(ISNUMBER(F132),F132-(SUM(F137:F146)),"")) ->  | G134: =IF(ISNUMBER(G147),((G147)+(DistTotCat2-SUM(G137:G147))),IF(ISNUMBER(G132),G132-(SUM(G137:G146)),"")) ->  | H134: =IF(ISNUMBER(H147),((H147)+(DistTotCat3-SUM(H137:H147))),IF(ISNUMBER(H132),H132-(SUM(H137:H146)),"")) ->  | I134: =IF(ISNUMBER(I147),((I147)+(DistTotCat4-SUM(I137:I147))),IF(ISNUMBER(I132),I132-(SUM(I137:I146)),"")) ->  | J134: =IF(ISNUMBER(J147),((J147)+(DistTotCat5-SUM(J137:J147))),IF(ISNUMBER(J132),J132-(SUM(J137:J146)),"")) ->  | K134: =IF(ISNUMBER(K147),((K147)+(DistTotCat6-SUM(K137:K147))),IF(ISNUMBER(K132),K132-(SUM(K137:K146)),"")) -> 
E135: =IF(SUM(F136:K136)>=1,"Please check that total mass to destinations equals the total entered above!","") -> 
D136: Destination | F136: =IF(SUM(F137:F147)=AgTotCat1,"",1) ->  | G136: =IF(SUM(G137:G147)=AgTotCat2,"",1) ->  | H136: =IF(SUM(H137:H147)=AgTotCat3,"",1) ->  | I136: =IF(SUM(I137:I147)=AgTotCat4,"",1) ->  | J136: =IF(SUM(J137:J147)=AgTotCat5,"",1) ->  | K136: =IF(SUM(K137:K147)=AgTotCat6,"",1) -> 
D137: Animal feed | E137: tonne
D138: Bio-based materials/biochemical processing | E138: tonne
D139: Codigestion/anaerobic digestion | E139: tonne
D140: Composting/aerobic processes | E140: tonne
D141: Controlled combustion | E141: tonne
D142: Land application | E142: tonne
D143: Not harvested/plowed in | E143: tonne
D144: Landfill | E144: tonne
D145: Refuse/discards/litter | E145: tonne
D146: Sewer/wastewater treatment | E146: tonne
D147: Unknown | E147: tonne
D149: Click to go to: Select environmental impact
E151: Food: | F151: =IF(Food_cat1="<click to select>","",Food_cat1) ->  | G151: =IF(Food_cat2="<click to select>","",Food_cat2) ->  | H151: =IF(Food_cat3="<click to select>","",Food_cat3) ->  | I151: =IF(Food_cat4="<click to select>","",Food_cat4) ->  | J151: =IF(Food_cat5="<click to select>","",Food_cat5) ->  | K151: =IF(Food_cat6="<click to select>","",Food_cat6) -> 
D152: E. | E152: Region: | F152: =IF(Food_cat1_region="<click to select>","",Food_cat1_region) ->  | G152: =IF(Food_cat2_region="<click to select>","",Food_cat2_region) ->  | H152: =IF(Food_cat3_region="<click to select>","",Food_cat3_region) ->  | I152: =IF(Food_cat4_region="<click to select>","",Food_cat4_region) ->  | J152: =IF(Food_cat5_region="<click to select>","",Food_cat5_region) ->  | K152: =IF(Food_cat6_region="<click to select>","",Food_cat6_region) -> 
D153: Total consumption wastes | E153: tonne
D154: Total with known destination | E154: tonne | F154: =IF(ISNUMBER(F153),SUM(F158:F167),"") ->  | G154: =IF(ISNUMBER(G153),SUM(G158:G167),"") ->  | H154: =IF(ISNUMBER(H153),SUM(H158:H167),"") -> 
D155: Total with unknown destination | E155: tonne | F155: =IF(ISNUMBER(F168),((F168)+(ConsTotCat1-SUM(F158:F168))),IF(ISNUMBER(F153),F153-(SUM(F158:F167)),"")) -> 
E156: =IF(SUM(F157:K157)>=1,"Please check that total mass to destinations equals the total entered above!","") -> 
D157: Destination | F157: =IF(SUM(F158:F168)=AgTotCat1,"",1) ->  | G157: =IF(SUM(G158:G168)=AgTotCat2,"",1) ->  | H157: =IF(SUM(H158:H168)=AgTotCat3,"",1) ->  | I157: =IF(SUM(I158:I168)=AgTotCat4,"",1) ->  | J157: =IF(SUM(J158:J168)=AgTotCat5,"",1) ->  | K157: =IF(SUM(K158:K168)=AgTotCat6,"",1) -> 
D158: Animal feed | E158: tonne
D159: Bio-based materials/biochemical processing | E159: tonne
D160: Codigestion/anaerobic digestion | E160: tonne
D161: Composting/aerobic processes | E161: tonne
D162: Controlled combustion | E162: tonne
D163: Land application | E163: tonne
D164: Not harvested/plowed in | E164: tonne
D165: Landfill | E165: tonne
D166: Refuse/discards/litter | E166: tonne
D167: Sewer/wastewater treatment | E167: tonne
D168: Unknown | E168: tonne
D170: Click to go to: Select environmental impact
E172: Food: | F172: =IF(Food_cat1="<click to select>","",Food_cat1) ->  | G172: =IF(Food_cat2="<click to select>","",Food_cat2) ->  | H172: =IF(Food_cat3="<click to select>","",Food_cat3) ->  | I172: =IF(Food_cat4="<click to select>","",Food_cat4) ->  | J172: =IF(Food_cat5="<click to select>","",Food_cat5) ->  | K172: =IF(Food_cat6="<click to select>","",Food_cat6) -> 
D173: A.-E. | E173: Region: | F173: =IF(Food_cat1_region="<click to select>","",Food_cat1_region) ->  | G173: =IF(Food_cat2_region="<click to select>","",Food_cat2_region) ->  | H173: =IF(Food_cat3_region="<click to select>","",Food_cat3_region) ->  | I173: =IF(Food_cat4_region="<click to select>","",Food_cat4_region) ->  | J173: =IF(Food_cat5_region="<click to select>","",Food_cat5_region) ->  | K173: =IF(Food_cat6_region="<click to select>","",Food_cat6_region) -> 
D174: Total supply chain considered | E174: tonne | F174: =IF(SUM(AgTotCat1+PostHarvTotCat1+ProcTotCat1+DistTotCat1+ConsTotCat1)>0,SUM(AgTotCat1+PostHarvTotCat1+ProcTotCat1+DistTotCat1+ConsTotCat1),"") ->  | G174: =IF(SUM(AgTotCat2+PostHarvTotCat2+ProcTotCat2+DistTotCat2+ConsTotCat2)>0,SUM(AgTotCat2+PostHarvTotCat2+ProcTotCat2+DistTotCat2+ConsTotCat2),"") ->  | H174: =IF(SUM(AgTotCat3+PostHarvTotCat3+ProcTotCat3+DistTotCat3+ConsTotCat3)>0,SUM(AgTotCat3+PostHarvTotCat3+ProcTotCat3+DistTotCat3+ConsTotCat3),"") ->  | I174: =IF(SUM(AgTotCat4+PostHarvTotCat4+ProcTotCat4+DistTotCat4+ConsTotCat4)>0,SUM(AgTotCat4+PostHarvTotCat4+ProcTotCat4+DistTotCat4+ConsTotCat4),"") ->  | J174: =IF(SUM(AgTotCat5+PostHarvTotCat5+ProcTotCat5+DistTotCat5+ConsTotCat5)>0,SUM(AgTotCat5+PostHarvTotCat5+ProcTotCat5+DistTotCat5+ConsTotCat5),"") ->  | K174: =IF(SUM(AgTotCat6+PostHarvTotCat6+ProcTotCat6+DistTotCat6+ConsTotCat6)>0,SUM(AgTotCat6+PostHarvTotCat6+ProcTotCat6+DistTotCat6+ConsTotCat6),"") -> 
B176: 4. Select the environmental impact category you are interested to assess.
D177: Climate change (kg CO2 eq) | E177: <-select the impact category you would like to assess
D178: =INDEX('C1. Enviro impact definitions'!D6:D10,MATCH(Impact,'C1. Enviro impact definitions'!C6:C10,0)) -> The climate change impact indicates the carbon footprint of the FLW due to greenhouse gas emissions (GHGs). This accounts for the radiative forcing of various GHGs using the Global Warming Potential for 100 year time frame.

Sheet B2. Result table, enviro impact
A1: Environmental impacts (no user input needed)
B2: 2. RESULTS TABLE (no action needed)
J3: INTERPRETATION TIPS
B4: 2a. | D4: 1 | E4: 2 | F4: 3 | G4: 4 | H4: 5 | I4: 6 | J4: =INDEX('C1. Enviro impact definitions'!D6:D8,MATCH(Impact,'C1. Enviro impact definitions'!C6:C8,0)) -> The climate change impact indicates the carbon footprint of the FLW due to greenhouse gas emissions (GHGs). This accounts for the radiative forcing of various GHGs using the Global Warming Potential for 100 year time frame.
B5: Agricultural production | D5: =Food_cat1 -> <click to select> | E5: =Food_cat2 -> <click to select> | F5: =Food_cat3 -> <click to select> | G5: =Food_cat4 -> <click to select> | H5: =Food_cat5 -> <click to select> | I5: =Food_cat6 -> <click to select>
D6: =Food_cat1_region -> <click to select> | E6: =Food_cat2_region -> <click to select> | F6: =Food_cat3_region -> <click to select> | G6: =Food_cat4_region -> <click to select> | H6: =Food_cat5_region -> <click to select> | I6: =Food_cat6_region -> <click to select> | J6: ONLY ANIMAL FEED AND BIO-BASED MATERIAL DESTINATIONS HAVE IMPACTS REPORTED, OTHER THAN CLIMATE CHANGE.
B7: Agricultural production impact | C7: =Impact -> Climate change (kg CO2 eq) | D7: =IF(ISNUMBER(AgTotCat1),AgTotCat1*kg_tonnes*INDEX(Impact_Data,MATCH((D5&", "&D6),FLW_Region_Impact_Data,0),MATCH(Impact,Impact_Categories,0)),"") ->  | E7: =IF(ISNUMBER(AgTotCat2),AgTotCat2*kg_tonnes*INDEX(Impact_Data,MATCH((E5&", "&E6),FLW_Region_Impact_Data,0),MATCH(Impact,Impact_Categories,0)),"") ->  | F7: =IF(ISNUMBER(AgTotCat3),AgTotCat3*kg_tonnes*INDEX(Impact_Data,MATCH((F5&", "&F6),FLW_Region_Impact_Data,0),MATCH(Impact,Impact_Categories,0)),"") ->  | G7: =IF(ISNUMBER(AgTotCat4),AgTotCat4*kg_tonnes*INDEX(Impact_Data,MATCH((G5&", "&G6),FLW_Region_Impact_Data,0),MATCH(Impact,Impact_Categories,0)),"") ->  | H7: =IF(ISNUMBER(AgTotCat5),AgTotCat5*kg_tonnes*INDEX(Impact_Data,MATCH((H5&", "&H6),FLW_Region_Impact_Data,0),MATCH(Impact,Impact_Categories,0)),"") ->  | I7: =IF(ISNUMBER(AgTotCat6),AgTotCat6*kg_tonnes*INDEX(Impact_Data,MATCH((I5&", "&I6),FLW_Region_Impact_Data,0),MATCH(Impact,Impact_Categories,0)),"") ->  | J7: <- these are the impacts associated with producing the food originally. Regional data are used when available, otherwise a global proxy was used. Values are color coded from green (least) to red (most) impact.
B8: Additional life cycle impacts | C8: n/a | D8: n/a | E8: n/a | F8: n/a | G8: n/a | H8: n/a | I8: n/a | J8: <-this is the first life cycle stage, so there are no additional life cycle impacts associated
B9: Additional impacts due to destination | C9: =Impact -> Climate change (kg CO2 eq) | D9: =IF(ISNUMBER(D7),SUM(D11:D21),"") ->  | E9: =IF(ISNUMBER(E7),SUM(E11:E21),"") ->  | J9: <-these are the additional impacts associated with disposing of the food losses
B10: Destination-specific results
B11: Animal feed | C11: =Impact -> Climate change (kg CO2 eq) | D11: =IF('B1. Detailed assessment'!F74>0,('B1. Detailed assessment'!F74*kg_tonnes*INDEX(Impact_Destination,MATCH((D$5&", "&$B11),FLW_Destination_Impact,0),MATCH(Impact,Destination_Impact_Categories,0))),"") ->  | E11: =IF('B1. Detailed assessment'!G74>0,('B1. Detailed assessment'!G74*kg_tonnes*INDEX(Impact_Destination,MATCH((E$5&", "&$B11),FLW_Destination_Impact,0),MATCH(Impact,Destination_Impact_Categories,0))),"") ->  | F11: =IF('B1. Detailed assessment'!H74>0,('B1. Detailed assessment'!H74*kg_tonnes*INDEX(Impact_Destination,MATCH((F$5&", "&$B11),FLW_Destination_Impact,0),MATCH(Impact,Destination_Impact_Categories,0))),"") ->  | G11: =IF('B1. Detailed assessment'!I74>0,('B1. Detailed assessment'!I74*kg_tonnes*INDEX(Impact_Destination,MATCH((G$5&", "&$B11),FLW_Destination_Impact,0),MATCH(Impact,Destination_Impact_Categories,0))),"") ->  | H11: =IF('B1. Detailed assessment'!J74>0,('B1. Detailed assessment'!J74*kg_tonnes*INDEX(Impact_Destination,MATCH((H$5&", "&$B11),FLW_Destination_Impact,0),MATCH(Impact,Destination_Impact_Categories,0))),"") ->  | I11: =IF('B1. Detailed assessment'!K74>0,('B1. Detailed assessment'!K74*kg_tonnes*INDEX(Impact_Destination,MATCH((I$5&", "&$B11),FLW_Destination_Impact,0),MATCH(Impact,Destination_Impact_Categories,0))),"") ->  | J11: <-negative values are avoided impacts (e.g. growing soy for animal feed)
B12: Bio-based materials/biochemical processing | C12: Climate change (kg CO2 eq) | D12: =IF('B1. Detailed assessment'!F75>0,('B1. Detailed assessment'!F75*kg_tonnes*INDEX(Impact_Destination,MATCH((D$5&", "&$B12),FLW_Destination_Impact,0),MATCH(Impact,Destination_Impact_Categories,0))),"") ->  | E12: =IF('B1. Detailed assessment'!G75>0,('B1. Detailed assessment'!G75*kg_tonnes*INDEX(Impact_Destination,MATCH((E$5&", "&$B12),FLW_Destination_Impact,0),MATCH(Impact,Destination_Impact_Categories,0))),"") ->  | F12: =IF('B1. Detailed assessment'!H75>0,('B1. Detailed assessment'!H75*kg_tonnes*INDEX(Impact_Destination,MATCH((F$5&", "&$B12),FLW_Destination_Impact,0),MATCH(Impact,Destination_Impact_Categories,0))),"") ->  | G12: =IF('B1. Detailed assessment'!I75>0,('B1. Detailed assessment'!I75*kg_tonnes*INDEX(Impact_Destination,MATCH((G$5&", "&$B12),FLW_Destination_Impact,0),MATCH(Impact,Destination_Impact_Categories,0))),"") ->  | H12: =IF('B1. Detailed assessment'!J75>0,('B1. Detailed assessment'!J75*kg_tonnes*INDEX(Impact_Destination,MATCH((H$5&", "&$B12),FLW_Destination_Impact,0),MATCH(Impact,Destination_Impact_Categories,0))),"") ->  | I12: =IF('B1. Detailed assessment'!K75>0,('B1. Detailed assessment'!K75*kg_tonnes*INDEX(Impact_Destination,MATCH((I$5&", "&$B12),FLW_Destination_Impact,0),MATCH(Impact,Destination_Impact_Categories,0))),"") ->  | J12: <-negative values are avoided impacts (e.g. growing more corn for biomaterial processing)
B13: Codigestion/anaerobic digestion | C13: Climate change (kg CO2 eq) | D13: =IF('B1. Detailed assessment'!F76>0,('B1. Detailed assessment'!F76*kg_tonnes*INDEX(Impact_Destination,MATCH((D$5&", "&$B13),FLW_Destination_Impact,0),MATCH(Impact,Destination_Impact_Categories,0))),"") ->  | E13: =IF('B1. Detailed assessment'!G76>0,('B1. Detailed assessment'!G76*kg_tonnes*INDEX(Impact_Destination,MATCH((E$5&", "&$B13),FLW_Destination_Impact,0),MATCH(Impact,Destination_Impact_Categories,0))),"") ->  | F13: =IF('B1. Detailed assessment'!H76>0,('B1. Detailed assessment'!H76*kg_tonnes*INDEX(Impact_Destination,MATCH((F$5&", "&$B13),FLW_Destination_Impact,0),MATCH(Impact,Destination_Impact_Categories,0))),"") ->  | G13: =IF('B1. Detailed assessment'!I76>0,('B1. Detailed assessment'!I76*kg_tonnes*INDEX(Impact_Destination,MATCH((G$5&", "&$B13),FLW_Destination_Impact,0),MATCH(Impact,Destination_Impact_Categories,0))),"") ->  | H13: =IF('B1. Detailed assessment'!J76>0,('B1. Detailed assessment'!J76*kg_tonnes*INDEX(Impact_Destination,MATCH((H$5&", "&$B13),FLW_Destination_Impact,0),MATCH(Impact,Destination_Impact_Categories,0))),"") ->  | I13: =IF('B1. Detailed assessment'!K76>0,('B1. Detailed assessment'!K76*kg_tonnes*INDEX(Impact_Destination,MATCH((I$5&", "&$B13),FLW_Destination_Impact,0),MATCH(Impact,Destination_Impact_Categories,0))),"") ->  | J13: <-negative values are avoided impacts (e.g. creating energy from the methane gas released from anaerobic digestion)
B14: Composting/aerobic processes | C14: Climate change (kg CO2 eq) | D14: =IF('B1. Detailed assessment'!F77>0,('B1. Detailed assessment'!F77*kg_tonnes*INDEX(Impact_Destination,MATCH((D$5&", "&$B14),FLW_Destination_Impact,0),MATCH(Impact,Destination_Impact_Categories,0))),"") ->  | E14: =IF('B1. Detailed assessment'!G77>0,('B1. Detailed assessment'!G77*kg_tonnes*INDEX(Impact_Destination,MATCH((E$5&", "&$B14),FLW_Destination_Impact,0),MATCH(Impact,Destination_Impact_Categories,0))),"") ->  | F14: =IF('B1. Detailed assessment'!H77>0,('B1. Detailed assessment'!H77*kg_tonnes*INDEX(Impact_Destination,MATCH((F$5&", "&$B14),FLW_Destination_Impact,0),MATCH(Impact,Destination_Impact_Categories,0))),"") ->  | G14: =IF('B1. Detailed assessment'!I77>0,('B1. Detailed assessment'!I77*kg_tonnes*INDEX(Impact_Destination,MATCH((G$5&", "&$B14),FLW_Destination_Impact,0),MATCH(Impact,Destination_Impact_Categories,0))),"") ->  | H14: =IF('B1. Detailed assessment'!J77>0,('B1. Detailed assessment'!J77*kg_tonnes*INDEX(Impact_Destination,MATCH((H$5&", "&$B14),FLW_Destination_Impact,0),MATCH(Impact,Destination_Impact_Categories,0))),"") ->  | I14: =IF('B1. Detailed assessment'!K77>0,('B1. Detailed assessment'!K77*kg_tonnes*INDEX(Impact_Destination,MATCH((I$5&", "&$B14),FLW_Destination_Impact,0),MATCH(Impact,Destination_Impact_Categories,0))),"") ->  | J14: <-negative values are avoided impacts (e.g. creating fertiliser from the compost produced)
B15: Controlled combustion | C15: Climate change (kg CO2 eq) | D15: =IF('B1. Detailed assessment'!F78>0,('B1. Detailed assessment'!F78*kg_tonnes*INDEX(Impact_Destination,MATCH((D$5&", "&$B15),FLW_Destination_Impact,0),MATCH(Impact,Destination_Impact_Categories,0))),"") ->  | E15: =IF('B1. Detailed assessment'!G78>0,('B1. Detailed assessment'!G78*kg_tonnes*INDEX(Impact_Destination,MATCH((E$5&", "&$B15),FLW_Destination_Impact,0),MATCH(Impact,Destination_Impact_Categories,0))),"") ->  | F15: =IF('B1. Detailed assessment'!H78>0,('B1. Detailed assessment'!H78*kg_tonnes*INDEX(Impact_Destination,MATCH((F$5&", "&$B15),FLW_Destination_Impact,0),MATCH(Impact,Destination_Impact_Categories,0))),"") ->  | G15: =IF('B1. Detailed assessment'!I78>0,('B1. Detailed assessment'!I78*kg_tonnes*INDEX(Impact_Destination,MATCH((G$5&", "&$B15),FLW_Destination_Impact,0),MATCH(Impact,Destination_Impact_Categories,0))),"") ->  | H15: =IF('B1. Detailed assessment'!J78>0,('B1. Detailed assessment'!J78*kg_tonnes*INDEX(Impact_Destination,MATCH((H$5&", "&$B15),FLW_Destination_Impact,0),MATCH(Impact,Destination_Impact_Categories,0))),"") ->  | I15: =IF('B1. Detailed assessment'!K78>0,('B1. Detailed assessment'!K78*kg_tonnes*INDEX(Impact_Destination,MATCH((I$5&", "&$B15),FLW_Destination_Impact,0),MATCH(Impact,Destination_Impact_Categories,0))),"") ->  | J15: <-negative values are avoided impacts (e.g. creating energy and heat from controlled combustion)
B16: Land application | C16: Climate change (kg CO2 eq) | D16: =IF('B1. Detailed assessment'!F79>0,('B1. Detailed assessment'!F79*kg_tonnes*INDEX(Impact_Destination,MATCH((D$5&", "&$B16),FLW_Destination_Impact,0),MATCH(Impact,Destination_Impact_Categories,0))),"") ->  | E16: =IF('B1. Detailed assessment'!G79>0,('B1. Detailed assessment'!G79*kg_tonnes*INDEX(Impact_Destination,MATCH((E$5&", "&$B16),FLW_Destination_Impact,0),MATCH(Impact,Destination_Impact_Categories,0))),"") ->  | F16: =IF('B1. Detailed assessment'!H79>0,('B1. Detailed assessment'!H79*kg_tonnes*INDEX(Impact_Destination,MATCH((F$5&", "&$B16),FLW_Destination_Impact,0),MATCH(Impact,Destination_Impact_Categories,0))),"") ->  | G16: =IF('B1. Detailed assessment'!I79>0,('B1. Detailed assessment'!I79*kg_tonnes*INDEX(Impact_Destination,MATCH((G$5&", "&$B16),FLW_Destination_Impact,0),MATCH(Impact,Destination_Impact_Categories,0))),"") ->  | H16: =IF('B1. Detailed assessment'!J79>0,('B1. Detailed assessment'!J79*kg_tonnes*INDEX(Impact_Destination,MATCH((H$5&", "&$B16),FLW_Destination_Impact,0),MATCH(Impact,Destination_Impact_Categories,0))),"") ->  | I16: =IF('B1. Detailed assessment'!K79>0,('B1. Detailed assessment'!K79*kg_tonnes*INDEX(Impact_Destination,MATCH((I$5&", "&$B16),FLW_Destination_Impact,0),MATCH(Impact,Destination_Impact_Categories,0))),"") -> 
B17: Not harvested/plowed in | C17: Climate change (kg CO2 eq) | D17: =IF('B1. Detailed assessment'!F80>0,('B1. Detailed assessment'!F80*kg_tonnes*INDEX(Impact_Destination,MATCH((D$5&", "&$B17),FLW_Destination_Impact,0),MATCH(Impact,Destination_Impact_Categories,0))),"") ->  | E17: =IF('B1. Detailed assessment'!G80>0,('B1. Detailed assessment'!G80*kg_tonnes*INDEX(Impact_Destination,MATCH((E$5&", "&$B17),FLW_Destination_Impact,0),MATCH(Impact,Destination_Impact_Categories,0))),"") ->  | F17: =IF('B1. Detailed assessment'!H80>0,('B1. Detailed assessment'!H80*kg_tonnes*INDEX(Impact_Destination,MATCH((F$5&", "&$B17),FLW_Destination_Impact,0),MATCH(Impact,Destination_Impact_Categories,0))),"") ->  | G17: =IF('B1. Detailed assessment'!I80>0,('B1. Detailed assessment'!I80*kg_tonnes*INDEX(Impact_Destination,MATCH((G$5&", "&$B17),FLW_Destination_Impact,0),MATCH(Impact,Destination_Impact_Categories,0))),"") ->  | H17: =IF('B1. Detailed assessment'!J80>0,('B1. Detailed assessment'!J80*kg_tonnes*INDEX(Impact_Destination,MATCH((H$5&", "&$B17),FLW_Destination_Impact,0),MATCH(Impact,Destination_Impact_Categories,0))),"") ->  | I17: =IF('B1. Detailed assessment'!K80>0,('B1. Detailed assessment'!K80*kg_tonnes*INDEX(Impact_Destination,MATCH((I$5&", "&$B17),FLW_Destination_Impact,0),MATCH(Impact,Destination_Impact_Categories,0))),"") -> 
B18: Landfill | C18: Climate change (kg CO2 eq) | D18: =IF('B1. Detailed assessment'!F81>0,('B1. Detailed assessment'!F81*kg_tonnes*INDEX(Impact_Destination,MATCH((D$5&", "&$B18),FLW_Destination_Impact,0),MATCH(Impact,Destination_Impact_Categories,0))),"") ->  | E18: =IF('B1. Detailed assessment'!G81>0,('B1. Detailed assessment'!G81*kg_tonnes*INDEX(Impact_Destination,MATCH((E$5&", "&$B18),FLW_Destination_Impact,0),MATCH(Impact,Destination_Impact_Categories,0))),"") ->  | F18: =IF('B1. Detailed assessment'!H81>0,('B1. Detailed assessment'!H81*kg_tonnes*INDEX(Impact_Destination,MATCH((F$5&", "&$B18),FLW_Destination_Impact,0),MATCH(Impact,Destination_Impact_Categories,0))),"") ->  | G18: =IF('B1. Detailed assessment'!I81>0,('B1. Detailed assessment'!I81*kg_tonnes*INDEX(Impact_Destination,MATCH((G$5&", "&$B18),FLW_Destination_Impact,0),MATCH(Impact,Destination_Impact_Categories,0))),"") ->  | H18: =IF('B1. Detailed assessment'!J81>0,('B1. Detailed assessment'!J81*kg_tonnes*INDEX(Impact_Destination,MATCH((H$5&", "&$B18),FLW_Destination_Impact,0),MATCH(Impact,Destination_Impact_Categories,0))),"") ->  | I18: =IF('B1. Detailed assessment'!K81>0,('B1. Detailed assessment'!K81*kg_tonnes*INDEX(Impact_Destination,MATCH((I$5&", "&$B18),FLW_Destination_Impact,0),MATCH(Impact,Destination_Impact_Categories,0))),"") -> 
B19: Refuse/discards/litter | C19: Climate change (kg CO2 eq) | D19: =IF('B1. Detailed assessment'!F82>0,('B1. Detailed assessment'!F82*kg_tonnes*INDEX(Impact_Destination,MATCH((D$5&", "&$B19),FLW_Destination_Impact,0),MATCH(Impact,Destination_Impact_Categories,0))),"") ->  | E19: =IF('B1. Detailed assessment'!G82>0,('B1. Detailed assessment'!G82*kg_tonnes*INDEX(Impact_Destination,MATCH((E$5&", "&$B19),FLW_Destination_Impact,0),MATCH(Impact,Destination_Impact_Categories,0))),"") ->  | F19: =IF('B1. Detailed assessment'!H82>0,('B1. Detailed assessment'!H82*kg_tonnes*INDEX(Impact_Destination,MATCH((F$5&", "&$B19),FLW_Destination_Impact,0),MATCH(Impact,Destination_Impact_Categories,0))),"") ->  | G19: =IF('B1. Detailed assessment'!I82>0,('B1. Detailed assessment'!I82*kg_tonnes*INDEX(Impact_Destination,MATCH((G$5&", "&$B19),FLW_Destination_Impact,0),MATCH(Impact,Destination_Impact_Categories,0))),"") ->  | H19: =IF('B1. Detailed assessment'!J82>0,('B1. Detailed assessment'!J82*kg_tonnes*INDEX(Impact_Destination,MATCH((H$5&", "&$B19),FLW_Destination_Impact,0),MATCH(Impact,Destination_Impact_Categories,0))),"") ->  | I19: =IF('B1. Detailed assessment'!K82>0,('B1. Detailed assessment'!K82*kg_tonnes*INDEX(Impact_Destination,MATCH((I$5&", "&$B19),FLW_Destination_Impact,0),MATCH(Impact,Destination_Impact_Categories,0))),"") -> 
B20: Sewer/wastewater treatment | C20: Climate change (kg CO2 eq) | D20: =IF('B1. Detailed assessment'!F83>0,('B1. Detailed assessment'!F83*kg_tonnes*INDEX(Impact_Destination,MATCH((D$5&", "&$B20),FLW_Destination_Impact,0),MATCH(Impact,Destination_Impact_Categories,0))),"") ->  | E20: =IF('B1. Detailed assessment'!G83>0,('B1. Detailed assessment'!G83*kg_tonnes*INDEX(Impact_Destination,MATCH((E$5&", "&$B20),FLW_Destination_Impact,0),MATCH(Impact,Destination_Impact_Categories,0))),"") ->  | F20: =IF('B1. Detailed assessment'!H83>0,('B1. Detailed assessment'!H83*kg_tonnes*INDEX(Impact_Destination,MATCH((F$5&", "&$B20),FLW_Destination_Impact,0),MATCH(Impact,Destination_Impact_Categories,0))),"") ->  | G20: =IF('B1. Detailed assessment'!I83>0,('B1. Detailed assessment'!I83*kg_tonnes*INDEX(Impact_Destination,MATCH((G$5&", "&$B20),FLW_Destination_Impact,0),MATCH(Impact,Destination_Impact_Categories,0))),"") ->  | H20: =IF('B1. Detailed assessment'!J83>0,('B1. Detailed assessment'!J83*kg_tonnes*INDEX(Impact_Destination,MATCH((H$5&", "&$B20),FLW_Destination_Impact,0),MATCH(Impact,Destination_Impact_Categories,0))),"") ->  | I20: =IF('B1. Detailed assessment'!K83>0,('B1. Detailed assessment'!K83*kg_tonnes*INDEX(Impact_Destination,MATCH((I$5&", "&$B20),FLW_Destination_Impact,0),MATCH(Impact,Destination_Impact_Categories,0))),"") -> 
B21: Unknown (landfill default) | C21: Climate change (kg CO2 eq) | D21: =IF(AgTotCat1='B1. Detailed assessment'!F70,"",('B1. Detailed assessment'!F71*kg_tonnes*INDEX(Impact_Destination,MATCH((D$5&", "&$B18),FLW_Destination_Impact,0),MATCH(Impact,Destination_Impact_Categories,0)))) ->  | E21: =IF(AgTotCat2='B1. Detailed assessment'!G70,"",('B1. Detailed assessment'!G71*kg_tonnes*INDEX(Impact_Destination,MATCH((E$5&", "&$B18),FLW_Destination_Impact,0),MATCH(Impact,Destination_Impact_Categories,0)))) ->  | F21: =IF(AgTotCat3='B1. Detailed assessment'!H70,"",('B1. Detailed assessment'!H71*kg_tonnes*INDEX(Impact_Destination,MATCH((F$5&", "&$B18),FLW_Destination_Impact,0),MATCH(Impact,Destination_Impact_Categories,0)))) ->  | G21: =IF(AgTotCat4='B1. Detailed assessment'!I70,"",('B1. Detailed assessment'!I71*kg_tonnes*INDEX(Impact_Destination,MATCH((G$5&", "&$B18),FLW_Destination_Impact,0),MATCH(Impact,Destination_Impact_Categories,0)))) ->  | H21: =IF(AgTotCat5='B1. Detailed assessment'!J70,"",('B1. Detailed assessment'!J71*kg_tonnes*INDEX(Impact_Destination,MATCH((H$5&", "&$B18),FLW_Destination_Impact,0),MATCH(Impact,Destination_Impact_Categories,0)))) ->  | I21: =IF(AgTotCat6='B1. Detailed assessment'!K70,"",('B1. Detailed assessment'!K71*kg_tonnes*INDEX(Impact_Destination,MATCH((I$5&", "&$B18),FLW_Destination_Impact,0),MATCH(Impact,Destination_Impact_Categories,0)))) ->  | J21: <-calculated equivalent to landfill
B26: 2b. | D26: 1 | E26: 2 | F26: 3 | G26: 4 | H26: 5 | I26: 6
B27: Post-harvest handling and storage | D27: =Food_cat1 -> <click to select> | E27: =Food_cat2 -> <click to select> | F27: =Food_cat3 -> <click to select> | G27: =Food_cat4 -> <click to select> | H27: =Food_cat5 -> <click to select> | I27: =Food_cat6 -> <click to select>
D28: =Food_cat1_region -> <click to select> | E28: =Food_cat2_region -> <click to select> | F28: =Food_cat3_region -> <click to select> | G28: =Food_cat4_region -> <click to select> | H28: =Food_cat5_region -> <click to select> | I28: =Food_cat6_region -> <click to select>
B29: Agricultural production impact | C29: =Impact -> Climate change (kg CO2 eq) | D29: =IF(ISNUMBER('B1. Detailed assessment'!F90),'B1. Detailed assessment'!F90*kg_tonnes*INDEX(Impact_Data,MATCH((D27&", "&D28),FLW_Region_Impact_Data,0),MATCH(Impact,Impact_Categories,0)),"") ->  | E29: =IF(ISNUMBER('B1. Detailed assessment'!G90),'B1. Detailed assessment'!G90*kg_tonnes*INDEX(Impact_Data,MATCH((E27&", "&E28),FLW_Region_Impact_Data,0),MATCH(Impact,Impact_Categories,0)),"") ->  | F29: =IF(ISNUMBER('B1. Detailed assessment'!H90),'B1. Detailed assessment'!H90*kg_tonnes*INDEX(Impact_Data,MATCH((F27&", "&F28),FLW_Region_Impact_Data,0),MATCH(Impact,Impact_Categories,0)),"") ->  | G29: =IF(ISNUMBER('B1. Detailed assessment'!I90),'B1. Detailed assessment'!I90*kg_tonnes*INDEX(Impact_Data,MATCH((G27&", "&G28),FLW_Region_Impact_Data,0),MATCH(Impact,Impact_Categories,0)),"") ->  | H29: =IF(ISNUMBER('B1. Detailed assessment'!J90),'B1. Detailed assessment'!J90*kg_tonnes*INDEX(Impact_Data,MATCH((H27&", "&H28),FLW_Region_Impact_Data,0),MATCH(Impact,Impact_Categories,0)),"") ->  | I29: =IF(ISNUMBER('B1. Detailed assessment'!K90),'B1. Detailed assessment'!K90*kg_tonnes*INDEX(Impact_Data,MATCH((I27&", "&I28),FLW_Region_Impact_Data,0),MATCH(Impact,Impact_Categories,0)),"") ->  | J29: <-these are the agricultural production impacts to produce the exact quantity of FLW enterred by the user for this stage.
B30: Additional life cycle impacts | C30: =Impact -> Climate change (kg CO2 eq) | D30: =IF(ISNUMBER(D29),INDEX(Impact_Life_Cycle,MATCH(D$27&", "&$B$27,FLW_Life_Cycle,0),MATCH(Impact,Impact_Categories_Life_Cycle,0))*PostHarvTotCat1*kg_tonnes,"") ->  | E30: =IF(ISNUMBER(E29),INDEX(Impact_Life_Cycle,MATCH(E$27&", "&$B$27,FLW_Life_Cycle,0),MATCH(Impact,Impact_Categories_Life_Cycle,0))*PostHarvTotCat2*kg_tonnes,"") ->  | F30: =IF(ISNUMBER(F29),INDEX(Impact_Life_Cycle,MATCH(F$27&", "&$B$27,FLW_Life_Cycle,0),MATCH(Impact,Impact_Categories_Life_Cycle,0))*PostHarvTotCat3*kg_tonnes,"") ->  | G30: =IF(ISNUMBER(G29),INDEX(Impact_Life_Cycle,MATCH(G$27&", "&$B$27,FLW_Life_Cycle,0),MATCH(Impact,Impact_Categories_Life_Cycle,0))*PostHarvTotCat4*kg_tonnes,"") ->  | H30: =IF(ISNUMBER(H29),INDEX(Impact_Life_Cycle,MATCH(H$27&", "&$B$27,FLW_Life_Cycle,0),MATCH(Impact,Impact_Categories_Life_Cycle,0))*PostHarvTotCat5*kg_tonnes,"") ->  | I30: =IF(ISNUMBER(I29),INDEX(Impact_Life_Cycle,MATCH(I$27&", "&$B$27,FLW_Life_Cycle,0),MATCH(Impact,Impact_Categories_Life_Cycle,0))*PostHarvTotCat6*kg_tonnes,"") ->  | J30: <-these are the additional "life cycle" impacts (only relevant for greenhouse gas emissions in this version of the calculator), related to the energy use associated with this life cycle stage.
B31: Additional impacts due to destination | C31: =Impact -> Climate change (kg CO2 eq) | D31: =IF(ISNUMBER(D29),SUM(D33:D43),"") ->  | E31: =IF(ISNUMBER(E29),SUM(E33:E43),"") ->  | J31: <-these are the additional impacts associated with disposing of the food losses
B32: Destination-specific results
B33: Animal feed | C33: =Impact -> Climate change (kg CO2 eq) | D33: =IF('B1. Detailed assessment'!F95>0,('B1. Detailed assessment'!F95*kg_tonnes*INDEX(Impact_Destination,MATCH((D$5&", "&$B33),FLW_Destination_Impact,0),MATCH(Impact,Destination_Impact_Categories,0))),"") ->  | E33: =IF('B1. Detailed assessment'!G95>0,('B1. Detailed assessment'!G95*kg_tonnes*INDEX(Impact_Destination,MATCH((E$5&", "&$B33),FLW_Destination_Impact,0),MATCH(Impact,Destination_Impact_Categories,0))),"") ->  | F33: =IF('B1. Detailed assessment'!H95>0,('B1. Detailed assessment'!H95*kg_tonnes*INDEX(Impact_Destination,MATCH((F$5&", "&$B33),FLW_Destination_Impact,0),MATCH(Impact,Destination_Impact_Categories,0))),"") ->  | G33: =IF('B1. Detailed assessment'!I95>0,('B1. Detailed assessment'!I95*kg_tonnes*INDEX(Impact_Destination,MATCH((G$5&", "&$B33),FLW_Destination_Impact,0),MATCH(Impact,Destination_Impact_Categories,0))),"") ->  | H33: =IF('B1. Detailed assessment'!J95>0,('B1. Detailed assessment'!J95*kg_tonnes*INDEX(Impact_Destination,MATCH((H$5&", "&$B33),FLW_Destination_Impact,0),MATCH(Impact,Destination_Impact_Categories,0))),"") ->  | I33: =IF('B1. Detailed assessment'!K95>0,('B1. Detailed assessment'!K95*kg_tonnes*INDEX(Impact_Destination,MATCH((I$5&", "&$B33),FLW_Destination_Impact,0),MATCH(Impact,Destination_Impact_Categories,0))),"") -> 
B34: Bio-based materials/biochemical processing | C34: Climate change (kg CO2 eq) | D34: =IF('B1. Detailed assessment'!F96>0,('B1. Detailed assessment'!F96*kg_tonnes*INDEX(Impact_Destination,MATCH((D$5&", "&$B34),FLW_Destination_Impact,0),MATCH(Impact,Destination_Impact_Categories,0))),"") ->  | E34: =IF('B1. Detailed assessment'!G96>0,('B1. Detailed assessment'!G96*kg_tonnes*INDEX(Impact_Destination,MATCH((E$5&", "&$B34),FLW_Destination_Impact,0),MATCH(Impact,Destination_Impact_Categories,0))),"") ->  | F34: =IF('B1. Detailed assessment'!H96>0,('B1. Detailed assessment'!H96*kg_tonnes*INDEX(Impact_Destination,MATCH((F$5&", "&$B34),FLW_Destination_Impact,0),MATCH(Impact,Destination_Impact_Categories,0))),"") ->  | G34: =IF('B1. Detailed assessment'!I96>0,('B1. Detailed assessment'!I96*kg_tonnes*INDEX(Impact_Destination,MATCH((G$5&", "&$B34),FLW_Destination_Impact,0),MATCH(Impact,Destination_Impact_Categories,0))),"") ->  | H34: =IF('B1. Detailed assessment'!J96>0,('B1. Detailed assessment'!J96*kg_tonnes*INDEX(Impact_Destination,MATCH((H$5&", "&$B34),FLW_Destination_Impact,0),MATCH(Impact,Destination_Impact_Categories,0))),"") ->  | I34: =IF('B1. Detailed assessment'!K96>0,('B1. Detailed assessment'!K96*kg_tonnes*INDEX(Impact_Destination,MATCH((I$5&", "&$B34),FLW_Destination_Impact,0),MATCH(Impact,Destination_Impact_Categories,0))),"") -> 
B35: Codigestion/anaerobic digestion | C35: Climate change (kg CO2 eq) | D35: =IF('B1. Detailed assessment'!F97>0,('B1. Detailed assessment'!F97*kg_tonnes*INDEX(Impact_Destination,MATCH((D$5&", "&$B35),FLW_Destination_Impact,0),MATCH(Impact,Destination_Impact_Categories,0))),"") ->  | E35: =IF('B1. Detailed assessment'!G97>0,('B1. Detailed assessment'!G97*kg_tonnes*INDEX(Impact_Destination,MATCH((E$5&", "&$B35),FLW_Destination_Impact,0),MATCH(Impact,Destination_Impact_Categories,0))),"") ->  | F35: =IF('B1. Detailed assessment'!H97>0,('B1. Detailed assessment'!H97*kg_tonnes*INDEX(Impact_Destination,MATCH((F$5&", "&$B35),FLW_Destination_Impact,0),MATCH(Impact,Destination_Impact_Categories,0))),"") ->  | G35: =IF('B1. Detailed assessment'!I97>0,('B1. Detailed assessment'!I97*kg_tonnes*INDEX(Impact_Destination,MATCH((G$5&", "&$B35),FLW_Destination_Impact,0),MATCH(Impact,Destination_Impact_Categories,0))),"") ->  | H35: =IF('B1. Detailed assessment'!J97>0,('B1. Detailed assessment'!J97*kg_tonnes*INDEX(Impact_Destination,MATCH((H$5&", "&$B35),FLW_Destination_Impact,0),MATCH(Impact,Destination_Impact_Categories,0))),"") ->  | I35: =IF('B1. Detailed assessment'!K97>0,('B1. Detailed assessment'!K97*kg_tonnes*INDEX(Impact_Destination,MATCH((I$5&", "&$B35),FLW_Destination_Impact,0),MATCH(Impact,Destination_Impact_Categories,0))),"") -> 
B36: Composting/aerobic processes | C36: Climate change (kg CO2 eq) | D36: =IF('B1. Detailed assessment'!F98>0,('B1. Detailed assessment'!F98*kg_tonnes*INDEX(Impact_Destination,MATCH((D$5&", "&$B36),FLW_Destination_Impact,0),MATCH(Impact,Destination_Impact_Categories,0))),"") ->  | E36: =IF('B1. Detailed assessment'!G98>0,('B1. Detailed assessment'!G98*kg_tonnes*INDEX(Impact_Destination,MATCH((E$5&", "&$B36),FLW_Destination_Impact,0),MATCH(Impact,Destination_Impact_Categories,0))),"") ->  | F36: =IF('B1. Detailed assessment'!H98>0,('B1. Detailed assessment'!H98*kg_tonnes*INDEX(Impact_Destination,MATCH((F$5&", "&$B36),FLW_Destination_Impact,0),MATCH(Impact,Destination_Impact_Categories,0))),"") ->  | G36: =IF('B1. Detailed assessment'!I98>0,('B1. Detailed assessment'!I98*kg_tonnes*INDEX(Impact_Destination,MATCH((G$5&", "&$B36),FLW_Destination_Impact,0),MATCH(Impact,Destination_Impact_Categories,0))),"") ->  | H36: =IF('B1. Detailed assessment'!J98>0,('B1. Detailed assessment'!J98*kg_tonnes*INDEX(Impact_Destination,MATCH((H$5&", "&$B36),FLW_Destination_Impact,0),MATCH(Impact,Destination_Impact_Categories,0))),"") ->  | I36: =IF('B1. Detailed assessment'!K98>0,('B1. Detailed assessment'!K98*kg_tonnes*INDEX(Impact_Destination,MATCH((I$5&", "&$B36),FLW_Destination_Impact,0),MATCH(Impact,Destination_Impact_Categories,0))),"") -> 
B37: Controlled combustion | C37: Climate change (kg CO2 eq) | D37: =IF('B1. Detailed assessment'!F99>0,('B1. Detailed assessment'!F99*kg_tonnes*INDEX(Impact_Destination,MATCH((D$5&", "&$B37),FLW_Destination_Impact,0),MATCH(Impact,Destination_Impact_Categories,0))),"") ->  | E37: =IF('B1. Detailed assessment'!G99>0,('B1. Detailed assessment'!G99*kg_tonnes*INDEX(Impact_Destination,MATCH((E$5&", "&$B37),FLW_Destination_Impact,0),MATCH(Impact,Destination_Impact_Categories,0))),"") ->  | F37: =IF('B1. Detailed assessment'!H99>0,('B1. Detailed assessment'!H99*kg_tonnes*INDEX(Impact_Destination,MATCH((F$5&", "&$B37),FLW_Destination_Impact,0),MATCH(Impact,Destination_Impact_Categories,0))),"") ->  | G37: =IF('B1. Detailed assessment'!I99>0,('B1. Detailed assessment'!I99*kg_tonnes*INDEX(Impact_Destination,MATCH((G$5&", "&$B37),FLW_Destination_Impact,0),MATCH(Impact,Destination_Impact_Categories,0))),"") ->  | H37: =IF('B1. Detailed assessment'!J99>0,('B1. Detailed assessment'!J99*kg_tonnes*INDEX(Impact_Destination,MATCH((H$5&", "&$B37),FLW_Destination_Impact,0),MATCH(Impact,Destination_Impact_Categories,0))),"") ->  | I37: =IF('B1. Detailed assessment'!K99>0,('B1. Detailed assessment'!K99*kg_tonnes*INDEX(Impact_Destination,MATCH((I$5&", "&$B37),FLW_Destination_Impact,0),MATCH(Impact,Destination_Impact_Categories,0))),"") -> 
B38: Land application | C38: Climate change (kg CO2 eq) | D38: =IF('B1. Detailed assessment'!F100>0,('B1. Detailed assessment'!F100*kg_tonnes*INDEX(Impact_Destination,MATCH((D$5&", "&$B38),FLW_Destination_Impact,0),MATCH(Impact,Destination_Impact_Categories,0))),"") ->  | E38: =IF('B1. Detailed assessment'!G100>0,('B1. Detailed assessment'!G100*kg_tonnes*INDEX(Impact_Destination,MATCH((E$5&", "&$B38),FLW_Destination_Impact,0),MATCH(Impact,Destination_Impact_Categories,0))),"") ->  | F38: =IF('B1. Detailed assessment'!H100>0,('B1. Detailed assessment'!H100*kg_tonnes*INDEX(Impact_Destination,MATCH((F$5&", "&$B38),FLW_Destination_Impact,0),MATCH(Impact,Destination_Impact_Categories,0))),"") ->  | G38: =IF('B1. Detailed assessment'!I100>0,('B1. Detailed assessment'!I100*kg_tonnes*INDEX(Impact_Destination,MATCH((G$5&", "&$B38),FLW_Destination_Impact,0),MATCH(Impact,Destination_Impact_Categories,0))),"") ->  | H38: =IF('B1. Detailed assessment'!J100>0,('B1. Detailed assessment'!J100*kg_tonnes*INDEX(Impact_Destination,MATCH((H$5&", "&$B38),FLW_Destination_Impact,0),MATCH(Impact,Destination_Impact_Categories,0))),"") ->  | I38: =IF('B1. Detailed assessment'!K100>0,('B1. Detailed assessment'!K100*kg_tonnes*INDEX(Impact_Destination,MATCH((I$5&", "&$B38),FLW_Destination_Impact,0),MATCH(Impact,Destination_Impact_Categories,0))),"") -> 
B39: Not harvested/plowed in | C39: Climate change (kg CO2 eq) | D39: =IF('B1. Detailed assessment'!F101>0,('B1. Detailed assessment'!F101*kg_tonnes*INDEX(Impact_Destination,MATCH((D$5&", "&$B39),FLW_Destination_Impact,0),MATCH(Impact,Destination_Impact_Categories,0))),"") ->  | E39: =IF('B1. Detailed assessment'!G101>0,('B1. Detailed assessment'!G101*kg_tonnes*INDEX(Impact_Destination,MATCH((E$5&", "&$B39),FLW_Destination_Impact,0),MATCH(Impact,Destination_Impact_Categories,0))),"") ->  | F39: =IF('B1. Detailed assessment'!H101>0,('B1. Detailed assessment'!H101*kg_tonnes*INDEX(Impact_Destination,MATCH((F$5&", "&$B39),FLW_Destination_Impact,0),MATCH(Impact,Destination_Impact_Categories,0))),"") ->  | G39: =IF('B1. Detailed assessment'!I101>0,('B1. Detailed assessment'!I101*kg_tonnes*INDEX(Impact_Destination,MATCH((G$5&", "&$B39),FLW_Destination_Impact,0),MATCH(Impact,Destination_Impact_Categories,0))),"") ->  | H39: =IF('B1. Detailed assessment'!J101>0,('B1. Detailed assessment'!J101*kg_tonnes*INDEX(Impact_Destination,MATCH((H$5&", "&$B39),FLW_Destination_Impact,0),MATCH(Impact,Destination_Impact_Categories,0))),"") ->  | I39: =IF('B1. Detailed assessment'!K101>0,('B1. Detailed assessment'!K101*kg_tonnes*INDEX(Impact_Destination,MATCH((I$5&", "&$B39),FLW_Destination_Impact,0),MATCH(Impact,Destination_Impact_Categories,0))),"") -> 
B40: Landfill | C40: Climate change (kg CO2 eq) | D40: =IF('B1. Detailed assessment'!F102>0,('B1. Detailed assessment'!F102*kg_tonnes*INDEX(Impact_Destination,MATCH((D$5&", "&$B40),FLW_Destination_Impact,0),MATCH(Impact,Destination_Impact_Categories,0))),"") ->  | E40: =IF('B1. Detailed assessment'!G102>0,('B1. Detailed assessment'!G102*kg_tonnes*INDEX(Impact_Destination,MATCH((E$5&", "&$B40),FLW_Destination_Impact,0),MATCH(Impact,Destination_Impact_Categories,0))),"") ->  | F40: =IF('B1. Detailed assessment'!H102>0,('B1. Detailed assessment'!H102*kg_tonnes*INDEX(Impact_Destination,MATCH((F$5&", "&$B40),FLW_Destination_Impact,0),MATCH(Impact,Destination_Impact_Categories,0))),"") ->  | G40: =IF('B1. Detailed assessment'!I102>0,('B1. Detailed assessment'!I102*kg_tonnes*INDEX(Impact_Destination,MATCH((G$5&", "&$B40),FLW_Destination_Impact,0),MATCH(Impact,Destination_Impact_Categories,0))),"") ->  | H40: =IF('B1. Detailed assessment'!J102>0,('B1. Detailed assessment'!J102*kg_tonnes*INDEX(Impact_Destination,MATCH((H$5&", "&$B40),FLW_Destination_Impact,0),MATCH(Impact,Destination_Impact_Categories,0))),"") ->  | I40: =IF('B1. Detailed assessment'!K102>0,('B1. Detailed assessment'!K102*kg_tonnes*INDEX(Impact_Destination,MATCH((I$5&", "&$B40),FLW_Destination_Impact,0),MATCH(Impact,Destination_Impact_Categories,0))),"") -> 
B41: Refuse/discards/litter | C41: Climate change (kg CO2 eq) | D41: =IF('B1. Detailed assessment'!F103>0,('B1. Detailed assessment'!F103*kg_tonnes*INDEX(Impact_Destination,MATCH((D$5&", "&$B41),FLW_Destination_Impact,0),MATCH(Impact,Destination_Impact_Categories,0))),"") ->  | E41: =IF('B1. Detailed assessment'!G103>0,('B1. Detailed assessment'!G103*kg_tonnes*INDEX(Impact_Destination,MATCH((E$5&", "&$B41),FLW_Destination_Impact,0),MATCH(Impact,Destination_Impact_Categories,0))),"") ->  | F41: =IF('B1. Detailed assessment'!H103>0,('B1. Detailed assessment'!H103*kg_tonnes*INDEX(Impact_Destination,MATCH((F$5&", "&$B41),FLW_Destination_Impact,0),MATCH(Impact,Destination_Impact_Categories,0))),"") ->  | G41: =IF('B1. Detailed assessment'!I103>0,('B1. Detailed assessment'!I103*kg_tonnes*INDEX(Impact_Destination,MATCH((G$5&", "&$B41),FLW_Destination_Impact,0),MATCH(Impact,Destination_Impact_Categories,0))),"") ->  | H41: =IF('B1. Detailed assessment'!J103>0,('B1. Detailed assessment'!J103*kg_tonnes*INDEX(Impact_Destination,MATCH((H$5&", "&$B41),FLW_Destination_Impact,0),MATCH(Impact,Destination_Impact_Categories,0))),"") ->  | I41: =IF('B1. Detailed assessment'!K103>0,('B1. Detailed assessment'!K103*kg_tonnes*INDEX(Impact_Destination,MATCH((I$5&", "&$B41),FLW_Destination_Impact,0),MATCH(Impact,Destination_Impact_Categories,0))),"") -> 
B42: Sewer/wastewater treatment | C42: Climate change (kg CO2 eq) | D42: =IF('B1. Detailed assessment'!F104>0,('B1. Detailed assessment'!F104*kg_tonnes*INDEX(Impact_Destination,MATCH((D$5&", "&$B42),FLW_Destination_Impact,0),MATCH(Impact,Destination_Impact_Categories,0))),"") ->  | E42: =IF('B1. Detailed assessment'!G104>0,('B1. Detailed assessment'!G104*kg_tonnes*INDEX(Impact_Destination,MATCH((E$5&", "&$B42),FLW_Destination_Impact,0),MATCH(Impact,Destination_Impact_Categories,0))),"") ->  | F42: =IF('B1. Detailed assessment'!H104>0,('B1. Detailed assessment'!H104*kg_tonnes*INDEX(Impact_Destination,MATCH((F$5&", "&$B42),FLW_Destination_Impact,0),MATCH(Impact,Destination_Impact_Categories,0))),"") ->  | G42: =IF('B1. Detailed assessment'!I104>0,('B1. Detailed assessment'!I104*kg_tonnes*INDEX(Impact_Destination,MATCH((G$5&", "&$B42),FLW_Destination_Impact,0),MATCH(Impact,Destination_Impact_Categories,0))),"") ->  | H42: =IF('B1. Detailed assessment'!J104>0,('B1. Detailed assessment'!J104*kg_tonnes*INDEX(Impact_Destination,MATCH((H$5&", "&$B42),FLW_Destination_Impact,0),MATCH(Impact,Destination_Impact_Categories,0))),"") ->  | I42: =IF('B1. Detailed assessment'!K104>0,('B1. Detailed assessment'!K104*kg_tonnes*INDEX(Impact_Destination,MATCH((I$5&", "&$B42),FLW_Destination_Impact,0),MATCH(Impact,Destination_Impact_Categories,0))),"") -> 
B43: Unknown (landfill default) | C43: Climate change (kg CO2 eq) | D43: =IF(PostHarvTotCat1='B1. Detailed assessment'!F91,"",('B1. Detailed assessment'!F92*kg_tonnes*INDEX(Impact_Destination,MATCH((D$27&", "&$B40),FLW_Destination_Impact,0),MATCH(Impact,Destination_Impact_Categories,0)))) ->  | E43: =IF(PostHarvTotCat2='B1. Detailed assessment'!G91,"",('B1. Detailed assessment'!G92*kg_tonnes*INDEX(Impact_Destination,MATCH((E$27&", "&$B40),FLW_Destination_Impact,0),MATCH(Impact,Destination_Impact_Categories,0)))) ->  | F43: =IF(PostHarvTotCat3='B1. Detailed assessment'!H91,"",('B1. Detailed assessment'!H92*kg_tonnes*INDEX(Impact_Destination,MATCH((F$27&", "&$B40),FLW_Destination_Impact,0),MATCH(Impact,Destination_Impact_Categories,0)))) ->  | G43: =IF(PostHarvTotCat4='B1. Detailed assessment'!I91,"",('B1. Detailed assessment'!I92*kg_tonnes*INDEX(Impact_Destination,MATCH((G$27&", "&$B40),FLW_Destination_Impact,0),MATCH(Impact,Destination_Impact_Categories,0)))) ->  | H43: =IF(PostHarvTotCat5='B1. Detailed assessment'!J91,"",('B1. Detailed assessment'!J92*kg_tonnes*INDEX(Impact_Destination,MATCH((H$27&", "&$B40),FLW_Destination_Impact,0),MATCH(Impact,Destination_Impact_Categories,0)))) ->  | I43: =IF(PostHarvTotCat6='B1. Detailed assessment'!K91,"",('B1. Detailed assessment'!K92*kg_tonnes*INDEX(Impact_Destination,MATCH((I$27&", "&$B40),FLW_Destination_Impact,0),MATCH(Impact,Destination_Impact_Categories,0)))) -> 
B48: 2c. | D48: 1 | E48: 2 | F48: 3 | G48: 4 | H48: 5 | I48: 6
B49: Processing and packaging | D49: =Food_cat1 -> <click to select> | E49: =Food_cat2 -> <click to select> | F49: =Food_cat3 -> <click to select> | G49: =Food_cat4 -> <click to select> | H49: =Food_cat5 -> <click to select> | I49: =Food_cat6 -> <click to select>
D50: =Food_cat1_region -> <click to select> | E50: =Food_cat2_region -> <click to select> | F50: =Food_cat3_region -> <click to select> | G50: =Food_cat4_region -> <click to select> | H50: =Food_cat5_region -> <click to select> | I50: =Food_cat6_region -> <click to select>
B51: Agricultural production impact | C51: =Impact -> Climate change (kg CO2 eq) | D51: =IF(ISNUMBER('B1. Detailed assessment'!F111),'B1. Detailed assessment'!F111*kg_tonnes*INDEX(Impact_Data,MATCH((D49&", "&D50),FLW_Region_Impact_Data,0),MATCH(Impact,Impact_Categories,0)),"") ->  | E51: =IF(ISNUMBER('B1. Detailed assessment'!G111),'B1. Detailed assessment'!G111*kg_tonnes*INDEX(Impact_Data,MATCH((E49&", "&E50),FLW_Region_Impact_Data,0),MATCH(Impact,Impact_Categories,0)),"") ->  | F51: =IF(ISNUMBER('B1. Detailed assessment'!H111),'B1. Detailed assessment'!H111*kg_tonnes*INDEX(Impact_Data,MATCH((F49&", "&F50),FLW_Region_Impact_Data,0),MATCH(Impact,Impact_Categories,0)),"") ->  | G51: =IF(ISNUMBER('B1. Detailed assessment'!I111),'B1. Detailed assessment'!I111*kg_tonnes*INDEX(Impact_Data,MATCH((G49&", "&G50),FLW_Region_Impact_Data,0),MATCH(Impact,Impact_Categories,0)),"") ->  | H51: =IF(ISNUMBER('B1. Detailed assessment'!J111),'B1. Detailed assessment'!J111*kg_tonnes*INDEX(Impact_Data,MATCH((H49&", "&H50),FLW_Region_Impact_Data,0),MATCH(Impact,Impact_Categories,0)),"") ->  | I51: =IF(ISNUMBER('B1. Detailed assessment'!K111),'B1. Detailed assessment'!K111*kg_tonnes*INDEX(Impact_Data,MATCH((I49&", "&I50),FLW_Region_Impact_Data,0),MATCH(Impact,Impact_Categories,0)),"") -> 
B52: Additional life cycle impacts | C52: =Impact -> Climate change (kg CO2 eq) | D52: =IF(ISNUMBER(D51),INDEX(Impact_Life_Cycle,MATCH(D$49&", "&$B$49,FLW_Life_Cycle,0),MATCH(Impact,Impact_Categories_Life_Cycle,0))*ProcTotCat1*kg_tonnes,"") ->  | E52: =IF(ISNUMBER(E51),INDEX(Impact_Life_Cycle,MATCH(E$49&", "&$B$49,FLW_Life_Cycle,0),MATCH(Impact,Impact_Categories_Life_Cycle,0))*ProcTotCat2*kg_tonnes,"") ->  | F52: =IF(ISNUMBER(F51),INDEX(Impact_Life_Cycle,MATCH(F$49&", "&$B$49,FLW_Life_Cycle,0),MATCH(Impact,Impact_Categories_Life_Cycle,0))*ProcTotCat3*kg_tonnes,"") ->  | G52: =IF(ISNUMBER(G51),INDEX(Impact_Life_Cycle,MATCH(G$49&", "&$B$49,FLW_Life_Cycle,0),MATCH(Impact,Impact_Categories_Life_Cycle,0))*ProcTotCat4*kg_tonnes,"") ->  | H52: =IF(ISNUMBER(H51),INDEX(Impact_Life_Cycle,MATCH(H$49&", "&$B$49,FLW_Life_Cycle,0),MATCH(Impact,Impact_Categories_Life_Cycle,0))*ProcTotCat5*kg_tonnes,"") ->  | I52: =IF(ISNUMBER(I51),INDEX(Impact_Life_Cycle,MATCH(I$49&", "&$B$49,FLW_Life_Cycle,0),MATCH(Impact,Impact_Categories_Life_Cycle,0))*ProcTotCat6*kg_tonnes,"") -> 
B53: Additional impacts due to destination | C53: =Impact -> Climate change (kg CO2 eq) | D53: =IF(ISNUMBER(D51),SUM(D55:D65),"") ->  | E53: =IF(ISNUMBER(E51),SUM(E55:E65),"") -> 
B54: Destination-specific results
B55: Animal feed | C55: =Impact -> Climate change (kg CO2 eq) | D55: =IF('B1. Detailed assessment'!F116>0,('B1. Detailed assessment'!F116*kg_tonnes*INDEX(Impact_Destination,MATCH((D$5&", "&$B55),FLW_Destination_Impact,0),MATCH(Impact,Destination_Impact_Categories,0))),"") ->  | E55: =IF('B1. Detailed assessment'!G116>0,('B1. Detailed assessment'!G116*kg_tonnes*INDEX(Impact_Destination,MATCH((E$5&", "&$B55),FLW_Destination_Impact,0),MATCH(Impact,Destination_Impact_Categories,0))),"") ->  | F55: =IF('B1. Detailed assessment'!H116>0,('B1. Detailed assessment'!H116*kg_tonnes*INDEX(Impact_Destination,MATCH((F$5&", "&$B55),FLW_Destination_Impact,0),MATCH(Impact,Destination_Impact_Categories,0))),"") ->  | G55: =IF('B1. Detailed assessment'!I116>0,('B1. Detailed assessment'!I116*kg_tonnes*INDEX(Impact_Destination,MATCH((G$5&", "&$B55),FLW_Destination_Impact,0),MATCH(Impact,Destination_Impact_Categories,0))),"") ->  | H55: =IF('B1. Detailed assessment'!J116>0,('B1. Detailed assessment'!J116*kg_tonnes*INDEX(Impact_Destination,MATCH((H$5&", "&$B55),FLW_Destination_Impact,0),MATCH(Impact,Destination_Impact_Categories,0))),"") ->  | I55: =IF('B1. Detailed assessment'!K116>0,('B1. Detailed assessment'!K116*kg_tonnes*INDEX(Impact_Destination,MATCH((I$5&", "&$B55),FLW_Destination_Impact,0),MATCH(Impact,Destination_Impact_Categories,0))),"") -> 
B56: Bio-based materials/biochemical processing | C56: Climate change (kg CO2 eq) | D56: =IF('B1. Detailed assessment'!F117>0,('B1. Detailed assessment'!F117*kg_tonnes*INDEX(Impact_Destination,MATCH((D$5&", "&$B56),FLW_Destination_Impact,0),MATCH(Impact,Destination_Impact_Categories,0))),"") ->  | E56: =IF('B1. Detailed assessment'!G117>0,('B1. Detailed assessment'!G117*kg_tonnes*INDEX(Impact_Destination,MATCH((E$5&", "&$B56),FLW_Destination_Impact,0),MATCH(Impact,Destination_Impact_Categories,0))),"") ->  | F56: =IF('B1. Detailed assessment'!H117>0,('B1. Detailed assessment'!H117*kg_tonnes*INDEX(Impact_Destination,MATCH((F$5&", "&$B56),FLW_Destination_Impact,0),MATCH(Impact,Destination_Impact_Categories,0))),"") ->  | G56: =IF('B1. Detailed assessment'!I117>0,('B1. Detailed assessment'!I117*kg_tonnes*INDEX(Impact_Destination,MATCH((G$5&", "&$B56),FLW_Destination_Impact,0),MATCH(Impact,Destination_Impact_Categories,0))),"") ->  | H56: =IF('B1. Detailed assessment'!J117>0,('B1. Detailed assessment'!J117*kg_tonnes*INDEX(Impact_Destination,MATCH((H$5&", "&$B56),FLW_Destination_Impact,0),MATCH(Impact,Destination_Impact_Categories,0))),"") ->  | I56: =IF('B1. Detailed assessment'!K117>0,('B1. Detailed assessment'!K117*kg_tonnes*INDEX(Impact_Destination,MATCH((I$5&", "&$B56),FLW_Destination_Impact,0),MATCH(Impact,Destination_Impact_Categories,0))),"") -> 
B57: Codigestion/anaerobic digestion | C57: Climate change (kg CO2 eq) | D57: =IF('B1. Detailed assessment'!F118>0,('B1. Detailed assessment'!F118*kg_tonnes*INDEX(Impact_Destination,MATCH((D$5&", "&$B57),FLW_Destination_Impact,0),MATCH(Impact,Destination_Impact_Categories,0))),"") ->  | E57: =IF('B1. Detailed assessment'!G118>0,('B1. Detailed assessment'!G118*kg_tonnes*INDEX(Impact_Destination,MATCH((E$5&", "&$B57),FLW_Destination_Impact,0),MATCH(Impact,Destination_Impact_Categories,0))),"") ->  | F57: =IF('B1. Detailed assessment'!H118>0,('B1. Detailed assessment'!H118*kg_tonnes*INDEX(Impact_Destination,MATCH((F$5&", "&$B57),FLW_Destination_Impact,0),MATCH(Impact,Destination_Impact_Categories,0))),"") ->  | G57: =IF('B1. Detailed assessment'!I118>0,('B1. Detailed assessment'!I118*kg_tonnes*INDEX(Impact_Destination,MATCH((G$5&", "&$B57),FLW_Destination_Impact,0),MATCH(Impact,Destination_Impact_Categories,0))),"") ->  | H57: =IF('B1. Detailed assessment'!J118>0,('B1. Detailed assessment'!J118*kg_tonnes*INDEX(Impact_Destination,MATCH((H$5&", "&$B57),FLW_Destination_Impact,0),MATCH(Impact,Destination_Impact_Categories,0))),"") ->  | I57: =IF('B1. Detailed assessment'!K118>0,('B1. Detailed assessment'!K118*kg_tonnes*INDEX(Impact_Destination,MATCH((I$5&", "&$B57),FLW_Destination_Impact,0),MATCH(Impact,Destination_Impact_Categories,0))),"") -> 
B58: Composting/aerobic processes | C58: Climate change (kg CO2 eq) | D58: =IF('B1. Detailed assessment'!F119>0,('B1. Detailed assessment'!F119*kg_tonnes*INDEX(Impact_Destination,MATCH((D$5&", "&$B58),FLW_Destination_Impact,0),MATCH(Impact,Destination_Impact_Categories,0))),"") ->  | E58: =IF('B1. Detailed assessment'!G119>0,('B1. Detailed assessment'!G119*kg_tonnes*INDEX(Impact_Destination,MATCH((E$5&", "&$B58),FLW_Destination_Impact,0),MATCH(Impact,Destination_Impact_Categories,0))),"") ->  | F58: =IF('B1. Detailed assessment'!H119>0,('B1. Detailed assessment'!H119*kg_tonnes*INDEX(Impact_Destination,MATCH((F$5&", "&$B58),FLW_Destination_Impact,0),MATCH(Impact,Destination_Impact_Categories,0))),"") ->  | G58: =IF('B1. Detailed assessment'!I119>0,('B1. Detailed assessment'!I119*kg_tonnes*INDEX(Impact_Destination,MATCH((G$5&", "&$B58),FLW_Destination_Impact,0),MATCH(Impact,Destination_Impact_Categories,0))),"") ->  | H58: =IF('B1. Detailed assessment'!J119>0,('B1. Detailed assessment'!J119*kg_tonnes*INDEX(Impact_Destination,MATCH((H$5&", "&$B58),FLW_Destination_Impact,0),MATCH(Impact,Destination_Impact_Categories,0))),"") ->  | I58: =IF('B1. Detailed assessment'!K119>0,('B1. Detailed assessment'!K119*kg_tonnes*INDEX(Impact_Destination,MATCH((I$5&", "&$B58),FLW_Destination_Impact,0),MATCH(Impact,Destination_Impact_Categories,0))),"") -> 
B59: Controlled combustion | C59: Climate change (kg CO2 eq) | D59: =IF('B1. Detailed assessment'!F120>0,('B1. Detailed assessment'!F120*kg_tonnes*INDEX(Impact_Destination,MATCH((D$5&", "&$B59),FLW_Destination_Impact,0),MATCH(Impact,Destination_Impact_Categories,0))),"") ->  | E59: =IF('B1. Detailed assessment'!G120>0,('B1. Detailed assessment'!G120*kg_tonnes*INDEX(Impact_Destination,MATCH((E$5&", "&$B59),FLW_Destination_Impact,0),MATCH(Impact,Destination_Impact_Categories,0))),"") ->  | F59: =IF('B1. Detailed assessment'!H120>0,('B1. Detailed assessment'!H120*kg_tonnes*INDEX(Impact_Destination,MATCH((F$5&", "&$B59),FLW_Destination_Impact,0),MATCH(Impact,Destination_Impact_Categories,0))),"") ->  | G59: =IF('B1. Detailed assessment'!I120>0,('B1. Detailed assessment'!I120*kg_tonnes*INDEX(Impact_Destination,MATCH((G$5&", "&$B59),FLW_Destination_Impact,0),MATCH(Impact,Destination_Impact_Categories,0))),"") ->  | H59: =IF('B1. Detailed assessment'!J120>0,('B1. Detailed assessment'!J120*kg_tonnes*INDEX(Impact_Destination,MATCH((H$5&", "&$B59),FLW_Destination_Impact,0),MATCH(Impact,Destination_Impact_Categories,0))),"") ->  | I59: =IF('B1. Detailed assessment'!K120>0,('B1. Detailed assessment'!K120*kg_tonnes*INDEX(Impact_Destination,MATCH((I$5&", "&$B59),FLW_Destination_Impact,0),MATCH(Impact,Destination_Impact_Categories,0))),"") -> 
B60: Land application | C60: Climate change (kg CO2 eq) | D60: =IF('B1. Detailed assessment'!F121>0,('B1. Detailed assessment'!F121*kg_tonnes*INDEX(Impact_Destination,MATCH((D$5&", "&$B60),FLW_Destination_Impact,0),MATCH(Impact,Destination_Impact_Categories,0))),"") ->  | E60: =IF('B1. Detailed assessment'!G121>0,('B1. Detailed assessment'!G121*kg_tonnes*INDEX(Impact_Destination,MATCH((E$5&", "&$B60),FLW_Destination_Impact,0),MATCH(Impact,Destination_Impact_Categories,0))),"") ->  | F60: =IF('B1. Detailed assessment'!H121>0,('B1. Detailed assessment'!H121*kg_tonnes*INDEX(Impact_Destination,MATCH((F$5&", "&$B60),FLW_Destination_Impact,0),MATCH(Impact,Destination_Impact_Categories,0))),"") ->  | G60: =IF('B1. Detailed assessment'!I121>0,('B1. Detailed assessment'!I121*kg_tonnes*INDEX(Impact_Destination,MATCH((G$5&", "&$B60),FLW_Destination_Impact,0),MATCH(Impact,Destination_Impact_Categories,0))),"") ->  | H60: =IF('B1. Detailed assessment'!J121>0,('B1. Detailed assessment'!J121*kg_tonnes*INDEX(Impact_Destination,MATCH((H$5&", "&$B60),FLW_Destination_Impact,0),MATCH(Impact,Destination_Impact_Categories,0))),"") ->  | I60: =IF('B1. Detailed assessment'!K121>0,('B1. Detailed assessment'!K121*kg_tonnes*INDEX(Impact_Destination,MATCH((I$5&", "&$B60),FLW_Destination_Impact,0),MATCH(Impact,Destination_Impact_Categories,0))),"") -> 
B61: Not harvested/plowed in | C61: Climate change (kg CO2 eq) | D61: =IF('B1. Detailed assessment'!F122>0,('B1. Detailed assessment'!F122*kg_tonnes*INDEX(Impact_Destination,MATCH((D$5&", "&$B61),FLW_Destination_Impact,0),MATCH(Impact,Destination_Impact_Categories,0))),"") ->  | E61: =IF('B1. Detailed assessment'!G122>0,('B1. Detailed assessment'!G122*kg_tonnes*INDEX(Impact_Destination,MATCH((E$5&", "&$B61),FLW_Destination_Impact,0),MATCH(Impact,Destination_Impact_Categories,0))),"") ->  | F61: =IF('B1. Detailed assessment'!H122>0,('B1. Detailed assessment'!H122*kg_tonnes*INDEX(Impact_Destination,MATCH((F$5&", "&$B61),FLW_Destination_Impact,0),MATCH(Impact,Destination_Impact_Categories,0))),"") ->  | G61: =IF('B1. Detailed assessment'!I122>0,('B1. Detailed assessment'!I122*kg_tonnes*INDEX(Impact_Destination,MATCH((G$5&", "&$B61),FLW_Destination_Impact,0),MATCH(Impact,Destination_Impact_Categories,0))),"") ->  | H61: =IF('B1. Detailed assessment'!J122>0,('B1. Detailed assessment'!J122*kg_tonnes*INDEX(Impact_Destination,MATCH((H$5&", "&$B61),FLW_Destination_Impact,0),MATCH(Impact,Destination_Impact_Categories,0))),"") ->  | I61: =IF('B1. Detailed assessment'!K122>0,('B1. Detailed assessment'!K122*kg_tonnes*INDEX(Impact_Destination,MATCH((I$5&", "&$B61),FLW_Destination_Impact,0),MATCH(Impact,Destination_Impact_Categories,0))),"") -> 
B62: Landfill | C62: Climate change (kg CO2 eq) | D62: =IF('B1. Detailed assessment'!F123>0,('B1. Detailed assessment'!F123*kg_tonnes*INDEX(Impact_Destination,MATCH((D$5&", "&$B62),FLW_Destination_Impact,0),MATCH(Impact,Destination_Impact_Categories,0))),"") ->  | E62: =IF('B1. Detailed assessment'!G123>0,('B1. Detailed assessment'!G123*kg_tonnes*INDEX(Impact_Destination,MATCH((E$5&", "&$B62),FLW_Destination_Impact,0),MATCH(Impact,Destination_Impact_Categories,0))),"") ->  | F62: =IF('B1. Detailed assessment'!H123>0,('B1. Detailed assessment'!H123*kg_tonnes*INDEX(Impact_Destination,MATCH((F$5&", "&$B62),FLW_Destination_Impact,0),MATCH(Impact,Destination_Impact_Categories,0))),"") ->  | G62: =IF('B1. Detailed assessment'!I123>0,('B1. Detailed assessment'!I123*kg_tonnes*INDEX(Impact_Destination,MATCH((G$5&", "&$B62),FLW_Destination_Impact,0),MATCH(Impact,Destination_Impact_Categories,0))),"") ->  | H62: =IF('B1. Detailed assessment'!J123>0,('B1. Detailed assessment'!J123*kg_tonnes*INDEX(Impact_Destination,MATCH((H$5&", "&$B62),FLW_Destination_Impact,0),MATCH(Impact,Destination_Impact_Categories,0))),"") ->  | I62: =IF('B1. Detailed assessment'!K123>0,('B1. Detailed assessment'!K123*kg_tonnes*INDEX(Impact_Destination,MATCH((I$5&", "&$B62),FLW_Destination_Impact,0),MATCH(Impact,Destination_Impact_Categories,0))),"") -> 
B63: Refuse/discards/litter | C63: Climate change (kg CO2 eq) | D63: =IF('B1. Detailed assessment'!F124>0,('B1. Detailed assessment'!F124*kg_tonnes*INDEX(Impact_Destination,MATCH((D$5&", "&$B63),FLW_Destination_Impact,0),MATCH(Impact,Destination_Impact_Categories,0))),"") ->  | E63: =IF('B1. Detailed assessment'!G124>0,('B1. Detailed assessment'!G124*kg_tonnes*INDEX(Impact_Destination,MATCH((E$5&", "&$B63),FLW_Destination_Impact,0),MATCH(Impact,Destination_Impact_Categories,0))),"") ->  | F63: =IF('B1. Detailed assessment'!H124>0,('B1. Detailed assessment'!H124*kg_tonnes*INDEX(Impact_Destination,MATCH((F$5&", "&$B63),FLW_Destination_Impact,0),MATCH(Impact,Destination_Impact_Categories,0))),"") ->  | G63: =IF('B1. Detailed assessment'!I124>0,('B1. Detailed assessment'!I124*kg_tonnes*INDEX(Impact_Destination,MATCH((G$5&", "&$B63),FLW_Destination_Impact,0),MATCH(Impact,Destination_Impact_Categories,0))),"") ->  | H63: =IF('B1. Detailed assessment'!J124>0,('B1. Detailed assessment'!J124*kg_tonnes*INDEX(Impact_Destination,MATCH((H$5&", "&$B63),FLW_Destination_Impact,0),MATCH(Impact,Destination_Impact_Categories,0))),"") ->  | I63: =IF('B1. Detailed assessment'!K124>0,('B1. Detailed assessment'!K124*kg_tonnes*INDEX(Impact_Destination,MATCH((I$5&", "&$B63),FLW_Destination_Impact,0),MATCH(Impact,Destination_Impact_Categories,0))),"") -> 
B64: Sewer/wastewater treatment | C64: Climate change (kg CO2 eq) | D64: =IF('B1. Detailed assessment'!F125>0,('B1. Detailed assessment'!F125*kg_tonnes*INDEX(Impact_Destination,MATCH((D$5&", "&$B64),FLW_Destination_Impact,0),MATCH(Impact,Destination_Impact_Categories,0))),"") ->  | E64: =IF('B1. Detailed assessment'!G125>0,('B1. Detailed assessment'!G125*kg_tonnes*INDEX(Impact_Destination,MATCH((E$5&", "&$B64),FLW_Destination_Impact,0),MATCH(Impact,Destination_Impact_Categories,0))),"") ->  | F64: =IF('B1. Detailed assessment'!H125>0,('B1. Detailed assessment'!H125*kg_tonnes*INDEX(Impact_Destination,MATCH((F$5&", "&$B64),FLW_Destination_Impact,0),MATCH(Impact,Destination_Impact_Categories,0))),"") ->  | G64: =IF('B1. Detailed assessment'!I125>0,('B1. Detailed assessment'!I125*kg_tonnes*INDEX(Impact_Destination,MATCH((G$5&", "&$B64),FLW_Destination_Impact,0),MATCH(Impact,Destination_Impact_Categories,0))),"") ->  | H64: =IF('B1. Detailed assessment'!J125>0,('B1. Detailed assessment'!J125*kg_tonnes*INDEX(Impact_Destination,MATCH((H$5&", "&$B64),FLW_Destination_Impact,0),MATCH(Impact,Destination_Impact_Categories,0))),"") ->  | I64: =IF('B1. Detailed assessment'!K125>0,('B1. Detailed assessment'!K125*kg_tonnes*INDEX(Impact_Destination,MATCH((I$5&", "&$B64),FLW_Destination_Impact,0),MATCH(Impact,Destination_Impact_Categories,0))),"") -> 
B65: Unknown (landfill default) | C65: Climate change (kg CO2 eq) | D65: =IF(ProcTotCat1='B1. Detailed assessment'!F112,"",('B1. Detailed assessment'!F113*kg_tonnes*INDEX(Impact_Destination,MATCH((D$27&", "&$B62),FLW_Destination_Impact,0),MATCH(Impact,Destination_Impact_Categories,0)))) ->  | E65: =IF(ProcTotCat2='B1. Detailed assessment'!G112,"",('B1. Detailed assessment'!G113*kg_tonnes*INDEX(Impact_Destination,MATCH((E$27&", "&$B62),FLW_Destination_Impact,0),MATCH(Impact,Destination_Impact_Categories,0)))) ->  | F65: =IF(ProcTotCat3='B1. Detailed assessment'!H112,"",('B1. Detailed assessment'!H113*kg_tonnes*INDEX(Impact_Destination,MATCH((F$27&", "&$B62),FLW_Destination_Impact,0),MATCH(Impact,Destination_Impact_Categories,0)))) ->  | G65: =IF(ProcTotCat4='B1. Detailed assessment'!I112,"",('B1. Detailed assessment'!I113*kg_tonnes*INDEX(Impact_Destination,MATCH((G$27&", "&$B62),FLW_Destination_Impact,0),MATCH(Impact,Destination_Impact_Categories,0)))) ->  | H65: =IF(ProcTotCat5='B1. Detailed assessment'!J112,"",('B1. Detailed assessment'!J113*kg_tonnes*INDEX(Impact_Destination,MATCH((H$27&", "&$B62),FLW_Destination_Impact,0),MATCH(Impact,Destination_Impact_Categories,0)))) ->  | I65: =IF(ProcTotCat6='B1. Detailed assessment'!K112,"",('B1. Detailed assessment'!K113*kg_tonnes*INDEX(Impact_Destination,MATCH((I$27&", "&$B62),FLW_Destination_Impact,0),MATCH(Impact,Destination_Impact_Categories,0)))) -> 
B70: 2d. | D70: 1 | E70: 2 | F70: 3 | G70: 4 | H70: 5 | I70: 6
B71: Distribution | D71: =Food_cat1 -> <click to select> | E71: =Food_cat2 -> <click to select> | F71: =Food_cat3 -> <click to select> | G71: =Food_cat4 -> <click to select> | H71: =Food_cat5 -> <click to select> | I71: =Food_cat6 -> <click to select>
D72: =Food_cat1_region -> <click to select> | E72: =Food_cat2_region -> <click to select> | F72: =Food_cat3_region -> <click to select> | G72: =Food_cat4_region -> <click to select> | H72: =Food_cat5_region -> <click to select> | I72: =Food_cat6_region -> <click to select>
B73: Agricultural production impact | C73: =Impact -> Climate change (kg CO2 eq) | D73: =IF(ISNUMBER('B1. Detailed assessment'!F132),'B1. Detailed assessment'!F132*kg_tonnes*INDEX(Impact_Data,MATCH((D71&", "&D72),FLW_Region_Impact_Data,0),MATCH(Impact,Impact_Categories,0)),"") ->  | E73: =IF(ISNUMBER('B1. Detailed assessment'!G132),'B1. Detailed assessment'!G132*kg_tonnes*INDEX(Impact_Data,MATCH((E71&", "&E72),FLW_Region_Impact_Data,0),MATCH(Impact,Impact_Categories,0)),"") ->  | F73: =IF(ISNUMBER('B1. Detailed assessment'!H132),'B1. Detailed assessment'!H132*kg_tonnes*INDEX(Impact_Data,MATCH((F71&", "&F72),FLW_Region_Impact_Data,0),MATCH(Impact,Impact_Categories,0)),"") ->  | G73: =IF(ISNUMBER('B1. Detailed assessment'!I132),'B1. Detailed assessment'!I132*kg_tonnes*INDEX(Impact_Data,MATCH((G71&", "&G72),FLW_Region_Impact_Data,0),MATCH(Impact,Impact_Categories,0)),"") ->  | H73: =IF(ISNUMBER('B1. Detailed assessment'!J132),'B1. Detailed assessment'!J132*kg_tonnes*INDEX(Impact_Data,MATCH((H71&", "&H72),FLW_Region_Impact_Data,0),MATCH(Impact,Impact_Categories,0)),"") ->  | I73: =IF(ISNUMBER('B1. Detailed assessment'!K132),'B1. Detailed assessment'!K132*kg_tonnes*INDEX(Impact_Data,MATCH((I71&", "&I72),FLW_Region_Impact_Data,0),MATCH(Impact,Impact_Categories,0)),"") -> 
B74: Additional life cycle impacts | C74: =Impact -> Climate change (kg CO2 eq) | D74: =IF(ISNUMBER(D73),INDEX(Impact_Life_Cycle,MATCH(D$71&", "&$B$71,FLW_Life_Cycle,0),MATCH(Impact,Impact_Categories_Life_Cycle,0))*DistTotCat1*kg_tonnes,"") ->  | E74: =IF(ISNUMBER(E73),INDEX(Impact_Life_Cycle,MATCH(E$71&", "&$B$71,FLW_Life_Cycle,0),MATCH(Impact,Impact_Categories_Life_Cycle,0))*DistTotCat2*kg_tonnes,"") ->  | F74: =IF(ISNUMBER(F73),INDEX(Impact_Life_Cycle,MATCH(F$71&", "&$B$71,FLW_Life_Cycle,0),MATCH(Impact,Impact_Categories_Life_Cycle,0))*DistTotCat3*kg_tonnes,"") ->  | G74: =IF(ISNUMBER(G73),INDEX(Impact_Life_Cycle,MATCH(G$71&", "&$B$71,FLW_Life_Cycle,0),MATCH(Impact,Impact_Categories_Life_Cycle,0))*DistTotCat4*kg_tonnes,"") ->  | H74: =IF(ISNUMBER(H73),INDEX(Impact_Life_Cycle,MATCH(H$71&", "&$B$71,FLW_Life_Cycle,0),MATCH(Impact,Impact_Categories_Life_Cycle,0))*DistTotCat5*kg_tonnes,"") ->  | I74: =IF(ISNUMBER(I73),INDEX(Impact_Life_Cycle,MATCH(I$71&", "&$B$71,FLW_Life_Cycle,0),MATCH(Impact,Impact_Categories_Life_Cycle,0))*DistTotCat6*kg_tonnes,"") -> 
B75: Additional impacts due to destination | C75: =Impact -> Climate change (kg CO2 eq) | D75: =IF(ISNUMBER(D73),SUM(D77:D87),"") ->  | E75: =IF(ISNUMBER(E73),SUM(E77:E87),"") -> 
B76: Destination-specific results
B77: Animal feed | C77: =Impact -> Climate change (kg CO2 eq) | D77: =IF('B1. Detailed assessment'!F137>0,('B1. Detailed assessment'!F137*kg_tonnes*INDEX(Impact_Destination,MATCH((D$5&", "&$B77),FLW_Destination_Impact,0),MATCH(Impact,Destination_Impact_Categories,0))),"") ->  | E77: =IF('B1. Detailed assessment'!G137>0,('B1. Detailed assessment'!G137*kg_tonnes*INDEX(Impact_Destination,MATCH((E$5&", "&$B77),FLW_Destination_Impact,0),MATCH(Impact,Destination_Impact_Categories,0))),"") ->  | F77: =IF('B1. Detailed assessment'!H137>0,('B1. Detailed assessment'!H137*kg_tonnes*INDEX(Impact_Destination,MATCH((F$5&", "&$B77),FLW_Destination_Impact,0),MATCH(Impact,Destination_Impact_Categories,0))),"") ->  | G77: =IF('B1. Detailed assessment'!I137>0,('B1. Detailed assessment'!I137*kg_tonnes*INDEX(Impact_Destination,MATCH((G$5&", "&$B77),FLW_Destination_Impact,0),MATCH(Impact,Destination_Impact_Categories,0))),"") ->  | H77: =IF('B1. Detailed assessment'!J137>0,('B1. Detailed assessment'!J137*kg_tonnes*INDEX(Impact_Destination,MATCH((H$5&", "&$B77),FLW_Destination_Impact,0),MATCH(Impact,Destination_Impact_Categories,0))),"") ->  | I77: =IF('B1. Detailed assessment'!K137>0,('B1. Detailed assessment'!K137*kg_tonnes*INDEX(Impact_Destination,MATCH((I$5&", "&$B77),FLW_Destination_Impact,0),MATCH(Impact,Destination_Impact_Categories,0))),"") -> 
B78: Bio-based materials/biochemical processing | C78: Climate change (kg CO2 eq) | D78: =IF('B1. Detailed assessment'!F138>0,('B1. Detailed assessment'!F138*kg_tonnes*INDEX(Impact_Destination,MATCH((D$5&", "&$B78),FLW_Destination_Impact,0),MATCH(Impact,Destination_Impact_Categories,0))),"") ->  | E78: =IF('B1. Detailed assessment'!G138>0,('B1. Detailed assessment'!G138*kg_tonnes*INDEX(Impact_Destination,MATCH((E$5&", "&$B78),FLW_Destination_Impact,0),MATCH(Impact,Destination_Impact_Categories,0))),"") ->  | F78: =IF('B1. Detailed assessment'!H138>0,('B1. Detailed assessment'!H138*kg_tonnes*INDEX(Impact_Destination,MATCH((F$5&", "&$B78),FLW_Destination_Impact,0),MATCH(Impact,Destination_Impact_Categories,0))),"") ->  | G78: =IF('B1. Detailed assessment'!I138>0,('B1. Detailed assessment'!I138*kg_tonnes*INDEX(Impact_Destination,MATCH((G$5&", "&$B78),FLW_Destination_Impact,0),MATCH(Impact,Destination_Impact_Categories,0))),"") ->  | H78: =IF('B1. Detailed assessment'!J138>0,('B1. Detailed assessment'!J138*kg_tonnes*INDEX(Impact_Destination,MATCH((H$5&", "&$B78),FLW_Destination_Impact,0),MATCH(Impact,Destination_Impact_Categories,0))),"") ->  | I78: =IF('B1. Detailed assessment'!K138>0,('B1. Detailed assessment'!K138*kg_tonnes*INDEX(Impact_Destination,MATCH((I$5&", "&$B78),FLW_Destination_Impact,0),MATCH(Impact,Destination_Impact_Categories,0))),"") -> 
B79: Codigestion/anaerobic digestion | C79: Climate change (kg CO2 eq) | D79: =IF('B1. Detailed assessment'!F139>0,('B1. Detailed assessment'!F139*kg_tonnes*INDEX(Impact_Destination,MATCH((D$5&", "&$B79),FLW_Destination_Impact,0),MATCH(Impact,Destination_Impact_Categories,0))),"") ->  | E79: =IF('B1. Detailed assessment'!G139>0,('B1. Detailed assessment'!G139*kg_tonnes*INDEX(Impact_Destination,MATCH((E$5&", "&$B79),FLW_Destination_Impact,0),MATCH(Impact,Destination_Impact_Categories,0))),"") ->  | F79: =IF('B1. Detailed assessment'!H139>0,('B1. Detailed assessment'!H139*kg_tonnes*INDEX(Impact_Destination,MATCH((F$5&", "&$B79),FLW_Destination_Impact,0),MATCH(Impact,Destination_Impact_Categories,0))),"") ->  | G79: =IF('B1. Detailed assessment'!I139>0,('B1. Detailed assessment'!I139*kg_tonnes*INDEX(Impact_Destination,MATCH((G$5&", "&$B79),FLW_Destination_Impact,0),MATCH(Impact,Destination_Impact_Categories,0))),"") ->  | H79: =IF('B1. Detailed assessment'!J139>0,('B1. Detailed assessment'!J139*kg_tonnes*INDEX(Impact_Destination,MATCH((H$5&", "&$B79),FLW_Destination_Impact,0),MATCH(Impact,Destination_Impact_Categories,0))),"") ->  | I79: =IF('B1. Detailed assessment'!K139>0,('B1. Detailed assessment'!K139*kg_tonnes*INDEX(Impact_Destination,MATCH((I$5&", "&$B79),FLW_Destination_Impact,0),MATCH(Impact,Destination_Impact_Categories,0))),"") -> 
B80: Composting/aerobic processes | C80: Climate change (kg CO2 eq) | D80: =IF('B1. Detailed assessment'!F140>0,('B1. Detailed assessment'!F140*kg_tonnes*INDEX(Impact_Destination,MATCH((D$5&", "&$B80),FLW_Destination_Impact,0),MATCH(Impact,Destination_Impact_Categories,0))),"") ->  | E80: =IF('B1. Detailed assessment'!G140>0,('B1. Detailed assessment'!G140*kg_tonnes*INDEX(Impact_Destination,MATCH((E$5&", "&$B80),FLW_Destination_Impact,0),MATCH(Impact,Destination_Impact_Categories,0))),"") ->  | F80: =IF('B1. Detailed assessment'!H140>0,('B1. Detailed assessment'!H140*kg_tonnes*INDEX(Impact_Destination,MATCH((F$5&", "&$B80),FLW_Destination_Impact,0),MATCH(Impact,Destination_Impact_Categories,0))),"") ->  | G80: =IF('B1. Detailed assessment'!I140>0,('B1. Detailed assessment'!I140*kg_tonnes*INDEX(Impact_Destination,MATCH((G$5&", "&$B80),FLW_Destination_Impact,0),MATCH(Impact,Destination_Impact_Categories,0))),"") ->  | H80: =IF('B1. Detailed assessment'!J140>0,('B1. Detailed assessment'!J140*kg_tonnes*INDEX(Impact_Destination,MATCH((H$5&", "&$B80),FLW_Destination_Impact,0),MATCH(Impact,Destination_Impact_Categories,0))),"") ->  | I80: =IF('B1. Detailed assessment'!K140>0,('B1. Detailed assessment'!K140*kg_tonnes*INDEX(Impact_Destination,MATCH((I$5&", "&$B80),FLW_Destination_Impact,0),MATCH(Impact,Destination_Impact_Categories,0))),"") -> 
B81: Controlled combustion | C81: Climate change (kg CO2 eq) | D81: =IF('B1. Detailed assessment'!F141>0,('B1. Detailed assessment'!F141*kg_tonnes*INDEX(Impact_Destination,MATCH((D$5&", "&$B81),FLW_Destination_Impact,0),MATCH(Impact,Destination_Impact_Categories,0))),"") ->  | E81: =IF('B1. Detailed assessment'!G141>0,('B1. Detailed assessment'!G141*kg_tonnes*INDEX(Impact_Destination,MATCH((E$5&", "&$B81),FLW_Destination_Impact,0),MATCH(Impact,Destination_Impact_Categories,0))),"") ->  | F81: =IF('B1. Detailed assessment'!H141>0,('B1. Detailed assessment'!H141*kg_tonnes*INDEX(Impact_Destination,MATCH((F$5&", "&$B81),FLW_Destination_Impact,0),MATCH(Impact,Destination_Impact_Categories,0))),"") ->  | G81: =IF('B1. Detailed assessment'!I141>0,('B1. Detailed assessment'!I141*kg_tonnes*INDEX(Impact_Destination,MATCH((G$5&", "&$B81),FLW_Destination_Impact,0),MATCH(Impact,Destination_Impact_Categories,0))),"") ->  | H81: =IF('B1. Detailed assessment'!J141>0,('B1. Detailed assessment'!J141*kg_tonnes*INDEX(Impact_Destination,MATCH((H$5&", "&$B81),FLW_Destination_Impact,0),MATCH(Impact,Destination_Impact_Categories,0))),"") ->  | I81: =IF('B1. Detailed assessment'!K141>0,('B1. Detailed assessment'!K141*kg_tonnes*INDEX(Impact_Destination,MATCH((I$5&", "&$B81),FLW_Destination_Impact,0),MATCH(Impact,Destination_Impact_Categories,0))),"") -> 
B82: Land application | C82: Climate change (kg CO2 eq) | D82: =IF('B1. Detailed assessment'!F142>0,('B1. Detailed assessment'!F142*kg_tonnes*INDEX(Impact_Destination,MATCH((D$5&", "&$B82),FLW_Destination_Impact,0),MATCH(Impact,Destination_Impact_Categories,0))),"") ->  | E82: =IF('B1. Detailed assessment'!G142>0,('B1. Detailed assessment'!G142*kg_tonnes*INDEX(Impact_Destination,MATCH((E$5&", "&$B82),FLW_Destination_Impact,0),MATCH(Impact,Destination_Impact_Categories,0))),"") ->  | F82: =IF('B1. Detailed assessment'!H142>0,('B1. Detailed assessment'!H142*kg_tonnes*INDEX(Impact_Destination,MATCH((F$5&", "&$B82),FLW_Destination_Impact,0),MATCH(Impact,Destination_Impact_Categories,0))),"") ->  | G82: =IF('B1. Detailed assessment'!I142>0,('B1. Detailed assessment'!I142*kg_tonnes*INDEX(Impact_Destination,MATCH((G$5&", "&$B82),FLW_Destination_Impact,0),MATCH(Impact,Destination_Impact_Categories,0))),"") ->  | H82: =IF('B1. Detailed assessment'!J142>0,('B1. Detailed assessment'!J142*kg_tonnes*INDEX(Impact_Destination,MATCH((H$5&", "&$B82),FLW_Destination_Impact,0),MATCH(Impact,Destination_Impact_Categories,0))),"") ->  | I82: =IF('B1. Detailed assessment'!K142>0,('B1. Detailed assessment'!K142*kg_tonnes*INDEX(Impact_Destination,MATCH((I$5&", "&$B82),FLW_Destination_Impact,0),MATCH(Impact,Destination_Impact_Categories,0))),"") -> 
B83: Not harvested/plowed in | C83: Climate change (kg CO2 eq) | D83: =IF('B1. Detailed assessment'!F143>0,('B1. Detailed assessment'!F143*kg_tonnes*INDEX(Impact_Destination,MATCH((D$5&", "&$B83),FLW_Destination_Impact,0),MATCH(Impact,Destination_Impact_Categories,0))),"") ->  | E83: =IF('B1. Detailed assessment'!G143>0,('B1. Detailed assessment'!G143*kg_tonnes*INDEX(Impact_Destination,MATCH((E$5&", "&$B83),FLW_Destination_Impact,0),MATCH(Impact,Destination_Impact_Categories,0))),"") ->  | F83: =IF('B1. Detailed assessment'!H143>0,('B1. Detailed assessment'!H143*kg_tonnes*INDEX(Impact_Destination,MATCH((F$5&", "&$B83),FLW_Destination_Impact,0),MATCH(Impact,Destination_Impact_Categories,0))),"") ->  | G83: =IF('B1. Detailed assessment'!I143>0,('B1. Detailed assessment'!I143*kg_tonnes*INDEX(Impact_Destination,MATCH((G$5&", "&$B83),FLW_Destination_Impact,0),MATCH(Impact,Destination_Impact_Categories,0))),"") ->  | H83: =IF('B1. Detailed assessment'!J143>0,('B1. Detailed assessment'!J143*kg_tonnes*INDEX(Impact_Destination,MATCH((H$5&", "&$B83),FLW_Destination_Impact,0),MATCH(Impact,Destination_Impact_Categories,0))),"") ->  | I83: =IF('B1. Detailed assessment'!K143>0,('B1. Detailed assessment'!K143*kg_tonnes*INDEX(Impact_Destination,MATCH((I$5&", "&$B83),FLW_Destination_Impact,0),MATCH(Impact,Destination_Impact_Categories,0))),"") -> 
B84: Landfill | C84: Climate change (kg CO2 eq) | D84: =IF('B1. Detailed assessment'!F144>0,('B1. Detailed assessment'!F144*kg_tonnes*INDEX(Impact_Destination,MATCH((D$5&", "&$B84),FLW_Destination_Impact,0),MATCH(Impact,Destination_Impact_Categories,0))),"") ->  | E84: =IF('B1. Detailed assessment'!G144>0,('B1. Detailed assessment'!G144*kg_tonnes*INDEX(Impact_Destination,MATCH((E$5&", "&$B84),FLW_Destination_Impact,0),MATCH(Impact,Destination_Impact_Categories,0))),"") ->  | F84: =IF('B1. Detailed assessment'!H144>0,('B1. Detailed assessment'!H144*kg_tonnes*INDEX(Impact_Destination,MATCH((F$5&", "&$B84),FLW_Destination_Impact,0),MATCH(Impact,Destination_Impact_Categories,0))),"") ->  | G84: =IF('B1. Detailed assessment'!I144>0,('B1. Detailed assessment'!I144*kg_tonnes*INDEX(Impact_Destination,MATCH((G$5&", "&$B84),FLW_Destination_Impact,0),MATCH(Impact,Destination_Impact_Categories,0))),"") ->  | H84: =IF('B1. Detailed assessment'!J144>0,('B1. Detailed assessment'!J144*kg_tonnes*INDEX(Impact_Destination,MATCH((H$5&", "&$B84),FLW_Destination_Impact,0),MATCH(Impact,Destination_Impact_Categories,0))),"") ->  | I84: =IF('B1. Detailed assessment'!K144>0,('B1. Detailed assessment'!K144*kg_tonnes*INDEX(Impact_Destination,MATCH((I$5&", "&$B84),FLW_Destination_Impact,0),MATCH(Impact,Destination_Impact_Categories,0))),"") -> 
B85: Refuse/discards/litter | C85: Climate change (kg CO2 eq) | D85: =IF('B1. Detailed assessment'!F145>0,('B1. Detailed assessment'!F145*kg_tonnes*INDEX(Impact_Destination,MATCH((D$5&", "&$B85),FLW_Destination_Impact,0),MATCH(Impact,Destination_Impact_Categories,0))),"") ->  | E85: =IF('B1. Detailed assessment'!G145>0,('B1. Detailed assessment'!G145*kg_tonnes*INDEX(Impact_Destination,MATCH((E$5&", "&$B85),FLW_Destination_Impact,0),MATCH(Impact,Destination_Impact_Categories,0))),"") ->  | F85: =IF('B1. Detailed assessment'!H145>0,('B1. Detailed assessment'!H145*kg_tonnes*INDEX(Impact_Destination,MATCH((F$5&", "&$B85),FLW_Destination_Impact,0),MATCH(Impact,Destination_Impact_Categories,0))),"") ->  | G85: =IF('B1. Detailed assessment'!I145>0,('B1. Detailed assessment'!I145*kg_tonnes*INDEX(Impact_Destination,MATCH((G$5&", "&$B85),FLW_Destination_Impact,0),MATCH(Impact,Destination_Impact_Categories,0))),"") ->  | H85: =IF('B1. Detailed assessment'!J145>0,('B1. Detailed assessment'!J145*kg_tonnes*INDEX(Impact_Destination,MATCH((H$5&", "&$B85),FLW_Destination_Impact,0),MATCH(Impact,Destination_Impact_Categories,0))),"") ->  | I85: =IF('B1. Detailed assessment'!K145>0,('B1. Detailed assessment'!K145*kg_tonnes*INDEX(Impact_Destination,MATCH((I$5&", "&$B85),FLW_Destination_Impact,0),MATCH(Impact,Destination_Impact_Categories,0))),"") -> 
B86: Sewer/wastewater treatment | C86: Climate change (kg CO2 eq) | D86: =IF('B1. Detailed assessment'!F146>0,('B1. Detailed assessment'!F146*kg_tonnes*INDEX(Impact_Destination,MATCH((D$5&", "&$B86),FLW_Destination_Impact,0),MATCH(Impact,Destination_Impact_Categories,0))),"") ->  | E86: =IF('B1. Detailed assessment'!G146>0,('B1. Detailed assessment'!G146*kg_tonnes*INDEX(Impact_Destination,MATCH((E$5&", "&$B86),FLW_Destination_Impact,0),MATCH(Impact,Destination_Impact_Categories,0))),"") ->  | F86: =IF('B1. Detailed assessment'!H146>0,('B1. Detailed assessment'!H146*kg_tonnes*INDEX(Impact_Destination,MATCH((F$5&", "&$B86),FLW_Destination_Impact,0),MATCH(Impact,Destination_Impact_Categories,0))),"") ->  | G86: =IF('B1. Detailed assessment'!I146>0,('B1. Detailed assessment'!I146*kg_tonnes*INDEX(Impact_Destination,MATCH((G$5&", "&$B86),FLW_Destination_Impact,0),MATCH(Impact,Destination_Impact_Categories,0))),"") ->  | H86: =IF('B1. Detailed assessment'!J146>0,('B1. Detailed assessment'!J146*kg_tonnes*INDEX(Impact_Destination,MATCH((H$5&", "&$B86),FLW_Destination_Impact,0),MATCH(Impact,Destination_Impact_Categories,0))),"") ->  | I86: =IF('B1. Detailed assessment'!K146>0,('B1. Detailed assessment'!K146*kg_tonnes*INDEX(Impact_Destination,MATCH((I$5&", "&$B86),FLW_Destination_Impact,0),MATCH(Impact,Destination_Impact_Categories,0))),"") -> 
B87: Unknown (landfill default) | C87: Climate change (kg CO2 eq) | D87: =IF(DistTotCat1='B1. Detailed assessment'!F133,"",('B1. Detailed assessment'!F134*kg_tonnes*INDEX(Impact_Destination,MATCH((D$27&", "&$B84),FLW_Destination_Impact,0),MATCH(Impact,Destination_Impact_Categories,0)))) ->  | E87: =IF(DistTotCat2='B1. Detailed assessment'!G133,"",('B1. Detailed assessment'!G134*kg_tonnes*INDEX(Impact_Destination,MATCH((E$27&", "&$B84),FLW_Destination_Impact,0),MATCH(Impact,Destination_Impact_Categories,0)))) ->  | F87: =IF(DistTotCat3='B1. Detailed assessment'!H133,"",('B1. Detailed assessment'!H134*kg_tonnes*INDEX(Impact_Destination,MATCH((F$27&", "&$B84),FLW_Destination_Impact,0),MATCH(Impact,Destination_Impact_Categories,0)))) ->  | G87: =IF(DistTotCat4='B1. Detailed assessment'!I133,"",('B1. Detailed assessment'!I134*kg_tonnes*INDEX(Impact_Destination,MATCH((G$27&", "&$B84),FLW_Destination_Impact,0),MATCH(Impact,Destination_Impact_Categories,0)))) ->  | H87: =IF(DistTotCat5='B1. Detailed assessment'!J133,"",('B1. Detailed assessment'!J134*kg_tonnes*INDEX(Impact_Destination,MATCH((H$27&", "&$B84),FLW_Destination_Impact,0),MATCH(Impact,Destination_Impact_Categories,0)))) ->  | I87: =IF(DistTotCat6='B1. Detailed assessment'!K133,"",('B1. Detailed assessment'!K134*kg_tonnes*INDEX(Impact_Destination,MATCH((I$27&", "&$B84),FLW_Destination_Impact,0),MATCH(Impact,Destination_Impact_Categories,0)))) -> 
D88: $
B92: 2e. | D92: 1 | E92: 2 | F92: 3 | G92: 4 | H92: 5 | I92: 6
B93: Consumption | D93: =Food_cat1 -> <click to select> | E93: =Food_cat2 -> <click to select> | F93: =Food_cat3 -> <click to select> | G93: =Food_cat4 -> <click to select> | H93: =Food_cat5 -> <click to select> | I93: =Food_cat6 -> <click to select>
D94: =Food_cat1_region -> <click to select> | E94: =Food_cat2_region -> <click to select> | F94: =Food_cat3_region -> <click to select> | G94: =Food_cat4_region -> <click to select> | H94: =Food_cat5_region -> <click to select> | I94: =Food_cat6_region -> <click to select>
B95: Agricultural production impact | C95: =Impact -> Climate change (kg CO2 eq) | D95: =IF(ISNUMBER('B1. Detailed assessment'!F153),'B1. Detailed assessment'!F153*kg_tonnes*INDEX(Impact_Data,MATCH((D93&", "&D94),FLW_Region_Impact_Data,0),MATCH(Impact,Impact_Categories,0)),"") ->  | E95: =IF(ISNUMBER('B1. Detailed assessment'!G153),'B1. Detailed assessment'!G153*kg_tonnes*INDEX(Impact_Data,MATCH((E93&", "&E94),FLW_Region_Impact_Data,0),MATCH(Impact,Impact_Categories,0)),"") ->  | F95: =IF(ISNUMBER('B1. Detailed assessment'!H153),'B1. Detailed assessment'!H153*kg_tonnes*INDEX(Impact_Data,MATCH((F93&", "&F94),FLW_Region_Impact_Data,0),MATCH(Impact,Impact_Categories,0)),"") ->  | G95: =IF(ISNUMBER('B1. Detailed assessment'!I153),'B1. Detailed assessment'!I153*kg_tonnes*INDEX(Impact_Data,MATCH((G93&", "&G94),FLW_Region_Impact_Data,0),MATCH(Impact,Impact_Categories,0)),"") ->  | H95: =IF(ISNUMBER('B1. Detailed assessment'!J153),'B1. Detailed assessment'!J153*kg_tonnes*INDEX(Impact_Data,MATCH((H93&", "&H94),FLW_Region_Impact_Data,0),MATCH(Impact,Impact_Categories,0)),"") ->  | I95: =IF(ISNUMBER('B1. Detailed assessment'!K153),'B1. Detailed assessment'!K153*kg_tonnes*INDEX(Impact_Data,MATCH((I93&", "&I94),FLW_Region_Impact_Data,0),MATCH(Impact,Impact_Categories,0)),"") -> 
B96: Additional life cycle impacts | C96: =Impact -> Climate change (kg CO2 eq) | D96: =IF(ISNUMBER(D95),INDEX(Impact_Life_Cycle,MATCH(D$93&", "&$B$93,FLW_Life_Cycle,0),MATCH(Impact,Impact_Categories_Life_Cycle,0))*ConsTotCat1*kg_tonnes,"") ->  | E96: =IF(ISNUMBER(E95),INDEX(Impact_Life_Cycle,MATCH(E$93&", "&$B$93,FLW_Life_Cycle,0),MATCH(Impact,Impact_Categories_Life_Cycle,0))*ConsTotCat2*kg_tonnes,"") ->  | F96: =IF(ISNUMBER(F95),INDEX(Impact_Life_Cycle,MATCH(F$93&", "&$B$93,FLW_Life_Cycle,0),MATCH(Impact,Impact_Categories_Life_Cycle,0))*ConsTotCat3*kg_tonnes,"") ->  | G96: =IF(ISNUMBER(G95),INDEX(Impact_Life_Cycle,MATCH(G$93&", "&$B$93,FLW_Life_Cycle,0),MATCH(Impact,Impact_Categories_Life_Cycle,0))*ConsTotCat4*kg_tonnes,"") ->  | H96: =IF(ISNUMBER(H95),INDEX(Impact_Life_Cycle,MATCH(H$93&", "&$B$93,FLW_Life_Cycle,0),MATCH(Impact,Impact_Categories_Life_Cycle,0))*ConsTotCat5*kg_tonnes,"") ->  | I96: =IF(ISNUMBER(I95),INDEX(Impact_Life_Cycle,MATCH(I$93&", "&$B$93,FLW_Life_Cycle,0),MATCH(Impact,Impact_Categories_Life_Cycle,0))*ConsTotCat6*kg_tonnes,"") -> 
B97: Additional impacts due to destination | C97: =Impact -> Climate change (kg CO2 eq) | D97: =IF(ISNUMBER(D95),SUM(D99:D109),"") ->  | E97: =IF(ISNUMBER(E95),SUM(E99:E109),"") -> 
B98: Destination-specific results
B99: Animal feed | C99: =Impact -> Climate change (kg CO2 eq) | D99: =IF('B1. Detailed assessment'!F158>0,('B1. Detailed assessment'!F158*kg_tonnes*INDEX(Impact_Destination,MATCH((D$5&", "&$B99),FLW_Destination_Impact,0),MATCH(Impact,Destination_Impact_Categories,0))),"") ->  | E99: =IF('B1. Detailed assessment'!G158>0,('B1. Detailed assessment'!G158*kg_tonnes*INDEX(Impact_Destination,MATCH((E$5&", "&$B99),FLW_Destination_Impact,0),MATCH(Impact,Destination_Impact_Categories,0))),"") ->  | F99: =IF('B1. Detailed assessment'!H158>0,('B1. Detailed assessment'!H158*kg_tonnes*INDEX(Impact_Destination,MATCH((F$5&", "&$B99),FLW_Destination_Impact,0),MATCH(Impact,Destination_Impact_Categories,0))),"") ->  | G99: =IF('B1. Detailed assessment'!I158>0,('B1. Detailed assessment'!I158*kg_tonnes*INDEX(Impact_Destination,MATCH((G$5&", "&$B99),FLW_Destination_Impact,0),MATCH(Impact,Destination_Impact_Categories,0))),"") ->  | H99: =IF('B1. Detailed assessment'!J158>0,('B1. Detailed assessment'!J158*kg_tonnes*INDEX(Impact_Destination,MATCH((H$5&", "&$B99),FLW_Destination_Impact,0),MATCH(Impact,Destination_Impact_Categories,0))),"") ->  | I99: =IF('B1. Detailed assessment'!K158>0,('B1. Detailed assessment'!K158*kg_tonnes*INDEX(Impact_Destination,MATCH((I$5&", "&$B99),FLW_Destination_Impact,0),MATCH(Impact,Destination_Impact_Categories,0))),"") -> 
B100: Bio-based materials/biochemical processing | C100: Climate change (kg CO2 eq) | D100: =IF('B1. Detailed assessment'!F159>0,('B1. Detailed assessment'!F159*kg_tonnes*INDEX(Impact_Destination,MATCH((D$5&", "&$B100),FLW_Destination_Impact,0),MATCH(Impact,Destination_Impact_Categories,0))),"") ->  | E100: =IF('B1. Detailed assessment'!G159>0,('B1. Detailed assessment'!G159*kg_tonnes*INDEX(Impact_Destination,MATCH((E$5&", "&$B100),FLW_Destination_Impact,0),MATCH(Impact,Destination_Impact_Categories,0))),"") ->  | F100: =IF('B1. Detailed assessment'!H159>0,('B1. Detailed assessment'!H159*kg_tonnes*INDEX(Impact_Destination,MATCH((F$5&", "&$B100),FLW_Destination_Impact,0),MATCH(Impact,Destination_Impact_Categories,0))),"") ->  | G100: =IF('B1. Detailed assessment'!I159>0,('B1. Detailed assessment'!I159*kg_tonnes*INDEX(Impact_Destination,MATCH((G$5&", "&$B100),FLW_Destination_Impact,0),MATCH(Impact,Destination_Impact_Categories,0))),"") ->  | H100: =IF('B1. Detailed assessment'!J159>0,('B1. Detailed assessment'!J159*kg_tonnes*INDEX(Impact_Destination,MATCH((H$5&", "&$B100),FLW_Destination_Impact,0),MATCH(Impact,Destination_Impact_Categories,0))),"") ->  | I100: =IF('B1. Detailed assessment'!K159>0,('B1. Detailed assessment'!K159*kg_tonnes*INDEX(Impact_Destination,MATCH((I$5&", "&$B100),FLW_Destination_Impact,0),MATCH(Impact,Destination_Impact_Categories,0))),"") -> 
B101: Codigestion/anaerobic digestion | C101: Climate change (kg CO2 eq) | D101: =IF('B1. Detailed assessment'!F160>0,('B1. Detailed assessment'!F160*kg_tonnes*INDEX(Impact_Destination,MATCH((D$5&", "&$B101),FLW_Destination_Impact,0),MATCH(Impact,Destination_Impact_Categories,0))),"") ->  | E101: =IF('B1. Detailed assessment'!G160>0,('B1. Detailed assessment'!G160*kg_tonnes*INDEX(Impact_Destination,MATCH((E$5&", "&$B101),FLW_Destination_Impact,0),MATCH(Impact,Destination_Impact_Categories,0))),"") ->  | F101: =IF('B1. Detailed assessment'!H160>0,('B1. Detailed assessment'!H160*kg_tonnes*INDEX(Impact_Destination,MATCH((F$5&", "&$B101),FLW_Destination_Impact,0),MATCH(Impact,Destination_Impact_Categories,0))),"") ->  | G101: =IF('B1. Detailed assessment'!I160>0,('B1. Detailed assessment'!I160*kg_tonnes*INDEX(Impact_Destination,MATCH((G$5&", "&$B101),FLW_Destination_Impact,0),MATCH(Impact,Destination_Impact_Categories,0))),"") ->  | H101: =IF('B1. Detailed assessment'!J160>0,('B1. Detailed assessment'!J160*kg_tonnes*INDEX(Impact_Destination,MATCH((H$5&", "&$B101),FLW_Destination_Impact,0),MATCH(Impact,Destination_Impact_Categories,0))),"") ->  | I101: =IF('B1. Detailed assessment'!K160>0,('B1. Detailed assessment'!K160*kg_tonnes*INDEX(Impact_Destination,MATCH((I$5&", "&$B101),FLW_Destination_Impact,0),MATCH(Impact,Destination_Impact_Categories,0))),"") -> 
B102: Composting/aerobic processes | C102: Climate change (kg CO2 eq) | D102: =IF('B1. Detailed assessment'!F161>0,('B1. Detailed assessment'!F161*kg_tonnes*INDEX(Impact_Destination,MATCH((D$5&", "&$B102),FLW_Destination_Impact,0),MATCH(Impact,Destination_Impact_Categories,0))),"") ->  | E102: =IF('B1. Detailed assessment'!G161>0,('B1. Detailed assessment'!G161*kg_tonnes*INDEX(Impact_Destination,MATCH((E$5&", "&$B102),FLW_Destination_Impact,0),MATCH(Impact,Destination_Impact_Categories,0))),"") ->  | F102: =IF('B1. Detailed assessment'!H161>0,('B1. Detailed assessment'!H161*kg_tonnes*INDEX(Impact_Destination,MATCH((F$5&", "&$B102),FLW_Destination_Impact,0),MATCH(Impact,Destination_Impact_Categories,0))),"") ->  | G102: =IF('B1. Detailed assessment'!I161>0,('B1. Detailed assessment'!I161*kg_tonnes*INDEX(Impact_Destination,MATCH((G$5&", "&$B102),FLW_Destination_Impact,0),MATCH(Impact,Destination_Impact_Categories,0))),"") ->  | H102: =IF('B1. Detailed assessment'!J161>0,('B1. Detailed assessment'!J161*kg_tonnes*INDEX(Impact_Destination,MATCH((H$5&", "&$B102),FLW_Destination_Impact,0),MATCH(Impact,Destination_Impact_Categories,0))),"") ->  | I102: =IF('B1. Detailed assessment'!K161>0,('B1. Detailed assessment'!K161*kg_tonnes*INDEX(Impact_Destination,MATCH((I$5&", "&$B102),FLW_Destination_Impact,0),MATCH(Impact,Destination_Impact_Categories,0))),"") -> 
B103: Controlled combustion | C103: Climate change (kg CO2 eq) | D103: =IF('B1. Detailed assessment'!F162>0,('B1. Detailed assessment'!F162*kg_tonnes*INDEX(Impact_Destination,MATCH((D$5&", "&$B103),FLW_Destination_Impact,0),MATCH(Impact,Destination_Impact_Categories,0))),"") ->  | E103: =IF('B1. Detailed assessment'!G162>0,('B1. Detailed assessment'!G162*kg_tonnes*INDEX(Impact_Destination,MATCH((E$5&", "&$B103),FLW_Destination_Impact,0),MATCH(Impact,Destination_Impact_Categories,0))),"") ->  | F103: =IF('B1. Detailed assessment'!H162>0,('B1. Detailed assessment'!H162*kg_tonnes*INDEX(Impact_Destination,MATCH((F$5&", "&$B103),FLW_Destination_Impact,0),MATCH(Impact,Destination_Impact_Categories,0))),"") ->  | G103: =IF('B1. Detailed assessment'!I162>0,('B1. Detailed assessment'!I162*kg_tonnes*INDEX(Impact_Destination,MATCH((G$5&", "&$B103),FLW_Destination_Impact,0),MATCH(Impact,Destination_Impact_Categories,0))),"") ->  | H103: =IF('B1. Detailed assessment'!J162>0,('B1. Detailed assessment'!J162*kg_tonnes*INDEX(Impact_Destination,MATCH((H$5&", "&$B103),FLW_Destination_Impact,0),MATCH(Impact,Destination_Impact_Categories,0))),"") ->  | I103: =IF('B1. Detailed assessment'!K162>0,('B1. Detailed assessment'!K162*kg_tonnes*INDEX(Impact_Destination,MATCH((I$5&", "&$B103),FLW_Destination_Impact,0),MATCH(Impact,Destination_Impact_Categories,0))),"") -> 
B104: Land application | C104: Climate change (kg CO2 eq) | D104: =IF('B1. Detailed assessment'!F163>0,('B1. Detailed assessment'!F163*kg_tonnes*INDEX(Impact_Destination,MATCH((D$5&", "&$B104),FLW_Destination_Impact,0),MATCH(Impact,Destination_Impact_Categories,0))),"") ->  | E104: =IF('B1. Detailed assessment'!G163>0,('B1. Detailed assessment'!G163*kg_tonnes*INDEX(Impact_Destination,MATCH((E$5&", "&$B104),FLW_Destination_Impact,0),MATCH(Impact,Destination_Impact_Categories,0))),"") ->  | F104: =IF('B1. Detailed assessment'!H163>0,('B1. Detailed assessment'!H163*kg_tonnes*INDEX(Impact_Destination,MATCH((F$5&", "&$B104),FLW_Destination_Impact,0),MATCH(Impact,Destination_Impact_Categories,0))),"") ->  | G104: =IF('B1. Detailed assessment'!I163>0,('B1. Detailed assessment'!I163*kg_tonnes*INDEX(Impact_Destination,MATCH((G$5&", "&$B104),FLW_Destination_Impact,0),MATCH(Impact,Destination_Impact_Categories,0))),"") ->  | H104: =IF('B1. Detailed assessment'!J163>0,('B1. Detailed assessment'!J163*kg_tonnes*INDEX(Impact_Destination,MATCH((H$5&", "&$B104),FLW_Destination_Impact,0),MATCH(Impact,Destination_Impact_Categories,0))),"") ->  | I104: =IF('B1. Detailed assessment'!K163>0,('B1. Detailed assessment'!K163*kg_tonnes*INDEX(Impact_Destination,MATCH((I$5&", "&$B104),FLW_Destination_Impact,0),MATCH(Impact,Destination_Impact_Categories,0))),"") -> 
B105: Not harvested/plowed in | C105: Climate change (kg CO2 eq) | D105: =IF('B1. Detailed assessment'!F164>0,('B1. Detailed assessment'!F164*kg_tonnes*INDEX(Impact_Destination,MATCH((D$5&", "&$B105),FLW_Destination_Impact,0),MATCH(Impact,Destination_Impact_Categories,0))),"") ->  | E105: =IF('B1. Detailed assessment'!G164>0,('B1. Detailed assessment'!G164*kg_tonnes*INDEX(Impact_Destination,MATCH((E$5&", "&$B105),FLW_Destination_Impact,0),MATCH(Impact,Destination_Impact_Categories,0))),"") ->  | F105: =IF('B1. Detailed assessment'!H164>0,('B1. Detailed assessment'!H164*kg_tonnes*INDEX(Impact_Destination,MATCH((F$5&", "&$B105),FLW_Destination_Impact,0),MATCH(Impact,Destination_Impact_Categories,0))),"") ->  | G105: =IF('B1. Detailed assessment'!I164>0,('B1. Detailed assessment'!I164*kg_tonnes*INDEX(Impact_Destination,MATCH((G$5&", "&$B105),FLW_Destination_Impact,0),MATCH(Impact,Destination_Impact_Categories,0))),"") ->  | H105: =IF('B1. Detailed assessment'!J164>0,('B1. Detailed assessment'!J164*kg_tonnes*INDEX(Impact_Destination,MATCH((H$5&", "&$B105),FLW_Destination_Impact,0),MATCH(Impact,Destination_Impact_Categories,0))),"") ->  | I105: =IF('B1. Detailed assessment'!K164>0,('B1. Detailed assessment'!K164*kg_tonnes*INDEX(Impact_Destination,MATCH((I$5&", "&$B105),FLW_Destination_Impact,0),MATCH(Impact,Destination_Impact_Categories,0))),"") -> 
B106: Landfill | C106: Climate change (kg CO2 eq) | D106: =IF('B1. Detailed assessment'!F165>0,('B1. Detailed assessment'!F165*kg_tonnes*INDEX(Impact_Destination,MATCH((D$5&", "&$B106),FLW_Destination_Impact,0),MATCH(Impact,Destination_Impact_Categories,0))),"") ->  | E106: =IF('B1. Detailed assessment'!G165>0,('B1. Detailed assessment'!G165*kg_tonnes*INDEX(Impact_Destination,MATCH((E$5&", "&$B106),FLW_Destination_Impact,0),MATCH(Impact,Destination_Impact_Categories,0))),"") ->  | F106: =IF('B1. Detailed assessment'!H165>0,('B1. Detailed assessment'!H165*kg_tonnes*INDEX(Impact_Destination,MATCH((F$5&", "&$B106),FLW_Destination_Impact,0),MATCH(Impact,Destination_Impact_Categories,0))),"") ->  | G106: =IF('B1. Detailed assessment'!I165>0,('B1. Detailed assessment'!I165*kg_tonnes*INDEX(Impact_Destination,MATCH((G$5&", "&$B106),FLW_Destination_Impact,0),MATCH(Impact,Destination_Impact_Categories,0))),"") ->  | H106: =IF('B1. Detailed assessment'!J165>0,('B1. Detailed assessment'!J165*kg_tonnes*INDEX(Impact_Destination,MATCH((H$5&", "&$B106),FLW_Destination_Impact,0),MATCH(Impact,Destination_Impact_Categories,0))),"") ->  | I106: =IF('B1. Detailed assessment'!K165>0,('B1. Detailed assessment'!K165*kg_tonnes*INDEX(Impact_Destination,MATCH((I$5&", "&$B106),FLW_Destination_Impact,0),MATCH(Impact,Destination_Impact_Categories,0))),"") -> 
B107: Refuse/discards/litter | C107: Climate change (kg CO2 eq) | D107: =IF('B1. Detailed assessment'!F166>0,('B1. Detailed assessment'!F166*kg_tonnes*INDEX(Impact_Destination,MATCH((D$5&", "&$B107),FLW_Destination_Impact,0),MATCH(Impact,Destination_Impact_Categories,0))),"") ->  | E107: =IF('B1. Detailed assessment'!G166>0,('B1. Detailed assessment'!G166*kg_tonnes*INDEX(Impact_Destination,MATCH((E$5&", "&$B107),FLW_Destination_Impact,0),MATCH(Impact,Destination_Impact_Categories,0))),"") ->  | F107: =IF('B1. Detailed assessment'!H166>0,('B1. Detailed assessment'!H166*kg_tonnes*INDEX(Impact_Destination,MATCH((F$5&", "&$B107),FLW_Destination_Impact,0),MATCH(Impact,Destination_Impact_Categories,0))),"") ->  | G107: =IF('B1. Detailed assessment'!I166>0,('B1. Detailed assessment'!I166*kg_tonnes*INDEX(Impact_Destination,MATCH((G$5&", "&$B107),FLW_Destination_Impact,0),MATCH(Impact,Destination_Impact_Categories,0))),"") ->  | H107: =IF('B1. Detailed assessment'!J166>0,('B1. Detailed assessment'!J166*kg_tonnes*INDEX(Impact_Destination,MATCH((H$5&", "&$B107),FLW_Destination_Impact,0),MATCH(Impact,Destination_Impact_Categories,0))),"") ->  | I107: =IF('B1. Detailed assessment'!K166>0,('B1. Detailed assessment'!K166*kg_tonnes*INDEX(Impact_Destination,MATCH((I$5&", "&$B107),FLW_Destination_Impact,0),MATCH(Impact,Destination_Impact_Categories,0))),"") -> 
B108: Sewer/wastewater treatment | C108: Climate change (kg CO2 eq) | D108: =IF('B1. Detailed assessment'!F167>0,('B1. Detailed assessment'!F167*kg_tonnes*INDEX(Impact_Destination,MATCH((D$5&", "&$B108),FLW_Destination_Impact,0),MATCH(Impact,Destination_Impact_Categories,0))),"") ->  | E108: =IF('B1. Detailed assessment'!G167>0,('B1. Detailed assessment'!G167*kg_tonnes*INDEX(Impact_Destination,MATCH((E$5&", "&$B108),FLW_Destination_Impact,0),MATCH(Impact,Destination_Impact_Categories,0))),"") ->  | F108: =IF('B1. Detailed assessment'!H167>0,('B1. Detailed assessment'!H167*kg_tonnes*INDEX(Impact_Destination,MATCH((F$5&", "&$B108),FLW_Destination_Impact,0),MATCH(Impact,Destination_Impact_Categories,0))),"") ->  | G108: =IF('B1. Detailed assessment'!I167>0,('B1. Detailed assessment'!I167*kg_tonnes*INDEX(Impact_Destination,MATCH((G$5&", "&$B108),FLW_Destination_Impact,0),MATCH(Impact,Destination_Impact_Categories,0))),"") ->  | H108: =IF('B1. Detailed assessment'!J167>0,('B1. Detailed assessment'!J167*kg_tonnes*INDEX(Impact_Destination,MATCH((H$5&", "&$B108),FLW_Destination_Impact,0),MATCH(Impact,Destination_Impact_Categories,0))),"") ->  | I108: =IF('B1. Detailed assessment'!K167>0,('B1. Detailed assessment'!K167*kg_tonnes*INDEX(Impact_Destination,MATCH((I$5&", "&$B108),FLW_Destination_Impact,0),MATCH(Impact,Destination_Impact_Categories,0))),"") -> 
B109: Unknown (landfill default) | C109: Climate change (kg CO2 eq) | D109: =IF(ConsTotCat1='B1. Detailed assessment'!F154,"",('B1. Detailed assessment'!F155*kg_tonnes*INDEX(Impact_Destination,MATCH((D$27&", "&$B106),FLW_Destination_Impact,0),MATCH(Impact,Destination_Impact_Categories,0)))) ->  | E109: =IF(ConsTotCat2='B1. Detailed assessment'!G154,"",('B1. Detailed assessment'!G155*kg_tonnes*INDEX(Impact_Destination,MATCH((E$27&", "&$B106),FLW_Destination_Impact,0),MATCH(Impact,Destination_Impact_Categories,0)))) ->  | F109: =IF(ConsTotCat3='B1. Detailed assessment'!H154,"",('B1. Detailed assessment'!H155*kg_tonnes*INDEX(Impact_Destination,MATCH((F$27&", "&$B106),FLW_Destination_Impact,0),MATCH(Impact,Destination_Impact_Categories,0)))) ->  | G109: =IF(ConsTotCat4='B1. Detailed assessment'!I154,"",('B1. Detailed assessment'!I155*kg_tonnes*INDEX(Impact_Destination,MATCH((G$27&", "&$B106),FLW_Destination_Impact,0),MATCH(Impact,Destination_Impact_Categories,0)))) ->  | H109: =IF(ConsTotCat5='B1. Detailed assessment'!J154,"",('B1. Detailed assessment'!J155*kg_tonnes*INDEX(Impact_Destination,MATCH((H$27&", "&$B106),FLW_Destination_Impact,0),MATCH(Impact,Destination_Impact_Categories,0)))) ->  | I109: =IF(ConsTotCat6='B1. Detailed assessment'!K154,"",('B1. Detailed assessment'!K155*kg_tonnes*INDEX(Impact_Destination,MATCH((I$27&", "&$B106),FLW_Destination_Impact,0),MATCH(Impact,Destination_Impact_Categories,0)))) -> 
D111: 1 | E111: 2 | F111: 3 | G111: 4 | H111: 5 | I111: 6
B112: TOTAL | D112: =Food_cat1 -> <click to select> | E112: =Food_cat2 -> <click to select> | F112: =Food_cat3 -> <click to select> | G112: =Food_cat4 -> <click to select> | H112: =Food_cat5 -> <click to select> | I112: =Food_cat6 -> <click to select>
D113: =Food_cat1_region -> <click to select> | E113: =Food_cat2_region -> <click to select> | F113: =Food_cat3_region -> <click to select> | G113: =Food_cat4_region -> <click to select> | H113: =Food_cat5_region -> <click to select> | I113: =Food_cat6_region -> <click to select>
B114: Agricultural production impact | C114: =Impact -> Climate change (kg CO2 eq) | D114: =IF((SUM(D7,D29,D51,D73,D95)>0),SUM(D7,D29,D51,D73,D95),"") ->  | E114: =IF((SUM(E7,E29,E51,E73,E95)>0),SUM(E7,E29,E51,E73,E95),"") ->  | F114: =IF((SUM(F7,F29,F51,F73,F95)>0),SUM(F7,F29,F51,F73,F95),"") -> 
B115: Additional life cycle impacts | C115: =Impact -> Climate change (kg CO2 eq) | D115: =IF(ISNUMBER(D114),INDEX(Impact_Life_Cycle,MATCH(D$27&", "&$B$27,FLW_Life_Cycle,0),MATCH(Impact,Impact_Categories_Life_Cycle,0))*PostHarvTotCat1*kg_tonnes+INDEX(Impact_Life_Cycle,MATCH(D$49&", "&$B$49,FLW_Life_Cycle,0),MATCH(Impact,Impact_Categories_Life_Cycle,0))*ProcTotCat1*kg_tonnes+INDEX(Impact_Life_Cycle,MATCH(D$71&", "&$B$71,FLW_Life_Cycle,0),MATCH(Impact,Impact_Categories_Life_Cycle,0))*kg_tonnes*DistTotCat1+INDEX(Impact_Life_Cycle,MATCH(D$93&", "&$B$93,FLW_Life_Cycle,0),MATCH(Impact,Impact_Categories_Life_Cycle,0))*kg_tonnes*ConsTotCat1,"") ->  | E115: =IF(ISNUMBER(E114),INDEX(Impact_Life_Cycle,MATCH(E$27&", "&$B$27,FLW_Life_Cycle,0),MATCH(Impact,Impact_Categories_Life_Cycle,0))*PostHarvTotCat2*kg_tonnes+INDEX(Impact_Life_Cycle,MATCH(E$49&", "&$B$49,FLW_Life_Cycle,0),MATCH(Impact,Impact_Categories_Life_Cycle,0))*ProcTotCat2*kg_tonnes+INDEX(Impact_Life_Cycle,MATCH(E$71&", "&$B$71,FLW_Life_Cycle,0),MATCH(Impact,Impact_Categories_Life_Cycle,0))*kg_tonnes*DistTotCat2+INDEX(Impact_Life_Cycle,MATCH(E$93&", "&$B$93,FLW_Life_Cycle,0),MATCH(Impact,Impact_Categories_Life_Cycle,0))*kg_tonnes*ConsTotCat2,"") ->  | F115: =IF(ISNUMBER(F114),INDEX(Impact_Life_Cycle,MATCH(F$27&", "&$B$27,FLW_Life_Cycle,0),MATCH(Impact,Impact_Categories_Life_Cycle,0))*PostHarvTotCat3*kg_tonnes+INDEX(Impact_Life_Cycle,MATCH(F$49&", "&$B$49,FLW_Life_Cycle,0),MATCH(Impact,Impact_Categories_Life_Cycle,0))*ProcTotCat3*kg_tonnes+INDEX(Impact_Life_Cycle,MATCH(F$71&", "&$B$71,FLW_Life_Cycle,0),MATCH(Impact,Impact_Categories_Life_Cycle,0))*kg_tonnes*DistTotCat3+INDEX(Impact_Life_Cycle,MATCH(F$93&", "&$B$93,FLW_Life_Cycle,0),MATCH(Impact,Impact_Categories_Life_Cycle,0))*kg_tonnes*ConsTotCat3,"") ->  | G115: =IF(ISNUMBER(G114),INDEX(Impact_Life_Cycle,MATCH(G$27&", "&$B$27,FLW_Life_Cycle,0),MATCH(Impact,Impact_Categories_Life_Cycle,0))*PostHarvTotCat4*kg_tonnes+INDEX(Impact_Life_Cycle,MATCH(G$49&", "&$B$49,FLW_Life_Cycle,0),MATCH(Impact,Impact_Categories_Life_Cycle,0))*ProcTotCat4*kg_tonnes+INDEX(Impact_Life_Cycle,MATCH(G$71&", "&$B$71,FLW_Life_Cycle,0),MATCH(Impact,Impact_Categories_Life_Cycle,0))*kg_tonnes*DistTotCat4+INDEX(Impact_Life_Cycle,MATCH(G$93&", "&$B$93,FLW_Life_Cycle,0),MATCH(Impact,Impact_Categories_Life_Cycle,0))*kg_tonnes*ConsTotCat4,"") ->  | H115: =IF(ISNUMBER(H114),INDEX(Impact_Life_Cycle,MATCH(H$27&", "&$B$27,FLW_Life_Cycle,0),MATCH(Impact,Impact_Categories_Life_Cycle,0))*PostHarvTotCat5*kg_tonnes+INDEX(Impact_Life_Cycle,MATCH(H$49&", "&$B$49,FLW_Life_Cycle,0),MATCH(Impact,Impact_Categories_Life_Cycle,0))*ProcTotCat5*kg_tonnes+INDEX(Impact_Life_Cycle,MATCH(H$71&", "&$B$71,FLW_Life_Cycle,0),MATCH(Impact,Impact_Categories_Life_Cycle,0))*kg_tonnes*DistTotCat5+INDEX(Impact_Life_Cycle,MATCH(H$93&", "&$B$93,FLW_Life_Cycle,0),MATCH(Impact,Impact_Categories_Life_Cycle,0))*kg_tonnes*ConsTotCat5,"") ->  | I115: =IF(ISNUMBER(I114),INDEX(Impact_Life_Cycle,MATCH(I$27&", "&$B$27,FLW_Life_Cycle,0),MATCH(Impact,Impact_Categories_Life_Cycle,0))*PostHarvTotCat6*kg_tonnes+INDEX(Impact_Life_Cycle,MATCH(I$49&", "&$B$49,FLW_Life_Cycle,0),MATCH(Impact,Impact_Categories_Life_Cycle,0))*ProcTotCat6*kg_tonnes+INDEX(Impact_Life_Cycle,MATCH(I$71&", "&$B$71,FLW_Life_Cycle,0),MATCH(Impact,Impact_Categories_Life_Cycle,0))*kg_tonnes*DistTotCat6+INDEX(Impact_Life_Cycle,MATCH(I$93&", "&$B$93,FLW_Life_Cycle,0),MATCH(Impact,Impact_Categories_Life_Cycle,0))*kg_tonnes*ConsTotCat6,"") -> 
B116: Additional impacts due to destination | C116: =Impact -> Climate change (kg CO2 eq) | D116: =IF(ISNUMBER(D114),SUM(D118:D128),"") ->  | E116: =IF(ISNUMBER(E114),SUM(E118:E128),"") -> 
B117: Destination-specific results
B118: Animal feed | C118: =Impact -> Climate change (kg CO2 eq) | D118: =IF(ISNUMBER(D$114),SUM(D11,D33,D55,D77,D99),"") ->  | E118: =IF(ISNUMBER(E$114),SUM(E11,E33,E55,E77,E99),"") -> 
B119: Bio-based materials/biochemical processing | C119: Climate change (kg CO2 eq) | D119: =IF(ISNUMBER(D$114),SUM(D12,D34,D56,D78,D100),"") -> 
B120: Codigestion/anaerobic digestion | C120: Climate change (kg CO2 eq)
B121: Composting/aerobic processes | C121: Climate change (kg CO2 eq)
B122: Controlled combustion | C122: Climate change (kg CO2 eq)
B123: Land application | C123: Climate change (kg CO2 eq)
B124: Not harvested/plowed in | C124: Climate change (kg CO2 eq)
B125: Landfill | C125: Climate change (kg CO2 eq)
B126: Refuse/discards/litter | C126: Climate change (kg CO2 eq)
B127: Sewer/wastewater treatment | C127: Climate change (kg CO2 eq)
B128: Unknown (landfill default) | C128: Climate change (kg CO2 eq)

Sheet B3. Result table, nutrition
A1: Nutritional results (no user input needed)
B2: Nutrititional values and per-person daily requirements fulfilled (summed over full supply chain)
D3: =Food_cat1 -> <click to select> | H3: =Food_cat2 -> <click to select> | L3: =Food_cat3 -> <click to select> | P3: =Food_cat4 -> <click to select> | T3: =Food_cat5 -> <click to select> | X3: =Food_cat6 -> <click to select>
D4: =Cat1Tot ->  | E4: tonnes | H4: =Cat2Tot ->  | J4: tonnes | L4: =Cat3Tot ->  | N4: tonnes | P4: =Cat4Tot ->  | R4: tonnes | T4: =Cat5Tot ->  | V4: tonnes | X4: =Cat6Tot ->  | Z4: tonnes
D5: Amount (nutrition) | F5: Equivalent daily values (based on 2000 kcal diet from US FDA) | H5: Amount (nutrition) | J5: Equivalent daily values (based on 2000 kcal diet from US FDA) | L5: Amount (nutrition) | N5: Equivalent daily values (based on 2000 kcal diet from US FDA) | P5: Amount (nutrition) | R5: Equivalent daily values (based on 2000 kcal diet from US FDA) | T5: Amount (nutrition) | V5: Equivalent daily values (based on 2000 kcal diet from US FDA) | X5: Amount (nutrition) | Z5: Equivalent daily values (based on 2000 kcal diet from US FDA)
C6: Energy | D6: =(AgTotCat1+PostHarvTotCat1+ProcTotCat1+DistTotCat1+ConsTotCat1)*grams_tonne*INDEX('C2. Nutrition data'!$D$4:$AW$29,MATCH(D$3,'C2. Nutrition data'!$B$4:$B$29,0),MATCH($C6,'C2. Nutrition data'!$D$3:$AW$3,0))/grams100 ->  | E6: (kcal) | F6: =D6/INDEX('C2. Nutrition data'!$D$32:$AW$32,MATCH($C6,'C2. Nutrition data'!$D$3:$AW$3,0)) ->  | G6: =RANK(F6,F$6:F$32,1)+COUNTIF(F$6:F6,F6)-1 ->  | H6: =(AgTotCat2+PostHarvTotCat2+ProcTotCat2+DistTotCat2+ConsTotCat2)*grams_tonne*INDEX('C2. Nutrition data'!$D$4:$AW$30,MATCH($H$3,'C2. Nutrition data'!$B$4:$B$30,0),MATCH('B3. Result table, nutrition'!$C6,'C2. Nutrition data'!$D$3:$AW$3,0))/grams100 ->  | I6: (kcal) | J6: =H6/INDEX('C2. Nutrition data'!$D$32:$AW$32,MATCH($C6,'C2. Nutrition data'!$D$3:$AW$3,0)) ->  | K6: =RANK(J6,J$6:J$32,1)+COUNTIF(J$6:J6,J6)-1 ->  | L6: =(AgTotCat3+PostHarvTotCat3+ProcTotCat3+DistTotCat3+ConsTotCat3)*grams_tonne*INDEX('C2. Nutrition data'!$D$4:$AW$30,MATCH($L$3,'C2. Nutrition data'!$B$4:$B$30,0),MATCH('B3. Result table, nutrition'!$C6,'C2. Nutrition data'!$D$3:$AW$3,0))/grams100 ->  | M6: (kcal) | N6: =L6/INDEX('C2. Nutrition data'!$D$32:$AW$32,MATCH($C6,'C2. Nutrition data'!$D$3:$AW$3,0)) ->  | O6: =RANK(N6,N$6:N$32,1)+COUNTIF(N$6:N6,N6)-1 ->  | P6: =(AgTotCat4+PostHarvTotCat4+ProcTotCat4+DistTotCat4+ConsTotCat4)*grams_tonne*INDEX('C2. Nutrition data'!$D$4:$AW$30,MATCH($P$3,'C2. Nutrition data'!$B$4:$B$30,0),MATCH('B3. Result table, nutrition'!$C6,'C2. Nutrition data'!$D$3:$AW$3,0))/grams100 ->  | Q6: (kcal) | R6: =P6/INDEX('C2. Nutrition data'!$D$32:$AW$32,MATCH($C6,'C2. Nutrition data'!$D$3:$AW$3,0)) ->  | S6: =RANK(R6,R$6:R$32,1)+COUNTIF(R$6:R6,R6)-1 ->  | T6: =(AgTotCat5+PostHarvTotCat5+ProcTotCat5+DistTotCat5+ConsTotCat5)*grams_tonne*INDEX('C2. Nutrition data'!$D$4:$AW$30,MATCH($T$3,'C2. Nutrition data'!$B$4:$B$30,0),MATCH('B3. Result table, nutrition'!$C6,'C2. Nutrition data'!$D$3:$AW$3,0))/grams100 ->  | U6: (kcal) | V6: =T6/INDEX('C2. Nutrition data'!$D$32:$AW$32,MATCH($C6,'C2. Nutrition data'!$D$3:$AW$3,0)) ->  | W6: =RANK(V6,V$6:V$32,1)+COUNTIF(V$6:V6,V6)-1 ->  | X6: =(AgTotCat6+PostHarvTotCat6+ProcTotCat6+DistTotCat6+ConsTotCat6)*grams_tonne*INDEX('C2. Nutrition data'!$D$4:$AW$30,MATCH($X$3,'C2. Nutrition data'!$B$4:$B$30,0),MATCH('B3. Result table, nutrition'!$C6,'C2. Nutrition data'!$D$3:$AW$3,0))/grams100 ->  | Y6: (kcal) | Z6: =X6/INDEX('C2. Nutrition data'!$D$32:$AW$32,MATCH($C6,'C2. Nutrition data'!$D$3:$AW$3,0)) ->  | AA6: =RANK(Z6,Z$6:Z$32,1)+COUNTIF(Z$6:Z6,Z6)-1 -> 
C7: Protein | D7: =(AgTotCat1+PostHarvTotCat1+ProcTotCat1+DistTotCat1+ConsTotCat1)*grams_tonne*INDEX('C2. Nutrition data'!$D$4:$AW$29,MATCH(D$3,'C2. Nutrition data'!$B$4:$B$29,0),MATCH($C7,'C2. Nutrition data'!$D$3:$AW$3,0))/grams100 ->  | E7: (g) | F7: =D7/INDEX('C2. Nutrition data'!$D$32:$AW$32,MATCH($C7,'C2. Nutrition data'!$D$3:$AW$3,0)) ->  | G7: =RANK(F7,F$6:F$32,1)+COUNTIF(F$6:F7,F7)-1 ->  | H7: =(AgTotCat2+PostHarvTotCat2+ProcTotCat2+DistTotCat2+ConsTotCat2)*grams_tonne*INDEX('C2. Nutrition data'!$D$4:$AW$30,MATCH($H$3,'C2. Nutrition data'!$B$4:$B$30,0),MATCH('B3. Result table, nutrition'!$C7,'C2. Nutrition data'!$D$3:$AW$3,0))/grams100 ->  | I7: (g) | J7: =H7/INDEX('C2. Nutrition data'!$D$32:$AW$32,MATCH($C7,'C2. Nutrition data'!$D$3:$AW$3,0)) ->  | K7: =RANK(J7,J$6:J$32,1)+COUNTIF(J$6:J7,J7)-1 ->  | L7: =(AgTotCat3+PostHarvTotCat3+ProcTotCat3+DistTotCat3+ConsTotCat3)*grams_tonne*INDEX('C2. Nutrition data'!$D$4:$AW$30,MATCH($L$3,'C2. Nutrition data'!$B$4:$B$30,0),MATCH('B3. Result table, nutrition'!$C7,'C2. Nutrition data'!$D$3:$AW$3,0))/grams100 ->  | M7: (g) | N7: =L7/INDEX('C2. Nutrition data'!$D$32:$AW$32,MATCH($C7,'C2. Nutrition data'!$D$3:$AW$3,0)) ->  | O7: =RANK(N7,N$6:N$32,1)+COUNTIF(N$6:N7,N7)-1 ->  | P7: =(AgTotCat4+PostHarvTotCat4+ProcTotCat4+DistTotCat4+ConsTotCat4)*grams_tonne*INDEX('C2. Nutrition data'!$D$4:$AW$30,MATCH($P$3,'C2. Nutrition data'!$B$4:$B$30,0),MATCH('B3. Result table, nutrition'!$C7,'C2. Nutrition data'!$D$3:$AW$3,0))/grams100 ->  | Q7: (g) | R7: =P7/INDEX('C2. Nutrition data'!$D$32:$AW$32,MATCH($C7,'C2. Nutrition data'!$D$3:$AW$3,0)) ->  | S7: =RANK(R7,R$6:R$32,1)+COUNTIF(R$6:R7,R7)-1 ->  | T7: =(AgTotCat5+PostHarvTotCat5+ProcTotCat5+DistTotCat5+ConsTotCat5)*grams_tonne*INDEX('C2. Nutrition data'!$D$4:$AW$30,MATCH($T$3,'C2. Nutrition data'!$B$4:$B$30,0),MATCH('B3. Result table, nutrition'!$C7,'C2. Nutrition data'!$D$3:$AW$3,0))/grams100 ->  | U7: (g) | V7: =T7/INDEX('C2. Nutrition data'!$D$32:$AW$32,MATCH($C7,'C2. Nutrition data'!$D$3:$AW$3,0)) ->  | W7: =RANK(V7,V$6:V$32,1)+COUNTIF(V$6:V7,V7)-1 ->  | X7: =(AgTotCat6+PostHarvTotCat6+ProcTotCat6+DistTotCat6+ConsTotCat6)*grams_tonne*INDEX('C2. Nutrition data'!$D$4:$AW$30,MATCH($X$3,'C2. Nutrition data'!$B$4:$B$30,0),MATCH('B3. Result table, nutrition'!$C7,'C2. Nutrition data'!$D$3:$AW$3,0))/grams100 ->  | Y7: (g) | Z7: =X7/INDEX('C2. Nutrition data'!$D$32:$AW$32,MATCH($C7,'C2. Nutrition data'!$D$3:$AW$3,0)) ->  | AA7: =RANK(Z7,Z$6:Z$32,1)+COUNTIF(Z$6:Z7,Z7)-1 -> 
C8: Carbohydrates | D8: =(AgTotCat1+PostHarvTotCat1+ProcTotCat1+DistTotCat1+ConsTotCat1)*grams_tonne*INDEX('C2. Nutrition data'!$D$4:$AW$29,MATCH(D$3,'C2. Nutrition data'!$B$4:$B$29,0),MATCH($C8,'C2. Nutrition data'!$D$3:$AW$3,0))/grams100 ->  | E8: (g) | F8: =D8/INDEX('C2. Nutrition data'!$D$32:$AW$32,MATCH($C8,'C2. Nutrition data'!$D$3:$AW$3,0)) ->  | G8: =RANK(F8,F$6:F$32,1)+COUNTIF(F$6:F8,F8)-1 ->  | H8: =(AgTotCat2+PostHarvTotCat2+ProcTotCat2+DistTotCat2+ConsTotCat2)*grams_tonne*INDEX('C2. Nutrition data'!$D$4:$AW$30,MATCH($H$3,'C2. Nutrition data'!$B$4:$B$30,0),MATCH('B3. Result table, nutrition'!$C8,'C2. Nutrition data'!$D$3:$AW$3,0))/grams100 ->  | I8: (g) | J8: =H8/INDEX('C2. Nutrition data'!$D$32:$AW$32,MATCH($C8,'C2. Nutrition data'!$D$3:$AW$3,0)) ->  | K8: =RANK(J8,J$6:J$32,1)+COUNTIF(J$6:J8,J8)-1 ->  | L8: =(AgTotCat3+PostHarvTotCat3+ProcTotCat3+DistTotCat3+ConsTotCat3)*grams_tonne*INDEX('C2. Nutrition data'!$D$4:$AW$30,MATCH($L$3,'C2. Nutrition data'!$B$4:$B$30,0),MATCH('B3. Result table, nutrition'!$C8,'C2. Nutrition data'!$D$3:$AW$3,0))/grams100 ->  | M8: (g) | N8: =L8/INDEX('C2. Nutrition data'!$D$32:$AW$32,MATCH($C8,'C2. Nutrition data'!$D$3:$AW$3,0)) ->  | O8: =RANK(N8,N$6:N$32,1)+COUNTIF(N$6:N8,N8)-1 ->  | P8: =(AgTotCat4+PostHarvTotCat4+ProcTotCat4+DistTotCat4+ConsTotCat4)*grams_tonne*INDEX('C2. Nutrition data'!$D$4:$AW$30,MATCH($P$3,'C2. Nutrition data'!$B$4:$B$30,0),MATCH('B3. Result table, nutrition'!$C8,'C2. Nutrition data'!$D$3:$AW$3,0))/grams100 ->  | Q8: (g) | R8: =P8/INDEX('C2. Nutrition data'!$D$32:$AW$32,MATCH($C8,'C2. Nutrition data'!$D$3:$AW$3,0)) ->  | S8: =RANK(R8,R$6:R$32,1)+COUNTIF(R$6:R8,R8)-1 ->  | T8: =(AgTotCat5+PostHarvTotCat5+ProcTotCat5+DistTotCat5+ConsTotCat5)*grams_tonne*INDEX('C2. Nutrition data'!$D$4:$AW$30,MATCH($T$3,'C2. Nutrition data'!$B$4:$B$30,0),MATCH('B3. Result table, nutrition'!$C8,'C2. Nutrition data'!$D$3:$AW$3,0))/grams100 ->  | U8: (g) | V8: =T8/INDEX('C2. Nutrition data'!$D$32:$AW$32,MATCH($C8,'C2. Nutrition data'!$D$3:$AW$3,0)) ->  | W8: =RANK(V8,V$6:V$32,1)+COUNTIF(V$6:V8,V8)-1 ->  | X8: =(AgTotCat6+PostHarvTotCat6+ProcTotCat6+DistTotCat6+ConsTotCat6)*grams_tonne*INDEX('C2. Nutrition data'!$D$4:$AW$30,MATCH($X$3,'C2. Nutrition data'!$B$4:$B$30,0),MATCH('B3. Result table, nutrition'!$C8,'C2. Nutrition data'!$D$3:$AW$3,0))/grams100 ->  | Y8: (g) | Z8: =X8/INDEX('C2. Nutrition data'!$D$32:$AW$32,MATCH($C8,'C2. Nutrition data'!$D$3:$AW$3,0)) ->  | AA8: =RANK(Z8,Z$6:Z$32,1)+COUNTIF(Z$6:Z8,Z8)-1 -> 
C9: Fiber | D9: =(AgTotCat1+PostHarvTotCat1+ProcTotCat1+DistTotCat1+ConsTotCat1)*grams_tonne*INDEX('C2. Nutrition data'!$D$4:$AW$29,MATCH(D$3,'C2. Nutrition data'!$B$4:$B$29,0),MATCH($C9,'C2. Nutrition data'!$D$3:$AW$3,0))/grams100 ->  | E9: (g) | F9: =D9/INDEX('C2. Nutrition data'!$D$32:$AW$32,MATCH($C9,'C2. Nutrition data'!$D$3:$AW$3,0)) ->  | G9: =RANK(F9,F$6:F$32,1)+COUNTIF(F$6:F9,F9)-1 ->  | H9: =(AgTotCat2+PostHarvTotCat2+ProcTotCat2+DistTotCat2+ConsTotCat2)*grams_tonne*INDEX('C2. Nutrition data'!$D$4:$AW$30,MATCH($H$3,'C2. Nutrition data'!$B$4:$B$30,0),MATCH('B3. Result table, nutrition'!$C9,'C2. Nutrition data'!$D$3:$AW$3,0))/grams100 ->  | I9: (g) | J9: =H9/INDEX('C2. Nutrition data'!$D$32:$AW$32,MATCH($C9,'C2. Nutrition data'!$D$3:$AW$3,0)) ->  | K9: =RANK(J9,J$6:J$32,1)+COUNTIF(J$6:J9,J9)-1 ->  | L9: =(AgTotCat3+PostHarvTotCat3+ProcTotCat3+DistTotCat3+ConsTotCat3)*grams_tonne*INDEX('C2. Nutrition data'!$D$4:$AW$30,MATCH($L$3,'C2. Nutrition data'!$B$4:$B$30,0),MATCH('B3. Result table, nutrition'!$C9,'C2. Nutrition data'!$D$3:$AW$3,0))/grams100 ->  | M9: (g) | N9: =L9/INDEX('C2. Nutrition data'!$D$32:$AW$32,MATCH($C9,'C2. Nutrition data'!$D$3:$AW$3,0)) ->  | O9: =RANK(N9,N$6:N$32,1)+COUNTIF(N$6:N9,N9)-1 ->  | P9: =(AgTotCat4+PostHarvTotCat4+ProcTotCat4+DistTotCat4+ConsTotCat4)*grams_tonne*INDEX('C2. Nutrition data'!$D$4:$AW$30,MATCH($P$3,'C2. Nutrition data'!$B$4:$B$30,0),MATCH('B3. Result table, nutrition'!$C9,'C2. Nutrition data'!$D$3:$AW$3,0))/grams100 ->  | Q9: (g) | R9: =P9/INDEX('C2. Nutrition data'!$D$32:$AW$32,MATCH($C9,'C2. Nutrition data'!$D$3:$AW$3,0)) ->  | S9: =RANK(R9,R$6:R$32,1)+COUNTIF(R$6:R9,R9)-1 ->  | T9: =(AgTotCat5+PostHarvTotCat5+ProcTotCat5+DistTotCat5+ConsTotCat5)*grams_tonne*INDEX('C2. Nutrition data'!$D$4:$AW$30,MATCH($T$3,'C2. Nutrition data'!$B$4:$B$30,0),MATCH('B3. Result table, nutrition'!$C9,'C2. Nutrition data'!$D$3:$AW$3,0))/grams100 ->  | U9: (g) | V9: =T9/INDEX('C2. Nutrition data'!$D$32:$AW$32,MATCH($C9,'C2. Nutrition data'!$D$3:$AW$3,0)) ->  | W9: =RANK(V9,V$6:V$32,1)+COUNTIF(V$6:V9,V9)-1 ->  | X9: =(AgTotCat6+PostHarvTotCat6+ProcTotCat6+DistTotCat6+ConsTotCat6)*grams_tonne*INDEX('C2. Nutrition data'!$D$4:$AW$30,MATCH($X$3,'C2. Nutrition data'!$B$4:$B$30,0),MATCH('B3. Result table, nutrition'!$C9,'C2. Nutrition data'!$D$3:$AW$3,0))/grams100 ->  | Y9: (g) | Z9: =X9/INDEX('C2. Nutrition data'!$D$32:$AW$32,MATCH($C9,'C2. Nutrition data'!$D$3:$AW$3,0)) ->  | AA9: =RANK(Z9,Z$6:Z$32,1)+COUNTIF(Z$6:Z9,Z9)-1 -> 
C10: Calcium | D10: =(AgTotCat1+PostHarvTotCat1+ProcTotCat1+DistTotCat1+ConsTotCat1)*grams_tonne*INDEX('C2. Nutrition data'!$D$4:$AW$29,MATCH(D$3,'C2. Nutrition data'!$B$4:$B$29,0),MATCH($C10,'C2. Nutrition data'!$D$3:$AW$3,0))/grams100 ->  | E10: (mg) | F10: =D10/INDEX('C2. Nutrition data'!$D$32:$AW$32,MATCH($C10,'C2. Nutrition data'!$D$3:$AW$3,0)) ->  | G10: =RANK(F10,F$6:F$32,1)+COUNTIF(F$6:F10,F10)-1 ->  | H10: =(AgTotCat2+PostHarvTotCat2+ProcTotCat2+DistTotCat2+ConsTotCat2)*grams_tonne*INDEX('C2. Nutrition data'!$D$4:$AW$30,MATCH($H$3,'C2. Nutrition data'!$B$4:$B$30,0),MATCH('B3. Result table, nutrition'!$C10,'C2. Nutrition data'!$D$3:$AW$3,0))/grams100 ->  | I10: (mg) | J10: =H10/INDEX('C2. Nutrition data'!$D$32:$AW$32,MATCH($C10,'C2. Nutrition data'!$D$3:$AW$3,0)) ->  | K10: =RANK(J10,J$6:J$32,1)+COUNTIF(J$6:J10,J10)-1 ->  | L10: =(AgTotCat3+PostHarvTotCat3+ProcTotCat3+DistTotCat3+ConsTotCat3)*grams_tonne*INDEX('C2. Nutrition data'!$D$4:$AW$30,MATCH($L$3,'C2. Nutrition data'!$B$4:$B$30,0),MATCH('B3. Result table, nutrition'!$C10,'C2. Nutrition data'!$D$3:$AW$3,0))/grams100 ->  | M10: (mg) | N10: =L10/INDEX('C2. Nutrition data'!$D$32:$AW$32,MATCH($C10,'C2. Nutrition data'!$D$3:$AW$3,0)) ->  | O10: =RANK(N10,N$6:N$32,1)+COUNTIF(N$6:N10,N10)-1 ->  | P10: =(AgTotCat4+PostHarvTotCat4+ProcTotCat4+DistTotCat4+ConsTotCat4)*grams_tonne*INDEX('C2. Nutrition data'!$D$4:$AW$30,MATCH($P$3,'C2. Nutrition data'!$B$4:$B$30,0),MATCH('B3. Result table, nutrition'!$C10,'C2. Nutrition data'!$D$3:$AW$3,0))/grams100 ->  | Q10: (mg) | R10: =P10/INDEX('C2. Nutrition data'!$D$32:$AW$32,MATCH($C10,'C2. Nutrition data'!$D$3:$AW$3,0)) ->  | S10: =RANK(R10,R$6:R$32,1)+COUNTIF(R$6:R10,R10)-1 ->  | T10: =(AgTotCat5+PostHarvTotCat5+ProcTotCat5+DistTotCat5+ConsTotCat5)*grams_tonne*INDEX('C2. Nutrition data'!$D$4:$AW$30,MATCH($T$3,'C2. Nutrition data'!$B$4:$B$30,0),MATCH('B3. Result table, nutrition'!$C10,'C2. Nutrition data'!$D$3:$AW$3,0))/grams100 ->  | U10: (mg) | V10: =T10/INDEX('C2. Nutrition data'!$D$32:$AW$32,MATCH($C10,'C2. Nutrition data'!$D$3:$AW$3,0)) ->  | W10: =RANK(V10,V$6:V$32,1)+COUNTIF(V$6:V10,V10)-1 ->  | X10: =(AgTotCat6+PostHarvTotCat6+ProcTotCat6+DistTotCat6+ConsTotCat6)*grams_tonne*INDEX('C2. Nutrition data'!$D$4:$AW$30,MATCH($X$3,'C2. Nutrition data'!$B$4:$B$30,0),MATCH('B3. Result table, nutrition'!$C10,'C2. Nutrition data'!$D$3:$AW$3,0))/grams100 ->  | Y10: (mg) | Z10: =X10/INDEX('C2. Nutrition data'!$D$32:$AW$32,MATCH($C10,'C2. Nutrition data'!$D$3:$AW$3,0)) ->  | AA10: =RANK(Z10,Z$6:Z$32,1)+COUNTIF(Z$6:Z10,Z10)-1 -> 
C11: Choline | D11: =(AgTotCat1+PostHarvTotCat1+ProcTotCat1+DistTotCat1+ConsTotCat1)*grams_tonne*INDEX('C2. Nutrition data'!$D$4:$AW$29,MATCH(D$3,'C2. Nutrition data'!$B$4:$B$29,0),MATCH($C11,'C2. Nutrition data'!$D$3:$AW$3,0))/grams100 ->  | E11: (mg) | F11: =D11/INDEX('C2. Nutrition data'!$D$32:$AW$32,MATCH($C11,'C2. Nutrition data'!$D$3:$AW$3,0)) ->  | G11: =RANK(F11,F$6:F$32,1)+COUNTIF(F$6:F11,F11)-1 ->  | H11: =(AgTotCat2+PostHarvTotCat2+ProcTotCat2+DistTotCat2+ConsTotCat2)*grams_tonne*INDEX('C2. Nutrition data'!$D$4:$AW$30,MATCH($H$3,'C2. Nutrition data'!$B$4:$B$30,0),MATCH('B3. Result table, nutrition'!$C11,'C2. Nutrition data'!$D$3:$AW$3,0))/grams100 ->  | I11: (mg) | J11: =H11/INDEX('C2. Nutrition data'!$D$32:$AW$32,MATCH($C11,'C2. Nutrition data'!$D$3:$AW$3,0)) ->  | K11: =RANK(J11,J$6:J$32,1)+COUNTIF(J$6:J11,J11)-1 ->  | L11: =(AgTotCat3+PostHarvTotCat3+ProcTotCat3+DistTotCat3+ConsTotCat3)*grams_tonne*INDEX('C2. Nutrition data'!$D$4:$AW$30,MATCH($L$3,'C2. Nutrition data'!$B$4:$B$30,0),MATCH('B3. Result table, nutrition'!$C11,'C2. Nutrition data'!$D$3:$AW$3,0))/grams100 ->  | M11: (mg) | N11: =L11/INDEX('C2. Nutrition data'!$D$32:$AW$32,MATCH($C11,'C2. Nutrition data'!$D$3:$AW$3,0)) ->  | O11: =RANK(N11,N$6:N$32,1)+COUNTIF(N$6:N11,N11)-1 ->  | P11: =(AgTotCat4+PostHarvTotCat4+ProcTotCat4+DistTotCat4+ConsTotCat4)*grams_tonne*INDEX('C2. Nutrition data'!$D$4:$AW$30,MATCH($P$3,'C2. Nutrition data'!$B$4:$B$30,0),MATCH('B3. Result table, nutrition'!$C11,'C2. Nutrition data'!$D$3:$AW$3,0))/grams100 ->  | Q11: (mg) | R11: =P11/INDEX('C2. Nutrition data'!$D$32:$AW$32,MATCH($C11,'C2. Nutrition data'!$D$3:$AW$3,0)) ->  | S11: =RANK(R11,R$6:R$32,1)+COUNTIF(R$6:R11,R11)-1 ->  | T11: =(AgTotCat5+PostHarvTotCat5+ProcTotCat5+DistTotCat5+ConsTotCat5)*grams_tonne*INDEX('C2. Nutrition data'!$D$4:$AW$30,MATCH($T$3,'C2. Nutrition data'!$B$4:$B$30,0),MATCH('B3. Result table, nutrition'!$C11,'C2. Nutrition data'!$D$3:$AW$3,0))/grams100 ->  | U11: (mg) | V11: =T11/INDEX('C2. Nutrition data'!$D$32:$AW$32,MATCH($C11,'C2. Nutrition data'!$D$3:$AW$3,0)) ->  | W11: =RANK(V11,V$6:V$32,1)+COUNTIF(V$6:V11,V11)-1 ->  | X11: =(AgTotCat6+PostHarvTotCat6+ProcTotCat6+DistTotCat6+ConsTotCat6)*grams_tonne*INDEX('C2. Nutrition data'!$D$4:$AW$30,MATCH($X$3,'C2. Nutrition data'!$B$4:$B$30,0),MATCH('B3. Result table, nutrition'!$C11,'C2. Nutrition data'!$D$3:$AW$3,0))/grams100 ->  | Y11: (mg) | Z11: =X11/INDEX('C2. Nutrition data'!$D$32:$AW$32,MATCH($C11,'C2. Nutrition data'!$D$3:$AW$3,0)) ->  | AA11: =RANK(Z11,Z$6:Z$32,1)+COUNTIF(Z$6:Z11,Z11)-1 -> 
C12: Copper | D12: =(AgTotCat1+PostHarvTotCat1+ProcTotCat1+DistTotCat1+ConsTotCat1)*grams_tonne*INDEX('C2. Nutrition data'!$D$4:$AW$29,MATCH(D$3,'C2. Nutrition data'!$B$4:$B$29,0),MATCH($C12,'C2. Nutrition data'!$D$3:$AW$3,0))/grams100 ->  | E12: (mg) | F12: =D12/INDEX('C2. Nutrition data'!$D$32:$AW$32,MATCH($C12,'C2. Nutrition data'!$D$3:$AW$3,0)) ->  | G12: =RANK(F12,F$6:F$32,1)+COUNTIF(F$6:F12,F12)-1 ->  | H12: =(AgTotCat2+PostHarvTotCat2+ProcTotCat2+DistTotCat2+ConsTotCat2)*grams_tonne*INDEX('C2. Nutrition data'!$D$4:$AW$30,MATCH($H$3,'C2. Nutrition data'!$B$4:$B$30,0),MATCH('B3. Result table, nutrition'!$C12,'C2. Nutrition data'!$D$3:$AW$3,0))/grams100 ->  | I12: (mg) | J12: =H12/INDEX('C2. Nutrition data'!$D$32:$AW$32,MATCH($C12,'C2. Nutrition data'!$D$3:$AW$3,0)) ->  | K12: =RANK(J12,J$6:J$32,1)+COUNTIF(J$6:J12,J12)-1 ->  | L12: =(AgTotCat3+PostHarvTotCat3+ProcTotCat3+DistTotCat3+ConsTotCat3)*grams_tonne*INDEX('C2. Nutrition data'!$D$4:$AW$30,MATCH($L$3,'C2. Nutrition data'!$B$4:$B$30,0),MATCH('B3. Result table, nutrition'!$C12,'C2. Nutrition data'!$D$3:$AW$3,0))/grams100 ->  | M12: (mg) | N12: =L12/INDEX('C2. Nutrition data'!$D$32:$AW$32,MATCH($C12,'C2. Nutrition data'!$D$3:$AW$3,0)) ->  | O12: =RANK(N12,N$6:N$32,1)+COUNTIF(N$6:N12,N12)-1 ->  | P12: =(AgTotCat4+PostHarvTotCat4+ProcTotCat4+DistTotCat4+ConsTotCat4)*grams_tonne*INDEX('C2. Nutrition data'!$D$4:$AW$30,MATCH($P$3,'C2. Nutrition data'!$B$4:$B$30,0),MATCH('B3. Result table, nutrition'!$C12,'C2. Nutrition data'!$D$3:$AW$3,0))/grams100 ->  | Q12: (mg) | R12: =P12/INDEX('C2. Nutrition data'!$D$32:$AW$32,MATCH($C12,'C2. Nutrition data'!$D$3:$AW$3,0)) ->  | S12: =RANK(R12,R$6:R$32,1)+COUNTIF(R$6:R12,R12)-1 ->  | T12: =(AgTotCat5+PostHarvTotCat5+ProcTotCat5+DistTotCat5+ConsTotCat5)*grams_tonne*INDEX('C2. Nutrition data'!$D$4:$AW$30,MATCH($T$3,'C2. Nutrition data'!$B$4:$B$30,0),MATCH('B3. Result table, nutrition'!$C12,'C2. Nutrition data'!$D$3:$AW$3,0))/grams100 ->  | U12: (mg) | V12: =T12/INDEX('C2. Nutrition data'!$D$32:$AW$32,MATCH($C12,'C2. Nutrition data'!$D$3:$AW$3,0)) ->  | W12: =RANK(V12,V$6:V$32,1)+COUNTIF(V$6:V12,V12)-1 ->  | X12: =(AgTotCat6+PostHarvTotCat6+ProcTotCat6+DistTotCat6+ConsTotCat6)*grams_tonne*INDEX('C2. Nutrition data'!$D$4:$AW$30,MATCH($X$3,'C2. Nutrition data'!$B$4:$B$30,0),MATCH('B3. Result table, nutrition'!$C12,'C2. Nutrition data'!$D$3:$AW$3,0))/grams100 ->  | Y12: (mg) | Z12: =X12/INDEX('C2. Nutrition data'!$D$32:$AW$32,MATCH($C12,'C2. Nutrition data'!$D$3:$AW$3,0)) ->  | AA12: =RANK(Z12,Z$6:Z$32,1)+COUNTIF(Z$6:Z12,Z12)-1 -> 
C13: Food folate | D13: =(AgTotCat1+PostHarvTotCat1+ProcTotCat1+DistTotCat1+ConsTotCat1)*grams_tonne*INDEX('C2. Nutrition data'!$D$4:$AW$29,MATCH(D$3,'C2. Nutrition data'!$B$4:$B$29,0),MATCH($C13,'C2. Nutrition data'!$D$3:$AW$3,0))/grams100 ->  | E13: (mg) | F13: =D13/INDEX('C2. Nutrition data'!$D$32:$AW$32,MATCH($C13,'C2. Nutrition data'!$D$3:$AW$3,0)) ->  | G13: =RANK(F13,F$6:F$32,1)+COUNTIF(F$6:F13,F13)-1 ->  | H13: =(AgTotCat2+PostHarvTotCat2+ProcTotCat2+DistTotCat2+ConsTotCat2)*grams_tonne*INDEX('C2. Nutrition data'!$D$4:$AW$30,MATCH($H$3,'C2. Nutrition data'!$B$4:$B$30,0),MATCH('B3. Result table, nutrition'!$C13,'C2. Nutrition data'!$D$3:$AW$3,0))/grams100 ->  | I13: (mg) | J13: =H13/INDEX('C2. Nutrition data'!$D$32:$AW$32,MATCH($C13,'C2. Nutrition data'!$D$3:$AW$3,0)) ->  | K13: =RANK(J13,J$6:J$32,1)+COUNTIF(J$6:J13,J13)-1 ->  | L13: =(AgTotCat3+PostHarvTotCat3+ProcTotCat3+DistTotCat3+ConsTotCat3)*grams_tonne*INDEX('C2. Nutrition data'!$D$4:$AW$30,MATCH($L$3,'C2. Nutrition data'!$B$4:$B$30,0),MATCH('B3. Result table, nutrition'!$C13,'C2. Nutrition data'!$D$3:$AW$3,0))/grams100 ->  | M13: (mg) | N13: =L13/INDEX('C2. Nutrition data'!$D$32:$AW$32,MATCH($C13,'C2. Nutrition data'!$D$3:$AW$3,0)) ->  | O13: =RANK(N13,N$6:N$32,1)+COUNTIF(N$6:N13,N13)-1 ->  | P13: =(AgTotCat4+PostHarvTotCat4+ProcTotCat4+DistTotCat4+ConsTotCat4)*grams_tonne*INDEX('C2. Nutrition data'!$D$4:$AW$30,MATCH($P$3,'C2. Nutrition data'!$B$4:$B$30,0),MATCH('B3. Result table, nutrition'!$C13,'C2. Nutrition data'!$D$3:$AW$3,0))/grams100 ->  | Q13: (mg) | R13: =P13/INDEX('C2. Nutrition data'!$D$32:$AW$32,MATCH($C13,'C2. Nutrition data'!$D$3:$AW$3,0)) ->  | S13: =RANK(R13,R$6:R$32,1)+COUNTIF(R$6:R13,R13)-1 ->  | T13: =(AgTotCat5+PostHarvTotCat5+ProcTotCat5+DistTotCat5+ConsTotCat5)*grams_tonne*INDEX('C2. Nutrition data'!$D$4:$AW$30,MATCH($T$3,'C2. Nutrition data'!$B$4:$B$30,0),MATCH('B3. Result table, nutrition'!$C13,'C2. Nutrition data'!$D$3:$AW$3,0))/grams100 ->  | U13: (mg) | V13: =T13/INDEX('C2. Nutrition data'!$D$32:$AW$32,MATCH($C13,'C2. Nutrition data'!$D$3:$AW$3,0)) ->  | W13: =RANK(V13,V$6:V$32,1)+COUNTIF(V$6:V13,V13)-1 ->  | X13: =(AgTotCat6+PostHarvTotCat6+ProcTotCat6+DistTotCat6+ConsTotCat6)*grams_tonne*INDEX('C2. Nutrition data'!$D$4:$AW$30,MATCH($X$3,'C2. Nutrition data'!$B$4:$B$30,0),MATCH('B3. Result table, nutrition'!$C13,'C2. Nutrition data'!$D$3:$AW$3,0))/grams100 ->  | Y13: (mg) | Z13: =X13/INDEX('C2. Nutrition data'!$D$32:$AW$32,MATCH($C13,'C2. Nutrition data'!$D$3:$AW$3,0)) ->  | AA13: =RANK(Z13,Z$6:Z$32,1)+COUNTIF(Z$6:Z13,Z13)-1 -> 
C14: Iron | D14: =(AgTotCat1+PostHarvTotCat1+ProcTotCat1+DistTotCat1+ConsTotCat1)*grams_tonne*INDEX('C2. Nutrition data'!$D$4:$AW$29,MATCH(D$3,'C2. Nutrition data'!$B$4:$B$29,0),MATCH($C14,'C2. Nutrition data'!$D$3:$AW$3,0))/grams100 ->  | E14: (mg) | F14: =D14/INDEX('C2. Nutrition data'!$D$32:$AW$32,MATCH($C14,'C2. Nutrition data'!$D$3:$AW$3,0)) ->  | G14: =RANK(F14,F$6:F$32,1)+COUNTIF(F$6:F14,F14)-1 ->  | H14: =(AgTotCat2+PostHarvTotCat2+ProcTotCat2+DistTotCat2+ConsTotCat2)*grams_tonne*INDEX('C2. Nutrition data'!$D$4:$AW$30,MATCH($H$3,'C2. Nutrition data'!$B$4:$B$30,0),MATCH('B3. Result table, nutrition'!$C14,'C2. Nutrition data'!$D$3:$AW$3,0))/grams100 ->  | I14: (mg) | J14: =H14/INDEX('C2. Nutrition data'!$D$32:$AW$32,MATCH($C14,'C2. Nutrition data'!$D$3:$AW$3,0)) ->  | K14: =RANK(J14,J$6:J$32,1)+COUNTIF(J$6:J14,J14)-1 ->  | L14: =(AgTotCat3+PostHarvTotCat3+ProcTotCat3+DistTotCat3+ConsTotCat3)*grams_tonne*INDEX('C2. Nutrition data'!$D$4:$AW$30,MATCH($L$3,'C2. Nutrition data'!$B$4:$B$30,0),MATCH('B3. Result table, nutrition'!$C14,'C2. Nutrition data'!$D$3:$AW$3,0))/grams100 ->  | M14: (mg) | N14: =L14/INDEX('C2. Nutrition data'!$D$32:$AW$32,MATCH($C14,'C2. Nutrition data'!$D$3:$AW$3,0)) ->  | O14: =RANK(N14,N$6:N$32,1)+COUNTIF(N$6:N14,N14)-1 ->  | P14: =(AgTotCat4+PostHarvTotCat4+ProcTotCat4+DistTotCat4+ConsTotCat4)*grams_tonne*INDEX('C2. Nutrition data'!$D$4:$AW$30,MATCH($P$3,'C2. Nutrition data'!$B$4:$B$30,0),MATCH('B3. Result table, nutrition'!$C14,'C2. Nutrition data'!$D$3:$AW$3,0))/grams100 ->  | Q14: (mg) | R14: =P14/INDEX('C2. Nutrition data'!$D$32:$AW$32,MATCH($C14,'C2. Nutrition data'!$D$3:$AW$3,0)) ->  | S14: =RANK(R14,R$6:R$32,1)+COUNTIF(R$6:R14,R14)-1 ->  | T14: =(AgTotCat5+PostHarvTotCat5+ProcTotCat5+DistTotCat5+ConsTotCat5)*grams_tonne*INDEX('C2. Nutrition data'!$D$4:$AW$30,MATCH($T$3,'C2. Nutrition data'!$B$4:$B$30,0),MATCH('B3. Result table, nutrition'!$C14,'C2. Nutrition data'!$D$3:$AW$3,0))/grams100 ->  | U14: (mg) | V14: =T14/INDEX('C2. Nutrition data'!$D$32:$AW$32,MATCH($C14,'C2. Nutrition data'!$D$3:$AW$3,0)) ->  | W14: =RANK(V14,V$6:V$32,1)+COUNTIF(V$6:V14,V14)-1 ->  | X14: =(AgTotCat6+PostHarvTotCat6+ProcTotCat6+DistTotCat6+ConsTotCat6)*grams_tonne*INDEX('C2. Nutrition data'!$D$4:$AW$30,MATCH($X$3,'C2. Nutrition data'!$B$4:$B$30,0),MATCH('B3. Result table, nutrition'!$C14,'C2. Nutrition data'!$D$3:$AW$3,0))/grams100 ->  | Y14: (mg) | Z14: =X14/INDEX('C2. Nutrition data'!$D$32:$AW$32,MATCH($C14,'C2. Nutrition data'!$D$3:$AW$3,0)) ->  | AA14: =RANK(Z14,Z$6:Z$32,1)+COUNTIF(Z$6:Z14,Z14)-1 -> 
C15: Magnesium | D15: =(AgTotCat1+PostHarvTotCat1+ProcTotCat1+DistTotCat1+ConsTotCat1)*grams_tonne*INDEX('C2. Nutrition data'!$D$4:$AW$29,MATCH(D$3,'C2. Nutrition data'!$B$4:$B$29,0),MATCH($C15,'C2. Nutrition data'!$D$3:$AW$3,0))/grams100 ->  | E15: (mg) | F15: =D15/INDEX('C2. Nutrition data'!$D$32:$AW$32,MATCH($C15,'C2. Nutrition data'!$D$3:$AW$3,0)) ->  | G15: =RANK(F15,F$6:F$32,1)+COUNTIF(F$6:F15,F15)-1 ->  | H15: =(AgTotCat2+PostHarvTotCat2+ProcTotCat2+DistTotCat2+ConsTotCat2)*grams_tonne*INDEX('C2. Nutrition data'!$D$4:$AW$30,MATCH($H$3,'C2. Nutrition data'!$B$4:$B$30,0),MATCH('B3. Result table, nutrition'!$C15,'C2. Nutrition data'!$D$3:$AW$3,0))/grams100 ->  | I15: (mg) | J15: =H15/INDEX('C2. Nutrition data'!$D$32:$AW$32,MATCH($C15,'C2. Nutrition data'!$D$3:$AW$3,0)) ->  | K15: =RANK(J15,J$6:J$32,1)+COUNTIF(J$6:J15,J15)-1 ->  | L15: =(AgTotCat3+PostHarvTotCat3+ProcTotCat3+DistTotCat3+ConsTotCat3)*grams_tonne*INDEX('C2. Nutrition data'!$D$4:$AW$30,MATCH($L$3,'C2. Nutrition data'!$B$4:$B$30,0),MATCH('B3. Result table, nutrition'!$C15,'C2. Nutrition data'!$D$3:$AW$3,0))/grams100 ->  | M15: (mg) | N15: =L15/INDEX('C2. Nutrition data'!$D$32:$AW$32,MATCH($C15,'C2. Nutrition data'!$D$3:$AW$3,0)) ->  | O15: =RANK(N15,N$6:N$32,1)+COUNTIF(N$6:N15,N15)-1 ->  | P15: =(AgTotCat4+PostHarvTotCat4+ProcTotCat4+DistTotCat4+ConsTotCat4)*grams_tonne*INDEX('C2. Nutrition data'!$D$4:$AW$30,MATCH($P$3,'C2. Nutrition data'!$B$4:$B$30,0),MATCH('B3. Result table, nutrition'!$C15,'C2. Nutrition data'!$D$3:$AW$3,0))/grams100 ->  | Q15: (mg) | R15: =P15/INDEX('C2. Nutrition data'!$D$32:$AW$32,MATCH($C15,'C2. Nutrition data'!$D$3:$AW$3,0)) ->  | S15: =RANK(R15,R$6:R$32,1)+COUNTIF(R$6:R15,R15)-1 ->  | T15: =(AgTotCat5+PostHarvTotCat5+ProcTotCat5+DistTotCat5+ConsTotCat5)*grams_tonne*INDEX('C2. Nutrition data'!$D$4:$AW$30,MATCH($T$3,'C2. Nutrition data'!$B$4:$B$30,0),MATCH('B3. Result table, nutrition'!$C15,'C2. Nutrition data'!$D$3:$AW$3,0))/grams100 ->  | U15: (mg) | V15: =T15/INDEX('C2. Nutrition data'!$D$32:$AW$32,MATCH($C15,'C2. Nutrition data'!$D$3:$AW$3,0)) ->  | W15: =RANK(V15,V$6:V$32,1)+COUNTIF(V$6:V15,V15)-1 ->  | X15: =(AgTotCat6+PostHarvTotCat6+ProcTotCat6+DistTotCat6+ConsTotCat6)*grams_tonne*INDEX('C2. Nutrition data'!$D$4:$AW$30,MATCH($X$3,'C2. Nutrition data'!$B$4:$B$30,0),MATCH('B3. Result table, nutrition'!$C15,'C2. Nutrition data'!$D$3:$AW$3,0))/grams100 ->  | Y15: (mg) | Z15: =X15/INDEX('C2. Nutrition data'!$D$32:$AW$32,MATCH($C15,'C2. Nutrition data'!$D$3:$AW$3,0)) ->  | AA15: =RANK(Z15,Z$6:Z$32,1)+COUNTIF(Z$6:Z15,Z15)-1 -> 
C16: Manganese | D16: =(AgTotCat1+PostHarvTotCat1+ProcTotCat1+DistTotCat1+ConsTotCat1)*grams_tonne*INDEX('C2. Nutrition data'!$D$4:$AW$29,MATCH(D$3,'C2. Nutrition data'!$B$4:$B$29,0),MATCH($C16,'C2. Nutrition data'!$D$3:$AW$3,0))/grams100 ->  | E16: (mg) | F16: =D16/INDEX('C2. Nutrition data'!$D$32:$AW$32,MATCH($C16,'C2. Nutrition data'!$D$3:$AW$3,0)) ->  | G16: =RANK(F16,F$6:F$32,1)+COUNTIF(F$6:F16,F16)-1 ->  | H16: =(AgTotCat2+PostHarvTotCat2+ProcTotCat2+DistTotCat2+ConsTotCat2)*grams_tonne*INDEX('C2. Nutrition data'!$D$4:$AW$30,MATCH($H$3,'C2. Nutrition data'!$B$4:$B$30,0),MATCH('B3. Result table, nutrition'!$C16,'C2. Nutrition data'!$D$3:$AW$3,0))/grams100 ->  | I16: (mg) | J16: =H16/INDEX('C2. Nutrition data'!$D$32:$AW$32,MATCH($C16,'C2. Nutrition data'!$D$3:$AW$3,0)) ->  | K16: =RANK(J16,J$6:J$32,1)+COUNTIF(J$6:J16,J16)-1 ->  | L16: =(AgTotCat3+PostHarvTotCat3+ProcTotCat3+DistTotCat3+ConsTotCat3)*grams_tonne*INDEX('C2. Nutrition data'!$D$4:$AW$30,MATCH($L$3,'C2. Nutrition data'!$B$4:$B$30,0),MATCH('B3. Result table, nutrition'!$C16,'C2. Nutrition data'!$D$3:$AW$3,0))/grams100 ->  | M16: (mg) | N16: =L16/INDEX('C2. Nutrition data'!$D$32:$AW$32,MATCH($C16,'C2. Nutrition data'!$D$3:$AW$3,0)) ->  | O16: =RANK(N16,N$6:N$32,1)+COUNTIF(N$6:N16,N16)-1 ->  | P16: =(AgTotCat4+PostHarvTotCat4+ProcTotCat4+DistTotCat4+ConsTotCat4)*grams_tonne*INDEX('C2. Nutrition data'!$D$4:$AW$30,MATCH($P$3,'C2. Nutrition data'!$B$4:$B$30,0),MATCH('B3. Result table, nutrition'!$C16,'C2. Nutrition data'!$D$3:$AW$3,0))/grams100 ->  | Q16: (mg) | R16: =P16/INDEX('C2. Nutrition data'!$D$32:$AW$32,MATCH($C16,'C2. Nutrition data'!$D$3:$AW$3,0)) ->  | S16: =RANK(R16,R$6:R$32,1)+COUNTIF(R$6:R16,R16)-1 ->  | T16: =(AgTotCat5+PostHarvTotCat5+ProcTotCat5+DistTotCat5+ConsTotCat5)*grams_tonne*INDEX('C2. Nutrition data'!$D$4:$AW$30,MATCH($T$3,'C2. Nutrition data'!$B$4:$B$30,0),MATCH('B3. Result table, nutrition'!$C16,'C2. Nutrition data'!$D$3:$AW$3,0))/grams100 ->  | U16: (mg) | V16: =T16/INDEX('C2. Nutrition data'!$D$32:$AW$32,MATCH($C16,'C2. Nutrition data'!$D$3:$AW$3,0)) ->  | W16: =RANK(V16,V$6:V$32,1)+COUNTIF(V$6:V16,V16)-1 ->  | X16: =(AgTotCat6+PostHarvTotCat6+ProcTotCat6+DistTotCat6+ConsTotCat6)*grams_tonne*INDEX('C2. Nutrition data'!$D$4:$AW$30,MATCH($X$3,'C2. Nutrition data'!$B$4:$B$30,0),MATCH('B3. Result table, nutrition'!$C16,'C2. Nutrition data'!$D$3:$AW$3,0))/grams100 ->  | Y16: (mg) | Z16: =X16/INDEX('C2. Nutrition data'!$D$32:$AW$32,MATCH($C16,'C2. Nutrition data'!$D$3:$AW$3,0)) ->  | AA16: =RANK(Z16,Z$6:Z$32,1)+COUNTIF(Z$6:Z16,Z16)-1 -> 
C17: Niacin | D17: =(AgTotCat1+PostHarvTotCat1+ProcTotCat1+DistTotCat1+ConsTotCat1)*grams_tonne*INDEX('C2. Nutrition data'!$D$4:$AW$29,MATCH(D$3,'C2. Nutrition data'!$B$4:$B$29,0),MATCH($C17,'C2. Nutrition data'!$D$3:$AW$3,0))/grams100 ->  | E17: (mg) | F17: =D17/INDEX('C2. Nutrition data'!$D$32:$AW$32,MATCH($C17,'C2. Nutrition data'!$D$3:$AW$3,0)) ->  | G17: =RANK(F17,F$6:F$32,1)+COUNTIF(F$6:F17,F17)-1 ->  | H17: =(AgTotCat2+PostHarvTotCat2+ProcTotCat2+DistTotCat2+ConsTotCat2)*grams_tonne*INDEX('C2. Nutrition data'!$D$4:$AW$30,MATCH($H$3,'C2. Nutrition data'!$B$4:$B$30,0),MATCH('B3. Result table, nutrition'!$C17,'C2. Nutrition data'!$D$3:$AW$3,0))/grams100 ->  | I17: (mg) | J17: =H17/INDEX('C2. Nutrition data'!$D$32:$AW$32,MATCH($C17,'C2. Nutrition data'!$D$3:$AW$3,0)) ->  | K17: =RANK(J17,J$6:J$32,1)+COUNTIF(J$6:J17,J17)-1 ->  | L17: =(AgTotCat3+PostHarvTotCat3+ProcTotCat3+DistTotCat3+ConsTotCat3)*grams_tonne*INDEX('C2. Nutrition data'!$D$4:$AW$30,MATCH($L$3,'C2. Nutrition data'!$B$4:$B$30,0),MATCH('B3. Result table, nutrition'!$C17,'C2. Nutrition data'!$D$3:$AW$3,0))/grams100 ->  | M17: (mg) | N17: =L17/INDEX('C2. Nutrition data'!$D$32:$AW$32,MATCH($C17,'C2. Nutrition data'!$D$3:$AW$3,0)) ->  | O17: =RANK(N17,N$6:N$32,1)+COUNTIF(N$6:N17,N17)-1 ->  | P17: =(AgTotCat4+PostHarvTotCat4+ProcTotCat4+DistTotCat4+ConsTotCat4)*grams_tonne*INDEX('C2. Nutrition data'!$D$4:$AW$30,MATCH($P$3,'C2. Nutrition data'!$B$4:$B$30,0),MATCH('B3. Result table, nutrition'!$C17,'C2. Nutrition data'!$D$3:$AW$3,0))/grams100 ->  | Q17: (mg) | R17: =P17/INDEX('C2. Nutrition data'!$D$32:$AW$32,MATCH($C17,'C2. Nutrition data'!$D$3:$AW$3,0)) ->  | S17: =RANK(R17,R$6:R$32,1)+COUNTIF(R$6:R17,R17)-1 ->  | T17: =(AgTotCat5+PostHarvTotCat5+ProcTotCat5+DistTotCat5+ConsTotCat5)*grams_tonne*INDEX('C2. Nutrition data'!$D$4:$AW$30,MATCH($T$3,'C2. Nutrition data'!$B$4:$B$30,0),MATCH('B3. Result table, nutrition'!$C17,'C2. Nutrition data'!$D$3:$AW$3,0))/grams100 ->  | U17: (mg) | V17: =T17/INDEX('C2. Nutrition data'!$D$32:$AW$32,MATCH($C17,'C2. Nutrition data'!$D$3:$AW$3,0)) ->  | W17: =RANK(V17,V$6:V$32,1)+COUNTIF(V$6:V17,V17)-1 ->  | X17: =(AgTotCat6+PostHarvTotCat6+ProcTotCat6+DistTotCat6+ConsTotCat6)*grams_tonne*INDEX('C2. Nutrition data'!$D$4:$AW$30,MATCH($X$3,'C2. Nutrition data'!$B$4:$B$30,0),MATCH('B3. Result table, nutrition'!$C17,'C2. Nutrition data'!$D$3:$AW$3,0))/grams100 ->  | Y17: (mg) | Z17: =X17/INDEX('C2. Nutrition data'!$D$32:$AW$32,MATCH($C17,'C2. Nutrition data'!$D$3:$AW$3,0)) ->  | AA17: =RANK(Z17,Z$6:Z$32,1)+COUNTIF(Z$6:Z17,Z17)-1 -> 
C18: Panto acid | D18: =(AgTotCat1+PostHarvTotCat1+ProcTotCat1+DistTotCat1+ConsTotCat1)*grams_tonne*INDEX('C2. Nutrition data'!$D$4:$AW$29,MATCH(D$3,'C2. Nutrition data'!$B$4:$B$29,0),MATCH($C18,'C2. Nutrition data'!$D$3:$AW$3,0))/grams100 ->  | E18: (mg) | F18: =D18/INDEX('C2. Nutrition data'!$D$32:$AW$32,MATCH($C18,'C2. Nutrition data'!$D$3:$AW$3,0)) ->  | G18: =RANK(F18,F$6:F$32,1)+COUNTIF(F$6:F18,F18)-1 ->  | H18: =(AgTotCat2+PostHarvTotCat2+ProcTotCat2+DistTotCat2+ConsTotCat2)*grams_tonne*INDEX('C2. Nutrition data'!$D$4:$AW$30,MATCH($H$3,'C2. Nutrition data'!$B$4:$B$30,0),MATCH('B3. Result table, nutrition'!$C18,'C2. Nutrition data'!$D$3:$AW$3,0))/grams100 ->  | I18: (mg) | J18: =H18/INDEX('C2. Nutrition data'!$D$32:$AW$32,MATCH($C18,'C2. Nutrition data'!$D$3:$AW$3,0)) ->  | K18: =RANK(J18,J$6:J$32,1)+COUNTIF(J$6:J18,J18)-1 ->  | L18: =(AgTotCat3+PostHarvTotCat3+ProcTotCat3+DistTotCat3+ConsTotCat3)*grams_tonne*INDEX('C2. Nutrition data'!$D$4:$AW$30,MATCH($L$3,'C2. Nutrition data'!$B$4:$B$30,0),MATCH('B3. Result table, nutrition'!$C18,'C2. Nutrition data'!$D$3:$AW$3,0))/grams100 ->  | M18: (mg) | N18: =L18/INDEX('C2. Nutrition data'!$D$32:$AW$32,MATCH($C18,'C2. Nutrition data'!$D$3:$AW$3,0)) ->  | O18: =RANK(N18,N$6:N$32,1)+COUNTIF(N$6:N18,N18)-1 ->  | P18: =(AgTotCat4+PostHarvTotCat4+ProcTotCat4+DistTotCat4+ConsTotCat4)*grams_tonne*INDEX('C2. Nutrition data'!$D$4:$AW$30,MATCH($P$3,'C2. Nutrition data'!$B$4:$B$30,0),MATCH('B3. Result table, nutrition'!$C18,'C2. Nutrition data'!$D$3:$AW$3,0))/grams100 ->  | Q18: (mg) | R18: =P18/INDEX('C2. Nutrition data'!$D$32:$AW$32,MATCH($C18,'C2. Nutrition data'!$D$3:$AW$3,0)) ->  | S18: =RANK(R18,R$6:R$32,1)+COUNTIF(R$6:R18,R18)-1 ->  | T18: =(AgTotCat5+PostHarvTotCat5+ProcTotCat5+DistTotCat5+ConsTotCat5)*grams_tonne*INDEX('C2. Nutrition data'!$D$4:$AW$30,MATCH($T$3,'C2. Nutrition data'!$B$4:$B$30,0),MATCH('B3. Result table, nutrition'!$C18,'C2. Nutrition data'!$D$3:$AW$3,0))/grams100 ->  | U18: (mg) | V18: =T18/INDEX('C2. Nutrition data'!$D$32:$AW$32,MATCH($C18,'C2. Nutrition data'!$D$3:$AW$3,0)) ->  | W18: =RANK(V18,V$6:V$32,1)+COUNTIF(V$6:V18,V18)-1 ->  | X18: =(AgTotCat6+PostHarvTotCat6+ProcTotCat6+DistTotCat6+ConsTotCat6)*grams_tonne*INDEX('C2. Nutrition data'!$D$4:$AW$30,MATCH($X$3,'C2. Nutrition data'!$B$4:$B$30,0),MATCH('B3. Result table, nutrition'!$C18,'C2. Nutrition data'!$D$3:$AW$3,0))/grams100 ->  | Y18: (mg) | Z18: =X18/INDEX('C2. Nutrition data'!$D$32:$AW$32,MATCH($C18,'C2. Nutrition data'!$D$3:$AW$3,0)) ->  | AA18: =RANK(Z18,Z$6:Z$32,1)+COUNTIF(Z$6:Z18,Z18)-1 -> 
C19: Phosphorus | D19: =(AgTotCat1+PostHarvTotCat1+ProcTotCat1+DistTotCat1+ConsTotCat1)*grams_tonne*INDEX('C2. Nutrition data'!$D$4:$AW$29,MATCH(D$3,'C2. Nutrition data'!$B$4:$B$29,0),MATCH($C19,'C2. Nutrition data'!$D$3:$AW$3,0))/grams100 ->  | E19: (µg) | F19: =D19/INDEX('C2. Nutrition data'!$D$32:$AW$32,MATCH($C19,'C2. Nutrition data'!$D$3:$AW$3,0)) ->  | G19: =RANK(F19,F$6:F$32,1)+COUNTIF(F$6:F19,F19)-1 ->  | H19: =(AgTotCat2+PostHarvTotCat2+ProcTotCat2+DistTotCat2+ConsTotCat2)*grams_tonne*INDEX('C2. Nutrition data'!$D$4:$AW$30,MATCH($H$3,'C2. Nutrition data'!$B$4:$B$30,0),MATCH('B3. Result table, nutrition'!$C19,'C2. Nutrition data'!$D$3:$AW$3,0))/grams100 ->  | I19: (µg) | J19: =H19/INDEX('C2. Nutrition data'!$D$32:$AW$32,MATCH($C19,'C2. Nutrition data'!$D$3:$AW$3,0)) ->  | K19: =RANK(J19,J$6:J$32,1)+COUNTIF(J$6:J19,J19)-1 ->  | L19: =(AgTotCat3+PostHarvTotCat3+ProcTotCat3+DistTotCat3+ConsTotCat3)*grams_tonne*INDEX('C2. Nutrition data'!$D$4:$AW$30,MATCH($L$3,'C2. Nutrition data'!$B$4:$B$30,0),MATCH('B3. Result table, nutrition'!$C19,'C2. Nutrition data'!$D$3:$AW$3,0))/grams100 ->  | M19: (µg) | N19: =L19/INDEX('C2. Nutrition data'!$D$32:$AW$32,MATCH($C19,'C2. Nutrition data'!$D$3:$AW$3,0)) ->  | O19: =RANK(N19,N$6:N$32,1)+COUNTIF(N$6:N19,N19)-1 ->  | P19: =(AgTotCat4+PostHarvTotCat4+ProcTotCat4+DistTotCat4+ConsTotCat4)*grams_tonne*INDEX('C2. Nutrition data'!$D$4:$AW$30,MATCH($P$3,'C2. Nutrition data'!$B$4:$B$30,0),MATCH('B3. Result table, nutrition'!$C19,'C2. Nutrition data'!$D$3:$AW$3,0))/grams100 ->  | Q19: (µg) | R19: =P19/INDEX('C2. Nutrition data'!$D$32:$AW$32,MATCH($C19,'C2. Nutrition data'!$D$3:$AW$3,0)) ->  | S19: =RANK(R19,R$6:R$32,1)+COUNTIF(R$6:R19,R19)-1 ->  | T19: =(AgTotCat5+PostHarvTotCat5+ProcTotCat5+DistTotCat5+ConsTotCat5)*grams_tonne*INDEX('C2. Nutrition data'!$D$4:$AW$30,MATCH($T$3,'C2. Nutrition data'!$B$4:$B$30,0),MATCH('B3. Result table, nutrition'!$C19,'C2. Nutrition data'!$D$3:$AW$3,0))/grams100 ->  | U19: (µg) | V19: =T19/INDEX('C2. Nutrition data'!$D$32:$AW$32,MATCH($C19,'C2. Nutrition data'!$D$3:$AW$3,0)) ->  | W19: =RANK(V19,V$6:V$32,1)+COUNTIF(V$6:V19,V19)-1 ->  | X19: =(AgTotCat6+PostHarvTotCat6+ProcTotCat6+DistTotCat6+ConsTotCat6)*grams_tonne*INDEX('C2. Nutrition data'!$D$4:$AW$30,MATCH($X$3,'C2. Nutrition data'!$B$4:$B$30,0),MATCH('B3. Result table, nutrition'!$C19,'C2. Nutrition data'!$D$3:$AW$3,0))/grams100 ->  | Y19: (µg) | Z19: =X19/INDEX('C2. Nutrition data'!$D$32:$AW$32,MATCH($C19,'C2. Nutrition data'!$D$3:$AW$3,0)) ->  | AA19: =RANK(Z19,Z$6:Z$32,1)+COUNTIF(Z$6:Z19,Z19)-1 -> 
C20: Potassium | D20: =(AgTotCat1+PostHarvTotCat1+ProcTotCat1+DistTotCat1+ConsTotCat1)*grams_tonne*INDEX('C2. Nutrition data'!$D$4:$AW$29,MATCH(D$3,'C2. Nutrition data'!$B$4:$B$29,0),MATCH($C20,'C2. Nutrition data'!$D$3:$AW$3,0))/grams100 ->  | E20: (mg) | F20: =D20/INDEX('C2. Nutrition data'!$D$32:$AW$32,MATCH($C20,'C2. Nutrition data'!$D$3:$AW$3,0)) ->  | G20: =RANK(F20,F$6:F$32,1)+COUNTIF(F$6:F20,F20)-1 ->  | H20: =(AgTotCat2+PostHarvTotCat2+ProcTotCat2+DistTotCat2+ConsTotCat2)*grams_tonne*INDEX('C2. Nutrition data'!$D$4:$AW$30,MATCH($H$3,'C2. Nutrition data'!$B$4:$B$30,0),MATCH('B3. Result table, nutrition'!$C20,'C2. Nutrition data'!$D$3:$AW$3,0))/grams100 ->  | I20: (mg) | J20: =H20/INDEX('C2. Nutrition data'!$D$32:$AW$32,MATCH($C20,'C2. Nutrition data'!$D$3:$AW$3,0)) ->  | K20: =RANK(J20,J$6:J$32,1)+COUNTIF(J$6:J20,J20)-1 ->  | L20: =(AgTotCat3+PostHarvTotCat3+ProcTotCat3+DistTotCat3+ConsTotCat3)*grams_tonne*INDEX('C2. Nutrition data'!$D$4:$AW$30,MATCH($L$3,'C2. Nutrition data'!$B$4:$B$30,0),MATCH('B3. Result table, nutrition'!$C20,'C2. Nutrition data'!$D$3:$AW$3,0))/grams100 ->  | M20: (mg) | N20: =L20/INDEX('C2. Nutrition data'!$D$32:$AW$32,MATCH($C20,'C2. Nutrition data'!$D$3:$AW$3,0)) ->  | O20: =RANK(N20,N$6:N$32,1)+COUNTIF(N$6:N20,N20)-1 ->  | P20: =(AgTotCat4+PostHarvTotCat4+ProcTotCat4+DistTotCat4+ConsTotCat4)*grams_tonne*INDEX('C2. Nutrition data'!$D$4:$AW$30,MATCH($P$3,'C2. Nutrition data'!$B$4:$B$30,0),MATCH('B3. Result table, nutrition'!$C20,'C2. Nutrition data'!$D$3:$AW$3,0))/grams100 ->  | Q20: (mg) | R20: =P20/INDEX('C2. Nutrition data'!$D$32:$AW$32,MATCH($C20,'C2. Nutrition data'!$D$3:$AW$3,0)) ->  | S20: =RANK(R20,R$6:R$32,1)+COUNTIF(R$6:R20,R20)-1 ->  | T20: =(AgTotCat5+PostHarvTotCat5+ProcTotCat5+DistTotCat5+ConsTotCat5)*grams_tonne*INDEX('C2. Nutrition data'!$D$4:$AW$30,MATCH($T$3,'C2. Nutrition data'!$B$4:$B$30,0),MATCH('B3. Result table, nutrition'!$C20,'C2. Nutrition data'!$D$3:$AW$3,0))/grams100 ->  | U20: (mg) | V20: =T20/INDEX('C2. Nutrition data'!$D$32:$AW$32,MATCH($C20,'C2. Nutrition data'!$D$3:$AW$3,0)) ->  | W20: =RANK(V20,V$6:V$32,1)+COUNTIF(V$6:V20,V20)-1 ->  | X20: =(AgTotCat6+PostHarvTotCat6+ProcTotCat6+DistTotCat6+ConsTotCat6)*grams_tonne*INDEX('C2. Nutrition data'!$D$4:$AW$30,MATCH($X$3,'C2. Nutrition data'!$B$4:$B$30,0),MATCH('B3. Result table, nutrition'!$C20,'C2. Nutrition data'!$D$3:$AW$3,0))/grams100 ->  | Y20: (mg) | Z20: =X20/INDEX('C2. Nutrition data'!$D$32:$AW$32,MATCH($C20,'C2. Nutrition data'!$D$3:$AW$3,0)) ->  | AA20: =RANK(Z20,Z$6:Z$32,1)+COUNTIF(Z$6:Z20,Z20)-1 -> 
C21: Riboflavin | D21: =(AgTotCat1+PostHarvTotCat1+ProcTotCat1+DistTotCat1+ConsTotCat1)*grams_tonne*INDEX('C2. Nutrition data'!$D$4:$AW$29,MATCH(D$3,'C2. Nutrition data'!$B$4:$B$29,0),MATCH($C21,'C2. Nutrition data'!$D$3:$AW$3,0))/grams100 ->  | E21: (mg) | F21: =D21/INDEX('C2. Nutrition data'!$D$32:$AW$32,MATCH($C21,'C2. Nutrition data'!$D$3:$AW$3,0)) ->  | G21: =RANK(F21,F$6:F$32,1)+COUNTIF(F$6:F21,F21)-1 ->  | H21: =(AgTotCat2+PostHarvTotCat2+ProcTotCat2+DistTotCat2+ConsTotCat2)*grams_tonne*INDEX('C2. Nutrition data'!$D$4:$AW$30,MATCH($H$3,'C2. Nutrition data'!$B$4:$B$30,0),MATCH('B3. Result table, nutrition'!$C21,'C2. Nutrition data'!$D$3:$AW$3,0))/grams100 ->  | I21: (mg) | J21: =H21/INDEX('C2. Nutrition data'!$D$32:$AW$32,MATCH($C21,'C2. Nutrition data'!$D$3:$AW$3,0)) ->  | K21: =RANK(J21,J$6:J$32,1)+COUNTIF(J$6:J21,J21)-1 ->  | L21: =(AgTotCat3+PostHarvTotCat3+ProcTotCat3+DistTotCat3+ConsTotCat3)*grams_tonne*INDEX('C2. Nutrition data'!$D$4:$AW$30,MATCH($L$3,'C2. Nutrition data'!$B$4:$B$30,0),MATCH('B3. Result table, nutrition'!$C21,'C2. Nutrition data'!$D$3:$AW$3,0))/grams100 ->  | M21: (mg) | N21: =L21/INDEX('C2. Nutrition data'!$D$32:$AW$32,MATCH($C21,'C2. Nutrition data'!$D$3:$AW$3,0)) ->  | O21: =RANK(N21,N$6:N$32,1)+COUNTIF(N$6:N21,N21)-1 ->  | P21: =(AgTotCat4+PostHarvTotCat4+ProcTotCat4+DistTotCat4+ConsTotCat4)*grams_tonne*INDEX('C2. Nutrition data'!$D$4:$AW$30,MATCH($P$3,'C2. Nutrition data'!$B$4:$B$30,0),MATCH('B3. Result table, nutrition'!$C21,'C2. Nutrition data'!$D$3:$AW$3,0))/grams100 ->  | Q21: (mg) | R21: =P21/INDEX('C2. Nutrition data'!$D$32:$AW$32,MATCH($C21,'C2. Nutrition data'!$D$3:$AW$3,0)) ->  | S21: =RANK(R21,R$6:R$32,1)+COUNTIF(R$6:R21,R21)-1 ->  | T21: =(AgTotCat5+PostHarvTotCat5+ProcTotCat5+DistTotCat5+ConsTotCat5)*grams_tonne*INDEX('C2. Nutrition data'!$D$4:$AW$30,MATCH($T$3,'C2. Nutrition data'!$B$4:$B$30,0),MATCH('B3. Result table, nutrition'!$C21,'C2. Nutrition data'!$D$3:$AW$3,0))/grams100 ->  | U21: (mg) | V21: =T21/INDEX('C2. Nutrition data'!$D$32:$AW$32,MATCH($C21,'C2. Nutrition data'!$D$3:$AW$3,0)) ->  | W21: =RANK(V21,V$6:V$32,1)+COUNTIF(V$6:V21,V21)-1 ->  | X21: =(AgTotCat6+PostHarvTotCat6+ProcTotCat6+DistTotCat6+ConsTotCat6)*grams_tonne*INDEX('C2. Nutrition data'!$D$4:$AW$30,MATCH($X$3,'C2. Nutrition data'!$B$4:$B$30,0),MATCH('B3. Result table, nutrition'!$C21,'C2. Nutrition data'!$D$3:$AW$3,0))/grams100 ->  | Y21: (mg) | Z21: =X21/INDEX('C2. Nutrition data'!$D$32:$AW$32,MATCH($C21,'C2. Nutrition data'!$D$3:$AW$3,0)) ->  | AA21: =RANK(Z21,Z$6:Z$32,1)+COUNTIF(Z$6:Z21,Z21)-1 -> 
C22: Selenium | D22: =(AgTotCat1+PostHarvTotCat1+ProcTotCat1+DistTotCat1+ConsTotCat1)*grams_tonne*INDEX('C2. Nutrition data'!$D$4:$AW$29,MATCH(D$3,'C2. Nutrition data'!$B$4:$B$29,0),MATCH($C22,'C2. Nutrition data'!$D$3:$AW$3,0))/grams100 ->  | E22: (mg) | F22: =D22/INDEX('C2. Nutrition data'!$D$32:$AW$32,MATCH($C22,'C2. Nutrition data'!$D$3:$AW$3,0)) ->  | G22: =RANK(F22,F$6:F$32,1)+COUNTIF(F$6:F22,F22)-1 ->  | H22: =(AgTotCat2+PostHarvTotCat2+ProcTotCat2+DistTotCat2+ConsTotCat2)*grams_tonne*INDEX('C2. Nutrition data'!$D$4:$AW$30,MATCH($H$3,'C2. Nutrition data'!$B$4:$B$30,0),MATCH('B3. Result table, nutrition'!$C22,'C2. Nutrition data'!$D$3:$AW$3,0))/grams100 ->  | I22: (mg) | J22: =H22/INDEX('C2. Nutrition data'!$D$32:$AW$32,MATCH($C22,'C2. Nutrition data'!$D$3:$AW$3,0)) ->  | K22: =RANK(J22,J$6:J$32,1)+COUNTIF(J$6:J22,J22)-1 ->  | L22: =(AgTotCat3+PostHarvTotCat3+ProcTotCat3+DistTotCat3+ConsTotCat3)*grams_tonne*INDEX('C2. Nutrition data'!$D$4:$AW$30,MATCH($L$3,'C2. Nutrition data'!$B$4:$B$30,0),MATCH('B3. Result table, nutrition'!$C22,'C2. Nutrition data'!$D$3:$AW$3,0))/grams100 ->  | M22: (mg) | N22: =L22/INDEX('C2. Nutrition data'!$D$32:$AW$32,MATCH($C22,'C2. Nutrition data'!$D$3:$AW$3,0)) ->  | O22: =RANK(N22,N$6:N$32,1)+COUNTIF(N$6:N22,N22)-1 ->  | P22: =(AgTotCat4+PostHarvTotCat4+ProcTotCat4+DistTotCat4+ConsTotCat4)*grams_tonne*INDEX('C2. Nutrition data'!$D$4:$AW$30,MATCH($P$3,'C2. Nutrition data'!$B$4:$B$30,0),MATCH('B3. Result table, nutrition'!$C22,'C2. Nutrition data'!$D$3:$AW$3,0))/grams100 ->  | Q22: (mg) | R22: =P22/INDEX('C2. Nutrition data'!$D$32:$AW$32,MATCH($C22,'C2. Nutrition data'!$D$3:$AW$3,0)) ->  | S22: =RANK(R22,R$6:R$32,1)+COUNTIF(R$6:R22,R22)-1 ->  | T22: =(AgTotCat5+PostHarvTotCat5+ProcTotCat5+DistTotCat5+ConsTotCat5)*grams_tonne*INDEX('C2. Nutrition data'!$D$4:$AW$30,MATCH($T$3,'C2. Nutrition data'!$B$4:$B$30,0),MATCH('B3. Result table, nutrition'!$C22,'C2. Nutrition data'!$D$3:$AW$3,0))/grams100 ->  | U22: (mg) | V22: =T22/INDEX('C2. Nutrition data'!$D$32:$AW$32,MATCH($C22,'C2. Nutrition data'!$D$3:$AW$3,0)) ->  | W22: =RANK(V22,V$6:V$32,1)+COUNTIF(V$6:V22,V22)-1 ->  | X22: =(AgTotCat6+PostHarvTotCat6+ProcTotCat6+DistTotCat6+ConsTotCat6)*grams_tonne*INDEX('C2. Nutrition data'!$D$4:$AW$30,MATCH($X$3,'C2. Nutrition data'!$B$4:$B$30,0),MATCH('B3. Result table, nutrition'!$C22,'C2. Nutrition data'!$D$3:$AW$3,0))/grams100 ->  | Y22: (mg) | Z22: =X22/INDEX('C2. Nutrition data'!$D$32:$AW$32,MATCH($C22,'C2. Nutrition data'!$D$3:$AW$3,0)) ->  | AA22: =RANK(Z22,Z$6:Z$32,1)+COUNTIF(Z$6:Z22,Z22)-1 -> 
C23: Sodium | D23: =(AgTotCat1+PostHarvTotCat1+ProcTotCat1+DistTotCat1+ConsTotCat1)*grams_tonne*INDEX('C2. Nutrition data'!$D$4:$AW$29,MATCH(D$3,'C2. Nutrition data'!$B$4:$B$29,0),MATCH($C23,'C2. Nutrition data'!$D$3:$AW$3,0))/grams100 ->  | E23: (mg) | F23: =D23/INDEX('C2. Nutrition data'!$D$32:$AW$32,MATCH($C23,'C2. Nutrition data'!$D$3:$AW$3,0)) ->  | G23: =RANK(F23,F$6:F$32,1)+COUNTIF(F$6:F23,F23)-1 ->  | H23: =(AgTotCat2+PostHarvTotCat2+ProcTotCat2+DistTotCat2+ConsTotCat2)*grams_tonne*INDEX('C2. Nutrition data'!$D$4:$AW$30,MATCH($H$3,'C2. Nutrition data'!$B$4:$B$30,0),MATCH('B3. Result table, nutrition'!$C23,'C2. Nutrition data'!$D$3:$AW$3,0))/grams100 ->  | I23: (mg) | J23: =H23/INDEX('C2. Nutrition data'!$D$32:$AW$32,MATCH($C23,'C2. Nutrition data'!$D$3:$AW$3,0)) ->  | K23: =RANK(J23,J$6:J$32,1)+COUNTIF(J$6:J23,J23)-1 ->  | L23: =(AgTotCat3+PostHarvTotCat3+ProcTotCat3+DistTotCat3+ConsTotCat3)*grams_tonne*INDEX('C2. Nutrition data'!$D$4:$AW$30,MATCH($L$3,'C2. Nutrition data'!$B$4:$B$30,0),MATCH('B3. Result table, nutrition'!$C23,'C2. Nutrition data'!$D$3:$AW$3,0))/grams100 ->  | M23: (mg) | N23: =L23/INDEX('C2. Nutrition data'!$D$32:$AW$32,MATCH($C23,'C2. Nutrition data'!$D$3:$AW$3,0)) ->  | O23: =RANK(N23,N$6:N$32,1)+COUNTIF(N$6:N23,N23)-1 ->  | P23: =(AgTotCat4+PostHarvTotCat4+ProcTotCat4+DistTotCat4+ConsTotCat4)*grams_tonne*INDEX('C2. Nutrition data'!$D$4:$AW$30,MATCH($P$3,'C2. Nutrition data'!$B$4:$B$30,0),MATCH('B3. Result table, nutrition'!$C23,'C2. Nutrition data'!$D$3:$AW$3,0))/grams100 ->  | Q23: (mg) | R23: =P23/INDEX('C2. Nutrition data'!$D$32:$AW$32,MATCH($C23,'C2. Nutrition data'!$D$3:$AW$3,0)) ->  | S23: =RANK(R23,R$6:R$32,1)+COUNTIF(R$6:R23,R23)-1 ->  | T23: =(AgTotCat5+PostHarvTotCat5+ProcTotCat5+DistTotCat5+ConsTotCat5)*grams_tonne*INDEX('C2. Nutrition data'!$D$4:$AW$30,MATCH($T$3,'C2. Nutrition data'!$B$4:$B$30,0),MATCH('B3. Result table, nutrition'!$C23,'C2. Nutrition data'!$D$3:$AW$3,0))/grams100 ->  | U23: (mg) | V23: =T23/INDEX('C2. Nutrition data'!$D$32:$AW$32,MATCH($C23,'C2. Nutrition data'!$D$3:$AW$3,0)) ->  | W23: =RANK(V23,V$6:V$32,1)+COUNTIF(V$6:V23,V23)-1 ->  | X23: =(AgTotCat6+PostHarvTotCat6+ProcTotCat6+DistTotCat6+ConsTotCat6)*grams_tonne*INDEX('C2. Nutrition data'!$D$4:$AW$30,MATCH($X$3,'C2. Nutrition data'!$B$4:$B$30,0),MATCH('B3. Result table, nutrition'!$C23,'C2. Nutrition data'!$D$3:$AW$3,0))/grams100 ->  | Y23: (mg) | Z23: =X23/INDEX('C2. Nutrition data'!$D$32:$AW$32,MATCH($C23,'C2. Nutrition data'!$D$3:$AW$3,0)) ->  | AA23: =RANK(Z23,Z$6:Z$32,1)+COUNTIF(Z$6:Z23,Z23)-1 -> 
C24: Thiamin | D24: =(AgTotCat1+PostHarvTotCat1+ProcTotCat1+DistTotCat1+ConsTotCat1)*grams_tonne*INDEX('C2. Nutrition data'!$D$4:$AW$29,MATCH(D$3,'C2. Nutrition data'!$B$4:$B$29,0),MATCH($C24,'C2. Nutrition data'!$D$3:$AW$3,0))/grams100 ->  | E24: (µg) | F24: =D24/INDEX('C2. Nutrition data'!$D$32:$AW$32,MATCH($C24,'C2. Nutrition data'!$D$3:$AW$3,0)) ->  | G24: =RANK(F24,F$6:F$32,1)+COUNTIF(F$6:F24,F24)-1 ->  | H24: =(AgTotCat2+PostHarvTotCat2+ProcTotCat2+DistTotCat2+ConsTotCat2)*grams_tonne*INDEX('C2. Nutrition data'!$D$4:$AW$30,MATCH($H$3,'C2. Nutrition data'!$B$4:$B$30,0),MATCH('B3. Result table, nutrition'!$C24,'C2. Nutrition data'!$D$3:$AW$3,0))/grams100 ->  | I24: (µg) | J24: =H24/INDEX('C2. Nutrition data'!$D$32:$AW$32,MATCH($C24,'C2. Nutrition data'!$D$3:$AW$3,0)) ->  | K24: =RANK(J24,J$6:J$32,1)+COUNTIF(J$6:J24,J24)-1 ->  | L24: =(AgTotCat3+PostHarvTotCat3+ProcTotCat3+DistTotCat3+ConsTotCat3)*grams_tonne*INDEX('C2. Nutrition data'!$D$4:$AW$30,MATCH($L$3,'C2. Nutrition data'!$B$4:$B$30,0),MATCH('B3. Result table, nutrition'!$C24,'C2. Nutrition data'!$D$3:$AW$3,0))/grams100 ->  | M24: (µg) | N24: =L24/INDEX('C2. Nutrition data'!$D$32:$AW$32,MATCH($C24,'C2. Nutrition data'!$D$3:$AW$3,0)) ->  | O24: =RANK(N24,N$6:N$32,1)+COUNTIF(N$6:N24,N24)-1 ->  | P24: =(AgTotCat4+PostHarvTotCat4+ProcTotCat4+DistTotCat4+ConsTotCat4)*grams_tonne*INDEX('C2. Nutrition data'!$D$4:$AW$30,MATCH($P$3,'C2. Nutrition data'!$B$4:$B$30,0),MATCH('B3. Result table, nutrition'!$C24,'C2. Nutrition data'!$D$3:$AW$3,0))/grams100 ->  | Q24: (µg) | R24: =P24/INDEX('C2. Nutrition data'!$D$32:$AW$32,MATCH($C24,'C2. Nutrition data'!$D$3:$AW$3,0)) ->  | S24: =RANK(R24,R$6:R$32,1)+COUNTIF(R$6:R24,R24)-1 ->  | T24: =(AgTotCat5+PostHarvTotCat5+ProcTotCat5+DistTotCat5+ConsTotCat5)*grams_tonne*INDEX('C2. Nutrition data'!$D$4:$AW$30,MATCH($T$3,'C2. Nutrition data'!$B$4:$B$30,0),MATCH('B3. Result table, nutrition'!$C24,'C2. Nutrition data'!$D$3:$AW$3,0))/grams100 ->  | U24: (µg) | V24: =T24/INDEX('C2. Nutrition data'!$D$32:$AW$32,MATCH($C24,'C2. Nutrition data'!$D$3:$AW$3,0)) ->  | W24: =RANK(V24,V$6:V$32,1)+COUNTIF(V$6:V24,V24)-1 ->  | X24: =(AgTotCat6+PostHarvTotCat6+ProcTotCat6+DistTotCat6+ConsTotCat6)*grams_tonne*INDEX('C2. Nutrition data'!$D$4:$AW$30,MATCH($X$3,'C2. Nutrition data'!$B$4:$B$30,0),MATCH('B3. Result table, nutrition'!$C24,'C2. Nutrition data'!$D$3:$AW$3,0))/grams100 ->  | Y24: (µg) | Z24: =X24/INDEX('C2. Nutrition data'!$D$32:$AW$32,MATCH($C24,'C2. Nutrition data'!$D$3:$AW$3,0)) ->  | AA24: =RANK(Z24,Z$6:Z$32,1)+COUNTIF(Z$6:Z24,Z24)-1 -> 
C25: Vit A | D25: =(AgTotCat1+PostHarvTotCat1+ProcTotCat1+DistTotCat1+ConsTotCat1)*grams_tonne*INDEX('C2. Nutrition data'!$D$4:$AW$29,MATCH(D$3,'C2. Nutrition data'!$B$4:$B$29,0),MATCH($C25,'C2. Nutrition data'!$D$3:$AW$3,0))/grams100 ->  | E25: (IU) | F25: =D25/INDEX('C2. Nutrition data'!$D$32:$AW$32,MATCH($C25,'C2. Nutrition data'!$D$3:$AW$3,0)) ->  | G25: =RANK(F25,F$6:F$32,1)+COUNTIF(F$6:F25,F25)-1 ->  | H25: =(AgTotCat2+PostHarvTotCat2+ProcTotCat2+DistTotCat2+ConsTotCat2)*grams_tonne*INDEX('C2. Nutrition data'!$D$4:$AW$30,MATCH($H$3,'C2. Nutrition data'!$B$4:$B$30,0),MATCH('B3. Result table, nutrition'!$C25,'C2. Nutrition data'!$D$3:$AW$3,0))/grams100 ->  | I25: IU | J25: =H25/INDEX('C2. Nutrition data'!$D$32:$AW$32,MATCH($C25,'C2. Nutrition data'!$D$3:$AW$3,0)) ->  | K25: =RANK(J25,J$6:J$32,1)+COUNTIF(J$6:J25,J25)-1 ->  | L25: =(AgTotCat3+PostHarvTotCat3+ProcTotCat3+DistTotCat3+ConsTotCat3)*grams_tonne*INDEX('C2. Nutrition data'!$D$4:$AW$30,MATCH($L$3,'C2. Nutrition data'!$B$4:$B$30,0),MATCH('B3. Result table, nutrition'!$C25,'C2. Nutrition data'!$D$3:$AW$3,0))/grams100 ->  | M25: IU | N25: =L25/INDEX('C2. Nutrition data'!$D$32:$AW$32,MATCH($C25,'C2. Nutrition data'!$D$3:$AW$3,0)) ->  | O25: =RANK(N25,N$6:N$32,1)+COUNTIF(N$6:N25,N25)-1 ->  | P25: =(AgTotCat4+PostHarvTotCat4+ProcTotCat4+DistTotCat4+ConsTotCat4)*grams_tonne*INDEX('C2. Nutrition data'!$D$4:$AW$30,MATCH($P$3,'C2. Nutrition data'!$B$4:$B$30,0),MATCH('B3. Result table, nutrition'!$C25,'C2. Nutrition data'!$D$3:$AW$3,0))/grams100 ->  | Q25: IU | R25: =P25/INDEX('C2. Nutrition data'!$D$32:$AW$32,MATCH($C25,'C2. Nutrition data'!$D$3:$AW$3,0)) ->  | S25: =RANK(R25,R$6:R$32,1)+COUNTIF(R$6:R25,R25)-1 ->  | T25: =(AgTotCat5+PostHarvTotCat5+ProcTotCat5+DistTotCat5+ConsTotCat5)*grams_tonne*INDEX('C2. Nutrition data'!$D$4:$AW$30,MATCH($T$3,'C2. Nutrition data'!$B$4:$B$30,0),MATCH('B3. Result table, nutrition'!$C25,'C2. Nutrition data'!$D$3:$AW$3,0))/grams100 ->  | U25: IU | V25: =T25/INDEX('C2. Nutrition data'!$D$32:$AW$32,MATCH($C25,'C2. Nutrition data'!$D$3:$AW$3,0)) ->  | W25: =RANK(V25,V$6:V$32,1)+COUNTIF(V$6:V25,V25)-1 ->  | X25: =(AgTotCat6+PostHarvTotCat6+ProcTotCat6+DistTotCat6+ConsTotCat6)*grams_tonne*INDEX('C2. Nutrition data'!$D$4:$AW$30,MATCH($X$3,'C2. Nutrition data'!$B$4:$B$30,0),MATCH('B3. Result table, nutrition'!$C25,'C2. Nutrition data'!$D$3:$AW$3,0))/grams100 ->  | Y25: IU | Z25: =X25/INDEX('C2. Nutrition data'!$D$32:$AW$32,MATCH($C25,'C2. Nutrition data'!$D$3:$AW$3,0)) ->  | AA25: =RANK(Z25,Z$6:Z$32,1)+COUNTIF(Z$6:Z25,Z25)-1 -> 
C26: Vit B6 | D26: =(AgTotCat1+PostHarvTotCat1+ProcTotCat1+DistTotCat1+ConsTotCat1)*grams_tonne*INDEX('C2. Nutrition data'!$D$4:$AW$29,MATCH(D$3,'C2. Nutrition data'!$B$4:$B$29,0),MATCH($C26,'C2. Nutrition data'!$D$3:$AW$3,0))/grams100 ->  | E26: (mg) | F26: =D26/INDEX('C2. Nutrition data'!$D$32:$AW$32,MATCH($C26,'C2. Nutrition data'!$D$3:$AW$3,0)) ->  | G26: =RANK(F26,F$6:F$32,1)+COUNTIF(F$6:F26,F26)-1 ->  | H26: =(AgTotCat2+PostHarvTotCat2+ProcTotCat2+DistTotCat2+ConsTotCat2)*grams_tonne*INDEX('C2. Nutrition data'!$D$4:$AW$30,MATCH($H$3,'C2. Nutrition data'!$B$4:$B$30,0),MATCH('B3. Result table, nutrition'!$C26,'C2. Nutrition data'!$D$3:$AW$3,0))/grams100 ->  | I26: (mg) | J26: =H26/INDEX('C2. Nutrition data'!$D$32:$AW$32,MATCH($C26,'C2. Nutrition data'!$D$3:$AW$3,0)) ->  | K26: =RANK(J26,J$6:J$32,1)+COUNTIF(J$6:J26,J26)-1 ->  | L26: =(AgTotCat3+PostHarvTotCat3+ProcTotCat3+DistTotCat3+ConsTotCat3)*grams_tonne*INDEX('C2. Nutrition data'!$D$4:$AW$30,MATCH($L$3,'C2. Nutrition data'!$B$4:$B$30,0),MATCH('B3. Result table, nutrition'!$C26,'C2. Nutrition data'!$D$3:$AW$3,0))/grams100 ->  | M26: (mg) | N26: =L26/INDEX('C2. Nutrition data'!$D$32:$AW$32,MATCH($C26,'C2. Nutrition data'!$D$3:$AW$3,0)) ->  | O26: =RANK(N26,N$6:N$32,1)+COUNTIF(N$6:N26,N26)-1 ->  | P26: =(AgTotCat4+PostHarvTotCat4+ProcTotCat4+DistTotCat4+ConsTotCat4)*grams_tonne*INDEX('C2. Nutrition data'!$D$4:$AW$30,MATCH($P$3,'C2. Nutrition data'!$B$4:$B$30,0),MATCH('B3. Result table, nutrition'!$C26,'C2. Nutrition data'!$D$3:$AW$3,0))/grams100 ->  | Q26: (mg) | R26: =P26/INDEX('C2. Nutrition data'!$D$32:$AW$32,MATCH($C26,'C2. Nutrition data'!$D$3:$AW$3,0)) ->  | S26: =RANK(R26,R$6:R$32,1)+COUNTIF(R$6:R26,R26)-1 ->  | T26: =(AgTotCat5+PostHarvTotCat5+ProcTotCat5+DistTotCat5+ConsTotCat5)*grams_tonne*INDEX('C2. Nutrition data'!$D$4:$AW$30,MATCH($T$3,'C2. Nutrition data'!$B$4:$B$30,0),MATCH('B3. Result table, nutrition'!$C26,'C2. Nutrition data'!$D$3:$AW$3,0))/grams100 ->  | U26: (mg) | V26: =T26/INDEX('C2. Nutrition data'!$D$32:$AW$32,MATCH($C26,'C2. Nutrition data'!$D$3:$AW$3,0)) ->  | W26: =RANK(V26,V$6:V$32,1)+COUNTIF(V$6:V26,V26)-1 ->  | X26: =(AgTotCat6+PostHarvTotCat6+ProcTotCat6+DistTotCat6+ConsTotCat6)*grams_tonne*INDEX('C2. Nutrition data'!$D$4:$AW$30,MATCH($X$3,'C2. Nutrition data'!$B$4:$B$30,0),MATCH('B3. Result table, nutrition'!$C26,'C2. Nutrition data'!$D$3:$AW$3,0))/grams100 ->  | Y26: (mg) | Z26: =X26/INDEX('C2. Nutrition data'!$D$32:$AW$32,MATCH($C26,'C2. Nutrition data'!$D$3:$AW$3,0)) ->  | AA26: =RANK(Z26,Z$6:Z$32,1)+COUNTIF(Z$6:Z26,Z26)-1 -> 
C27: Vit B12 | D27: =(AgTotCat1+PostHarvTotCat1+ProcTotCat1+DistTotCat1+ConsTotCat1)*grams_tonne*INDEX('C2. Nutrition data'!$D$4:$AW$29,MATCH(D$3,'C2. Nutrition data'!$B$4:$B$29,0),MATCH($C27,'C2. Nutrition data'!$D$3:$AW$3,0))/grams100 ->  | E27: (µg) | F27: =D27/INDEX('C2. Nutrition data'!$D$32:$AW$32,MATCH($C27,'C2. Nutrition data'!$D$3:$AW$3,0)) ->  | G27: =RANK(F27,F$6:F$32,1)+COUNTIF(F$6:F27,F27)-1 ->  | H27: =(AgTotCat2+PostHarvTotCat2+ProcTotCat2+DistTotCat2+ConsTotCat2)*grams_tonne*INDEX('C2. Nutrition data'!$D$4:$AW$30,MATCH($H$3,'C2. Nutrition data'!$B$4:$B$30,0),MATCH('B3. Result table, nutrition'!$C27,'C2. Nutrition data'!$D$3:$AW$3,0))/grams100 ->  | I27: (µg) | J27: =H27/INDEX('C2. Nutrition data'!$D$32:$AW$32,MATCH($C27,'C2. Nutrition data'!$D$3:$AW$3,0)) ->  | K27: =RANK(J27,J$6:J$32,1)+COUNTIF(J$6:J27,J27)-1 ->  | L27: =(AgTotCat3+PostHarvTotCat3+ProcTotCat3+DistTotCat3+ConsTotCat3)*grams_tonne*INDEX('C2. Nutrition data'!$D$4:$AW$30,MATCH($L$3,'C2. Nutrition data'!$B$4:$B$30,0),MATCH('B3. Result table, nutrition'!$C27,'C2. Nutrition data'!$D$3:$AW$3,0))/grams100 ->  | M27: (µg) | N27: =L27/INDEX('C2. Nutrition data'!$D$32:$AW$32,MATCH($C27,'C2. Nutrition data'!$D$3:$AW$3,0)) ->  | O27: =RANK(N27,N$6:N$32,1)+COUNTIF(N$6:N27,N27)-1 ->  | P27: =(AgTotCat4+PostHarvTotCat4+ProcTotCat4+DistTotCat4+ConsTotCat4)*grams_tonne*INDEX('C2. Nutrition data'!$D$4:$AW$30,MATCH($P$3,'C2. Nutrition data'!$B$4:$B$30,0),MATCH('B3. Result table, nutrition'!$C27,'C2. Nutrition data'!$D$3:$AW$3,0))/grams100 ->  | Q27: (µg) | R27: =P27/INDEX('C2. Nutrition data'!$D$32:$AW$32,MATCH($C27,'C2. Nutrition data'!$D$3:$AW$3,0)) ->  | S27: =RANK(R27,R$6:R$32,1)+COUNTIF(R$6:R27,R27)-1 ->  | T27: =(AgTotCat5+PostHarvTotCat5+ProcTotCat5+DistTotCat5+ConsTotCat5)*grams_tonne*INDEX('C2. Nutrition data'!$D$4:$AW$30,MATCH($T$3,'C2. Nutrition data'!$B$4:$B$30,0),MATCH('B3. Result table, nutrition'!$C27,'C2. Nutrition data'!$D$3:$AW$3,0))/grams100 ->  | U27: (µg) | V27: =T27/INDEX('C2. Nutrition data'!$D$32:$AW$32,MATCH($C27,'C2. Nutrition data'!$D$3:$AW$3,0)) ->  | W27: =RANK(V27,V$6:V$32,1)+COUNTIF(V$6:V27,V27)-1 ->  | X27: =(AgTotCat6+PostHarvTotCat6+ProcTotCat6+DistTotCat6+ConsTotCat6)*grams_tonne*INDEX('C2. Nutrition data'!$D$4:$AW$30,MATCH($X$3,'C2. Nutrition data'!$B$4:$B$30,0),MATCH('B3. Result table, nutrition'!$C27,'C2. Nutrition data'!$D$3:$AW$3,0))/grams100 ->  | Y27: (µg) | Z27: =X27/INDEX('C2. Nutrition data'!$D$32:$AW$32,MATCH($C27,'C2. Nutrition data'!$D$3:$AW$3,0)) ->  | AA27: =RANK(Z27,Z$6:Z$32,1)+COUNTIF(Z$6:Z27,Z27)-1 -> 
C28: Vit C | D28: =(AgTotCat1+PostHarvTotCat1+ProcTotCat1+DistTotCat1+ConsTotCat1)*grams_tonne*INDEX('C2. Nutrition data'!$D$4:$AW$29,MATCH(D$3,'C2. Nutrition data'!$B$4:$B$29,0),MATCH($C28,'C2. Nutrition data'!$D$3:$AW$3,0))/grams100 ->  | E28: (mg) | F28: =D28/INDEX('C2. Nutrition data'!$D$32:$AW$32,MATCH($C28,'C2. Nutrition data'!$D$3:$AW$3,0)) ->  | G28: =RANK(F28,F$6:F$32,1)+COUNTIF(F$6:F28,F28)-1 ->  | H28: =(AgTotCat2+PostHarvTotCat2+ProcTotCat2+DistTotCat2+ConsTotCat2)*grams_tonne*INDEX('C2. Nutrition data'!$D$4:$AW$30,MATCH($H$3,'C2. Nutrition data'!$B$4:$B$30,0),MATCH('B3. Result table, nutrition'!$C28,'C2. Nutrition data'!$D$3:$AW$3,0))/grams100 ->  | I28: (mg) | J28: =H28/INDEX('C2. Nutrition data'!$D$32:$AW$32,MATCH($C28,'C2. Nutrition data'!$D$3:$AW$3,0)) ->  | K28: =RANK(J28,J$6:J$32,1)+COUNTIF(J$6:J28,J28)-1 ->  | L28: =(AgTotCat3+PostHarvTotCat3+ProcTotCat3+DistTotCat3+ConsTotCat3)*grams_tonne*INDEX('C2. Nutrition data'!$D$4:$AW$30,MATCH($L$3,'C2. Nutrition data'!$B$4:$B$30,0),MATCH('B3. Result table, nutrition'!$C28,'C2. Nutrition data'!$D$3:$AW$3,0))/grams100 ->  | M28: (mg) | N28: =L28/INDEX('C2. Nutrition data'!$D$32:$AW$32,MATCH($C28,'C2. Nutrition data'!$D$3:$AW$3,0)) ->  | O28: =RANK(N28,N$6:N$32,1)+COUNTIF(N$6:N28,N28)-1 ->  | P28: =(AgTotCat4+PostHarvTotCat4+ProcTotCat4+DistTotCat4+ConsTotCat4)*grams_tonne*INDEX('C2. Nutrition data'!$D$4:$AW$30,MATCH($P$3,'C2. Nutrition data'!$B$4:$B$30,0),MATCH('B3. Result table, nutrition'!$C28,'C2. Nutrition data'!$D$3:$AW$3,0))/grams100 ->  | Q28: (mg) | R28: =P28/INDEX('C2. Nutrition data'!$D$32:$AW$32,MATCH($C28,'C2. Nutrition data'!$D$3:$AW$3,0)) ->  | S28: =RANK(R28,R$6:R$32,1)+COUNTIF(R$6:R28,R28)-1 ->  | T28: =(AgTotCat5+PostHarvTotCat5+ProcTotCat5+DistTotCat5+ConsTotCat5)*grams_tonne*INDEX('C2. Nutrition data'!$D$4:$AW$30,MATCH($T$3,'C2. Nutrition data'!$B$4:$B$30,0),MATCH('B3. Result table, nutrition'!$C28,'C2. Nutrition data'!$D$3:$AW$3,0))/grams100 ->  | U28: (mg) | V28: =T28/INDEX('C2. Nutrition data'!$D$32:$AW$32,MATCH($C28,'C2. Nutrition data'!$D$3:$AW$3,0)) ->  | W28: =RANK(V28,V$6:V$32,1)+COUNTIF(V$6:V28,V28)-1 ->  | X28: =(AgTotCat6+PostHarvTotCat6+ProcTotCat6+DistTotCat6+ConsTotCat6)*grams_tonne*INDEX('C2. Nutrition data'!$D$4:$AW$30,MATCH($X$3,'C2. Nutrition data'!$B$4:$B$30,0),MATCH('B3. Result table, nutrition'!$C28,'C2. Nutrition data'!$D$3:$AW$3,0))/grams100 ->  | Y28: (mg) | Z28: =X28/INDEX('C2. Nutrition data'!$D$32:$AW$32,MATCH($C28,'C2. Nutrition data'!$D$3:$AW$3,0)) ->  | AA28: =RANK(Z28,Z$6:Z$32,1)+COUNTIF(Z$6:Z28,Z28)-1 -> 
C29: Vit D | D29: =(AgTotCat1+PostHarvTotCat1+ProcTotCat1+DistTotCat1+ConsTotCat1)*grams_tonne*INDEX('C2. Nutrition data'!$D$4:$AW$29,MATCH(D$3,'C2. Nutrition data'!$B$4:$B$29,0),MATCH($C29,'C2. Nutrition data'!$D$3:$AW$3,0))/grams100 ->  | E29: (µg) | F29: =D29/INDEX('C2. Nutrition data'!$D$32:$AW$32,MATCH($C29,'C2. Nutrition data'!$D$3:$AW$3,0)) ->  | G29: =RANK(F29,F$6:F$32,1)+COUNTIF(F$6:F29,F29)-1 ->  | H29: =(AgTotCat2+PostHarvTotCat2+ProcTotCat2+DistTotCat2+ConsTotCat2)*grams_tonne*INDEX('C2. Nutrition data'!$D$4:$AW$30,MATCH($H$3,'C2. Nutrition data'!$B$4:$B$30,0),MATCH('B3. Result table, nutrition'!$C29,'C2. Nutrition data'!$D$3:$AW$3,0))/grams100 ->  | I29: (µg) | J29: =H29/INDEX('C2. Nutrition data'!$D$32:$AW$32,MATCH($C29,'C2. Nutrition data'!$D$3:$AW$3,0)) ->  | K29: =RANK(J29,J$6:J$32,1)+COUNTIF(J$6:J29,J29)-1 ->  | L29: =(AgTotCat3+PostHarvTotCat3+ProcTotCat3+DistTotCat3+ConsTotCat3)*grams_tonne*INDEX('C2. Nutrition data'!$D$4:$AW$30,MATCH($L$3,'C2. Nutrition data'!$B$4:$B$30,0),MATCH('B3. Result table, nutrition'!$C29,'C2. Nutrition data'!$D$3:$AW$3,0))/grams100 ->  | M29: (µg) | N29: =L29/INDEX('C2. Nutrition data'!$D$32:$AW$32,MATCH($C29,'C2. Nutrition data'!$D$3:$AW$3,0)) ->  | O29: =RANK(N29,N$6:N$32,1)+COUNTIF(N$6:N29,N29)-1 ->  | P29: =(AgTotCat4+PostHarvTotCat4+ProcTotCat4+DistTotCat4+ConsTotCat4)*grams_tonne*INDEX('C2. Nutrition data'!$D$4:$AW$30,MATCH($P$3,'C2. Nutrition data'!$B$4:$B$30,0),MATCH('B3. Result table, nutrition'!$C29,'C2. Nutrition data'!$D$3:$AW$3,0))/grams100 ->  | Q29: (µg) | R29: =P29/INDEX('C2. Nutrition data'!$D$32:$AW$32,MATCH($C29,'C2. Nutrition data'!$D$3:$AW$3,0)) ->  | S29: =RANK(R29,R$6:R$32,1)+COUNTIF(R$6:R29,R29)-1 ->  | T29: =(AgTotCat5+PostHarvTotCat5+ProcTotCat5+DistTotCat5+ConsTotCat5)*grams_tonne*INDEX('C2. Nutrition data'!$D$4:$AW$30,MATCH($T$3,'C2. Nutrition data'!$B$4:$B$30,0),MATCH('B3. Result table, nutrition'!$C29,'C2. Nutrition data'!$D$3:$AW$3,0))/grams100 ->  | U29: (µg) | V29: =T29/INDEX('C2. Nutrition data'!$D$32:$AW$32,MATCH($C29,'C2. Nutrition data'!$D$3:$AW$3,0)) ->  | W29: =RANK(V29,V$6:V$32,1)+COUNTIF(V$6:V29,V29)-1 ->  | X29: =(AgTotCat6+PostHarvTotCat6+ProcTotCat6+DistTotCat6+ConsTotCat6)*grams_tonne*INDEX('C2. Nutrition data'!$D$4:$AW$30,MATCH($X$3,'C2. Nutrition data'!$B$4:$B$30,0),MATCH('B3. Result table, nutrition'!$C29,'C2. Nutrition data'!$D$3:$AW$3,0))/grams100 ->  | Y29: (µg) | Z29: =X29/INDEX('C2. Nutrition data'!$D$32:$AW$32,MATCH($C29,'C2. Nutrition data'!$D$3:$AW$3,0)) ->  | AA29: =RANK(Z29,Z$6:Z$32,1)+COUNTIF(Z$6:Z29,Z29)-1 -> 
C30: Vit E | D30: =(AgTotCat1+PostHarvTotCat1+ProcTotCat1+DistTotCat1+ConsTotCat1)*grams_tonne*INDEX('C2. Nutrition data'!$D$4:$AW$29,MATCH(D$3,'C2. Nutrition data'!$B$4:$B$29,0),MATCH($C30,'C2. Nutrition data'!$D$3:$AW$3,0))/grams100 ->  | E30: (mg) | F30: =D30/INDEX('C2. Nutrition data'!$D$32:$AW$32,MATCH($C30,'C2. Nutrition data'!$D$3:$AW$3,0)) ->  | G30: =RANK(F30,F$6:F$32,1)+COUNTIF(F$6:F30,F30)-1 ->  | H30: =(AgTotCat2+PostHarvTotCat2+ProcTotCat2+DistTotCat2+ConsTotCat2)*grams_tonne*INDEX('C2. Nutrition data'!$D$4:$AW$30,MATCH($H$3,'C2. Nutrition data'!$B$4:$B$30,0),MATCH('B3. Result table, nutrition'!$C30,'C2. Nutrition data'!$D$3:$AW$3,0))/grams100 ->  | I30: (mg) | J30: =H30/INDEX('C2. Nutrition data'!$D$32:$AW$32,MATCH($C30,'C2. Nutrition data'!$D$3:$AW$3,0)) ->  | K30: =RANK(J30,J$6:J$32,1)+COUNTIF(J$6:J30,J30)-1 ->  | L30: =(AgTotCat3+PostHarvTotCat3+ProcTotCat3+DistTotCat3+ConsTotCat3)*grams_tonne*INDEX('C2. Nutrition data'!$D$4:$AW$30,MATCH($L$3,'C2. Nutrition data'!$B$4:$B$30,0),MATCH('B3. Result table, nutrition'!$C30,'C2. Nutrition data'!$D$3:$AW$3,0))/grams100 ->  | M30: (mg) | N30: =L30/INDEX('C2. Nutrition data'!$D$32:$AW$32,MATCH($C30,'C2. Nutrition data'!$D$3:$AW$3,0)) ->  | O30: =RANK(N30,N$6:N$32,1)+COUNTIF(N$6:N30,N30)-1 ->  | P30: =(AgTotCat4+PostHarvTotCat4+ProcTotCat4+DistTotCat4+ConsTotCat4)*grams_tonne*INDEX('C2. Nutrition data'!$D$4:$AW$30,MATCH($P$3,'C2. Nutrition data'!$B$4:$B$30,0),MATCH('B3. Result table, nutrition'!$C30,'C2. Nutrition data'!$D$3:$AW$3,0))/grams100 ->  | Q30: (mg) | R30: =P30/INDEX('C2. Nutrition data'!$D$32:$AW$32,MATCH($C30,'C2. Nutrition data'!$D$3:$AW$3,0)) ->  | S30: =RANK(R30,R$6:R$32,1)+COUNTIF(R$6:R30,R30)-1 ->  | T30: =(AgTotCat5+PostHarvTotCat5+ProcTotCat5+DistTotCat5+ConsTotCat5)*grams_tonne*INDEX('C2. Nutrition data'!$D$4:$AW$30,MATCH($T$3,'C2. Nutrition data'!$B$4:$B$30,0),MATCH('B3. Result table, nutrition'!$C30,'C2. Nutrition data'!$D$3:$AW$3,0))/grams100 ->  | U30: (mg) | V30: =T30/INDEX('C2. Nutrition data'!$D$32:$AW$32,MATCH($C30,'C2. Nutrition data'!$D$3:$AW$3,0)) ->  | W30: =RANK(V30,V$6:V$32,1)+COUNTIF(V$6:V30,V30)-1 ->  | X30: =(AgTotCat6+PostHarvTotCat6+ProcTotCat6+DistTotCat6+ConsTotCat6)*grams_tonne*INDEX('C2. Nutrition data'!$D$4:$AW$30,MATCH($X$3,'C2. Nutrition data'!$B$4:$B$30,0),MATCH('B3. Result table, nutrition'!$C30,'C2. Nutrition data'!$D$3:$AW$3,0))/grams100 ->  | Y30: (mg) | Z30: =X30/INDEX('C2. Nutrition data'!$D$32:$AW$32,MATCH($C30,'C2. Nutrition data'!$D$3:$AW$3,0)) ->  | AA30: =RANK(Z30,Z$6:Z$32,1)+COUNTIF(Z$6:Z30,Z30)-1 -> 
C31: Vit K | D31: =(AgTotCat1+PostHarvTotCat1+ProcTotCat1+DistTotCat1+ConsTotCat1)*grams_tonne*INDEX('C2. Nutrition data'!$D$4:$AW$29,MATCH(D$3,'C2. Nutrition data'!$B$4:$B$29,0),MATCH($C31,'C2. Nutrition data'!$D$3:$AW$3,0))/grams100 ->  | E31: (µg) | F31: =D31/INDEX('C2. Nutrition data'!$D$32:$AW$32,MATCH($C31,'C2. Nutrition data'!$D$3:$AW$3,0)) ->  | G31: =RANK(F31,F$6:F$32,1)+COUNTIF(F$6:F31,F31)-1 ->  | H31: =(AgTotCat2+PostHarvTotCat2+ProcTotCat2+DistTotCat2+ConsTotCat2)*grams_tonne*INDEX('C2. Nutrition data'!$D$4:$AW$30,MATCH($H$3,'C2. Nutrition data'!$B$4:$B$30,0),MATCH('B3. Result table, nutrition'!$C31,'C2. Nutrition data'!$D$3:$AW$3,0))/grams100 ->  | I31: (µg) | J31: =H31/INDEX('C2. Nutrition data'!$D$32:$AW$32,MATCH($C31,'C2. Nutrition data'!$D$3:$AW$3,0)) ->  | K31: =RANK(J31,J$6:J$32,1)+COUNTIF(J$6:J31,J31)-1 ->  | L31: =(AgTotCat3+PostHarvTotCat3+ProcTotCat3+DistTotCat3+ConsTotCat3)*grams_tonne*INDEX('C2. Nutrition data'!$D$4:$AW$30,MATCH($L$3,'C2. Nutrition data'!$B$4:$B$30,0),MATCH('B3. Result table, nutrition'!$C31,'C2. Nutrition data'!$D$3:$AW$3,0))/grams100 ->  | M31: (µg) | N31: =L31/INDEX('C2. Nutrition data'!$D$32:$AW$32,MATCH($C31,'C2. Nutrition data'!$D$3:$AW$3,0)) ->  | O31: =RANK(N31,N$6:N$32,1)+COUNTIF(N$6:N31,N31)-1 ->  | P31: =(AgTotCat4+PostHarvTotCat4+ProcTotCat4+DistTotCat4+ConsTotCat4)*grams_tonne*INDEX('C2. Nutrition data'!$D$4:$AW$30,MATCH($P$3,'C2. Nutrition data'!$B$4:$B$30,0),MATCH('B3. Result table, nutrition'!$C31,'C2. Nutrition data'!$D$3:$AW$3,0))/grams100 ->  | Q31: (µg) | R31: =P31/INDEX('C2. Nutrition data'!$D$32:$AW$32,MATCH($C31,'C2. Nutrition data'!$D$3:$AW$3,0)) ->  | S31: =RANK(R31,R$6:R$32,1)+COUNTIF(R$6:R31,R31)-1 ->  | T31: =(AgTotCat5+PostHarvTotCat5+ProcTotCat5+DistTotCat5+ConsTotCat5)*grams_tonne*INDEX('C2. Nutrition data'!$D$4:$AW$30,MATCH($T$3,'C2. Nutrition data'!$B$4:$B$30,0),MATCH('B3. Result table, nutrition'!$C31,'C2. Nutrition data'!$D$3:$AW$3,0))/grams100 ->  | U31: (µg) | V31: =T31/INDEX('C2. Nutrition data'!$D$32:$AW$32,MATCH($C31,'C2. Nutrition data'!$D$3:$AW$3,0)) ->  | W31: =RANK(V31,V$6:V$32,1)+COUNTIF(V$6:V31,V31)-1 ->  | X31: =(AgTotCat6+PostHarvTotCat6+ProcTotCat6+DistTotCat6+ConsTotCat6)*grams_tonne*INDEX('C2. Nutrition data'!$D$4:$AW$30,MATCH($X$3,'C2. Nutrition data'!$B$4:$B$30,0),MATCH('B3. Result table, nutrition'!$C31,'C2. Nutrition data'!$D$3:$AW$3,0))/grams100 ->  | Y31: (µg) | Z31: =X31/INDEX('C2. Nutrition data'!$D$32:$AW$32,MATCH($C31,'C2. Nutrition data'!$D$3:$AW$3,0)) ->  | AA31: =RANK(Z31,Z$6:Z$32,1)+COUNTIF(Z$6:Z31,Z31)-1 -> 
C32: Zinc | D32: =(AgTotCat1+PostHarvTotCat1+ProcTotCat1+DistTotCat1+ConsTotCat1)*grams_tonne*INDEX('C2. Nutrition data'!$D$4:$AW$29,MATCH(D$3,'C2. Nutrition data'!$B$4:$B$29,0),MATCH($C32,'C2. Nutrition data'!$D$3:$AW$3,0))/grams100 ->  | E32: (µg) | F32: =D32/INDEX('C2. Nutrition data'!$D$32:$AW$32,MATCH($C32,'C2. Nutrition data'!$D$3:$AW$3,0)) ->  | G32: =RANK(F32,F$6:F$32,1)+COUNTIF(F$6:F32,F32)-1 ->  | H32: =(AgTotCat2+PostHarvTotCat2+ProcTotCat2+DistTotCat2+ConsTotCat2)*grams_tonne*INDEX('C2. Nutrition data'!$D$4:$AW$30,MATCH($H$3,'C2. Nutrition data'!$B$4:$B$30,0),MATCH('B3. Result table, nutrition'!$C32,'C2. Nutrition data'!$D$3:$AW$3,0))/grams100 ->  | I32: (µg) | J32: =H32/INDEX('C2. Nutrition data'!$D$32:$AW$32,MATCH($C32,'C2. Nutrition data'!$D$3:$AW$3,0)) ->  | K32: =RANK(J32,J$6:J$32,1)+COUNTIF(J$6:J32,J32)-1 ->  | L32: =(AgTotCat3+PostHarvTotCat3+ProcTotCat3+DistTotCat3+ConsTotCat3)*grams_tonne*INDEX('C2. Nutrition data'!$D$4:$AW$30,MATCH($L$3,'C2. Nutrition data'!$B$4:$B$30,0),MATCH('B3. Result table, nutrition'!$C32,'C2. Nutrition data'!$D$3:$AW$3,0))/grams100 ->  | M32: (µg) | N32: =L32/INDEX('C2. Nutrition data'!$D$32:$AW$32,MATCH($C32,'C2. Nutrition data'!$D$3:$AW$3,0)) ->  | O32: =RANK(N32,N$6:N$32,1)+COUNTIF(N$6:N32,N32)-1 ->  | P32: =(AgTotCat4+PostHarvTotCat4+ProcTotCat4+DistTotCat4+ConsTotCat4)*grams_tonne*INDEX('C2. Nutrition data'!$D$4:$AW$30,MATCH($P$3,'C2. Nutrition data'!$B$4:$B$30,0),MATCH('B3. Result table, nutrition'!$C32,'C2. Nutrition data'!$D$3:$AW$3,0))/grams100 ->  | Q32: (µg) | R32: =P32/INDEX('C2. Nutrition data'!$D$32:$AW$32,MATCH($C32,'C2. Nutrition data'!$D$3:$AW$3,0)) ->  | S32: =RANK(R32,R$6:R$32,1)+COUNTIF(R$6:R32,R32)-1 ->  | T32: =(AgTotCat5+PostHarvTotCat5+ProcTotCat5+DistTotCat5+ConsTotCat5)*grams_tonne*INDEX('C2. Nutrition data'!$D$4:$AW$30,MATCH($T$3,'C2. Nutrition data'!$B$4:$B$30,0),MATCH('B3. Result table, nutrition'!$C32,'C2. Nutrition data'!$D$3:$AW$3,0))/grams100 ->  | U32: (µg) | V32: =T32/INDEX('C2. Nutrition data'!$D$32:$AW$32,MATCH($C32,'C2. Nutrition data'!$D$3:$AW$3,0)) ->  | W32: =RANK(V32,V$6:V$32,1)+COUNTIF(V$6:V32,V32)-1 ->  | X32: =(AgTotCat6+PostHarvTotCat6+ProcTotCat6+DistTotCat6+ConsTotCat6)*grams_tonne*INDEX('C2. Nutrition data'!$D$4:$AW$30,MATCH($X$3,'C2. Nutrition data'!$B$4:$B$30,0),MATCH('B3. Result table, nutrition'!$C32,'C2. Nutrition data'!$D$3:$AW$3,0))/grams100 ->  | Y32: (µg) | Z32: =X32/INDEX('C2. Nutrition data'!$D$32:$AW$32,MATCH($C32,'C2. Nutrition data'!$D$3:$AW$3,0)) ->  | AA32: =RANK(Z32,Z$6:Z$32,1)+COUNTIF(Z$6:Z32,Z32)-1 -> 
B37: Nutrititional values and per-person daily requirements fulfilled (over full supply chain) ordered from least to greatest with respect to per-person daily requirements satisfied
D38: =Food_cat1 -> <click to select> | H38: =Food_cat2 -> <click to select> | L38: =Food_cat3 -> <click to select> | P38: =Food_cat4 -> <click to select> | T38: =Food_cat5 -> <click to select> | X38: =Food_cat6 -> <click to select>
B39: Nutritional value | D39: Nutritional values | F39: Equivalent daily values (based on 2000 kcal diet from US FDA) | H39: Nutritional values | J39: Equivalent daily values (based on 2000 kcal diet from US FDA) | L39: Nutritional values | N39: Equivalent daily values (based on 2000 kcal diet from US FDA) | P39: Nutritional values | R39: Equivalent daily values (based on 2000 kcal diet from US FDA) | T39: Nutritional values | V39: Equivalent daily values (based on 2000 kcal diet from US FDA) | X39: Nutritional values | Z39: Equivalent daily values (based on 2000 kcal diet from US FDA)
B40: 1 | C40: =INDEX(C$6:C$32,MATCH($B40,$G$6:$G$32,0))&" "&INDEX(E$6:E$32,MATCH($B40,$G$6:$G$32,0)) ->  | D40: =INDEX(D$6:D$32,MATCH($B40,$G$6:$G$32,0)) ->  | E40: =INDEX(E$6:E$32,MATCH($B40,$G$6:$G$32,0)) ->  | G40: =INDEX(C$6:C$32,MATCH($B40,$K$6:$K$32,0))&" "&INDEX(I$6:I$32,MATCH($B40,$K$6:$K$32,0)) ->  | H40: =INDEX(H$6:H$32,MATCH($B40,$K$6:$K$32,0)) ->  | K40: =INDEX(C$6:C$32,MATCH($B40,$O$6:$O$32,0))&" "&INDEX(M$6:M$32,MATCH($B40,$O$6:$O$32,0)) ->  | L40: =INDEX(L$6:L$32,MATCH($B40,$O$6:$O$32,0)) ->  | O40: =INDEX(C$6:C$32,MATCH($B40,$S$6:$S$32,0))&" "&INDEX(Q$6:Q$32,MATCH($B40,$S$6:$S$32,0)) ->  | P40: =INDEX(P$6:P$32,MATCH($B40,$S$6:$S$32,0)) ->  | S40: =INDEX(C$6:C$32,MATCH($B40,$W$6:$W$32,0))&" "&INDEX(U$6:U$32,MATCH($B40,$W$6:$W$32,0)) ->  | T40: =INDEX(T$6:T$32,MATCH($B40,$W$6:$W$32,0)) ->  | W40: =INDEX(C$6:C$32,MATCH($B40,$AA$6:$AA$32,0))&" "&INDEX(Y$6:Y$32,MATCH($B40,$AA$6:$AA$32,0)) ->  | X40: =INDEX(X$6:X$32,MATCH($B40,$AA$6:$AA$32,0)) ->  | Y40: =INDEX(Y$6:Y$32,MATCH($B40,$AA$6:$AA$32,0)) ->  | Z40: =INDEX(Z$6:Z$32,MATCH($B40,$AA$6:$AA$32,0)) -> 
B41: 2 | C41: =INDEX(C$6:C$32,MATCH($B41,$G$6:$G$32,0))&" "&INDEX(E$6:E$32,MATCH($B41,$G$6:$G$32,0)) ->  | G41: =INDEX(C$6:C$32,MATCH($B41,$K$6:$K$32,0))&" "&INDEX(I$6:I$32,MATCH($B41,$K$6:$K$32,0)) ->  | K41: =INDEX(C$6:C$32,MATCH($B41,$O$6:$O$32,0))&" "&INDEX(M$6:M$32,MATCH($B41,$O$6:$O$32,0)) ->  | O41: =INDEX(C$6:C$32,MATCH($B41,$S$6:$S$32,0))&" "&INDEX(Q$6:Q$32,MATCH($B41,$S$6:$S$32,0)) ->  | S41: =INDEX(C$6:C$32,MATCH($B41,$W$6:$W$32,0))&" "&INDEX(U$6:U$32,MATCH($B41,$W$6:$W$32,0)) ->  | W41: =INDEX(C$6:C$32,MATCH($B41,$AA$6:$AA$32,0))&" "&INDEX(Y$6:Y$32,MATCH($B41,$AA$6:$AA$32,0)) ->  | X41: =INDEX(X$6:X$32,MATCH($B41,$AA$6:$AA$32,0)) ->  | Y41: =INDEX(Y$6:Y$32,MATCH($B41,$W$6:$W$32,0)) ->  | Z41: =INDEX(Z$6:Z$32,MATCH($B41,$AA$6:$AA$32,0)) -> 
B42: 3
B43: 4
B44: 5
B45: 6
B46: 7
B47: 8
B48: 9
B49: 10
B50: 11
B51: 12
B52: 13
B53: 14
B54: 15
B55: 16
B56: 17
B57: 18
B58: 19
B59: 20
B60: 21
B61: 22
B62: 23
B63: 24
B64: 25
B65: 26
B66: 27 | F66: =INDEX(F$6:F$32,MATCH($B66,$G$6:$G$32,0)) -> 

Sheet B4. Result summary and figures
A1: Results figures
A2: The results from the calculator can help communicate about the impacts of FLW. However, the results provided by this calculator are based on a set of assumptions that may differ from your situation, and the calculator results have not been peer-reviewed. This must be taken into account in any communication or decision making.
A9: How many tonnes of FLW did you report for each food and region combination, and for which life cycle stages?
K11: 1. Summary of total FLW in weight (tonne)
L12: Figure 1. Total FLW amount for selected food categories & regions across the life cycle
L13: =IF(Food_cat1_region="<click to select>","",Food_cat1_region) ->  | M13: =IF(Food_cat2_region="<click to select>","",Food_cat2_region) ->  | N13: =IF(Food_cat3_region="<click to select>","",Food_cat3_region) ->  | O13: =IF(Food_cat4_region="<click to select>","",Food_cat4_region) ->  | P13: =IF(Food_cat5_region="<click to select>","",Food_cat5_region) ->  | Q13: =IF(Food_cat6_region="<click to select>","",Food_cat6_region) -> 
L14: =IF(Food_cat1="<click to select>","",Food_cat1) ->  | M14: =IF(Food_cat2="<click to select>","",Food_cat2) ->  | N14: =IF(Food_cat3="<click to select>","",Food_cat3) ->  | O14: =IF(Food_cat4="<click to select>","",Food_cat4) ->  | P14: =IF(Food_cat5="<click to select>","",Food_cat5) ->  | Q14: =IF(Food_cat6="<click to select>","",Food_cat6) -> 
K15: Agricultural production | L15: =AgTotCat1 -> 0 | M15: =AgTotCat2 -> 0 | N15: =AgTotCat3 -> 0 | O15: =AgTotCat4 -> 0 | P15: =AgTotCat5 -> 0 | Q15: =AgTotCat6 -> 0 | R15: tonne
K16: Post-harvest handling and storage | L16: =PostHarvTotCat1 -> 0 | M16: =PostHarvTotCat2 -> 0 | N16: =PostHarvTotCat3 -> 0 | O16: =PostHarvTotCat4 -> 0 | P16: =PostHarvTotCat5 -> 0 | Q16: =PostHarvTotCat6 -> 0 | R16: tonne
K17: Processing and packaging | L17: =ProcTotCat1 -> 0 | M17: =ProcTotCat2 -> 0 | N17: =ProcTotCat3 -> 0 | O17: =ProcTotCat4 -> 0 | P17: =ProcTotCat5 -> 0 | Q17: =ProcTotCat6 -> 0 | R17: tonne
K18: Distribution | L18: =DistTotCat1 -> 0 | M18: =DistTotCat2 -> 0 | N18: =DistTotCat3 -> 0 | O18: =DistTotCat4 -> 0 | P18: =DistTotCat5 -> 0 | Q18: =DistTotCat6 -> 0 | R18: tonne
K19: Consumption | L19: =ConsTotCat1 -> 0 | M19: =ConsTotCat2 -> 0 | N19: =ConsTotCat3 -> 0 | O19: =ConsTotCat4 -> 0 | P19: =ConsTotCat5 -> 0 | Q19: =ConsTotCat6 -> 0 | R19: tonne
A36: To what destinations did the FLW go?
K39: 2. Summary of destinations per scenario
L40: Figure 2. Destination allocations for selected food categories & regions summed across the life cycle
L41: =IF(Food_cat1_region="<click to select>","",Food_cat1_region) ->  | M41: =IF(Food_cat2_region="<click to select>","",Food_cat2_region) ->  | N41: =IF(Food_cat3_region="<click to select>","",Food_cat3_region) ->  | O41: =IF(Food_cat4_region="<click to select>","",Food_cat4_region) ->  | P41: =IF(Food_cat5_region="<click to select>","",Food_cat5_region) ->  | Q41: =IF(Food_cat6_region="<click to select>","",Food_cat6_region) -> 
L42: =IF(Food_cat1="<click to select>","",Food_cat1) ->  | M42: =IF(Food_cat2="<click to select>","",Food_cat2) ->  | N42: =IF(Food_cat3="<click to select>","",Food_cat3) ->  | O42: =IF(Food_cat4="<click to select>","",Food_cat4) ->  | P42: =IF(Food_cat5="<click to select>","",Food_cat5) ->  | Q42: =IF(Food_cat6="<click to select>","",Food_cat6) -> 
K43: Animal feed | L43: =IF(ISNUMBER('B1. Detailed assessment'!$F$174),'B1. Detailed assessment'!F74+'B1. Detailed assessment'!F95+'B1. Detailed assessment'!F116+'B1. Detailed assessment'!F137+'B1. Detailed assessment'!F159,"") ->  | M43: =IF(ISNUMBER('B1. Detailed assessment'!$F$174),'B1. Detailed assessment'!G74+'B1. Detailed assessment'!G95+'B1. Detailed assessment'!G116+'B1. Detailed assessment'!G137+'B1. Detailed assessment'!G159,"") ->  | N43: =IF(ISNUMBER('B1. Detailed assessment'!$F$174),'B1. Detailed assessment'!H74+'B1. Detailed assessment'!H95+'B1. Detailed assessment'!H116+'B1. Detailed assessment'!H137+'B1. Detailed assessment'!H159,"") ->  | O43: =IF(ISNUMBER('B1. Detailed assessment'!$F$174),'B1. Detailed assessment'!I74+'B1. Detailed assessment'!I95+'B1. Detailed assessment'!I116+'B1. Detailed assessment'!I137+'B1. Detailed assessment'!I159,"") ->  | P43: =IF(ISNUMBER('B1. Detailed assessment'!$F$174),'B1. Detailed assessment'!J74+'B1. Detailed assessment'!J95+'B1. Detailed assessment'!J116+'B1. Detailed assessment'!J137+'B1. Detailed assessment'!J159,"") ->  | Q43: =IF(ISNUMBER('B1. Detailed assessment'!$F$174),'B1. Detailed assessment'!K74+'B1. Detailed assessment'!K95+'B1. Detailed assessment'!K116+'B1. Detailed assessment'!K137+'B1. Detailed assessment'!K159,"") ->  | R43: tonne
K44: Bio-based materials/biochemical processing | L44: =IF(ISNUMBER('B1. Detailed assessment'!$F$174),'B1. Detailed assessment'!F75+'B1. Detailed assessment'!F96+'B1. Detailed assessment'!F117+'B1. Detailed assessment'!F138+'B1. Detailed assessment'!F160,"") ->  | M44: =IF(ISNUMBER('B1. Detailed assessment'!$F$174),'B1. Detailed assessment'!G75+'B1. Detailed assessment'!G96+'B1. Detailed assessment'!G117+'B1. Detailed assessment'!G138+'B1. Detailed assessment'!G160,"") ->  | N44: =IF(ISNUMBER('B1. Detailed assessment'!$F$174),'B1. Detailed assessment'!H75+'B1. Detailed assessment'!H96+'B1. Detailed assessment'!H117+'B1. Detailed assessment'!H138+'B1. Detailed assessment'!H160,"") ->  | O44: =IF(ISNUMBER('B1. Detailed assessment'!$F$174),'B1. Detailed assessment'!I75+'B1. Detailed assessment'!I96+'B1. Detailed assessment'!I117+'B1. Detailed assessment'!I138+'B1. Detailed assessment'!I160,"") ->  | P44: =IF(ISNUMBER('B1. Detailed assessment'!$F$174),'B1. Detailed assessment'!J75+'B1. Detailed assessment'!J96+'B1. Detailed assessment'!J117+'B1. Detailed assessment'!J138+'B1. Detailed assessment'!J160,"") ->  | Q44: =IF(ISNUMBER('B1. Detailed assessment'!$F$174),'B1. Detailed assessment'!K75+'B1. Detailed assessment'!K96+'B1. Detailed assessment'!K117+'B1. Detailed assessment'!K138+'B1. Detailed assessment'!K160,"") ->  | R44: tonne
K45: Codigestion/anaerobic digestion | L45: =IF(ISNUMBER('B1. Detailed assessment'!$F$174),'B1. Detailed assessment'!F76+'B1. Detailed assessment'!F97+'B1. Detailed assessment'!F118+'B1. Detailed assessment'!F139+'B1. Detailed assessment'!F161,"") ->  | M45: =IF(ISNUMBER('B1. Detailed assessment'!$F$174),'B1. Detailed assessment'!G76+'B1. Detailed assessment'!G97+'B1. Detailed assessment'!G118+'B1. Detailed assessment'!G139+'B1. Detailed assessment'!G161,"") ->  | N45: =IF(ISNUMBER('B1. Detailed assessment'!$F$174),'B1. Detailed assessment'!H76+'B1. Detailed assessment'!H97+'B1. Detailed assessment'!H118+'B1. Detailed assessment'!H139+'B1. Detailed assessment'!H161,"") ->  | O45: =IF(ISNUMBER('B1. Detailed assessment'!$F$174),'B1. Detailed assessment'!I76+'B1. Detailed assessment'!I97+'B1. Detailed assessment'!I118+'B1. Detailed assessment'!I139+'B1. Detailed assessment'!I161,"") ->  | P45: =IF(ISNUMBER('B1. Detailed assessment'!$F$174),'B1. Detailed assessment'!J76+'B1. Detailed assessment'!J97+'B1. Detailed assessment'!J118+'B1. Detailed assessment'!J139+'B1. Detailed assessment'!J161,"") ->  | Q45: =IF(ISNUMBER('B1. Detailed assessment'!$F$174),'B1. Detailed assessment'!K76+'B1. Detailed assessment'!K97+'B1. Detailed assessment'!K118+'B1. Detailed assessment'!K139+'B1. Detailed assessment'!K161,"") ->  | R45: tonne
K46: Composting/aerobic processes | L46: =IF(ISNUMBER('B1. Detailed assessment'!$F$174),'B1. Detailed assessment'!F77+'B1. Detailed assessment'!F98+'B1. Detailed assessment'!F119+'B1. Detailed assessment'!F140+'B1. Detailed assessment'!F162,"") ->  | M46: =IF(ISNUMBER('B1. Detailed assessment'!$F$174),'B1. Detailed assessment'!G77+'B1. Detailed assessment'!G98+'B1. Detailed assessment'!G119+'B1. Detailed assessment'!G140+'B1. Detailed assessment'!G162,"") ->  | N46: =IF(ISNUMBER('B1. Detailed assessment'!$F$174),'B1. Detailed assessment'!H77+'B1. Detailed assessment'!H98+'B1. Detailed assessment'!H119+'B1. Detailed assessment'!H140+'B1. Detailed assessment'!H162,"") ->  | O46: =IF(ISNUMBER('B1. Detailed assessment'!$F$174),'B1. Detailed assessment'!I77+'B1. Detailed assessment'!I98+'B1. Detailed assessment'!I119+'B1. Detailed assessment'!I140+'B1. Detailed assessment'!I162,"") ->  | P46: =IF(ISNUMBER('B1. Detailed assessment'!$F$174),'B1. Detailed assessment'!J77+'B1. Detailed assessment'!J98+'B1. Detailed assessment'!J119+'B1. Detailed assessment'!J140+'B1. Detailed assessment'!J162,"") ->  | Q46: =IF(ISNUMBER('B1. Detailed assessment'!$F$174),'B1. Detailed assessment'!K77+'B1. Detailed assessment'!K98+'B1. Detailed assessment'!K119+'B1. Detailed assessment'!K140+'B1. Detailed assessment'!K162,"") ->  | R46: tonne
K47: Controlled combustion | L47: =IF(ISNUMBER('B1. Detailed assessment'!$F$174),'B1. Detailed assessment'!F78+'B1. Detailed assessment'!F99+'B1. Detailed assessment'!F120+'B1. Detailed assessment'!F141+'B1. Detailed assessment'!F163,"") ->  | M47: =IF(ISNUMBER('B1. Detailed assessment'!$F$174),'B1. Detailed assessment'!G78+'B1. Detailed assessment'!G99+'B1. Detailed assessment'!G120+'B1. Detailed assessment'!G141+'B1. Detailed assessment'!G163,"") ->  | N47: =IF(ISNUMBER('B1. Detailed assessment'!$F$174),'B1. Detailed assessment'!H78+'B1. Detailed assessment'!H99+'B1. Detailed assessment'!H120+'B1. Detailed assessment'!H141+'B1. Detailed assessment'!H163,"") ->  | O47: =IF(ISNUMBER('B1. Detailed assessment'!$F$174),'B1. Detailed assessment'!I78+'B1. Detailed assessment'!I99+'B1. Detailed assessment'!I120+'B1. Detailed assessment'!I141+'B1. Detailed assessment'!I163,"") ->  | P47: =IF(ISNUMBER('B1. Detailed assessment'!$F$174),'B1. Detailed assessment'!J78+'B1. Detailed assessment'!J99+'B1. Detailed assessment'!J120+'B1. Detailed assessment'!J141+'B1. Detailed assessment'!J163,"") ->  | Q47: =IF(ISNUMBER('B1. Detailed assessment'!$F$174),'B1. Detailed assessment'!K78+'B1. Detailed assessment'!K99+'B1. Detailed assessment'!K120+'B1. Detailed assessment'!K141+'B1. Detailed assessment'!K163,"") ->  | R47: tonne
K48: Land application | L48: =IF(ISNUMBER('B1. Detailed assessment'!$F$174),'B1. Detailed assessment'!F79+'B1. Detailed assessment'!F100+'B1. Detailed assessment'!F121+'B1. Detailed assessment'!F142+'B1. Detailed assessment'!F164,"") ->  | M48: =IF(ISNUMBER('B1. Detailed assessment'!$F$174),'B1. Detailed assessment'!G79+'B1. Detailed assessment'!G100+'B1. Detailed assessment'!G121+'B1. Detailed assessment'!G142+'B1. Detailed assessment'!G164,"") ->  | N48: =IF(ISNUMBER('B1. Detailed assessment'!$F$174),'B1. Detailed assessment'!H79+'B1. Detailed assessment'!H100+'B1. Detailed assessment'!H121+'B1. Detailed assessment'!H142+'B1. Detailed assessment'!H164,"") ->  | O48: =IF(ISNUMBER('B1. Detailed assessment'!$F$174),'B1. Detailed assessment'!I79+'B1. Detailed assessment'!I100+'B1. Detailed assessment'!I121+'B1. Detailed assessment'!I142+'B1. Detailed assessment'!I164,"") ->  | P48: =IF(ISNUMBER('B1. Detailed assessment'!$F$174),'B1. Detailed assessment'!J79+'B1. Detailed assessment'!J100+'B1. Detailed assessment'!J121+'B1. Detailed assessment'!J142+'B1. Detailed assessment'!J164,"") ->  | Q48: =IF(ISNUMBER('B1. Detailed assessment'!$F$174),'B1. Detailed assessment'!K79+'B1. Detailed assessment'!K100+'B1. Detailed assessment'!K121+'B1. Detailed assessment'!K142+'B1. Detailed assessment'!K164,"") ->  | R48: tonne
K49: Not harvested/plowed in | L49: =IF(ISNUMBER('B1. Detailed assessment'!$F$174),'B1. Detailed assessment'!F80+'B1. Detailed assessment'!F101+'B1. Detailed assessment'!F122+'B1. Detailed assessment'!F143+'B1. Detailed assessment'!F165,"") ->  | M49: =IF(ISNUMBER('B1. Detailed assessment'!$F$174),'B1. Detailed assessment'!G80+'B1. Detailed assessment'!G101+'B1. Detailed assessment'!G122+'B1. Detailed assessment'!G143+'B1. Detailed assessment'!G165,"") ->  | N49: =IF(ISNUMBER('B1. Detailed assessment'!$F$174),'B1. Detailed assessment'!H80+'B1. Detailed assessment'!H101+'B1. Detailed assessment'!H122+'B1. Detailed assessment'!H143+'B1. Detailed assessment'!H165,"") ->  | O49: =IF(ISNUMBER('B1. Detailed assessment'!$F$174),'B1. Detailed assessment'!I80+'B1. Detailed assessment'!I101+'B1. Detailed assessment'!I122+'B1. Detailed assessment'!I143+'B1. Detailed assessment'!I165,"") ->  | P49: =IF(ISNUMBER('B1. Detailed assessment'!$F$174),'B1. Detailed assessment'!J80+'B1. Detailed assessment'!J101+'B1. Detailed assessment'!J122+'B1. Detailed assessment'!J143+'B1. Detailed assessment'!J165,"") ->  | Q49: =IF(ISNUMBER('B1. Detailed assessment'!$F$174),'B1. Detailed assessment'!K80+'B1. Detailed assessment'!K101+'B1. Detailed assessment'!K122+'B1. Detailed assessment'!K143+'B1. Detailed assessment'!K165,"") ->  | R49: tonne
K50: Landfill | L50: =IF(ISNUMBER('B1. Detailed assessment'!$F$174),'B1. Detailed assessment'!F81+'B1. Detailed assessment'!F102+'B1. Detailed assessment'!F123+'B1. Detailed assessment'!F144+'B1. Detailed assessment'!F166,"") ->  | M50: =IF(ISNUMBER('B1. Detailed assessment'!$F$174),'B1. Detailed assessment'!G81+'B1. Detailed assessment'!G102+'B1. Detailed assessment'!G123+'B1. Detailed assessment'!G144+'B1. Detailed assessment'!G166,"") ->  | N50: =IF(ISNUMBER('B1. Detailed assessment'!$F$174),'B1. Detailed assessment'!H81+'B1. Detailed assessment'!H102+'B1. Detailed assessment'!H123+'B1. Detailed assessment'!H144+'B1. Detailed assessment'!H166,"") ->  | O50: =IF(ISNUMBER('B1. Detailed assessment'!$F$174),'B1. Detailed assessment'!I81+'B1. Detailed assessment'!I102+'B1. Detailed assessment'!I123+'B1. Detailed assessment'!I144+'B1. Detailed assessment'!I166,"") ->  | P50: =IF(ISNUMBER('B1. Detailed assessment'!$F$174),'B1. Detailed assessment'!J81+'B1. Detailed assessment'!J102+'B1. Detailed assessment'!J123+'B1. Detailed assessment'!J144+'B1. Detailed assessment'!J166,"") ->  | Q50: =IF(ISNUMBER('B1. Detailed assessment'!$F$174),'B1. Detailed assessment'!K81+'B1. Detailed assessment'!K102+'B1. Detailed assessment'!K123+'B1. Detailed assessment'!K144+'B1. Detailed assessment'!K166,"") ->  | R50: tonne
K51: Refuse/discards/litter | L51: =IF(ISNUMBER('B1. Detailed assessment'!$F$174),'B1. Detailed assessment'!F82+'B1. Detailed assessment'!F103+'B1. Detailed assessment'!F124+'B1. Detailed assessment'!F145+'B1. Detailed assessment'!F167,"") ->  | M51: =IF(ISNUMBER('B1. Detailed assessment'!$F$174),'B1. Detailed assessment'!G82+'B1. Detailed assessment'!G103+'B1. Detailed assessment'!G124+'B1. Detailed assessment'!G145+'B1. Detailed assessment'!G167,"") ->  | N51: =IF(ISNUMBER('B1. Detailed assessment'!$F$174),'B1. Detailed assessment'!H82+'B1. Detailed assessment'!H103+'B1. Detailed assessment'!H124+'B1. Detailed assessment'!H145+'B1. Detailed assessment'!H167,"") ->  | O51: =IF(ISNUMBER('B1. Detailed assessment'!$F$174),'B1. Detailed assessment'!I82+'B1. Detailed assessment'!I103+'B1. Detailed assessment'!I124+'B1. Detailed assessment'!I145+'B1. Detailed assessment'!I167,"") ->  | P51: =IF(ISNUMBER('B1. Detailed assessment'!$F$174),'B1. Detailed assessment'!J82+'B1. Detailed assessment'!J103+'B1. Detailed assessment'!J124+'B1. Detailed assessment'!J145+'B1. Detailed assessment'!J167,"") ->  | Q51: =IF(ISNUMBER('B1. Detailed assessment'!$F$174),'B1. Detailed assessment'!K82+'B1. Detailed assessment'!K103+'B1. Detailed assessment'!K124+'B1. Detailed assessment'!K145+'B1. Detailed assessment'!K167,"") ->  | R51: tonne
K52: Sewer/wastewater treatment | L52: =IF(ISNUMBER('B1. Detailed assessment'!$F$174),'B1. Detailed assessment'!F83+'B1. Detailed assessment'!F104+'B1. Detailed assessment'!F125+'B1. Detailed assessment'!F146+'B1. Detailed assessment'!F168,"") ->  | M52: =IF(ISNUMBER('B1. Detailed assessment'!$F$174),'B1. Detailed assessment'!G83+'B1. Detailed assessment'!G104+'B1. Detailed assessment'!G125+'B1. Detailed assessment'!G146+'B1. Detailed assessment'!G168,"") ->  | N52: =IF(ISNUMBER('B1. Detailed assessment'!$F$174),'B1. Detailed assessment'!H83+'B1. Detailed assessment'!H104+'B1. Detailed assessment'!H125+'B1. Detailed assessment'!H146+'B1. Detailed assessment'!H168,"") ->  | O52: =IF(ISNUMBER('B1. Detailed assessment'!$F$174),'B1. Detailed assessment'!I83+'B1. Detailed assessment'!I104+'B1. Detailed assessment'!I125+'B1. Detailed assessment'!I146+'B1. Detailed assessment'!I168,"") ->  | P52: =IF(ISNUMBER('B1. Detailed assessment'!$F$174),'B1. Detailed assessment'!J83+'B1. Detailed assessment'!J104+'B1. Detailed assessment'!J125+'B1. Detailed assessment'!J146+'B1. Detailed assessment'!J168,"") ->  | Q52: =IF(ISNUMBER('B1. Detailed assessment'!$F$174),'B1. Detailed assessment'!K83+'B1. Detailed assessment'!K104+'B1. Detailed assessment'!K125+'B1. Detailed assessment'!K146+'B1. Detailed assessment'!K168,"") ->  | R52: tonne
K53: Unknown (assumed to be landfill) | L53: =SUM('B1. Detailed assessment'!F71,'B1. Detailed assessment'!F92,'B1. Detailed assessment'!F113,'B1. Detailed assessment'!F134,'B1. Detailed assessment'!F155) -> 0 | M53: =SUM('B1. Detailed assessment'!G71,'B1. Detailed assessment'!G92,'B1. Detailed assessment'!G113,'B1. Detailed assessment'!G134,'B1. Detailed assessment'!G155) -> 0 | N53: =SUM('B1. Detailed assessment'!H71,'B1. Detailed assessment'!H92,'B1. Detailed assessment'!H113,'B1. Detailed assessment'!H134,'B1. Detailed assessment'!H155) -> 0 | O53: =SUM('B1. Detailed assessment'!I71,'B1. Detailed assessment'!I92,'B1. Detailed assessment'!I113,'B1. Detailed assessment'!I134,'B1. Detailed assessment'!I155) -> 0 | P53: =SUM('B1. Detailed assessment'!J71,'B1. Detailed assessment'!J92,'B1. Detailed assessment'!J113,'B1. Detailed assessment'!J134,'B1. Detailed assessment'!J155) -> 0 | Q53: =SUM('B1. Detailed assessment'!K71,'B1. Detailed assessment'!K92,'B1. Detailed assessment'!K113,'B1. Detailed assessment'!K134,'B1. Detailed assessment'!K155) -> 0 | R53: tonne
A64: What are the relative contributions to the environmental impact from agricultural production, life cycle, and destination(s)?
L65: Figure 3. Relative impacts (%) per each scenario for the different contributions (agricultural impact, life cycle and destination)
L66: =Impact -> Climate change (kg CO2 eq)
L67: =IF(Food_cat1_region="<click to select>","",Food_cat1_region) ->  | M67: =IF(Food_cat2_region="<click to select>","",Food_cat2_region) ->  | N67: =IF(Food_cat3_region="<click to select>","",Food_cat3_region) ->  | O67: =IF(Food_cat4_region="<click to select>","",Food_cat4_region) ->  | P67: =IF(Food_cat5_region="<click to select>","",Food_cat5_region) ->  | Q67: =IF(Food_cat6_region="<click to select>","",Food_cat6_region) -> 
L68: =IF(Food_cat1="<click to select>","",Food_cat1) ->  | M68: =IF(Food_cat2="<click to select>","",Food_cat2) ->  | N68: =IF(Food_cat3="<click to select>","",Food_cat3) ->  | O68: =IF(Food_cat4="<click to select>","",Food_cat4) ->  | P68: =IF(Food_cat5="<click to select>","",Food_cat5) ->  | Q68: =IF(Food_cat6="<click to select>","",Food_cat6) -> 
K69: Agricultural production impacts | L69: ='B2. Result table, enviro impact'!D114 ->  | M69: ='B2. Result table, enviro impact'!E114 ->  | N69: ='B2. Result table, enviro impact'!F114 ->  | O69: ='B2. Result table, enviro impact'!G114 ->  | P69: ='B2. Result table, enviro impact'!H114 ->  | Q69: ='B2. Result table, enviro impact'!I114 -> 
K70: Additional relevant life cycle impacts | L70: ='B2. Result table, enviro impact'!D115 ->  | M70: ='B2. Result table, enviro impact'!E115 ->  | N70: ='B2. Result table, enviro impact'!F115 ->  | O70: ='B2. Result table, enviro impact'!G115 ->  | P70: ='B2. Result table, enviro impact'!H115 ->  | Q70: ='B2. Result table, enviro impact'!I115 -> 
K72: Animal feed | L72: ='B2. Result table, enviro impact'!D118 ->  | M72: ='B2. Result table, enviro impact'!E118 ->  | N72: ='B2. Result table, enviro impact'!F118 ->  | O72: ='B2. Result table, enviro impact'!G118 ->  | P72: ='B2. Result table, enviro impact'!H118 ->  | Q72: ='B2. Result table, enviro impact'!I118 -> 
K73: Bio-based materials/biochemical processing | L73: ='B2. Result table, enviro impact'!D119 ->  | M73: ='B2. Result table, enviro impact'!E119 ->  | N73: ='B2. Result table, enviro impact'!F119 ->  | O73: ='B2. Result table, enviro impact'!G119 ->  | P73: ='B2. Result table, enviro impact'!H119 ->  | Q73: ='B2. Result table, enviro impact'!I119 -> 
K74: Codigestion/anaerobic digestion | L74: ='B2. Result table, enviro impact'!D120 ->  | M74: ='B2. Result table, enviro impact'!E120 ->  | N74: ='B2. Result table, enviro impact'!F120 ->  | O74: ='B2. Result table, enviro impact'!G120 ->  | P74: ='B2. Result table, enviro impact'!H120 ->  | Q74: ='B2. Result table, enviro impact'!I120 -> 
K75: Composting/aerobic processes | L75: ='B2. Result table, enviro impact'!D121 ->  | M75: ='B2. Result table, enviro impact'!E121 ->  | N75: ='B2. Result table, enviro impact'!F121 ->  | O75: ='B2. Result table, enviro impact'!G121 ->  | P75: ='B2. Result table, enviro impact'!H121 ->  | Q75: ='B2. Result table, enviro impact'!I121 -> 
K76: Controlled combustion with energy recovery | L76: ='B2. Result table, enviro impact'!D122 ->  | M76: ='B2. Result table, enviro impact'!E122 ->  | N76: ='B2. Result table, enviro impact'!F122 ->  | O76: ='B2. Result table, enviro impact'!G122 ->  | P76: ='B2. Result table, enviro impact'!H122 ->  | Q76: ='B2. Result table, enviro impact'!I122 -> 
K77: Land application | L77: ='B2. Result table, enviro impact'!D123 ->  | M77: ='B2. Result table, enviro impact'!E123 ->  | N77: ='B2. Result table, enviro impact'!F123 ->  | O77: ='B2. Result table, enviro impact'!G123 ->  | P77: ='B2. Result table, enviro impact'!H123 ->  | Q77: ='B2. Result table, enviro impact'!I123 -> 
K78: Not harvested/plowed in | L78: ='B2. Result table, enviro impact'!D124 ->  | M78: ='B2. Result table, enviro impact'!E124 ->  | N78: ='B2. Result table, enviro impact'!F124 ->  | O78: ='B2. Result table, enviro impact'!G124 ->  | P78: ='B2. Result table, enviro impact'!H124 ->  | Q78: ='B2. Result table, enviro impact'!I124 -> 
K79: Landfill (no gas capture) | L79: ='B2. Result table, enviro impact'!D125 ->  | M79: ='B2. Result table, enviro impact'!E125 ->  | N79: ='B2. Result table, enviro impact'!F125 ->  | O79: ='B2. Result table, enviro impact'!G125 ->  | P79: ='B2. Result table, enviro impact'!H125 ->  | Q79: ='B2. Result table, enviro impact'!I125 -> 
K80: Refuse/discards/litter | L80: ='B2. Result table, enviro impact'!D126 ->  | M80: ='B2. Result table, enviro impact'!E126 ->  | N80: ='B2. Result table, enviro impact'!F126 ->  | O80: ='B2. Result table, enviro impact'!G126 ->  | P80: ='B2. Result table, enviro impact'!H126 ->  | Q80: ='B2. Result table, enviro impact'!I126 -> 
K81: Sewer/wastewater treatment | L81: ='B2. Result table, enviro impact'!D127 ->  | M81: ='B2. Result table, enviro impact'!E127 ->  | N81: ='B2. Result table, enviro impact'!F127 ->  | O81: ='B2. Result table, enviro impact'!G127 ->  | P81: ='B2. Result table, enviro impact'!H127 ->  | Q81: ='B2. Result table, enviro impact'!I127 -> 
K82: Unknown (assumed to be landfill) | L82: ='B2. Result table, enviro impact'!D128 ->  | M82: ='B2. Result table, enviro impact'!E128 ->  | N82: ='B2. Result table, enviro impact'!F128 ->  | O82: ='B2. Result table, enviro impact'!G128 ->  | P82: ='B2. Result table, enviro impact'!H128 ->  | Q82: ='B2. Result table, enviro impact'!I128 -> 
A96: What are the absolute environmental impacts of the agricultural production, life cycle, and destination(s)?
K99: Figure 4. Absolute impacts per each scenario for the different contributions
A132: What is the nutritional value of the FLW?
K133: Figure 5. Summary of key nutrients (number of US FDA daily values per nutrient that could have been fufilled by the report FLW)
J134: CLICK TO SELECT NUTRIENTS BELOW | K134: =IF(Food_cat1="<click to select>","","1. "&Food_cat1) ->  | L134: =IF(Food_cat2="<click to select>","","2. "&Food_cat2) ->  | M134: =IF(Food_cat3="<click to select>","","3. "&Food_cat3) ->  | N134: =IF(Food_cat4="<click to select>","","4. "&Food_cat4) ->  | O134: =IF(Food_cat5="<click to select>","","5. "&Food_cat5) ->  | P134: =IF(Food_cat6="<click to select>","","6. "&Food_cat6) -> 
J135: Energy | K135: =INDEX('B3. Result table, nutrition'!$F$6:$F$32,MATCH($J135,'B3. Result table, nutrition'!$C$6:$C$32,0)) ->  | L135: =INDEX('B3. Result table, nutrition'!$J$6:$J$32,MATCH($J135,'B3. Result table, nutrition'!$C$6:$C$32,0)) ->  | M135: =INDEX('B3. Result table, nutrition'!$N$6:$N$32,MATCH($J135,'B3. Result table, nutrition'!$C$6:$C$32,0)) ->  | N135: =INDEX('B3. Result table, nutrition'!$R$6:$R$32,MATCH($J135,'B3. Result table, nutrition'!$C$6:$C$32,0)) ->  | O135: =INDEX('B3. Result table, nutrition'!$V$6:$V$32,MATCH($J135,'B3. Result table, nutrition'!$C$6:$C$32,0)) ->  | P135: =INDEX('B3. Result table, nutrition'!$Z$6:$Z$32,MATCH($J135,'B3. Result table, nutrition'!$C$6:$C$32,0)) ->  | Q135: daily values fulfillable by FLW (person/day)
J136: Protein | K136: =INDEX('B3. Result table, nutrition'!$F$6:$F$32,MATCH($J136,'B3. Result table, nutrition'!$C$6:$C$32,0)) ->  | L136: =INDEX('B3. Result table, nutrition'!$J$6:$J$32,MATCH($J136,'B3. Result table, nutrition'!$C$6:$C$32,0)) ->  | M136: =INDEX('B3. Result table, nutrition'!$N$6:$N$32,MATCH($J136,'B3. Result table, nutrition'!$C$6:$C$32,0)) ->  | N136: =INDEX('B3. Result table, nutrition'!$R$6:$R$32,MATCH($J136,'B3. Result table, nutrition'!$C$6:$C$32,0)) ->  | O136: =INDEX('B3. Result table, nutrition'!$V$6:$V$32,MATCH($J136,'B3. Result table, nutrition'!$C$6:$C$32,0)) ->  | P136: =INDEX('B3. Result table, nutrition'!$Z$6:$Z$32,MATCH($J136,'B3. Result table, nutrition'!$C$6:$C$32,0)) ->  | Q136: daily values fulfillable by FLW (person/day)
J137: Calcium | K137: =INDEX('B3. Result table, nutrition'!$F$6:$F$32,MATCH($J137,'B3. Result table, nutrition'!$C$6:$C$32,0)) ->  | L137: =INDEX('B3. Result table, nutrition'!$J$6:$J$32,MATCH($J137,'B3. Result table, nutrition'!$C$6:$C$32,0)) ->  | M137: =INDEX('B3. Result table, nutrition'!$N$6:$N$32,MATCH($J137,'B3. Result table, nutrition'!$C$6:$C$32,0)) ->  | N137: =INDEX('B3. Result table, nutrition'!$R$6:$R$32,MATCH($J137,'B3. Result table, nutrition'!$C$6:$C$32,0)) ->  | O137: =INDEX('B3. Result table, nutrition'!$V$6:$V$32,MATCH($J137,'B3. Result table, nutrition'!$C$6:$C$32,0)) ->  | P137: =INDEX('B3. Result table, nutrition'!$Z$6:$Z$32,MATCH($J137,'B3. Result table, nutrition'!$C$6:$C$32,0)) ->  | Q137: daily values fulfillable by FLW (person/day)
J138: Iron | K138: =INDEX('B3. Result table, nutrition'!$F$6:$F$32,MATCH($J138,'B3. Result table, nutrition'!$C$6:$C$32,0)) ->  | L138: =INDEX('B3. Result table, nutrition'!$J$6:$J$32,MATCH($J138,'B3. Result table, nutrition'!$C$6:$C$32,0)) ->  | M138: =INDEX('B3. Result table, nutrition'!$N$6:$N$32,MATCH($J138,'B3. Result table, nutrition'!$C$6:$C$32,0)) ->  | N138: =INDEX('B3. Result table, nutrition'!$R$6:$R$32,MATCH($J138,'B3. Result table, nutrition'!$C$6:$C$32,0)) ->  | O138: =INDEX('B3. Result table, nutrition'!$V$6:$V$32,MATCH($J138,'B3. Result table, nutrition'!$C$6:$C$32,0)) ->  | P138: =INDEX('B3. Result table, nutrition'!$Z$6:$Z$32,MATCH($J138,'B3. Result table, nutrition'!$C$6:$C$32,0)) ->  | Q138: daily values fulfillable by FLW (person/day)
J139: Vit B12 | K139: =INDEX('B3. Result table, nutrition'!$F$6:$F$32,MATCH($J139,'B3. Result table, nutrition'!$C$6:$C$32,0)) ->  | L139: =INDEX('B3. Result table, nutrition'!$J$6:$J$32,MATCH($J139,'B3. Result table, nutrition'!$C$6:$C$32,0)) ->  | M139: =INDEX('B3. Result table, nutrition'!$N$6:$N$32,MATCH($J139,'B3. Result table, nutrition'!$C$6:$C$32,0)) ->  | N139: =INDEX('B3. Result table, nutrition'!$R$6:$R$32,MATCH($J139,'B3. Result table, nutrition'!$C$6:$C$32,0)) ->  | O139: =INDEX('B3. Result table, nutrition'!$V$6:$V$32,MATCH($J139,'B3. Result table, nutrition'!$C$6:$C$32,0)) ->  | P139: =INDEX('B3. Result table, nutrition'!$Z$6:$Z$32,MATCH($J139,'B3. Result table, nutrition'!$C$6:$C$32,0)) ->  | Q139: daily values fulfillable by FLW (person/day)
J140: Zinc | K140: =INDEX('B3. Result table, nutrition'!$F$6:$F$32,MATCH($J140,'B3. Result table, nutrition'!$C$6:$C$32,0)) ->  | L140: =INDEX('B3. Result table, nutrition'!$J$6:$J$32,MATCH($J140,'B3. Result table, nutrition'!$C$6:$C$32,0)) ->  | M140: =INDEX('B3. Result table, nutrition'!$N$6:$N$32,MATCH($J140,'B3. Result table, nutrition'!$C$6:$C$32,0)) ->  | N140: =INDEX('B3. Result table, nutrition'!$R$6:$R$32,MATCH($J140,'B3. Result table, nutrition'!$C$6:$C$32,0)) ->  | O140: =INDEX('B3. Result table, nutrition'!$V$6:$V$32,MATCH($J140,'B3. Result table, nutrition'!$C$6:$C$32,0)) ->  | P140: =INDEX('B3. Result table, nutrition'!$Z$6:$Z$32,MATCH($J140,'B3. Result table, nutrition'!$C$6:$C$32,0)) ->  | Q140: daily values fulfillable by FLW (person/day)
A161: Additional figures of full nutritional profile, axes may need to be adjusted for correct visualisation

Sheet C1. Enviro impact definitions
C1: Impact categories
B4: Impact descriptions
C6: Climate change (kg CO2 eq) | D6: The climate change impact indicates the carbon footprint of the FLW due to greenhouse gas emissions (GHGs). This accounts for the radiative forcing of various GHGs using the Global Warming Potential for 100 year time frame.
C7: Water scarcity footprint (m3-eq) | D7: The water scarcity footprint is a key water footprint indicator that encompasses the impact related to water consumption. It takes into account regional water scarcity as well as water quality.
C8: Soil quality index (points) | D8: The soil quality index indicates the deterioration of soil quality, where the higher the points the worse the soil quality. This impact is measured in points, which are a relative indicator aggregating impacts on land related to biotic production capacity, erosion, mechanical filtration of water, and groundwater replenishment.
C9: Eutrophication (kg P eq) | D9: Freshwater eutrophication results from discharge of nutrients (i.e. N and P) into freshwater bodies (where P is often a limiting nutrient). This causes increased activity by organisms such as cyanobacteria and algae and ultimately leading to a relative species loss.
C10: Eutrophication (kg N eq) | D10: Marine eutrophication results from discharge of nutrients (i.e. N and P) into marine bodies (where N is often a limiting nutrient). This causes increased activity by organisms such as cyanobacteria and algae and ultimately leading to a relative species loss.
C12: Impact assessment methods are aligned with methodology from the European Union, Product Environmental Footprint: http://eplca.jrc.ec.europa.eu/permalink/supporting_Information_final.pdf

Sheet C2. Nutrition data
D1: NUTRITION PER 100G
C2: USDA name | D2: Water_(g) | E2: Energ_Kcal | F2: Protein_(g) | G2: Lipid_Tot_(g) | H2: Ash_(g) | I2: Carbohydrt_(g) | J2: Fiber_TD_(g) | K2: Sugar_Tot_(g) | L2: Calcium_(mg) | M2: Iron_(mg) | N2: Magnesium_(mg) | O2: Phosphorus_(mg) | P2: Potassium_(mg) | Q2: Sodium_(mg) | R2: Zinc_(mg) | S2: Copper_mg) | T2: Manganese_(mg) | U2: Selenium_(µg) | V2: Vit_C_(mg) | W2: Thiamin_(mg) | X2: Riboflavin_(mg) | Y2: Niacin_(mg) | Z2: Panto_Acid_mg) | AA2: Vit_B6_(mg) | AB2: Folate_Tot_(µg) | AC2: Folic_Acid_(µg) | AD2: Food_Folate_(µg) | AE2: Folate_DFE_(µg) | AF2: Choline_Tot_ (mg) | AG2: Vit_B12_(µg) | AH2: Vit_A_IU | AI2: Vit_A_RAE | AJ2: Retinol_(µg) | AK2: Alpha_Carot_(µg) | AL2: Beta_Carot_(µg) | AM2: Beta_Crypt_(µg) | AN2: Lycopene_(µg) | AO2: Lut+Zea_ (µg) | AP2: Vit_E_(mg) | AQ2: Vit_D_µg | AR2: Vit_D_IU | AS2: Vit_K_(µg) | AT2: FA_Sat_(g) | AU2: FA_Mono_(g) | AV2: FA_Poly_(g) | AW2: Cholestrl_(mg)
B3: Food type | C3: Calculator name | E3: Energy | F3: Protein | I3: Carbohydrates | J3: Fiber | K3: sugar | L3: Calcium | M3: Iron | N3: Magnesium | O3: Phosphorus | P3: Potassium | Q3: Sodium | R3: Zinc | S3: Copper | T3: Manganese | U3: Selenium | V3: Vit C | W3: Thiamin | X3: Riboflavin | Y3: Niacin | Z3: Panto acid | AA3: Vit B6 | AB3: Folate (total) | AC3: Folic acid | AD3: Food folate | AE3: Folate DFE | AF3: Choline | AG3: Vit B12 | AH3: Vit A | AJ3: Retinol | AK3: Alpha carotene | AL3: Beta carotene | AM3: Beta crypt. | AN3: Lycopene | AO3: Lut+Zea | AP3: Vit E | AQ3: Vit D | AS3: Vit K | AT3: FA Sat | AU3: FA Mono | AV3: FA Poly | AW3: Cholestrl
B4: CEREAL | D4: =AVERAGE(D5:D7) -> 10.97666667 | E4: =AVERAGE(E5:E7) -> 356.3333333 | F4: 10.07666667 | G4: 2.623333333 | H4: 1.206666667 | I4: 75.11333333 | J4: 2.866666667 | K4: 0.2533333333 | L4: 23 | M4: 3.513333333 | N4: 98.66666667 | O4: 277.6666667 | P4: 277.6666667 | Q4: 14 | R4: 2.486666667 | S4: 0.3623333333 | T4: 1.528333333 | U4: 40 | V4: 0 | W4: 0.46 | X4: 0.1236666667 | Y4: 4.852333333 | Z4: 0.791 | AA4: 0.4016666667 | AB4: 97.66666667 | AC4: 74.33333333 | AD4: 23.33333333 | AE4: 149.6666667 | AF4: 1.933333333 | AG4: 0 | AH4: 71.33333333 | AI4: 3.666666667 | AJ4: 0 | AK4: 21 | AL4: 32.33333333 | AM4: 0 | AN4: 0 | AO4: 451.6666667 | AP4: 0.2 | AQ4: 0 | AR4: 0 | AS4: 0.1333333333 | AT4: 0.4336666667 | AU4: 0.6003333333 | AV4: 1.106 | AW4: 0
B5: maize | C5: CORN GRAIN,YEL | D5: 10.37 | E5: 365 | F5: 9.42 | G5: 4.74 | H5: 1.2 | I5: 74.26 | J5: 7.3 | K5: 0.64 | L5: 7 | M5: 2.71 | N5: 127 | O5: 210 | P5: 287 | Q5: 35 | R5: 2.21 | S5: 0.314 | T5: 0.485 | U5: 15.5 | V5: 0 | W5: 0.385 | X5: 0.201 | Y5: 3.627 | Z5: 0.424 | AA5: 0.622 | AB5: 19 | AC5: 0 | AD5: 19 | AE5: 19 | AF5: 0 | AG5: 0 | AH5: 214 | AI5: 11 | AJ5: 0 | AK5: 63 | AL5: 97 | AM5: 0 | AN5: 0 | AO5: 1355 | AP5: 0.49 | AQ5: 0 | AR5: 0 | AS5: 0.3 | AT5: 0.667 | AU5: 1.251 | AV5: 2.163 | AW5: 0
B6: rice | C6: RICE,WHITE,LONG-GRAIN,REG,RAW,ENR | D6: 11.62 | E6: 365 | F6: 7.13 | G6: 0.66 | H6: 0.64 | I6: 79.95 | J6: 1.3 | K6: 0.12 | L6: 28 | M6: 4.31 | N6: 25 | O6: 115 | P6: 115 | Q6: 5 | R6: 1.09 | S6: 0.22 | T6: 1.088 | U6: 15.1 | V6: 0 | W6: 0.576 | X6: 0.049 | Y6: 4.192 | Z6: 1.014 | AA6: 0.164 | AB6: 231 | AC6: 223 | AD6: 8 | AE6: 387 | AF6: 5.8 | AG6: 0 | AH6: 0 | AI6: 0 | AJ6: 0 | AK6: 0 | AL6: 0 | AM6: 0 | AN6: 0 | AO6: 0 | AP6: 0.11 | AQ6: 0 | AR6: 0 | AS6: 0.1 | AT6: 0.18 | AU6: 0.206 | AV6: 0.177 | AW6: 0
B7: wheat | C7: WHEAT,DURUM | D7: 10.94 | E7: 339 | F7: 13.68 | G7: 2.47 | H7: 1.78 | I7: 71.13 | J7: 0 | K7: 0 | L7: 34 | M7: 3.52 | N7: 144 | O7: 508 | P7: 431 | Q7: 2 | R7: 4.16 | S7: 0.553 | T7: 3.012 | U7: 89.4 | V7: 0 | W7: 0.419 | X7: 0.121 | Y7: 6.738 | Z7: 0.935 | AA7: 0.419 | AB7: 43 | AC7: 0 | AD7: 43 | AE7: 43 | AF7: 0 | AG7: 0 | AH7: 0 | AI7: 0 | AJ7: 0 | AK7: 0 | AL7: 0 | AM7: 0 | AN7: 0 | AO7: 0 | AP7: 0 | AQ7: 0 | AR7: 0 | AS7: 0 | AT7: 0.454 | AU7: 0.344 | AV7: 0.978 | AW7: 0
B8: DAIRY | D8: =AVERAGE(D9:D11) -> 74.96333333 | E8: =AVERAGE(E9:E11) -> 128.3333333 | F8: 12.04 | G8: 6.54 | H8: 1.413333333 | I8: 5.043333333 | J8: 0 | K8: 4.49 | L8: 346.3333333 | M8: 0.12 | N8: 18 | O8: 254.3333333 | P8: 159.6666667 | Q8: 43.33333333 | R8: 1.48 | S8: 0.01666666667 | T8: 0.002333333333 | U8: 7.433333333 | V8: 0.2666666667 | W8: 0.028 | X8: 0.2463333333 | Y8: 0.109 | Z8: 0.3173333333 | AA8: 0.05533333333 | AB8: 8.333333333 | AC8: 0 | AD8: 8.333333333 | AE8: 8.333333333 | AF8: 17.1 | AG8: 0.65 | AH8: 205 | AI8: 55 | AJ8: 53.33333333 | AK8: 0 | AL8: 16 | AM8: 0 | AN8: 0 | AO8: 0 | AP8: 0.06333333333 | AQ8: 0.1 | AR8: 5 | AS8: 0.7 | AT8: 4.166666667 | AU8: 1.849 | AV8: 0.196 | AW8: 21.66666667
B9: cheese | C9: CHEESE,MOZZARELLA,LO NA | D9: 49.9 | E9: 280 | F9: 27.5 | G9: 17.1 | H9: 2.4 | I9: 3.1 | J9: 0 | K9: 1.23 | L9: 731 | M9: 0.25 | N9: 26 | O9: 524 | P9: 95 | Q9: 16 | R9: 3.13 | S9: 0.027 | T9: 0 | U9: 15.7 | V9: 0 | W9: 0.02 | X9: 0.34 | Y9: 0.12 | Z9: 0 | AA9: 0.08 | AB9: 9 | AC9: 0 | AD9: 9 | AE9: 9 | AF9: 18.4 | AG9: 0.92 | AH9: 517 | AI9: 137 | AJ9: 133 | AK9: 0 | AL9: 44 | AM9: 0 | AN9: 0 | AO9: 0 | AP9: 0.15 | AQ9: 0.3 | AR9: 13 | AS9: 1.8 | AT9: 10.867 | AU9: 4.844 | AV9: 0.509 | AW9: 54
B10: milk | C10: MILK,FLUID,0.1% FAT,WO/ ADDED VIT A & VIT D | D10: 89.92 | E10: 42 | F10: 3.37 | G10: 0.97 | H10: 0.75 | I10: 4.99 | J10: 0 | K10: 5.2 | L10: 125 | M10: 0.03 | N10: 11 | O10: 95 | P10: 150 | Q10: 44 | R10: 0.42 | S10: 0.01 | T10: 0.003 | U10: 3.3 | V10: 0 | W10: 0.02 | X10: 0.185 | Y10: 0.093 | Z10: 0.361 | AA10: 0.037 | AB10: 5 | AC10: 0 | AD10: 5 | AE10: 5 | AF10: 17.7 | AG10: 0.47 | AH10: 47 | AI10: 14 | AJ10: 13 | AK10: 0 | AL10: 2 | AM10: 0 | AN10: 0 | AO10: 0 | AP10: 0.01 | AQ10: 0 | AR10: 1 | AS10: 0.1 | AT10: 0.633 | AU10: 0.277 | AV10: 0.035 | AW10: 5
B11: yogurt | C11: YOGURT,PLN,LOFAT,12 GRAMS PROT PER 8 OZ | D11: 85.07 | E11: 63 | F11: 5.25 | G11: 1.55 | H11: 1.09 | I11: 7.04 | J11: 0 | K11: 7.04 | L11: 183 | M11: 0.08 | N11: 17 | O11: 144 | P11: 234 | Q11: 70 | R11: 0.89 | S11: 0.013 | T11: 0.004 | U11: 3.3 | V11: 0.8 | W11: 0.044 | X11: 0.214 | Y11: 0.114 | Z11: 0.591 | AA11: 0.049 | AB11: 11 | AC11: 0 | AD11: 11 | AE11: 11 | AF11: 15.2 | AG11: 0.56 | AH11: 51 | AI11: 14 | AJ11: 14 | AK11: 0 | AL11: 2 | AM11: 0 | AN11: 0 | AO11: 0 | AP11: 0.03 | AQ11: 0 | AR11: 1 | AS11: 0.2 | AT11: 1 | AU11: 0.426 | AV11: 0.044 | AW11: 6
B12: FRUIT & VEGETABLE | D12: =AVERAGE(D13:D18) -> 86.46666667 | E12: 47.33333333 | F12: 0.8733333333 | G12: 0.2083333333 | H12: 0.5966666667 | I12: 11.84833333 | J12: 1.866666667 | K12: 7.708333333 | L12: 16.66666667 | M12: 0.3616666667 | N12: 12.5 | O12: 23.5 | P12: 234.5 | Q12: 17.66666667 | R12: 0.1416666667 | S12: 0.06083333333 | T12: 0.1471666667 | U12: 0.3 | V12: 7.55 | W12: 0.04833333333 | X12: 0.05433333333 | Y12: 0.4826666667 | Z12: 0.1568333333 | AA12: 0.1336666667 | AB12: 16.16666667 | AC12: 0 | AD12: 16.16666667 | AE12: 16.16666667 | AF12: 7.983333333 | AG12: 0 | AH12: 4188 | AI12: 209.3333333 | AJ12: 0 | AK12: 600.6666667 | AL12: 2211.5 | AM12: 1.833333333 | AN12: 429 | AO12: 372 | AP12: 0.315 | AQ12: 0 | AR12: 0 | AS12: 27.45 | AT12: 0.0465 | AU12: 0.01616666667 | AV12: 0.07566666667 | AW12: 0
B13: apple | C13: APPLES,RAW,WITH SKIN | D13: 85.56 | E13: 52 | F13: 0.26 | G13: 0.17 | H13: 0.19 | I13: 13.81 | J13: 2.4 | K13: 10.39 | L13: 6 | M13: 0.12 | N13: 5 | O13: 11 | P13: 107 | Q13: 1 | R13: 0.04 | S13: 0.027 | T13: 0.035 | U13: 0 | V13: 4.6 | W13: 0.017 | X13: 0.026 | Y13: 0.091 | Z13: 0.061 | AA13: 0.041 | AB13: 3 | AC13: 0 | AD13: 3 | AE13: 3 | AF13: 3.4 | AG13: 0 | AH13: 54 | AI13: 3 | AJ13: 0 | AK13: 0 | AL13: 27 | AM13: 11 | AN13: 0 | AO13: 29 | AP13: 0.18 | AQ13: 0 | AR13: 0 | AS13: 2.2 | AT13: 0.028 | AU13: 0.007 | AV13: 0.051 | AW13: 0
B14: banana | C14: BANANAS,RAW | D14: 74.91 | E14: 89 | F14: 1.09 | G14: 0.33 | H14: 0.82 | I14: 22.84 | J14: 2.6 | K14: 12.23 | L14: 5 | M14: 0.26 | N14: 27 | O14: 22 | P14: 358 | Q14: 1 | R14: 0.15 | S14: 0.078 | T14: 0.27 | U14: 1 | V14: 8.7 | W14: 0.031 | X14: 0.073 | Y14: 0.665 | Z14: 0.334 | AA14: 0.367 | AB14: 20 | AC14: 0 | AD14: 20 | AE14: 20 | AF14: 9.8 | AG14: 0 | AH14: 64 | AI14: 3 | AJ14: 0 | AK14: 25 | AL14: 26 | AM14: 0 | AN14: 0 | AO14: 22 | AP14: 0.1 | AQ14: 0 | AR14: 0 | AS14: 0.5 | AT14: 0.112 | AU14: 0.032 | AV14: 0.073 | AW14: 0
B15: carrot | C15: CARROTS,RAW | D15: 88.29 | E15: 41 | F15: 0.93 | G15: 0.24 | H15: 0.97 | I15: 9.58 | J15: 2.8 | K15: 4.74 | L15: 33 | M15: 0.3 | N15: 12 | O15: 35 | P15: 320 | Q15: 69 | R15: 0.24 | S15: 0.045 | T15: 0.143 | U15: 0.1 | V15: 5.9 | W15: 0.066 | X15: 0.058 | Y15: 0.983 | Z15: 0.273 | AA15: 0.138 | AB15: 19 | AC15: 0 | AD15: 19 | AE15: 19 | AF15: 8.8 | AG15: 0 | AH15: 16706 | AI15: 835 | AJ15: 0 | AK15: 3477 | AL15: 8285 | AM15: 0 | AN15: 1 | AO15: 256 | AP15: 0.66 | AQ15: 0 | AR15: 0 | AS15: 13.2 | AT15: 0.037 | AU15: 0.014 | AV15: 0.117 | AW15: 0
B16: grape | C16: GRAPES,RED OR GRN (EURO TYPE,SUCH AS THOMPSON SEEDLESS),RAW | D16: 80.54 | E16: 69 | F16: 0.72 | G16: 0.16 | H16: 0.48 | I16: 18.1 | J16: 0.9 | K16: 15.48 | L16: 10 | M16: 0.36 | N16: 7 | O16: 20 | P16: 191 | Q16: 2 | R16: 0.07 | S16: 0.127 | T16: 0.071 | U16: 0.1 | V16: 3.2 | W16: 0.069 | X16: 0.07 | Y16: 0.188 | Z16: 0.05 | AA16: 0.086 | AB16: 2 | AC16: 0 | AD16: 2 | AE16: 2 | AF16: 5.6 | AG16: 0 | AH16: 66 | AI16: 3 | AJ16: 0 | AK16: 1 | AL16: 39 | AM16: 0 | AN16: 0 | AO16: 72 | AP16: 0.19 | AQ16: 0 | AR16: 0 | AS16: 14.6 | AT16: 0.054 | AU16: 0.007 | AV16: 0.048 | AW16: 0
B17: lettuce | C17: LETTUCE,GRN LEAF,RAW | D17: 94.98 | E17: 15 | F17: 1.36 | G17: 0.15 | H17: 0.62 | I17: 2.87 | J17: 1.3 | K17: 0.78 | L17: 36 | M17: 0.86 | N17: 13 | O17: 29 | P17: 194 | Q17: 28 | R17: 0.18 | S17: 0.029 | T17: 0.25 | U17: 0.6 | V17: 9.2 | W17: 0.07 | X17: 0.08 | Y17: 0.375 | Z17: 0.134 | AA17: 0.09 | AB17: 38 | AC17: 0 | AD17: 38 | AE17: 38 | AF17: 13.6 | AG17: 0 | AH17: 7405 | AI17: 370 | AJ17: 0 | AK17: 0 | AL17: 4443 | AM17: 0 | AN17: 0 | AO17: 1730 | AP17: 0.22 | AQ17: 0 | AR17: 0 | AS17: 126.3 | AT17: 0.02 | AU17: 0.006 | AV17: 0.082 | AW17: 0
B18: tomato | C18: TOMATOES,RED,RIPE,RAW,YEAR RND AVERAGE | D18: 94.52 | E18: 18 | F18: 0.88 | G18: 0.2 | H18: 0.5 | I18: 3.89 | J18: 1.2 | K18: 2.63 | L18: 10 | M18: 0.27 | N18: 11 | O18: 24 | P18: 237 | Q18: 5 | R18: 0.17 | S18: 0.059 | T18: 0.114 | U18: 0 | V18: 13.7 | W18: 0.037 | X18: 0.019 | Y18: 0.594 | Z18: 0.089 | AA18: 0.08 | AB18: 15 | AC18: 0 | AD18: 15 | AE18: 15 | AF18: 6.7 | AG18: 0 | AH18: 833 | AI18: 42 | AJ18: 0 | AK18: 101 | AL18: 449 | AM18: 0 | AN18: 2573 | AO18: 123 | AP18: 0.54 | AQ18: 0 | AR18: 0 | AS18: 7.9 | AT18: 0.028 | AU18: 0.031 | AV18: 0.083 | AW18: 0
B19: MEAT | D19: =AVERAGE(D20:D22) -> 63.43333333 | E19: =AVERAGE(E20:E22) -> 235.3333333 | F19: 17.18666667 | G19: 17.96333333 | H19: 0.88 | I19: 0 | J19: 0 | K19: 0 | L19: 16 | M19: 1.183333333 | N19: 18.66666667 | O19: 168.3333333 | P19: 247.6666667 | Q19: 65.66666667 | R19: 2.32 | S19: 0.04833333333 | T19: 0.01233333333 | U19: 18.33333333 | V19: 0.2333333333 | W19: 0.2816666667 | X19: 0.1733333333 | Y19: 5.198333333 | Z19: 0.6983333333 | AA19: 0.3603333333 | AB19: 7 | AC19: 0 | AD19: 7 | AE19: 7 | AF19: 15.6 | AG19: 1.043333333 | AH19: 22 | AI19: 6.333333333 | AJ19: 6.333333333 | AK19: 0 | AL19: 0 | AM19: 0 | AN19: 0 | AO19: 0 | AP19: 0.13 | AQ19: 0.03333333333 | AR19: 1 | AS19: 1.766666667 | AT19: 6.764666667 | AU19: 8.147 | AV19: 1.092333333 | AW19: 71.66666667
B20: beef | C20: BEEF,GROUND,70% LN MEAT / 30% FAT,RAW | D20: 54.3 | E20: 332 | F20: 14.35 | G20: 30 | H20: 0.7 | I20: 0 | J20: 0 | K20: 0 | L20: 24 | M20: 1.64 | N20: 14 | O20: 132 | P20: 218 | Q20: 66 | R20: 3.57 | S20: 0.05 | T20: 0.009 | U20: 13.5 | V20: 0 | W20: 0.044 | X20: 0.151 | Y20: 3.382 | Z20: 0.395 | AA20: 0.278 | AB20: 9 | AC20: 0 | AD20: 9 | AE20: 9 | AF20: 46.8 | AG20: 2.07 | AH20: 14 | AI20: 4 | AJ20: 4 | AK20: 0 | AL20: 0 | AM20: 0 | AN20: 0 | AO20: 0 | AP20: 0.17 | AQ20: 0.1 | AR20: 3 | AS20: 2.9 | AT20: 11.754 | AU20: 14.171 | AV20: 0.697 | AW20: 78
B21: pork | C21: PORK,FRESH,GROUND,RAW | D21: 61.06 | E21: 263 | F21: 16.88 | G21: 21.19 | H21: 0.87 | I21: 0 | J21: 0 | K21: 0 | L21: 14 | M21: 0.88 | N21: 19 | O21: 175 | P21: 287 | Q21: 56 | R21: 2.2 | S21: 0.045 | T21: 0.01 | U21: 24.6 | V21: 0.7 | W21: 0.732 | X21: 0.235 | Y21: 4.338 | Z21: 0.668 | AA21: 0.383 | AB21: 5 | AC21: 0 | AD21: 5 | AE21: 5 | AF21: 0 | AG21: 0.7 | AH21: 7 | AI21: 2 | AJ21: 2 | AK21: 0 | AL21: 0 | AM21: 0 | AN21: 0 | AO21: 0 | AP21: 0 | AQ21: 0 | AR21: 0 | AS21: 0 | AT21: 7.87 | AU21: 9.44 | AV21: 1.91 | AW21: 72
B22: poultry | C22: CHICKEN,ROASTING,MEAT ONLY,RAW | D22: 74.94 | E22: 111 | F22: 20.33 | G22: 2.7 | H22: 1.07 | I22: 0 | J22: 0 | K22: 0 | L22: 10 | M22: 1.03 | N22: 23 | O22: 198 | P22: 238 | Q22: 75 | R22: 1.19 | S22: 0.05 | T22: 0.018 | U22: 16.9 | V22: 0 | W22: 0.069 | X22: 0.134 | Y22: 7.875 | Z22: 1.032 | AA22: 0.42 | AB22: 7 | AC22: 0 | AD22: 7 | AE22: 7 | AF22: 0 | AG22: 0.36 | AH22: 45 | AI22: 13 | AJ22: 13 | AK22: 0 | AL22: 0 | AM22: 0 | AN22: 0 | AO22: 0 | AP22: 0.22 | AQ22: 0 | AR22: 0 | AS22: 2.4 | AT22: 0.67 | AU22: 0.83 | AV22: 0.67 | AW22: 65
B23: PULSES & OILSEEDS | D23: =AVERAGE(D24:D24) -> 8.54 | E23: 446 | F23: 36.49 | G23: 19.94 | H23: 4.87 | I23: 30.16 | J23: 9.3 | K23: 7.33 | L23: 277 | M23: 15.7 | N23: 280 | O23: 704 | P23: 1797 | Q23: 2 | R23: 4.89 | S23: 1.658 | T23: 2.517 | U23: 17.8 | V23: 6 | W23: 0.874 | X23: 0.87 | Y23: 1.623 | Z23: 0.793 | AA23: 0.377 | AB23: 375 | AC23: 0 | AD23: 375 | AE23: 375 | AF23: 115.9 | AG23: 0 | AH23: 22 | AI23: 1 | AJ23: 0 | AK23: 0 | AL23: 13 | AM23: 0 | AN23: 0 | AO23: 0 | AP23: 0.85 | AQ23: 0 | AR23: 0 | AS23: 47 | AT23: 2.884 | AU23: 4.404 | AV23: 11.255 | AW23: 0
B24: soy bean | C24: SOYBEANS,MATURE SEEDS,RAW | D24: 8.54 | E24: 446 | F24: 36.49 | G24: 19.94 | H24: 4.87 | I24: 30.16 | J24: 9.3 | K24: 7.33 | L24: 277 | M24: 15.7 | N24: 280 | O24: 704 | P24: 1797 | Q24: 2 | R24: 4.89 | S24: 1.658 | T24: 2.517 | U24: 17.8 | V24: 6 | W24: 0.874 | X24: 0.87 | Y24: 1.623 | Z24: 0.793 | AA24: 0.377 | AB24: 375 | AC24: 0 | AD24: 375 | AE24: 375 | AF24: 115.9 | AG24: 0 | AH24: 22 | AI24: 1 | AJ24: 0 | AK24: 0 | AL24: 13 | AM24: 0 | AN24: 0 | AO24: 0 | AP24: 0.85 | AQ24: 0 | AR24: 0 | AS24: 47 | AT24: 2.884 | AU24: 4.404 | AV24: 11.255 | AW24: 0
B25: ROOTS & TUBERS | D25: =AVERAGE(D26:D26) -> 79.25 | E25: 77 | F25: 2.05 | G25: 0.09 | H25: 1.11 | I25: 17.49 | J25: 2.1 | K25: 0.82 | L25: 12 | M25: 0.81 | N25: 23 | O25: 57 | P25: 425 | Q25: 6 | R25: 0.3 | S25: 0.11 | T25: 0.153 | U25: 0.4 | V25: 19.7 | W25: 0.081 | X25: 0.032 | Y25: 1.061 | Z25: 0.295 | AA25: 0.298 | AB25: 15 | AC25: 0 | AD25: 15 | AE25: 15 | AF25: 12.1 | AG25: 0 | AH25: 2 | AI25: 0 | AJ25: 0 | AK25: 0 | AL25: 1 | AM25: 0 | AN25: 0 | AO25: 9 | AP25: 0.01 | AQ25: 0 | AR25: 0 | AS25: 2 | AT25: 0.025 | AU25: 0.002 | AV25: 0.042 | AW25: 0
B26: potato | C26: POTATOES,FLESH & SKN,RAW | D26: 79.25 | E26: 77 | F26: 2.05 | G26: 0.09 | H26: 1.11 | I26: 17.49 | J26: 2.1 | K26: 0.82 | L26: 12 | M26: 0.81 | N26: 23 | O26: 57 | P26: 425 | Q26: 6 | R26: 0.3 | S26: 0.11 | T26: 0.153 | U26: 0.4 | V26: 19.7 | W26: 0.081 | X26: 0.032 | Y26: 1.061 | Z26: 0.295 | AA26: 0.298 | AB26: 15 | AC26: 0 | AD26: 15 | AE26: 15 | AF26: 12.1 | AG26: 0 | AH26: 2 | AI26: 0 | AJ26: 0 | AK26: 0 | AL26: 1 | AM26: 0 | AN26: 0 | AO26: 9 | AP26: 0.01 | AQ26: 0 | AR26: 0 | AS26: 2 | AT26: 0.025 | AU26: 0.002 | AV26: 0.042 | AW26: 0
B27: Other | D27: =AVERAGE(D28:D30) -> 0.01 | E27: =AVERAGE(E28:E30) -> 635.5 | F27: 0 | G27: 50 | H27: 0.005 | I27: 49.99 | J27: 0 | K27: 49.9 | L27: 0.5 | M27: 0.03 | N27: 0 | O27: 0 | P27: 1 | Q27: 0.5 | R27: 0.005 | S27: 0.0035 | T27: 0.002 | U27: 0.3 | V27: 0 | W27: 0 | X27: 0.0095 | Y27: 0 | Z27: 0 | AA27: 0 | AB27: 0 | AC27: 0 | AD27: 0 | AE27: 0 | AF27: 0.15 | AG27: 0 | AH27: 0 | AI27: 0 | AJ27: 0 | AK27: 0 | AL27: 0 | AM27: 0 | AN27: 0 | AO27: 0 | AP27: 7.97 | AQ27: 0 | AR27: 0 | AS27: 4 | AT27: 24.65 | AU27: 18.5 | AV27: 4.65 | AW27: 0
B28: palm oil | C28: OIL,PALM | D28: 0 | E28: 884 | F28: 0 | G28: 100 | H28: 0 | I28: 0 | J28: 0 | K28: 0 | L28: 0 | M28: 0.01 | N28: 0 | O28: 0 | P28: 0 | Q28: 0 | R28: 0 | S28: 0 | T28: 0 | U28: 0 | V28: 0 | W28: 0 | X28: 0 | Y28: 0 | Z28: 0 | AA28: 0 | AB28: 0 | AC28: 0 | AD28: 0 | AE28: 0 | AF28: 0.3 | AG28: 0 | AH28: 0 | AI28: 0 | AJ28: 0 | AK28: 0 | AL28: 0 | AM28: 0 | AN28: 0 | AO28: 0 | AP28: 15.94 | AQ28: 0 | AR28: 0 | AS28: 8 | AT28: 49.3 | AU28: 37 | AV28: 9.3 | AW28: 0
B29: sugar cane | C29: SUGARS,GRANULATED | D29: 0.02 | E29: 387 | F29: 0 | G29: 0 | H29: 0.01 | I29: 99.98 | J29: 0 | K29: 99.8 | L29: 1 | M29: 0.05 | N29: 0 | O29: 0 | P29: 2 | Q29: 1 | R29: 0.01 | S29: 0.007 | T29: 0.004 | U29: 0.6 | V29: 0 | W29: 0 | X29: 0.019 | Y29: 0 | Z29: 0 | AA29: 0 | AB29: 0 | AC29: 0 | AD29: 0 | AE29: 0 | AF29: 0 | AG29: 0 | AH29: 0 | AI29: 0 | AJ29: 0 | AK29: 0 | AL29: 0 | AM29: 0 | AN29: 0 | AO29: 0 | AP29: 0 | AQ29: 0 | AR29: 0 | AS29: 0 | AT29: 0 | AU29: 0 | AV29: 0 | AW29: 0
A32: DAILY VALUE | E32: 2000 | F32: 50 | G32: 65 | H32: n/a | I32: 300 | J32: 25 | K32: n/a | L32: 1000 | M32: 18 | N32: 400 | O32: 1000 | P32: 3500 | Q32: 2400 | R32: 15 | S32: 2 | T32: 2 | U32: 70 | V32: 60 | W32: 1.5 | X32: 1.7 | Y32: 20 | Z32: 10 | AA32: 2 | AB32: =400/0.6 -> 666.6666667 | AC32: =400/0.6 -> 666.6666667 | AD32: 400 | AE32: 400 | AF32: 550 | AG32: 6 | AH32: 5000 | AI32: 700 | AP32: 27 | AQ32: 10 | AR32: 400 | AS32: 80 | AT32: 20 | AW32: 300
A33: Nutritional requirements obtained on 27-4-2017 from 'https://www.fda.gov/Food/GuidanceRegulation/GuidanceDocumentsRegulatoryInformation/LabelingNutrition/ucm064928.htm
A34: Also listed https://dsld.nlm.nih.gov/dsld/dailyvalue.jsp

Sheet C3. Agricultural impact data
A1: Agricultural impacts
A2: Impact categories (other than greenhouse gas emissions) are not available for users in this version.
G3: Climate change (kg CO2 eq) | H3: Eutrophication (kg P eq) | I3: Eutrophication (kg N eq) | J3: Land use (Points) | K3: Water scarcity footprint (m3-eq) | L3: <-NAMES USED FOR INDEXING TABLE
B4: Impact data are from the World Food LCA database 3.3 from Quantis with ecoinvent 3 in the background.
B5: name | D5: region | E5: name and region | F5: data proxy | G5: kg CO2-eq | H5: kg P-eq | I5: kg N-eq | J5: Pt | K5: m3-eq
B6: CEREAL | D6: unknown | E6: =B6&", "&D6 -> CEREAL, unknown | F6: Global | G6: =AVERAGE(G7:G9) -> 1.13184884 | H6: =AVERAGE(H7:H9) -> 0.0003895768067 | I6: 0.008855403867 | J6: 244.478019 | K6: 12.66832703
B7: maize | D7: unknown | E7: maize, unknown | F7: Global | G7: 0.64774321 | H7: 0.00026105663 | I7: 0.0038716856 | J7: 91.807807 | K7: 7.1187403
B8: rice | D8: unknown | E8: rice, unknown | F8: Global | G8: 1.9 | H8: 0.00037868078 | I8: 0.009375399 | J8: 207.47446 | K8: 21.17885
B9: wheat | D9: unknown | E9: wheat, unknown | F9: Global | G9: 0.84780331 | H9: 0.00052899301 | I9: 0.013319127 | J9: 434.15179 | K9: 9.7073908
B10: DAIRY | D10: unknown | E10: DAIRY, unknown | F10: Global | G10: =AVERAGE(G11:G13) -> 4.322322325 | H10: =AVERAGE(H11:H13) -> 0.0406165002 | I10: 0.01241001772 | J10: 339.6804973 | K10: 4.3749731
B11: cheese | D11: unknown | E11: cheese, unknown | F11: Europe | G11: 8.741623674 | H11: 0.1004889612 | I11: 0.02208461177 | J11: 737.698702 | K11: 10.717539
B12: milk | D12: unknown | E12: milk, unknown | F12: Europe | G12: 1.8018959 | H12: 0.020906953 | I12: 0.0046143614 | J12: 153.6068 | K12: 0.5485864
B13: yogurt | D13: unknown | E13: yogurt, unknown | F13: Global | G13: 2.4234474 | H13: 0.00045358637 | I13: 0.01053108 | J13: 127.73599 | K13: 1.8587939
B14: FRUIT & VEGETABLE | D14: unknown | E14: FRUIT & VEGETABLE, unknown | F14: Global | G14: =AVERAGE(G15:G20) -> 0.2196849327 | H14: =AVERAGE(H15:H20) -> 6.498735136e-05 | I14: =AVERAGE(I15:I20) -> 0.001849161069 | J14: =AVERAGE(J15:J20) -> 34.55892883 | K14: =AVERAGE(K15:K20) -> 4.819425533
B15: apple | D15: unknown | E15: apple, unknown | F15: Global | G15: 0.1555241558 | H15: 6.7878769e-05 | I15: 0.00129879246 | J15: 57.15596256 | K15: 8.1344979
B16: banana | D16: unknown | E16: banana, unknown | F16: Global | G16: 0.2078240237 | H16: 6.346166063e-05 | I16: 0.004706893114 | J16: 36.08847335 | K16: 7.0738178
B17: carrot | D17: unknown | E17: carrot, unknown | F17: Global | G17: 0.1017136372 | H17: 3.046864564e-05 | I17: 0.001333126038 | J17: 30.83768247 | K17: 2.8132222
B18: grape | D18: unknown | E18: grape, unknown | F18: Global | G18: 0.21760965 | H18: 9.4199612e-05 | I18: 0.00086688654 | J18: 45.639947 | K18: 4.7659127
B19: lettuce | D19: unknown | E19: lettuce, unknown | F19: Global | G19: 0.16031893 | H19: 3.3915293e-05 | I19: 0.0013351276 | J19: 12.341757 | K19: 0.4376476
B20: tomato | D20: unknown | E20: tomato, unknown | F20: Global | G20: 0.4751191997 | H20: 0.0001000001279 | I20: 0.001554140662 | J20: 25.28975059 | K20: 5.691455
B21: MEAT | D21: unknown | E21: MEAT, unknown | F21: Global | G21: =AVERAGE(G22:G24) -> 15.42185813 | H21: =AVERAGE(H22:H24) -> 0.008288085092 | I21: 0.05603393473 | J21: 1417.985547 | K21: 12.50801283
B22: beef | D22: unknown | E22: beef, unknown | F22: Global | G22: 29.003306 | H22: 0.02077290788 | I22: 0.0952723302 | J22: 2541.220311 | K22: =11.602217*0.93 -> 10.79006181
B23: pork | D23: unknown | E23: pork, unknown | F23: Global | G23: 9.7718919 | H23: 0.0028373587 | I23: 0.05090021 | J23: 1248.0139 | K23: =16.102052*0.947 -> 15.24864324
B24: poultry | D24: unknown | E24: poultry, unknown | F24: Global | G24: 7.4903765 | H24: 0.0012539887 | I24: 0.021929264 | J24: 464.72243 | K24: =11.963889*0.96 -> 11.48533344
B25: PULSES & OILSEEDS | D25: unknown | E25: PULSES & OILSEEDS, unknown | F25: Global | G25: =AVERAGE(G26:G26) -> 2.6870207 | H25: =AVERAGE(H26:H26) -> 0.000356208718 | I25: =AVERAGE(I26:I26) -> 0.01078974348 | J25: =AVERAGE(J26:J26) -> 341.4563302 | K25: =AVERAGE(K26:K26) -> 0.10171676
B26: soy bean | D26: unknown | E26: soy bean, unknown | F26: Global | G26: 2.6870207 | H26: 0.000356208718 | I26: 0.01078974348 | J26: 341.4563302 | K26: 0.10171676
B27: ROOTS & TUBERS | D27: unknown | E27: ROOTS & TUBERS, unknown | F27: Global | G27: =G28 -> 0.35289624 | H27: 0.001839137 | I27: 0.034627707 | J27: 3777.2262 | K27: 1.9729043
B28: potato | D28: unknown | E28: potato, unknown | F28: Global | G28: 0.35289624 | H28: 0.001839137 | I28: 0.034627707 | J28: 3777.2262 | K28: 3.0544182
B29: Other | D29: unknown | E29: Other, unknown | F29: Global | G29: =AVERAGE(G30:G31) -> 1.757587237 | H29: 0.0001140010054 | I29: 0.00991825877 | J29: 91.91758458 | K29: 1.1019639
B30: palm oil | D30: unknown | E30: palm oil, unknown | F30: Global | G30: 3.3685471 | H30: 0.00021073604 | I30: 0.019611836 | J30: 164.03635 | K30: 1.0470615
B31: sugar cane | D31: unknown | E31: sugar cane, unknown | F31: Global | G31: 0.1466273737 | H31: 1.726597071e-05 | I31: 0.0002246815404 | J31: 19.79881917 | K31: 1.1568663
B32: CEREAL | D32: Europe and Russia | E32: CEREAL, Europe and Russia | G32: =AVERAGE(G33:G35) -> 1.038176753 | H32: =AVERAGE(H33:H35) -> 0.0002634637367 | I32: 0.008105361533 | J32: 103.0169885 | K32: 9.811035167
B33: maize | D33: Europe and Russia | E33: maize, Europe and Russia | F33: Global | G33: 0.64774321 | H33: 0.00026105663 | I33: 0.0038716856 | J33: 91.807807 | K33: 7.1187403
B34: rice | D34: Europe and Russia | E34: rice, Europe and Russia | F34: Global | G34: 1.9 | H34: 0.00037868078 | I34: 0.009375399 | J34: 207.47446 | K34: 21.17885
B35: wheat | D35: Europe and Russia | E35: wheat, Europe and Russia | F35: France | G35: 0.56678705 | H35: 0.0001506538 | I35: 0.011069 | J35: 9.7686984 | K35: 1.1355152
B36: DAIRY | D36: Europe and Russia | E36: DAIRY, Europe and Russia | G36: =AVERAGE(G37:G39) -> 4.322322325 | H36: =AVERAGE(H37:H39) -> 0.0406165002 | I36: 0.01241001772 | J36: 339.6804973 | K36: =AVERAGE(K37:K39) -> 4.3749731
B37: cheese | D37: Europe and Russia | E37: cheese, Europe and Russia | F37: Europe | G37: 8.741623674 | H37: 0.1004889612 | I37: 0.02208461177 | J37: 737.698702 | K37: 10.717539
B38: milk | D38: Europe and Russia | E38: =B38&", "&D38 -> milk, Europe and Russia | F38: Europe | G38: 1.8018959 | H38: 0.020906953 | I38: 0.0046143614 | J38: 153.6068 | K38: 0.5485864
B39: yogurt | D39: Europe and Russia | E39: yogurt, Europe and Russia | F39: Global | G39: 2.4234474 | H39: 0.00045358637 | I39: 0.01053108 | J39: 127.73599 | K39: 1.8587939
B40: FRUIT & VEGETABLE | D40: Europe and Russia | E40: FRUIT & VEGETABLE, Europe and Russia | G40: =AVERAGE(G41:G46) -> 0.1820379478 | H40: =AVERAGE(H41:H46) -> 6.506562545e-05 | I40: =AVERAGE(I41:I46) -> 0.001504189868 | J40: =AVERAGE(J41:J46) -> 28.0302973 | K40: =AVERAGE(K41:K46) -> 2.768080984
B41: apple | D41: Europe and Russia | E41: apple, Europe and Russia | F41: Italy | G41: 0.09094261655 | H41: 4.554467204e-05 | I41: 0.0001712115882 | J41: 40.09420365 | K41: 2.1640584
B42: banana | D42: Europe and Russia | E42: banana, Europe and Russia | F42: Global | G42: 0.2078240237 | H42: 6.346166063e-05 | I42: 0.004706893114 | J42: 36.08847335 | K42: 7.0738178
B43: carrot | D43: Europe and Russia | E43: carrot, Europe and Russia | F43: Netherlands | G43: 0.07738001411 | H43: 2.641191107e-05 | I43: 0.001040714603 | J43: 23.66969207 | K43: 0.040836205
B44: grape | D44: Europe and Russia | E44: grape, Europe and Russia | F44: Global | G44: 0.21760965 | H44: 9.4199612e-05 | I44: 0.00086688654 | J44: 45.639947 | K44: 4.7659127
B45: lettuce | D45: Europe and Russia | E45: lettuce, Europe and Russia | F45: Global | G45: 0.16031893 | H45: 3.3915293e-05 | I45: 0.0013351276 | J45: 12.341757 | K45: 0.4376476
B46: tomato | D46: Europe and Russia | E46: tomato, Europe and Russia | F46: Spain | G46: 0.3381524523 | H46: 0.000126860604 | I46: 0.0009043057631 | J46: 10.34771074 | K46: 2.1262132
B47: MEAT | D47: Europe and Russia | E47: MEAT, Europe and Russia | G47: =AVERAGE(G48:G50) -> 15.6907625 | H47: =AVERAGE(H48:H50) -> 0.008349581458 | I47: 0.05488291607 | J47: 1370.976514 | K47: =AVERAGE(K48:K50) -> 12.50801283
B48: beef | D48: Europe and Russia | E48: beef, Europe and Russia | F48: Global | G48: 29.003306 | H48: 0.02077290788 | I48: 0.0952723302 | J48: 2541.220311 | K48: =11.602217*0.93 -> 10.79006181
B49: pork | D49: Europe and Russia | E49: pork, Europe and Russia | F49: Spain | G49: 10.578605 | H49: 0.0030218478 | I49: 0.047447154 | J49: 1106.9868 | K49: =16.102052*0.947 -> 15.24864324 | L49: <-Global water scarcity value
B50: poultry | D50: Europe and Russia | E50: poultry, Europe and Russia | F50: Global | G50: 7.4903765 | H50: 0.0012539887 | I50: 0.021929264 | J50: 464.72243 | K50: =11.963889*0.96 -> 11.48533344
B51: PULSES & OILSEEDS | D51: Europe and Russia | E51: PULSES & OILSEEDS, Europe and Russia | G51: =AVERAGE(G52:G52) -> 2.6870207 | H51: =AVERAGE(H52:H52) -> 0.000356208718 | I51: =AVERAGE(I52:I52) -> 0.01078974348 | J51: =AVERAGE(J52:J52) -> 341.4563302 | K51: =AVERAGE(K52:K52) -> 0.10171676
B52: soy bean | D52: Europe and Russia | E52: soy bean, Europe and Russia | F52: Global | G52: 2.6870207 | H52: 0.000356208718 | I52: 0.01078974348 | J52: 341.4563302 | K52: 0.10171676
B53: ROOTS & TUBERS | D53: Europe and Russia | E53: ROOTS & TUBERS, Europe and Russia | G53: =AVERAGE(G54:G54) -> 0.1604517502 | H53: =AVERAGE(H54:H54) -> 5.203410884e-05 | I53: =AVERAGE(I54:I54) -> 0.003882681712 | J53: =AVERAGE(J54:J54) -> 62.13016991 | K53: 1.9729043
B54: potato | D54: Europe and Russia | E54: potato, Europe and Russia | F54: Russia | G54: 0.1604517502 | H54: 5.203410884e-05 | I54: 0.003882681712 | J54: 62.13016991 | K54: 1.1546116
B55: Other | D55: Europe and Russia | E55: Other, Europe and Russia | G55: =AVERAGE(G56:G57) -> 1.757587237 | H55: 0.0001140010054 | I55: 0.00991825877 | J55: 91.91758458 | K55: =AVERAGE(K56:K57) -> 1.1019639
B56: palm oil | D56: Europe and Russia | E56: palm oil, Europe and Russia | F56: Global | G56: 3.3685471 | H56: 0.00021073604 | I56: 0.019611836 | J56: 164.03635 | K56: 1.0470615
B57: sugar cane | D57: Europe and Russia | E57: sugar cane, Europe and Russia | F57: Global | G57: 0.1466273737 | H57: 1.726597071e-05 | I57: 0.0002246815404 | J57: 19.79881917 | K57: 1.1568663
B58: CEREAL | D58: North America | E58: CEREAL, North America | G58: =AVERAGE(G59:G61) -> 1.313988907 | H58: =AVERAGE(H59:H61) -> 0.0006903685533 | I58: 0.009957105867 | J58: 311.0046157 | K58: 14.2218821
B59: maize | D59: North America | E59: maize, North America | F59: Global | G59: 0.64774321 | H59: 0.00026105663 | I59: 0.0038716856 | J59: 91.807807 | K59: 7.1187403
B60: rice | D60: North America | E60: rice, North America | F60: United States | G60: 2.4 | H60: 0.00060164413 | I60: 0.011893313 | J60: 240.09597 | K60: 21.17885 | L60: <-Global water scarcity value
B61: wheat | D61: North America | E61: wheat, North America | F61: United States | G61: 0.89422351 | H61: 0.0012084049 | I61: 0.014106319 | J61: 601.11007 | K61: 14.368056
B62: DAIRY | D62: North America | E62: DAIRY, North America | G62: =AVERAGE(G63:G65) -> 4.293340058 | H62: =AVERAGE(H63:H65) -> 0.03988408353 | I62: 0.01246164209 | J62: 350.225454 | K62: =AVERAGE(K63:K65) -> 4.3749731
B63: cheese | D63: North America | E63: cheese, North America | F63: Europe | G63: 8.741623674 | H63: 0.1004889612 | I63: 0.02208461177 | J63: 737.698702 | K63: 10.717539
B64: milk | D64: North America | E64: milk, North America | F64: North America | G64: 1.7149491 | H64: 0.018709703 | I64: 0.0047692345 | J64: 185.24167 | K64: 0.5485864
B65: yogurt | D65: North America | E65: yogurt, North America | F65: Global | G65: 2.4234474 | H65: 0.00045358637 | I65: 0.01053108 | J65: 127.73599 | K65: 1.8587939
B66: FRUIT & VEGETABLE | D66: North America | E66: FRUIT & VEGETABLE, North America | G66: =AVERAGE(G67:G72) -> 0.2125444828 | H66: =AVERAGE(H67:H72) -> 6.403693507e-05 | I66: =AVERAGE(I67:I72) -> 0.001780421084 | J66: =AVERAGE(J67:J72) -> 31.35197978 | K66: =AVERAGE(K67:K72) -> 4.004115083
B67: apple | D67: North America | E67: apple, North America | F67: United States | G67: 0.1126814564 | H67: 6.217627129e-05 | I67: 0.0008863525498 | J67: 37.91426829 | K67: 3.2426352
B68: banana | D68: North America | E68: banana, North America | F68: Global | G68: 0.2078240237 | H68: 6.346166063e-05 | I68: 0.004706893114 | J68: 36.08847335 | K68: 7.0738178
B69: carrot | D69: North America | E69: carrot, North America | F69: Global | G69: 0.1017136372 | H69: 3.046864564e-05 | I69: 0.001333126038 | J69: 30.83768247 | K69: 2.8132222
B70: grape | D70: North America | E70: =B70&", "&D70 -> grape, North America | F70: Global | G70: 0.21760965 | H70: 9.4199612e-05 | I70: 0.00086688654 | J70: 45.639947 | K70: 4.7659127
B71: lettuce | D71: North America | E71: lettuce, North America | F71: Global | G71: 0.16031893 | H71: 3.3915293e-05 | I71: 0.0013351276 | J71: 12.341757 | K71: 0.4376476
B72: tomato | D72: North America | E72: tomato, North America | F72: Global | G72: 0.4751191997 | H72: 0.0001000001279 | I72: 0.001554140662 | J72: 25.28975059 | K72: 5.691455
B73: MEAT | D73: North America | E73: MEAT, North America | G73: =AVERAGE(G74:G76) -> 14.93301204 | H73: =AVERAGE(H74:H76) -> 0.008530387856 | I73: 0.05247349706 | J73: 1259.610597 | K73: =AVERAGE(K74:K76) -> 12.50801283
B74: beef | D74: North America | E74: beef, North America | F74: United States | G74: 28.48262781 | H74: 0.02117456777 | I74: 0.08715722018 | J74: 2205.969782 | K74: =11.602217*0.93 -> 10.79006181 | L74: <-Global water scarcity value
B75: pork | D75: North America | E75: pork, North America | F75: Canada | G75: 10.578605 | H75: 0.0030218478 | I75: 0.047447154 | J75: 1106.9868 | K75: =16.102052*0.947 -> 15.24864324 | L75: <-Global water scarcity value
B76: poultry | D76: North America | E76: poultry, North America | F76: United States | G76: 5.7378033 | H76: 0.001394748 | I76: 0.022816117 | J76: 465.87521 | K76: =11.963889*0.96 -> 11.48533344 | L76: <-Global water scarcity value
B77: PULSES & OILSEEDS | D77: North America | E77: PULSES & OILSEEDS, North America | G77: =AVERAGE(G78:G78) -> 0.52237071 | H77: =AVERAGE(H78:H78) -> 0.0004030275482 | I77: =AVERAGE(I78:I78) -> 0.01008102158 | J77: =AVERAGE(J78:J78) -> 476.5999083 | K77: =AVERAGE(K78:K78) -> 0.29694712
B78: soy bean | D78: North America | E78: soy bean, North America | F78: United States | G78: 0.52237071 | H78: 0.0004030275482 | I78: 0.01008102158 | J78: 476.5999083 | K78: 0.29694712
B79: ROOTS & TUBERS | D79: North America | E79: ROOTS & TUBERS, North America | G79: =AVERAGE(G80:G80) -> 0.35289624 | H79: =AVERAGE(H80:H80) -> 7.219405035e-05 | I79: =AVERAGE(I80:I80) -> 0.003887104267 | J79: =AVERAGE(J80:J80) -> 65.49467212 | K79: 1.9729043
B80: potato | D80: North America | E80: potato, North America | F80: Global | G80: 0.35289624 | H80: 7.219405035e-05 | I80: 0.003887104267 | J80: 65.49467212 | K80: 3.0544182
B81: Other | D81: North America | E81: Other, North America | G81: =AVERAGE(G82:G83) -> 1.757587237 | H81: 0.0001140010054 | I81: 0.00991825877 | J81: 91.91758458 | K81: =AVERAGE(K82:K83) -> 1.1019639
B82: palm oil | D82: North America | E82: palm oil, North America | F82: Global | G82: 3.3685471 | H82: 0.00021073604 | I82: 0.019611836 | J82: 164.03635 | K82: 1.0470615
B83: sugar cane | D83: North America | E83: sugar cane, North America | F83: Global | G83: 0.1466273737 | H83: 1.726597071e-05 | I83: 0.0002246815404 | J83: 19.79881917 | K83: 1.1568663
